Workbook

Sheet Opbjectives
C2: Deeper than simple IRR in Project Finance | L2: FALSE
C4: All derives from risk changes
C6: Upsdide from risk reduction like capital gain
C8: How to realise the upside

Sheet Model Set Up and IRR
B1: Timeline
D2: Period | J2: 1 | K2: 2 | L2: 3 | M2: 4 | N2: 5 | O2: 6 | P2: 7 | Q2: 8 | R2: 9 | S2: 10 | T2: 11 | U2: 12 | V2: 13 | W2: 14 | X2: 15 | Y2: 16 | Z2: 17 | AA2: 18 | AB2: 19 | AC2: 20 | AD2: 21 | AE2: 22 | AF2: 23 | AG2: 24 | AH2: 25 | AI2: 26 | AJ2: 27 | AK2: 28 | AL2: 29 | AM2: 30 | AN2: 31 | AO2: 32 | AP2: 33 | AQ2: 34 | AR2: 35 | AS2: 36 | AT2: 37 | AU2: 38 | AV2: 39 | AW2: 40 | AX2: 41 | AY2: 42 | AZ2: 43 | BA2: 44 | BB2: 45 | BC2: 46 | BD2: 47 | BE2: 48 | BF2: 49 | BG2: 50 | BH2: 51 | BI2: 52 | BJ2: 53 | BK2: 54 | BL2: 55 | BM2: 56 | BN2: 57 | BO2: 58 | BP2: 59 | BQ2: 60 | BR2: 61 | BS2: 62 | BT2: 63 | BU2: 64 | BV2: 65 | BW2: 66 | BX2: 67 | BY2: 68 | BZ2: 69 | CA2: 70 | CB2: 71 | CC2: 72 | CD2: 73 | CE2: 74 | CF2: 75 | CG2: 76 | CH2: 77 | CI2: 78 | CJ2: 79 | CK2: 80 | CL2: 81 | CM2: 82 | CN2: 83 | CO2: 84 | CP2: 85 | CQ2: 86 | CR2: 87 | CS2: 88 | CT2: 89 | CU2: 90 | CV2: 91 | CW2: 92 | CX2: 93 | CY2: 94 | CZ2: 95 | DA2: 96 | DB2: 97 | DC2: 98 | DD2: 99 | DE2: 100 | DF2: 101 | DG2: 102 | DH2: 103 | DI2: 104 | DJ2: 105 | DK2: 106 | DL2: 107 | DM2: 108 | DN2: 109 | DO2: 110 | DP2: 111 | DQ2: 112 | DR2: 113 | DS2: 114 | DT2: 115 | DU2: 116 | DV2: 117 | DW2: 118 | DX2: 119 | DY2: 120 | DZ2: 121 | EA2: 122 | EB2: 123 | EC2: 124 | ED2: 125 | EE2: 126 | EF2: 127 | EG2: 128 | EH2: 129 | EI2: 130 | EJ2: 131 | EK2: 132 | EL2: 133 | EM2: 134 | EN2: 135 | EO2: 136 | EP2: 137 | EQ2: 138 | ER2: 139 | ES2: 140 | ET2: 141 | EU2: 142 | EV2: 143 | EW2: 144 | EX2: 145 | EY2: 146 | EZ2: 147 | FA2: 148 | FB2: 149 | FC2: 150 | FD2: 151 | FE2: 152 | FF2: 153 | FG2: 154 | FH2: 155 | FI2: 156 | FJ2: 157 | FK2: 158 | FL2: 159 | FM2: 160 | FN2: 161 | FO2: 162 | FP2: 163 | FQ2: 164 | FR2: 165 | FS2: 166 | FT2: 167 | FU2: 168 | FV2: 169 | FW2: 170 | FX2: 171 | FY2: 172 | FZ2: 173 | GA2: 174 | GB2: 175 | GC2: 176 | GD2: 177 | GE2: 178 | GF2: 179 | GG2: 180 | GH2: 181 | GI2: 182 | GJ2: 183 | GK2: 184 | GL2: 185 | GM2: 186 | GN2: 187 | GO2: 188 | GP2: 189 | GQ2: 190 | GR2: 191 | GS2: 192 | GT2: 193 | GU2: 194 | GV2: 195 | GW2: 196 | GX2: 197 | GY2: 198 | GZ2: 199 | HA2: 200
D3: Pre-COD | E3: Months Pre | F3: =F6+F7 -> 33
D4: Month | E4: Model Period | F4: 1 | G4: 12
D5: Date | I5: 2020-01-01 | J5: =EDATE(I5, J4) -> 2020-01-01 | K5: 2020-01-01 | L5: 2020-01-01 | M5: 2020-01-01 | N5: 2020-01-01 | O5: 2020-01-01 | P5: 2020-01-01 | Q5: 2020-01-01 | R5: 2020-01-01 | S5: 2020-01-01 | T5: 2020-01-01 | U5: 2020-01-01 | V5: 2020-01-01 | W5: 2020-01-01 | X5: 2020-01-01 | Y5: 2020-01-01 | Z5: 2020-01-01 | AA5: 2020-01-01 | AB5: 2020-01-01 | AC5: 2020-01-01 | AD5: 2020-01-01 | AE5: 2020-01-01 | AF5: 2020-01-01 | AG5: 2020-01-01 | AH5: 2020-01-01 | AI5: 2020-01-01 | AJ5: 2020-01-01 | AK5: 2020-01-01 | AL5: 2020-01-01 | AM5: 2020-01-01 | AN5: 2020-01-01 | AO5: 2020-01-01 | AP5: =EDATE(AO5, AP4) -> 2020-01-01 | AQ5: 2020-01-01 | AR5: 2020-01-01 | AS5: 2020-01-01 | AT5: 2020-01-01 | AU5: 2020-01-01 | AV5: 2020-01-01 | AW5: 2020-01-01 | AX5: 2020-01-01 | AY5: 2020-01-01 | AZ5: 2020-01-01 | BA5: 2020-01-01 | BB5: 2020-01-01 | BC5: 2020-01-01 | BD5: 2020-01-01 | BE5: 2020-01-01 | BF5: 2020-01-01 | BG5: 2020-01-01 | BH5: 2020-01-01 | BI5: 2020-01-01 | BJ5: 2020-01-01 | BK5: 2020-01-01 | BL5: 2020-01-01 | BM5: 2020-01-01 | BN5: 2020-01-01 | BO5: 2020-01-01 | BP5: 2020-01-01 | BQ5: 2020-01-01 | BR5: 2020-01-01 | BS5: 2020-01-01 | BT5: 2020-01-01 | BU5: 2020-01-01 | BV5: =EDATE(BU5, BV4) -> 2020-01-01 | BW5: 2020-01-01 | BX5: 2020-01-01 | BY5: 2020-01-01 | BZ5: 2020-01-01 | CA5: 2020-01-01 | CB5: 2020-01-01 | CC5: 2020-01-01 | CD5: 2020-01-01 | CE5: 2020-01-01 | CF5: 2020-01-01 | CG5: 2020-01-01 | CH5: 2020-01-01 | CI5: 2020-01-01 | CJ5: 2020-01-01 | CK5: 2020-01-01 | CL5: 2020-01-01 | CM5: 2020-01-01 | CN5: 2020-01-01 | CO5: 2020-01-01 | CP5: 2020-01-01 | CQ5: 2020-01-01 | CR5: 2020-01-01 | CS5: 2020-01-01 | CT5: 2020-01-01 | CU5: 2020-01-01 | CV5: 2020-01-01 | CW5: 2020-01-01 | CX5: 2020-01-01 | CY5: 2020-01-01 | CZ5: 2020-01-01 | DA5: 2020-01-01 | DB5: =EDATE(DA5, DB4) -> 2020-01-01 | DC5: 2020-01-01 | DD5: 2020-01-01 | DE5: 2020-01-01 | DF5: 2020-01-01 | DG5: 2020-01-01 | DH5: 2020-01-01 | DI5: 2020-01-01 | DJ5: 2020-01-01 | DK5: 2020-01-01 | DL5: 2020-01-01 | DM5: 2020-01-01 | DN5: 2020-01-01 | DO5: 2020-01-01 | DP5: 2020-01-01 | DQ5: 2020-01-01 | DR5: 2020-01-01 | DS5: 2020-01-01 | DT5: 2020-01-01 | DU5: 2020-01-01 | DV5: 2020-01-01 | DW5: 2020-01-01 | DX5: 2020-01-01 | DY5: 2020-01-01 | DZ5: 2020-01-01 | EA5: 2020-01-01 | EB5: 2020-01-01 | EC5: 2020-01-01 | ED5: 2020-01-01 | EE5: 2020-01-01 | EF5: 2020-01-01 | EG5: 2020-01-01 | EH5: =EDATE(EG5, EH4) -> 2020-01-01 | EI5: 2020-01-01 | EJ5: 2020-01-01 | EK5: 2020-01-01 | EL5: 2020-01-01 | EM5: 2020-01-01 | EN5: 2020-01-01 | EO5: 2020-01-01 | EP5: 2020-01-01 | EQ5: 2020-01-01 | ER5: 2020-01-01 | ES5: 2020-01-01 | ET5: 2020-01-01 | EU5: 2020-01-01 | EV5: 2020-01-01 | EW5: 2020-01-01 | EX5: 2020-01-01 | EY5: 2020-01-01 | EZ5: 2020-01-01 | FA5: 2020-01-01 | FB5: 2020-01-01 | FC5: 2020-01-01 | FD5: 2020-01-01 | FE5: 2020-01-01 | FF5: 2020-01-01 | FG5: 2020-01-01 | FH5: 2020-01-01 | FI5: 2020-01-01 | FJ5: 2020-01-01 | FK5: 2020-01-01 | FL5: 2020-01-01 | FM5: 2020-01-01 | FN5: =EDATE(FM5, FN4) -> 2020-01-01 | FO5: 2020-01-01 | FP5: 2020-01-01 | FQ5: 2020-01-01 | FR5: 2020-01-01 | FS5: 2020-01-01 | FT5: 2020-01-01 | FU5: 2020-01-01 | FV5: 2020-01-01 | FW5: 2020-01-01 | FX5: 2020-01-01 | FY5: 2020-01-01 | FZ5: 2020-01-01 | GA5: 2020-01-01 | GB5: 2020-01-01 | GC5: 2020-01-01 | GD5: 2020-01-01 | GE5: 2020-01-01 | GF5: 2020-01-01 | GG5: 2020-01-01 | GH5: 2020-01-01 | GI5: 2020-01-01 | GJ5: 2020-01-01 | GK5: 2020-01-01 | GL5: 2020-01-01 | GM5: 2020-01-01 | GN5: 2020-01-01 | GO5: 2020-01-01 | GP5: 2020-01-01 | GQ5: 2020-01-01 | GR5: 2020-01-01 | GS5: 2020-01-01 | GT5: =EDATE(GS5, GT4) -> 2020-01-01 | GU5: 2020-01-01 | GV5: 2020-01-01 | GW5: 2020-01-01 | GX5: 2020-01-01 | GY5: 2020-01-01 | GZ5: 2020-01-01 | HA5: 2020-01-01
D6: Development Period | E6: Month | F6: =F14 -> 13 | J6: =J2<=$F$6 -> TRUE | K6: =K2<=$F$6 -> TRUE | L6: TRUE | M6: TRUE | N6: TRUE | O6: TRUE | P6: TRUE | Q6: TRUE | R6: TRUE | S6: TRUE | T6: TRUE | U6: TRUE | V6: TRUE | W6: FALSE | X6: FALSE | Y6: FALSE | Z6: FALSE | AA6: FALSE | AB6: FALSE | AC6: FALSE | AD6: FALSE | AE6: FALSE | AF6: FALSE | AG6: FALSE | AH6: FALSE | AI6: FALSE | AJ6: FALSE | AK6: FALSE | AL6: FALSE | AM6: FALSE | AN6: FALSE | AO6: FALSE | AP6: FALSE | AQ6: FALSE | AR6: FALSE | AS6: FALSE | AT6: FALSE | AU6: FALSE | AV6: FALSE | AW6: FALSE | AX6: FALSE | AY6: FALSE | AZ6: FALSE | BA6: FALSE | BB6: FALSE | BC6: FALSE | BD6: FALSE | BE6: FALSE | BF6: FALSE | BG6: FALSE | BH6: FALSE | BI6: FALSE | BJ6: FALSE | BK6: FALSE | BL6: FALSE | BM6: FALSE | BN6: FALSE | BO6: FALSE | BP6: FALSE | BQ6: FALSE | BR6: FALSE | BS6: FALSE | BT6: FALSE | BU6: FALSE | BV6: FALSE | BW6: =BW2<=$F$6 -> FALSE | BX6: FALSE | BY6: FALSE | BZ6: FALSE | CA6: FALSE | CB6: FALSE | CC6: FALSE | CD6: FALSE | CE6: FALSE | CF6: FALSE | CG6: FALSE | CH6: FALSE | CI6: FALSE | CJ6: FALSE | CK6: FALSE | CL6: FALSE | CM6: FALSE | CN6: FALSE | CO6: FALSE | CP6: FALSE | CQ6: FALSE | CR6: FALSE | CS6: FALSE | CT6: FALSE | CU6: FALSE | CV6: FALSE | CW6: FALSE | CX6: FALSE | CY6: FALSE | CZ6: FALSE | DA6: FALSE | DB6: FALSE | DC6: FALSE | DD6: FALSE | DE6: FALSE | DF6: FALSE | DG6: FALSE | DH6: FALSE | DI6: FALSE | DJ6: FALSE | DK6: FALSE | DL6: FALSE | DM6: FALSE | DN6: FALSE | DO6: FALSE | DP6: FALSE | DQ6: FALSE | DR6: FALSE | DS6: FALSE | DT6: FALSE | DU6: FALSE | DV6: FALSE | DW6: FALSE | DX6: FALSE | DY6: FALSE | DZ6: FALSE | EA6: FALSE | EB6: FALSE | EC6: FALSE | ED6: FALSE | EE6: FALSE | EF6: FALSE | EG6: FALSE | EH6: FALSE | EI6: =EI2<=$F$6 -> FALSE | EJ6: FALSE | EK6: FALSE | EL6: FALSE | EM6: FALSE | EN6: FALSE | EO6: FALSE | EP6: FALSE | EQ6: FALSE | ER6: FALSE | ES6: FALSE | ET6: FALSE | EU6: FALSE | EV6: FALSE | EW6: FALSE | EX6: FALSE | EY6: FALSE | EZ6: FALSE | FA6: FALSE | FB6: FALSE | FC6: FALSE | FD6: FALSE | FE6: FALSE | FF6: FALSE | FG6: FALSE | FH6: FALSE | FI6: FALSE | FJ6: FALSE | FK6: FALSE | FL6: FALSE | FM6: FALSE | FN6: FALSE | FO6: FALSE | FP6: FALSE | FQ6: FALSE | FR6: FALSE | FS6: FALSE | FT6: FALSE | FU6: FALSE | FV6: FALSE | FW6: FALSE | FX6: FALSE | FY6: FALSE | FZ6: FALSE | GA6: FALSE | GB6: FALSE | GC6: FALSE | GD6: FALSE | GE6: FALSE | GF6: FALSE | GG6: FALSE | GH6: FALSE | GI6: FALSE | GJ6: FALSE | GK6: FALSE | GL6: FALSE | GM6: FALSE | GN6: FALSE | GO6: FALSE | GP6: FALSE | GQ6: FALSE | GR6: FALSE | GS6: FALSE | GT6: FALSE | GU6: =GU2<=$F$6 -> FALSE | GV6: FALSE | GW6: FALSE | GX6: FALSE | GY6: FALSE | GZ6: FALSE | HA6: FALSE
D7: Construction period | E7: Month | F7: =F15 -> 20 | J7: =AND(J3,NOT(J6)) -> FALSE | K7: FALSE | L7: FALSE | M7: FALSE | N7: FALSE | O7: FALSE | P7: FALSE | Q7: FALSE | R7: FALSE | S7: FALSE | T7: FALSE | U7: FALSE | V7: FALSE | W7: TRUE | X7: TRUE | Y7: TRUE | Z7: TRUE | AA7: TRUE | AB7: TRUE | AC7: TRUE | AD7: TRUE | AE7: TRUE | AF7: TRUE | AG7: TRUE | AH7: TRUE | AI7: TRUE | AJ7: TRUE | AK7: TRUE | AL7: TRUE | AM7: TRUE | AN7: TRUE | AO7: TRUE | AP7: =AND(AP3,NOT(AP6)) -> TRUE | AQ7: TRUE | AR7: TRUE | AS7: TRUE | AT7: TRUE | AU7: TRUE | AV7: TRUE | AW7: TRUE | AX7: TRUE | AY7: TRUE | AZ7: TRUE | BA7: TRUE | BB7: TRUE | BC7: TRUE | BD7: TRUE | BE7: TRUE | BF7: TRUE | BG7: TRUE | BH7: TRUE | BI7: TRUE | BJ7: TRUE | BK7: TRUE | BL7: TRUE | BM7: TRUE | BN7: TRUE | BO7: TRUE | BP7: TRUE | BQ7: TRUE | BR7: TRUE | BS7: TRUE | BT7: TRUE | BU7: TRUE | BV7: =AND(BV3,NOT(BV6)) -> TRUE | BW7: TRUE | BX7: TRUE | BY7: TRUE | BZ7: TRUE | CA7: TRUE | CB7: TRUE | CC7: TRUE | CD7: TRUE | CE7: TRUE | CF7: TRUE | CG7: TRUE | CH7: TRUE | CI7: TRUE | CJ7: TRUE | CK7: TRUE | CL7: TRUE | CM7: TRUE | CN7: TRUE | CO7: TRUE | CP7: TRUE | CQ7: TRUE | CR7: TRUE | CS7: TRUE | CT7: TRUE | CU7: TRUE | CV7: TRUE | CW7: TRUE | CX7: TRUE | CY7: TRUE | CZ7: TRUE | DA7: TRUE | DB7: =AND(DB3,NOT(DB6)) -> TRUE | DC7: TRUE | DD7: TRUE | DE7: TRUE | DF7: TRUE | DG7: TRUE | DH7: TRUE | DI7: TRUE | DJ7: TRUE | DK7: TRUE | DL7: TRUE | DM7: TRUE | DN7: TRUE | DO7: TRUE | DP7: TRUE | DQ7: TRUE | DR7: TRUE | DS7: TRUE | DT7: TRUE | DU7: TRUE | DV7: TRUE | DW7: TRUE | DX7: TRUE | DY7: TRUE | DZ7: TRUE | EA7: TRUE | EB7: TRUE | EC7: TRUE | ED7: TRUE | EE7: TRUE | EF7: TRUE | EG7: TRUE | EH7: =AND(EH3,NOT(EH6)) -> TRUE | EI7: TRUE | EJ7: TRUE | EK7: TRUE | EL7: TRUE | EM7: TRUE | EN7: TRUE | EO7: TRUE | EP7: TRUE | EQ7: TRUE | ER7: TRUE | ES7: TRUE | ET7: TRUE | EU7: TRUE | EV7: TRUE | EW7: TRUE | EX7: TRUE | EY7: TRUE | EZ7: TRUE | FA7: TRUE | FB7: TRUE | FC7: TRUE | FD7: TRUE | FE7: TRUE | FF7: TRUE | FG7: TRUE | FH7: TRUE | FI7: TRUE | FJ7: TRUE | FK7: TRUE | FL7: TRUE | FM7: TRUE | FN7: =AND(FN3,NOT(FN6)) -> TRUE | FO7: TRUE | FP7: TRUE | FQ7: TRUE | FR7: TRUE | FS7: TRUE | FT7: TRUE | FU7: TRUE | FV7: TRUE | FW7: TRUE | FX7: TRUE | FY7: TRUE | FZ7: TRUE | GA7: TRUE | GB7: TRUE | GC7: TRUE | GD7: TRUE | GE7: TRUE | GF7: TRUE | GG7: TRUE | GH7: TRUE | GI7: TRUE | GJ7: TRUE | GK7: TRUE | GL7: TRUE | GM7: TRUE | GN7: TRUE | GO7: TRUE | GP7: TRUE | GQ7: TRUE | GR7: TRUE | GS7: TRUE | GT7: =AND(GT3,NOT(GT6)) -> TRUE | GU7: TRUE | GV7: TRUE | GW7: TRUE | GX7: TRUE | GY7: TRUE | GZ7: TRUE | HA7: TRUE
D8: Age of project | J8: =I8+NOT(J3) -> 1 | K8: 2 | L8: 3 | M8: 4 | N8: 5 | O8: 6 | P8: 7 | Q8: 8 | R8: 9 | S8: 10 | T8: 11 | U8: 12 | V8: 13 | W8: 14 | X8: 15 | Y8: 16 | Z8: 17 | AA8: 18 | AB8: 19 | AC8: 20 | AD8: 21 | AE8: 22 | AF8: 23 | AG8: 24 | AH8: 25 | AI8: 26 | AJ8: 27 | AK8: 28 | AL8: 29 | AM8: 30 | AN8: 31 | AO8: 32 | AP8: =AO8+NOT(AP3) -> 33 | AQ8: 34 | AR8: 35 | AS8: 36 | AT8: 37 | AU8: 38 | AV8: 39 | AW8: 40 | AX8: 41 | AY8: 42 | AZ8: 43 | BA8: 44 | BB8: 45 | BC8: 46 | BD8: 47 | BE8: 48 | BF8: 49 | BG8: 50 | BH8: 51 | BI8: 52 | BJ8: 53 | BK8: 54 | BL8: 55 | BM8: 56 | BN8: 57 | BO8: 58 | BP8: 59 | BQ8: 60 | BR8: 61 | BS8: 62 | BT8: 63 | BU8: 64 | BV8: =BU8+NOT(BV3) -> 65 | BW8: 66 | BX8: 67 | BY8: 68 | BZ8: 69 | CA8: 70 | CB8: 71 | CC8: 72 | CD8: 73 | CE8: 74 | CF8: 75 | CG8: 76 | CH8: 77 | CI8: 78 | CJ8: 79 | CK8: 80 | CL8: 81 | CM8: 82 | CN8: 83 | CO8: 84 | CP8: 85 | CQ8: 86 | CR8: 87 | CS8: 88 | CT8: 89 | CU8: 90 | CV8: 91 | CW8: 92 | CX8: 93 | CY8: 94 | CZ8: 95 | DA8: 96 | DB8: =DA8+NOT(DB3) -> 97 | DC8: 98 | DD8: 99 | DE8: 100 | DF8: 101 | DG8: 102 | DH8: 103 | DI8: 104 | DJ8: 105 | DK8: 106 | DL8: 107 | DM8: 108 | DN8: 109 | DO8: 110 | DP8: 111 | DQ8: 112 | DR8: 113 | DS8: 114 | DT8: 115 | DU8: 116 | DV8: 117 | DW8: 118 | DX8: 119 | DY8: 120 | DZ8: 121 | EA8: 122 | EB8: 123 | EC8: 124 | ED8: 125 | EE8: 126 | EF8: 127 | EG8: 128 | EH8: =EG8+NOT(EH3) -> 129 | EI8: 130 | EJ8: 131 | EK8: 132 | EL8: 133 | EM8: 134 | EN8: 135 | EO8: 136 | EP8: 137 | EQ8: 138 | ER8: 139 | ES8: 140 | ET8: 141 | EU8: 142 | EV8: 143 | EW8: 144 | EX8: 145 | EY8: 146 | EZ8: 147 | FA8: 148 | FB8: 149 | FC8: 150 | FD8: 151 | FE8: 152 | FF8: 153 | FG8: 154 | FH8: 155 | FI8: 156 | FJ8: 157 | FK8: 158 | FL8: 159 | FM8: 160 | FN8: =FM8+NOT(FN3) -> 161 | FO8: 162 | FP8: 163 | FQ8: 164 | FR8: 165 | FS8: 166 | FT8: 167 | FU8: 168 | FV8: 169 | FW8: 170 | FX8: 171 | FY8: 172 | FZ8: 173 | GA8: 174 | GB8: 175 | GC8: 176 | GD8: 177 | GE8: 178 | GF8: 179 | GG8: 180 | GH8: 181 | GI8: 182 | GJ8: 183 | GK8: 184 | GL8: 185 | GM8: 186 | GN8: 187 | GO8: 188 | GP8: 189 | GQ8: 190 | GR8: 191 | GS8: 192 | GT8: =GS8+NOT(GT3) -> 193 | GU8: 194 | GV8: 195 | GW8: 196 | GX8: 197 | GY8: 198 | GZ8: 199 | HA8: 200
D9: Operating period | E9: Years | F9: 70 | J9: =AND(J8<=$F$9, NOT(J3)) -> TRUE | K9: TRUE | L9: TRUE | M9: TRUE | N9: TRUE | O9: TRUE | P9: TRUE | Q9: TRUE | R9: TRUE | S9: TRUE | T9: TRUE | U9: TRUE | V9: TRUE | W9: TRUE | X9: TRUE | Y9: TRUE | Z9: TRUE | AA9: TRUE | AB9: TRUE | AC9: TRUE | AD9: TRUE | AE9: TRUE | AF9: TRUE | AG9: TRUE | AH9: TRUE | AI9: TRUE | AJ9: TRUE | AK9: TRUE | AL9: TRUE | AM9: TRUE | AN9: TRUE | AO9: TRUE | AP9: =AND(AP8<=$F$9, NOT(AP3)) -> TRUE | AQ9: TRUE | AR9: TRUE | AS9: TRUE | AT9: TRUE | AU9: TRUE | AV9: TRUE | AW9: TRUE | AX9: TRUE | AY9: TRUE | AZ9: TRUE | BA9: TRUE | BB9: TRUE | BC9: TRUE | BD9: TRUE | BE9: TRUE | BF9: TRUE | BG9: TRUE | BH9: TRUE | BI9: TRUE | BJ9: TRUE | BK9: TRUE | BL9: TRUE | BM9: TRUE | BN9: TRUE | BO9: TRUE | BP9: TRUE | BQ9: TRUE | BR9: TRUE | BS9: TRUE | BT9: TRUE | BU9: TRUE | BV9: =AND(BV8<=$F$9, NOT(BV3)) -> TRUE | BW9: TRUE | BX9: TRUE | BY9: TRUE | BZ9: TRUE | CA9: TRUE | CB9: FALSE | CC9: FALSE | CD9: FALSE | CE9: FALSE | CF9: FALSE | CG9: FALSE | CH9: FALSE | CI9: FALSE | CJ9: FALSE | CK9: FALSE | CL9: FALSE | CM9: FALSE | CN9: FALSE | CO9: FALSE | CP9: FALSE | CQ9: FALSE | CR9: FALSE | CS9: FALSE | CT9: FALSE | CU9: FALSE | CV9: FALSE | CW9: FALSE | CX9: FALSE | CY9: FALSE | CZ9: FALSE | DA9: FALSE | DB9: =AND(DB8<=$F$9, NOT(DB3)) -> FALSE | DC9: FALSE | DD9: FALSE | DE9: FALSE | DF9: FALSE | DG9: FALSE | DH9: FALSE | DI9: FALSE | DJ9: FALSE | DK9: FALSE | DL9: FALSE | DM9: FALSE | DN9: FALSE | DO9: FALSE | DP9: FALSE | DQ9: FALSE | DR9: FALSE | DS9: FALSE | DT9: FALSE | DU9: FALSE | DV9: FALSE | DW9: FALSE | DX9: FALSE | DY9: FALSE | DZ9: FALSE | EA9: FALSE | EB9: FALSE | EC9: FALSE | ED9: FALSE | EE9: FALSE | EF9: FALSE | EG9: FALSE | EH9: =AND(EH8<=$F$9, NOT(EH3)) -> FALSE | EI9: FALSE | EJ9: FALSE | EK9: FALSE | EL9: FALSE | EM9: FALSE | EN9: FALSE | EO9: FALSE | EP9: FALSE | EQ9: FALSE | ER9: FALSE | ES9: FALSE | ET9: FALSE | EU9: FALSE | EV9: FALSE | EW9: FALSE | EX9: FALSE | EY9: FALSE | EZ9: FALSE | FA9: FALSE | FB9: FALSE | FC9: FALSE | FD9: FALSE | FE9: FALSE | FF9: FALSE | FG9: FALSE | FH9: FALSE | FI9: FALSE | FJ9: FALSE | FK9: FALSE | FL9: FALSE | FM9: FALSE | FN9: =AND(FN8<=$F$9, NOT(FN3)) -> FALSE | FO9: FALSE | FP9: FALSE | FQ9: FALSE | FR9: FALSE | FS9: FALSE | FT9: FALSE | FU9: FALSE | FV9: FALSE | FW9: FALSE | FX9: FALSE | FY9: FALSE | FZ9: FALSE | GA9: FALSE | GB9: FALSE | GC9: FALSE | GD9: FALSE | GE9: FALSE | GF9: FALSE | GG9: FALSE | GH9: FALSE | GI9: FALSE | GJ9: FALSE | GK9: FALSE | GL9: FALSE | GM9: FALSE | GN9: FALSE | GO9: FALSE | GP9: FALSE | GQ9: FALSE | GR9: FALSE | GS9: FALSE | GT9: =AND(GT8<=$F$9, NOT(GT3)) -> FALSE | GU9: FALSE | GV9: FALSE | GW9: FALSE | GX9: FALSE | GY9: FALSE | GZ9: FALSE | HA9: FALSE
B11: Inputs | M11: Life | N11: =F9 -> 70 | P11: Growth | Q11: =F19 -> 0.03
K12: EBITDA
C13: General Inputs | I13: Out Var | L13: PIRR | M13: MIRR | N13: Accum Cash | O13: MOIC | P13: Prem Rf | Q13: NPV | R13: Payback
D14: Development Period | E14: Months | F14: 13 | H14: PIRR | I14: =F32 -> 0 | K14: 25000 | L14: 0.08716734946 | M14: 0.09870822162 | N14: 347.7053 | O14: 14.48243205 | P14: 0.1079608372 | Q14: -62300.75404 | R14: 2035-10-01
D15: Construction Period | E15: Months | F15: 20 | H15: MIRR | I15: =F33 -> FALSE | K15: =K14+5000 -> 30000 | L15: 0.09881656766 | M15: 0.09988873791 | N15: 733.2043551 | O15: 17.37891846 | P15: 0.1354888506 | Q15: -5865.369513 | R15: 2033-10-01
D16: Development Cost (actual) | E16: EUR | F16: 10000 | H16: Accum Cash | K16: =K15+5000 -> 35000 | L16: 0.1100369275 | M16: 0.1008878397 | N16: 1493.061592 | O16: 20.27540487 | P16: 0.163016864 | Q16: 50570.01501 | R16: 2031-10-01
D17: EPC Cost | E17: EUR | F17: 400000 | H17: MOIC | K17: 40000 | L17: 0.1209493577 | M17: 0.1017540346 | N17: 2961.243135 | O17: 23.17189128 | P17: 0.1905448774 | Q17: 107005.3995 | R17: 2030-10-01
D18: EBITDA p.a. | E18: EUR | F18: 40000 | H18: Prem Rf | K18: 45000 | L18: 0.131622237 | M18: 0.1025186384 | N18: 5748.506851 | O18: 26.06837769 | P18: 0.2180728908 | Q18: 163440.7841 | R18: 2029-10-01
D19: EBITDA Growth | E19: % | F19: =F23/1000 -> 0.03 | H19: NPV | K19: 50000 | L19: 0.1420959651 | M19: 0.1032030494 | N19: 10955.48968 | O19: 28.9648641 | P19: 0.2456009042 | Q19: 219876.1686 | R19: 2029-10-01
D20: Re-invesment Rate | E20: % | F20: 0.1 | H20: Payback | K20: 55000 | L20: 0.1523955166 | M20: 0.1038225404 | N20: 20537.99 | O20: 31.86135051 | P20: 0.2731289176 | Q20: 276311.5531 | R20: 2028-10-01
D21: Risk Free Rate | E21: % | F21: 0.027 | S21: output
D22: Cost of Capital | E22: % | F22: 0.1 | J22: Last Two | K22: =K20/K19-1 -> 0.1 | L22: =L20/L19-1 -> 0.07248306788 | M22: =M20/M19-1 -> 0.006002642755 | N22: =N20/N19-1 -> 0.8746756738 | O22: =O20/O19-1 -> 0.1 | P22: 0.1120843324 | Q22: 0.2566689464
F23: 30 | J23: Last vs Middle | K23: =K20/K17-1 -> 0.375 | L23: =L20/L17-1 -> 0.2599944264 | M23: =M20/M17-1 -> 0.02032848892 | N23: =N20/N17-1 -> 5.935597337 | O23: =O20/O17-1 -> 0.375 | P23: 0.4334099205 | Q23: 1.582220657
B24: Fundamental Cash Flow Analysis
D26: Development Cost (actual) | E26: EUR | F26: =F16 -> 10000 | G26: =F6 -> 13
D27: EPC cost | E27: EUR | F27: =F17 -> 400000 | J27: =$F$27/$F$7*J7 -> 0 | K27: 0 | L27: 0 | M27: 0 | N27: 0 | O27: 0 | P27: 0 | Q27: 0 | R27: 0 | S27: 0 | T27: 0 | U27: 0 | V27: 0 | W27: 20000 | X27: 20000 | Y27: 20000 | Z27: 20000 | AA27: 20000 | AB27: 20000 | AC27: 20000 | AD27: 20000 | AE27: 20000 | AF27: 20000 | AG27: 20000 | AH27: 20000 | AI27: 20000 | AJ27: 20000 | AK27: 20000 | AL27: 20000 | AM27: 20000 | AN27: 20000 | AO27: 20000 | AP27: =$F$27/$F$7*AP7 -> 20000 | AQ27: 20000 | AR27: 20000 | AS27: 20000 | AT27: 20000 | AU27: 20000 | AV27: 20000 | AW27: 20000 | AX27: 20000 | AY27: 20000 | AZ27: 20000 | BA27: 20000 | BB27: 20000 | BC27: 20000 | BD27: 20000 | BE27: 20000 | BF27: 20000 | BG27: 20000 | BH27: 20000 | BI27: 20000 | BJ27: 20000 | BK27: 20000 | BL27: 20000 | BM27: 20000 | BN27: 20000 | BO27: 20000 | BP27: 20000 | BQ27: 20000 | BR27: 20000 | BS27: 20000 | BT27: 20000 | BU27: 20000 | BV27: =$F$27/$F$7*BV7 -> 20000 | BW27: 20000 | BX27: 20000 | BY27: 20000 | BZ27: 20000 | CA27: 20000 | CB27: 20000 | CC27: 20000 | CD27: 20000 | CE27: 20000 | CF27: 20000 | CG27: 20000 | CH27: 20000 | CI27: 20000 | CJ27: 20000 | CK27: 20000 | CL27: 20000 | CM27: 20000 | CN27: 20000 | CO27: 20000 | CP27: 20000 | CQ27: 20000 | CR27: 20000 | CS27: 20000 | CT27: 20000 | CU27: 20000 | CV27: 20000 | CW27: 20000 | CX27: 20000 | CY27: 20000 | CZ27: 20000 | DA27: 20000 | DB27: =$F$27/$F$7*DB7 -> 20000 | DC27: 20000 | DD27: 20000 | DE27: 20000 | DF27: 20000 | DG27: 20000 | DH27: 20000 | DI27: 20000 | DJ27: 20000 | DK27: 20000 | DL27: 20000 | DM27: 20000 | DN27: 20000 | DO27: 20000 | DP27: 20000 | DQ27: 20000 | DR27: 20000 | DS27: 20000 | DT27: 20000 | DU27: 20000 | DV27: 20000 | DW27: 20000 | DX27: 20000 | DY27: 20000 | DZ27: 20000 | EA27: 20000 | EB27: 20000 | EC27: 20000 | ED27: 20000 | EE27: 20000 | EF27: 20000 | EG27: 20000 | EH27: =$F$27/$F$7*EH7 -> 20000 | EI27: 20000 | EJ27: 20000 | EK27: 20000 | EL27: 20000 | EM27: 20000 | EN27: 20000 | EO27: 20000 | EP27: 20000 | EQ27: 20000 | ER27: 20000 | ES27: 20000 | ET27: 20000 | EU27: 20000 | EV27: 20000 | EW27: 20000 | EX27: 20000 | EY27: 20000 | EZ27: 20000 | FA27: 20000 | FB27: 20000 | FC27: 20000 | FD27: 20000 | FE27: 20000 | FF27: 20000 | FG27: 20000 | FH27: 20000 | FI27: 20000 | FJ27: 20000 | FK27: 20000 | FL27: 20000 | FM27: 20000 | FN27: =$F$27/$F$7*FN7 -> 20000 | FO27: 20000 | FP27: 20000 | FQ27: 20000 | FR27: 20000 | FS27: 20000 | FT27: 20000 | FU27: 20000 | FV27: 20000 | FW27: 20000 | FX27: 20000 | FY27: 20000 | FZ27: 20000 | GA27: 20000 | GB27: 20000 | GC27: 20000 | GD27: 20000 | GE27: 20000 | GF27: 20000 | GG27: 20000 | GH27: 20000 | GI27: 20000 | GJ27: 20000 | GK27: 20000 | GL27: 20000 | GM27: 20000 | GN27: 20000 | GO27: 20000 | GP27: 20000 | GQ27: 20000 | GR27: 20000 | GS27: 20000 | GT27: =$F$27/$F$7*GT7 -> 20000 | GU27: 20000 | GV27: 20000 | GW27: 20000 | GX27: 20000 | GY27: 20000 | GZ27: 20000 | HA27: 20000
D28: Growth Index | E28: Index | F28: =F19 -> 0.03 | I28: 1 | J28: =I28*(1+$F$28*J9) -> 1.03 | K28: 1.0609 | L28: 1.092727 | M28: 1.12550881 | N28: 1.159274074 | O28: 1.194052297 | P28: 1.229873865 | Q28: 1.266770081 | R28: 1.304773184 | S28: 1.343916379 | T28: 1.384233871 | U28: 1.425760887 | V28: 1.468533713 | W28: 1.512589725 | X28: 1.557967417 | Y28: 1.604706439 | Z28: 1.652847632 | AA28: 1.702433061 | AB28: 1.753506053 | AC28: 1.806111235 | AD28: 1.860294572 | AE28: 1.916103409 | AF28: 1.973586511 | AG28: 2.032794106 | AH28: 2.09377793 | AI28: 2.156591268 | AJ28: 2.221289006 | AK28: 2.287927676 | AL28: 2.356565506 | AM28: 2.427262471 | AN28: 2.500080345 | AO28: 2.575082756 | AP28: =AO28*(1+$F$28*AP9) -> 2.652335238 | AQ28: 2.731905296 | AR28: 2.813862454 | AS28: 2.898278328 | AT28: 2.985226678 | AU28: 3.074783478 | AV28: 3.167026983 | AW28: 3.262037792 | AX28: 3.359898926 | AY28: 3.460695894 | AZ28: 3.56451677 | BA28: 3.671452273 | BB28: 3.781595842 | BC28: 3.895043717 | BD28: 4.011895028 | BE28: 4.132251879 | BF28: 4.256219436 | BG28: 4.383906019 | BH28: 4.515423199 | BI28: 4.650885895 | BJ28: 4.790412472 | BK28: 4.934124846 | BL28: 5.082148592 | BM28: 5.234613049 | BN28: 5.391651441 | BO28: 5.553400984 | BP28: 5.720003014 | BQ28: 5.891603104 | BR28: 6.068351197 | BS28: 6.250401733 | BT28: 6.437913785 | BU28: 6.631051199 | BV28: =BU28*(1+$F$28*BV9) -> 6.829982735 | BW28: 7.034882217 | BX28: 7.245928683 | BY28: 7.463306544 | BZ28: 7.68720574 | CA28: 7.917821912 | CB28: 7.917821912 | CC28: 7.917821912 | CD28: 7.917821912 | CE28: 7.917821912 | CF28: 7.917821912 | CG28: 7.917821912 | CH28: 7.917821912 | CI28: 7.917821912 | CJ28: 7.917821912 | CK28: 7.917821912 | CL28: 7.917821912 | CM28: 7.917821912 | CN28: 7.917821912 | CO28: 7.917821912 | CP28: 7.917821912 | CQ28: 7.917821912 | CR28: 7.917821912 | CS28: 7.917821912 | CT28: 7.917821912 | CU28: 7.917821912 | CV28: 7.917821912 | CW28: 7.917821912 | CX28: 7.917821912 | CY28: 7.917821912 | CZ28: 7.917821912 | DA28: 7.917821912 | DB28: =DA28*(1+$F$28*DB9) -> 7.917821912 | DC28: 7.917821912 | DD28: 7.917821912 | DE28: 7.917821912 | DF28: 7.917821912 | DG28: 7.917821912 | DH28: 7.917821912 | DI28: 7.917821912 | DJ28: 7.917821912 | DK28: 7.917821912 | DL28: 7.917821912 | DM28: 7.917821912 | DN28: 7.917821912 | DO28: 7.917821912 | DP28: 7.917821912 | DQ28: 7.917821912 | DR28: 7.917821912 | DS28: 7.917821912 | DT28: 7.917821912 | DU28: 7.917821912 | DV28: 7.917821912 | DW28: 7.917821912 | DX28: 7.917821912 | DY28: 7.917821912 | DZ28: 7.917821912 | EA28: 7.917821912 | EB28: 7.917821912 | EC28: 7.917821912 | ED28: 7.917821912 | EE28: 7.917821912 | EF28: 7.917821912 | EG28: 7.917821912 | EH28: =EG28*(1+$F$28*EH9) -> 7.917821912 | EI28: 7.917821912 | EJ28: 7.917821912 | EK28: 7.917821912 | EL28: 7.917821912 | EM28: 7.917821912 | EN28: 7.917821912 | EO28: 7.917821912 | EP28: 7.917821912 | EQ28: 7.917821912 | ER28: 7.917821912 | ES28: 7.917821912 | ET28: 7.917821912 | EU28: 7.917821912 | EV28: 7.917821912 | EW28: 7.917821912 | EX28: 7.917821912 | EY28: 7.917821912 | EZ28: 7.917821912 | FA28: 7.917821912 | FB28: 7.917821912 | FC28: 7.917821912 | FD28: 7.917821912 | FE28: 7.917821912 | FF28: 7.917821912 | FG28: 7.917821912 | FH28: 7.917821912 | FI28: 7.917821912 | FJ28: 7.917821912 | FK28: 7.917821912 | FL28: 7.917821912 | FM28: 7.917821912 | FN28: =FM28*(1+$F$28*FN9) -> 7.917821912 | FO28: 7.917821912 | FP28: 7.917821912 | FQ28: 7.917821912 | FR28: 7.917821912 | FS28: 7.917821912 | FT28: 7.917821912 | FU28: 7.917821912 | FV28: 7.917821912 | FW28: 7.917821912 | FX28: 7.917821912 | FY28: 7.917821912 | FZ28: 7.917821912 | GA28: 7.917821912 | GB28: 7.917821912 | GC28: 7.917821912 | GD28: 7.917821912 | GE28: 7.917821912 | GF28: 7.917821912 | GG28: 7.917821912 | GH28: 7.917821912 | GI28: 7.917821912 | GJ28: 7.917821912 | GK28: 7.917821912 | GL28: 7.917821912 | GM28: 7.917821912 | GN28: 7.917821912 | GO28: 7.917821912 | GP28: 7.917821912 | GQ28: 7.917821912 | GR28: 7.917821912 | GS28: 7.917821912 | GT28: =GS28*(1+$F$28*GT9) -> 7.917821912 | GU28: 7.917821912 | GV28: 7.917821912 | GW28: 7.917821912 | GX28: 7.917821912 | GY28: 7.917821912 | GZ28: 7.917821912 | HA28: 7.917821912
D29: EBITDA p.a. | E29: EUR | F29: =F18 -> 40000 | J29: =$F$29*J9*J28 -> 41200 | K29: 42436 | L29: 43709.08 | M29: 45020.3524 | N29: 46370.96297 | O29: 47762.09186 | P29: 49194.95462 | Q29: 50670.80326 | R29: 52190.92735 | S29: 53756.65517 | T29: 55369.35483 | U29: 57030.43547 | V29: 58741.34854 | W29: 60503.58899 | X29: 62318.69666 | Y29: 64188.25756 | Z29: 66113.90529 | AA29: 68097.32245 | AB29: 70140.24212 | AC29: 72244.44939 | AD29: 74411.78287 | AE29: 76644.13635 | AF29: 78943.46045 | AG29: 81311.76426 | AH29: 83751.11719 | AI29: 86263.6507 | AJ29: 88851.56022 | AK29: 91517.10703 | AL29: 94262.62024 | AM29: 97090.49885 | AN29: 100003.2138 | AO29: 103003.3102 | AP29: =$F$29*AP9*AP28 -> 106093.4095 | AQ29: 109276.2118 | AR29: 112554.4982 | AS29: 115931.1331 | AT29: 119409.0671 | AU29: 122991.3391 | AV29: 126681.0793 | AW29: 130481.5117 | AX29: 134395.957 | AY29: 138427.8357 | AZ29: 142580.6708 | BA29: 146858.0909 | BB29: 151263.8337 | BC29: 155801.7487 | BD29: 160475.8011 | BE29: 165290.0752 | BF29: 170248.7774 | BG29: 175356.2407 | BH29: 180616.928 | BI29: 186035.4358 | BJ29: 191616.4989 | BK29: 197364.9939 | BL29: 203285.9437 | BM29: 209384.522 | BN29: 215666.0576 | BO29: 222136.0394 | BP29: 228800.1205 | BQ29: 235664.1242 | BR29: 242734.0479 | BS29: 250016.0693 | BT29: 257516.5514 | BU29: 265242.0479 | BV29: =$F$29*BV9*BV28 -> 273199.3094 | BW29: 281395.2887 | BX29: 289837.1473 | BY29: 298532.2617 | BZ29: 307488.2296 | CA29: 316712.8765 | CB29: 0 | CC29: 0 | CD29: 0 | CE29: 0 | CF29: 0 | CG29: 0 | CH29: 0 | CI29: 0 | CJ29: 0 | CK29: 0 | CL29: 0 | CM29: 0 | CN29: 0 | CO29: 0 | CP29: 0 | CQ29: 0 | CR29: 0 | CS29: 0 | CT29: 0 | CU29: 0 | CV29: 0 | CW29: 0 | CX29: 0 | CY29: 0 | CZ29: 0 | DA29: 0 | DB29: =$F$29*DB9*DB28 -> 0 | DC29: 0 | DD29: 0 | DE29: 0 | DF29: 0 | DG29: 0 | DH29: 0 | DI29: 0 | DJ29: 0 | DK29: 0 | DL29: 0 | DM29: 0 | DN29: 0 | DO29: 0 | DP29: 0 | DQ29: 0 | DR29: 0 | DS29: 0 | DT29: 0 | DU29: 0 | DV29: 0 | DW29: 0 | DX29: 0 | DY29: 0 | DZ29: 0 | EA29: 0 | EB29: 0 | EC29: 0 | ED29: 0 | EE29: 0 | EF29: 0 | EG29: 0 | EH29: =$F$29*EH9*EH28 -> 0 | EI29: 0 | EJ29: 0 | EK29: 0 | EL29: 0 | EM29: 0 | EN29: 0 | EO29: 0 | EP29: 0 | EQ29: 0 | ER29: 0 | ES29: 0 | ET29: 0 | EU29: 0 | EV29: 0 | EW29: 0 | EX29: 0 | EY29: 0 | EZ29: 0 | FA29: 0 | FB29: 0 | FC29: 0 | FD29: 0 | FE29: 0 | FF29: 0 | FG29: 0 | FH29: 0 | FI29: 0 | FJ29: 0 | FK29: 0 | FL29: 0 | FM29: 0 | FN29: =$F$29*FN9*FN28 -> 0 | FO29: 0 | FP29: 0 | FQ29: 0 | FR29: 0 | FS29: 0 | FT29: 0 | FU29: 0 | FV29: 0 | FW29: 0 | FX29: 0 | FY29: 0 | FZ29: 0 | GA29: 0 | GB29: 0 | GC29: 0 | GD29: 0 | GE29: 0 | GF29: 0 | GG29: 0 | GH29: 0 | GI29: 0 | GJ29: 0 | GK29: 0 | GL29: 0 | GM29: 0 | GN29: 0 | GO29: 0 | GP29: 0 | GQ29: 0 | GR29: 0 | GS29: 0 | GT29: =$F$29*GT9*GT28 -> 0 | GU29: 0 | GV29: 0 | GW29: 0 | GX29: 0 | GY29: 0 | GZ29: 0 | HA29: 0
D31: Project Cash Flow | E31: EUR
D32: Project IRR | E32: %
D33: XMIRR | E33: % | F33: =IFERROR(xmirr(J31:HA31,J5:HA5,F20,F20),FALSE) -> FALSE
D34: NPV | E34: EUR | G34: =F22 -> 0.1
B36: Cash Account - Pre-COD | J36: =J5-I5-1 -> -1 | K36: -1 | L36: -1 | M36: -1 | N36: -1 | O36: -1 | P36: -1 | Q36: -1 | R36: -1 | S36: -1 | T36: -1 | U36: -1 | V36: -1 | W36: -1 | X36: -1 | Y36: -1 | Z36: -1 | AA36: -1 | AB36: -1 | AC36: -1 | AD36: -1 | AE36: -1 | AF36: -1 | AG36: -1 | AH36: -1 | AI36: -1 | AJ36: -1 | AK36: -1 | AL36: -1 | AM36: -1 | AN36: -1 | AO36: -1 | AP36: =AP5-AO5-1 -> -1 | AQ36: -1 | AR36: -1 | AS36: -1 | AT36: -1 | AU36: -1 | AV36: -1 | AW36: -1 | AX36: -1 | AY36: -1 | AZ36: -1 | BA36: -1 | BB36: -1 | BC36: -1 | BD36: -1 | BE36: -1 | BF36: -1 | BG36: -1 | BH36: -1 | BI36: -1 | BJ36: -1 | BK36: -1 | BL36: -1 | BM36: -1 | BN36: -1 | BO36: -1 | BP36: -1 | BQ36: -1 | BR36: -1 | BS36: -1 | BT36: -1 | BU36: -1 | BV36: =BV5-BU5-1 -> -1 | BW36: -1 | BX36: -1 | BY36: -1 | BZ36: -1 | CA36: -1 | CB36: -1 | CC36: -1 | CD36: -1 | CE36: -1 | CF36: -1 | CG36: -1 | CH36: -1 | CI36: -1 | CJ36: -1 | CK36: -1 | CL36: -1 | CM36: -1 | CN36: -1 | CO36: -1 | CP36: -1 | CQ36: -1 | CR36: -1 | CS36: -1 | CT36: -1 | CU36: -1 | CV36: -1 | CW36: -1 | CX36: -1 | CY36: -1 | CZ36: -1 | DA36: -1 | DB36: =DB5-DA5-1 -> -1 | DC36: -1 | DD36: -1 | DE36: -1 | DF36: -1 | DG36: -1 | DH36: -1 | DI36: -1 | DJ36: -1 | DK36: -1 | DL36: -1 | DM36: -1 | DN36: -1 | DO36: -1 | DP36: -1 | DQ36: -1 | DR36: -1 | DS36: -1 | DT36: -1 | DU36: -1 | DV36: -1 | DW36: -1 | DX36: -1 | DY36: -1 | DZ36: -1 | EA36: -1 | EB36: -1 | EC36: -1 | ED36: -1 | EE36: -1 | EF36: -1 | EG36: -1 | EH36: =EH5-EG5-1 -> -1 | EI36: -1 | EJ36: -1 | EK36: -1 | EL36: -1 | EM36: -1 | EN36: -1 | EO36: -1 | EP36: -1 | EQ36: -1 | ER36: -1 | ES36: -1 | ET36: -1 | EU36: -1 | EV36: -1 | EW36: -1 | EX36: -1 | EY36: -1 | EZ36: -1 | FA36: -1 | FB36: -1 | FC36: -1 | FD36: -1 | FE36: -1 | FF36: -1 | FG36: -1 | FH36: -1 | FI36: -1 | FJ36: -1 | FK36: -1 | FL36: -1 | FM36: -1 | FN36: =FN5-FM5-1 -> -1 | FO36: -1 | FP36: -1 | FQ36: -1 | FR36: -1 | FS36: -1 | FT36: -1 | FU36: -1 | FV36: -1 | FW36: -1 | FX36: -1 | FY36: -1 | FZ36: -1 | GA36: -1 | GB36: -1 | GC36: -1 | GD36: -1 | GE36: -1 | GF36: -1 | GG36: -1 | GH36: -1 | GI36: -1 | GJ36: -1 | GK36: -1 | GL36: -1 | GM36: -1 | GN36: -1 | GO36: -1 | GP36: -1 | GQ36: -1 | GR36: -1 | GS36: -1 | GT36: =GT5-GS5-1 -> -1 | GU36: -1 | GV36: -1 | GW36: -1 | GX36: -1 | GY36: -1 | GZ36: -1 | HA36: -1
C38: Cash Balance in Funding Period
D39: Openining Balance | E39: EUR | J39: =I42 -> 0 | K39: 0 | L39: 0 | M39: 0 | N39: 0 | O39: 0 | P39: 0 | Q39: 0 | R39: 0 | S39: 0 | T39: 0 | U39: 0 | V39: 0 | W39: 0 | X39: 0 | Y39: 0 | Z39: 0 | AA39: 0 | AB39: 0 | AC39: 0 | AD39: 0 | AE39: 0 | AF39: 0 | AG39: 0 | AH39: 0 | AI39: 0 | AJ39: 0 | AK39: 0 | AL39: 0 | AM39: 0 | AN39: 0 | AO39: 0 | AP39: =AO42 -> 0 | AQ39: 0 | AR39: 0 | AS39: 0 | AT39: 0 | AU39: 0 | AV39: 0 | AW39: 0 | AX39: 0 | AY39: 0 | AZ39: 0 | BA39: 0 | BB39: 0 | BC39: 0 | BD39: 0 | BE39: 0 | BF39: 0 | BG39: 0 | BH39: 0 | BI39: 0 | BJ39: 0 | BK39: 0 | BL39: 0 | BM39: 0 | BN39: 0 | BO39: 0 | BP39: 0 | BQ39: 0 | BR39: 0 | BS39: 0 | BT39: 0 | BU39: 0 | BV39: =BU42 -> 0 | BW39: 0 | BX39: 0 | BY39: 0 | BZ39: 0 | CA39: 0 | CB39: 0 | CC39: 0 | CD39: 0 | CE39: 0 | CF39: 0 | CG39: 0 | CH39: 0 | CI39: 0 | CJ39: 0 | CK39: 0 | CL39: 0 | CM39: 0 | CN39: 0 | CO39: 0 | CP39: 0 | CQ39: 0 | CR39: 0 | CS39: 0 | CT39: 0 | CU39: 0 | CV39: 0 | CW39: 0 | CX39: 0 | CY39: 0 | CZ39: 0 | DA39: 0 | DB39: =DA42 -> 0 | DC39: 0 | DD39: 0 | DE39: 0 | DF39: 0 | DG39: 0 | DH39: 0 | DI39: 0 | DJ39: 0 | DK39: 0 | DL39: 0 | DM39: 0 | DN39: 0 | DO39: 0 | DP39: 0 | DQ39: 0 | DR39: 0 | DS39: 0 | DT39: 0 | DU39: 0 | DV39: 0 | DW39: 0 | DX39: 0 | DY39: 0 | DZ39: 0 | EA39: 0 | EB39: 0 | EC39: 0 | ED39: 0 | EE39: 0 | EF39: 0 | EG39: 0 | EH39: =EG42 -> 0 | EI39: 0 | EJ39: 0 | EK39: 0 | EL39: 0 | EM39: 0 | EN39: 0 | EO39: 0 | EP39: 0 | EQ39: 0 | ER39: 0 | ES39: 0 | ET39: 0 | EU39: 0 | EV39: 0 | EW39: 0 | EX39: 0 | EY39: 0 | EZ39: 0 | FA39: 0 | FB39: 0 | FC39: 0 | FD39: 0 | FE39: 0 | FF39: 0 | FG39: 0 | FH39: 0 | FI39: 0 | FJ39: 0 | FK39: 0 | FL39: 0 | FM39: 0 | FN39: =FM42 -> 0 | FO39: 0 | FP39: 0 | FQ39: 0 | FR39: 0 | FS39: 0 | FT39: 0 | FU39: 0 | FV39: 0 | FW39: 0 | FX39: 0 | FY39: 0 | FZ39: 0 | GA39: 0 | GB39: 0 | GC39: 0 | GD39: 0 | GE39: 0 | GF39: 0 | GG39: 0 | GH39: 0 | GI39: 0 | GJ39: 0 | GK39: 0 | GL39: 0 | GM39: 0 | GN39: 0 | GO39: 0 | GP39: 0 | GQ39: 0 | GR39: 0 | GS39: 0 | GT39: =GS42 -> 0 | GU39: 0 | GV39: 0 | GW39: 0 | GX39: 0 | GY39: 0 | GZ39: 0 | HA39: 0
D40: Re-investment/Opportunity Cost | E40: EUR | F40: =(1+F32)^(1/12)-1 -> 0 | J40: =J39*$F$40*J3 -> 0 | K40: 0 | L40: 0 | M40: 0 | N40: 0 | O40: 0 | P40: 0 | Q40: 0 | R40: 0 | S40: 0 | T40: 0 | U40: 0 | V40: 0 | W40: 0 | X40: 0 | Y40: 0 | Z40: 0 | AA40: 0 | AB40: 0 | AC40: 0 | AD40: 0 | AE40: 0 | AF40: 0 | AG40: 0 | AH40: 0 | AI40: 0 | AJ40: 0 | AK40: 0 | AL40: 0 | AM40: 0 | AN40: 0 | AO40: 0 | AP40: =AP39*$F$40*AP3 -> 0 | AQ40: 0 | AR40: 0 | AS40: 0 | AT40: 0 | AU40: 0 | AV40: 0 | AW40: 0 | AX40: 0 | AY40: 0 | AZ40: 0 | BA40: 0 | BB40: 0 | BC40: 0 | BD40: 0 | BE40: 0 | BF40: 0 | BG40: 0 | BH40: 0 | BI40: 0 | BJ40: 0 | BK40: 0 | BL40: 0 | BM40: 0 | BN40: 0 | BO40: 0 | BP40: 0 | BQ40: 0 | BR40: 0 | BS40: 0 | BT40: 0 | BU40: 0 | BV40: =BV39*$F$40*BV3 -> 0 | BW40: 0 | BX40: 0 | BY40: 0 | BZ40: 0 | CA40: 0 | CB40: 0 | CC40: 0 | CD40: 0 | CE40: 0 | CF40: 0 | CG40: 0 | CH40: 0 | CI40: 0 | CJ40: 0 | CK40: 0 | CL40: 0 | CM40: 0 | CN40: 0 | CO40: 0 | CP40: 0 | CQ40: 0 | CR40: 0 | CS40: 0 | CT40: 0 | CU40: 0 | CV40: 0 | CW40: 0 | CX40: 0 | CY40: 0 | CZ40: 0 | DA40: 0 | DB40: =DB39*$F$40*DB3 -> 0 | DC40: 0 | DD40: 0 | DE40: 0 | DF40: 0 | DG40: 0 | DH40: 0 | DI40: 0 | DJ40: 0 | DK40: 0 | DL40: 0 | DM40: 0 | DN40: 0 | DO40: 0 | DP40: 0 | DQ40: 0 | DR40: 0 | DS40: 0 | DT40: 0 | DU40: 0 | DV40: 0 | DW40: 0 | DX40: 0 | DY40: 0 | DZ40: 0 | EA40: 0 | EB40: 0 | EC40: 0 | ED40: 0 | EE40: 0 | EF40: 0 | EG40: 0 | EH40: =EH39*$F$40*EH3 -> 0 | EI40: 0 | EJ40: 0 | EK40: 0 | EL40: 0 | EM40: 0 | EN40: 0 | EO40: 0 | EP40: 0 | EQ40: 0 | ER40: 0 | ES40: 0 | ET40: 0 | EU40: 0 | EV40: 0 | EW40: 0 | EX40: 0 | EY40: 0 | EZ40: 0 | FA40: 0 | FB40: 0 | FC40: 0 | FD40: 0 | FE40: 0 | FF40: 0 | FG40: 0 | FH40: 0 | FI40: 0 | FJ40: 0 | FK40: 0 | FL40: 0 | FM40: 0 | FN40: =FN39*$F$40*FN3 -> 0 | FO40: 0 | FP40: 0 | FQ40: 0 | FR40: 0 | FS40: 0 | FT40: 0 | FU40: 0 | FV40: 0 | FW40: 0 | FX40: 0 | FY40: 0 | FZ40: 0 | GA40: 0 | GB40: 0 | GC40: 0 | GD40: 0 | GE40: 0 | GF40: 0 | GG40: 0 | GH40: 0 | GI40: 0 | GJ40: 0 | GK40: 0 | GL40: 0 | GM40: 0 | GN40: 0 | GO40: 0 | GP40: 0 | GQ40: 0 | GR40: 0 | GS40: 0 | GT40: =GT39*$F$40*GT3 -> 0 | GU40: 0 | GV40: 0 | GW40: 0 | GX40: 0 | GY40: 0 | GZ40: 0 | HA40: 0
D41: Cash Flow Invested/Received | E41: EUR | J41: =J31*J3 -> 0 | K41: 0 | L41: 0 | M41: 0 | N41: 0 | O41: 0 | P41: 0 | Q41: 0 | R41: 0 | S41: 0 | T41: 0 | U41: 0 | V41: 0 | W41: 0 | X41: 0 | Y41: 0 | Z41: 0 | AA41: 0 | AB41: 0 | AC41: 0 | AD41: 0 | AE41: 0 | AF41: 0 | AG41: 0 | AH41: 0 | AI41: 0 | AJ41: 0 | AK41: 0 | AL41: 0 | AM41: 0 | AN41: 0 | AO41: 0 | AP41: =AP31*AP3 -> 0 | AQ41: 0 | AR41: 0 | AS41: 0 | AT41: 0 | AU41: 0 | AV41: 0 | AW41: 0 | AX41: 0 | AY41: 0 | AZ41: 0 | BA41: 0 | BB41: 0 | BC41: 0 | BD41: 0 | BE41: 0 | BF41: 0 | BG41: 0 | BH41: 0 | BI41: 0 | BJ41: 0 | BK41: 0 | BL41: 0 | BM41: 0 | BN41: 0 | BO41: 0 | BP41: 0 | BQ41: 0 | BR41: 0 | BS41: 0 | BT41: 0 | BU41: 0 | BV41: =BV31*BV3 -> 0 | BW41: 0 | BX41: 0 | BY41: 0 | BZ41: 0 | CA41: 0 | CB41: 0 | CC41: 0 | CD41: 0 | CE41: 0 | CF41: 0 | CG41: 0 | CH41: 0 | CI41: 0 | CJ41: 0 | CK41: 0 | CL41: 0 | CM41: 0 | CN41: 0 | CO41: 0 | CP41: 0 | CQ41: 0 | CR41: 0 | CS41: 0 | CT41: 0 | CU41: 0 | CV41: 0 | CW41: 0 | CX41: 0 | CY41: 0 | CZ41: 0 | DA41: 0 | DB41: =DB31*DB3 -> 0 | DC41: 0 | DD41: 0 | DE41: 0 | DF41: 0 | DG41: 0 | DH41: 0 | DI41: 0 | DJ41: 0 | DK41: 0 | DL41: 0 | DM41: 0 | DN41: 0 | DO41: 0 | DP41: 0 | DQ41: 0 | DR41: 0 | DS41: 0 | DT41: 0 | DU41: 0 | DV41: 0 | DW41: 0 | DX41: 0 | DY41: 0 | DZ41: 0 | EA41: 0 | EB41: 0 | EC41: 0 | ED41: 0 | EE41: 0 | EF41: 0 | EG41: 0 | EH41: =EH31*EH3 -> 0 | EI41: 0 | EJ41: 0 | EK41: 0 | EL41: 0 | EM41: 0 | EN41: 0 | EO41: 0 | EP41: 0 | EQ41: 0 | ER41: 0 | ES41: 0 | ET41: 0 | EU41: 0 | EV41: 0 | EW41: 0 | EX41: 0 | EY41: 0 | EZ41: 0 | FA41: 0 | FB41: 0 | FC41: 0 | FD41: 0 | FE41: 0 | FF41: 0 | FG41: 0 | FH41: 0 | FI41: 0 | FJ41: 0 | FK41: 0 | FL41: 0 | FM41: 0 | FN41: =FN31*FN3 -> 0 | FO41: 0 | FP41: 0 | FQ41: 0 | FR41: 0 | FS41: 0 | FT41: 0 | FU41: 0 | FV41: 0 | FW41: 0 | FX41: 0 | FY41: 0 | FZ41: 0 | GA41: 0 | GB41: 0 | GC41: 0 | GD41: 0 | GE41: 0 | GF41: 0 | GG41: 0 | GH41: 0 | GI41: 0 | GJ41: 0 | GK41: 0 | GL41: 0 | GM41: 0 | GN41: 0 | GO41: 0 | GP41: 0 | GQ41: 0 | GR41: 0 | GS41: 0 | GT41: =GT31*GT3 -> 0 | GU41: 0 | GV41: 0 | GW41: 0 | GX41: 0 | GY41: 0 | GZ41: 0 | HA41: 0
D42: Closing Balance | E42: EUR | J42: =J39+J40+J41 -> 0 | K42: 0 | L42: 0 | M42: 0 | N42: 0 | O42: 0 | P42: 0 | Q42: 0 | R42: 0 | S42: 0 | T42: 0 | U42: 0 | V42: 0 | W42: 0 | X42: 0 | Y42: 0 | Z42: 0 | AA42: 0 | AB42: 0 | AC42: 0 | AD42: 0 | AE42: 0 | AF42: 0 | AG42: 0 | AH42: 0 | AI42: 0 | AJ42: 0 | AK42: 0 | AL42: 0 | AM42: 0 | AN42: 0 | AO42: 0 | AP42: =AP39+AP40+AP41 -> 0 | AQ42: 0 | AR42: 0 | AS42: 0 | AT42: 0 | AU42: 0 | AV42: 0 | AW42: 0 | AX42: 0 | AY42: 0 | AZ42: 0 | BA42: 0 | BB42: 0 | BC42: 0 | BD42: 0 | BE42: 0 | BF42: 0 | BG42: 0 | BH42: 0 | BI42: 0 | BJ42: 0 | BK42: 0 | BL42: 0 | BM42: 0 | BN42: 0 | BO42: 0 | BP42: 0 | BQ42: 0 | BR42: 0 | BS42: 0 | BT42: 0 | BU42: 0 | BV42: =BV39+BV40+BV41 -> 0 | BW42: 0 | BX42: 0 | BY42: 0 | BZ42: 0 | CA42: 0 | CB42: 0 | CC42: 0 | CD42: 0 | CE42: 0 | CF42: 0 | CG42: 0 | CH42: 0 | CI42: 0 | CJ42: 0 | CK42: 0 | CL42: 0 | CM42: 0 | CN42: 0 | CO42: 0 | CP42: 0 | CQ42: 0 | CR42: 0 | CS42: 0 | CT42: 0 | CU42: 0 | CV42: 0 | CW42: 0 | CX42: 0 | CY42: 0 | CZ42: 0 | DA42: 0 | DB42: =DB39+DB40+DB41 -> 0 | DC42: 0 | DD42: 0 | DE42: 0 | DF42: 0 | DG42: 0 | DH42: 0 | DI42: 0 | DJ42: 0 | DK42: 0 | DL42: 0 | DM42: 0 | DN42: 0 | DO42: 0 | DP42: 0 | DQ42: 0 | DR42: 0 | DS42: 0 | DT42: 0 | DU42: 0 | DV42: 0 | DW42: 0 | DX42: 0 | DY42: 0 | DZ42: 0 | EA42: 0 | EB42: 0 | EC42: 0 | ED42: 0 | EE42: 0 | EF42: 0 | EG42: 0 | EH42: =EH39+EH40+EH41 -> 0 | EI42: 0 | EJ42: 0 | EK42: 0 | EL42: 0 | EM42: 0 | EN42: 0 | EO42: 0 | EP42: 0 | EQ42: 0 | ER42: 0 | ES42: 0 | ET42: 0 | EU42: 0 | EV42: 0 | EW42: 0 | EX42: 0 | EY42: 0 | EZ42: 0 | FA42: 0 | FB42: 0 | FC42: 0 | FD42: 0 | FE42: 0 | FF42: 0 | FG42: 0 | FH42: 0 | FI42: 0 | FJ42: 0 | FK42: 0 | FL42: 0 | FM42: 0 | FN42: =FN39+FN40+FN41 -> 0 | FO42: 0 | FP42: 0 | FQ42: 0 | FR42: 0 | FS42: 0 | FT42: 0 | FU42: 0 | FV42: 0 | FW42: 0 | FX42: 0 | FY42: 0 | FZ42: 0 | GA42: 0 | GB42: 0 | GC42: 0 | GD42: 0 | GE42: 0 | GF42: 0 | GG42: 0 | GH42: 0 | GI42: 0 | GJ42: 0 | GK42: 0 | GL42: 0 | GM42: 0 | GN42: 0 | GO42: 0 | GP42: 0 | GQ42: 0 | GR42: 0 | GS42: 0 | GT42: =GT39+GT40+GT41 -> 0 | GU42: 0 | GV42: 0 | GW42: 0 | GX42: 0 | GY42: 0 | GZ42: 0 | HA42: 0
C44: Cash Balance during Operations
D45: Cash Account - Post COD
D46: Opening Balance | E46: EUR | J46: =I49 -> 0 | K46: =J49 -> 0 | L46: 0 | M46: 0 | N46: 0 | O46: 0 | P46: 0 | Q46: 0 | R46: 0 | S46: 0 | T46: 0 | U46: 0 | V46: 0 | W46: 0 | X46: 0 | Y46: 0 | Z46: 0 | AA46: 0 | AB46: 0 | AC46: 0 | AD46: 0 | AE46: 0 | AF46: 0 | AG46: 0 | AH46: 0 | AI46: 0 | AJ46: 0 | AK46: 0 | AL46: 0 | AM46: 0 | AN46: 0 | AO46: 0 | AP46: 0 | AQ46: 0 | AR46: 0 | AS46: 0 | AT46: 0 | AU46: 0 | AV46: 0 | AW46: 0 | AX46: 0 | AY46: 0 | AZ46: 0 | BA46: 0 | BB46: 0 | BC46: 0 | BD46: 0 | BE46: 0 | BF46: 0 | BG46: 0 | BH46: 0 | BI46: 0 | BJ46: 0 | BK46: 0 | BL46: 0 | BM46: 0 | BN46: 0 | BO46: 0 | BP46: 0 | BQ46: 0 | BR46: 0 | BS46: 0 | BT46: 0 | BU46: 0 | BV46: 0 | BW46: =BV49 -> 0 | BX46: 0 | BY46: 0 | BZ46: 0 | CA46: 0 | CB46: 0 | CC46: 0 | CD46: 0 | CE46: 0 | CF46: 0 | CG46: 0 | CH46: 0 | CI46: 0 | CJ46: 0 | CK46: 0 | CL46: 0 | CM46: 0 | CN46: 0 | CO46: 0 | CP46: 0 | CQ46: 0 | CR46: 0 | CS46: 0 | CT46: 0 | CU46: 0 | CV46: 0 | CW46: 0 | CX46: 0 | CY46: 0 | CZ46: 0 | DA46: 0 | DB46: 0 | DC46: 0 | DD46: 0 | DE46: 0 | DF46: 0 | DG46: 0 | DH46: 0 | DI46: 0 | DJ46: 0 | DK46: 0 | DL46: 0 | DM46: 0 | DN46: 0 | DO46: 0 | DP46: 0 | DQ46: 0 | DR46: 0 | DS46: 0 | DT46: 0 | DU46: 0 | DV46: 0 | DW46: 0 | DX46: 0 | DY46: 0 | DZ46: 0 | EA46: 0 | EB46: 0 | EC46: 0 | ED46: 0 | EE46: 0 | EF46: 0 | EG46: 0 | EH46: 0 | EI46: =EH49 -> 0 | EJ46: 0 | EK46: 0 | EL46: 0 | EM46: 0 | EN46: 0 | EO46: 0 | EP46: 0 | EQ46: 0 | ER46: 0 | ES46: 0 | ET46: 0 | EU46: 0 | EV46: 0 | EW46: 0 | EX46: 0 | EY46: 0 | EZ46: 0 | FA46: 0 | FB46: 0 | FC46: 0 | FD46: 0 | FE46: 0 | FF46: 0 | FG46: 0 | FH46: 0 | FI46: 0 | FJ46: 0 | FK46: 0 | FL46: 0 | FM46: 0 | FN46: 0 | FO46: 0 | FP46: 0 | FQ46: 0 | FR46: 0 | FS46: 0 | FT46: 0 | FU46: 0 | FV46: 0 | FW46: 0 | FX46: 0 | FY46: 0 | FZ46: 0 | GA46: 0 | GB46: 0 | GC46: 0 | GD46: 0 | GE46: 0 | GF46: 0 | GG46: 0 | GH46: 0 | GI46: 0 | GJ46: 0 | GK46: 0 | GL46: 0 | GM46: 0 | GN46: 0 | GO46: 0 | GP46: 0 | GQ46: 0 | GR46: 0 | GS46: 0 | GT46: 0 | GU46: =GT49 -> 0 | GV46: 0 | GW46: 0 | GX46: 0 | GY46: 0 | GZ46: 0 | HA46: 0
D47: Add: Re-investment Income | E47: EUR | F47: =F32 -> 0
D48: Add: Cash Flow | E48: EUR
D49: Closing Balance | E49: EUR
D51: Total Invested | E51: EUR | F51: =MIN(42:42)*-1 -> 0
D52: Total Received | E52: EUR
D54: Ratio | E54: EUR
D55: Annual Growth | E55: % p.a.
D57: MOIC | E57: x
D58: Accumulated Cash Flow | E58: EUR | J58: =I58+J31 -> 0 | K58: 0 | L58: 0 | M58: 0 | N58: 0 | O58: 0 | P58: 0 | Q58: 0 | R58: 0 | S58: 0 | T58: 0 | U58: 0 | V58: 0 | W58: 0 | X58: 0 | Y58: 0 | Z58: 0 | AA58: 0 | AB58: 0 | AC58: 0 | AD58: 0 | AE58: 0 | AF58: 0 | AG58: 0 | AH58: 0 | AI58: 0 | AJ58: 0 | AK58: 0 | AL58: 0 | AM58: 0 | AN58: 0 | AO58: 0 | AP58: =AO58+AP31 -> 0 | AQ58: 0 | AR58: 0 | AS58: 0 | AT58: 0 | AU58: 0 | AV58: 0 | AW58: 0 | AX58: 0 | AY58: 0 | AZ58: 0 | BA58: 0 | BB58: 0 | BC58: 0 | BD58: 0 | BE58: 0 | BF58: 0 | BG58: 0 | BH58: 0 | BI58: 0 | BJ58: 0 | BK58: 0 | BL58: 0 | BM58: 0 | BN58: 0 | BO58: 0 | BP58: 0 | BQ58: 0 | BR58: 0 | BS58: 0 | BT58: 0 | BU58: 0 | BV58: =BU58+BV31 -> 0 | BW58: 0 | BX58: 0 | BY58: 0 | BZ58: 0 | CA58: 0 | CB58: 0 | CC58: 0 | CD58: 0 | CE58: 0 | CF58: 0 | CG58: 0 | CH58: 0 | CI58: 0 | CJ58: 0 | CK58: 0 | CL58: 0 | CM58: 0 | CN58: 0 | CO58: 0 | CP58: 0 | CQ58: 0 | CR58: 0 | CS58: 0 | CT58: 0 | CU58: 0 | CV58: 0 | CW58: 0 | CX58: 0 | CY58: 0 | CZ58: 0 | DA58: 0 | DB58: =DA58+DB31 -> 0 | DC58: 0 | DD58: 0 | DE58: 0 | DF58: 0 | DG58: 0 | DH58: 0 | DI58: 0 | DJ58: 0 | DK58: 0 | DL58: 0 | DM58: 0 | DN58: 0 | DO58: 0 | DP58: 0 | DQ58: 0 | DR58: 0 | DS58: 0 | DT58: 0 | DU58: 0 | DV58: 0 | DW58: 0 | DX58: 0 | DY58: 0 | DZ58: 0 | EA58: 0 | EB58: 0 | EC58: 0 | ED58: 0 | EE58: 0 | EF58: 0 | EG58: 0 | EH58: =EG58+EH31 -> 0 | EI58: 0 | EJ58: 0 | EK58: 0 | EL58: 0 | EM58: 0 | EN58: 0 | EO58: 0 | EP58: 0 | EQ58: 0 | ER58: 0 | ES58: 0 | ET58: 0 | EU58: 0 | EV58: 0 | EW58: 0 | EX58: 0 | EY58: 0 | EZ58: 0 | FA58: 0 | FB58: 0 | FC58: 0 | FD58: 0 | FE58: 0 | FF58: 0 | FG58: 0 | FH58: 0 | FI58: 0 | FJ58: 0 | FK58: 0 | FL58: 0 | FM58: 0 | FN58: =FM58+FN31 -> 0 | FO58: 0 | FP58: 0 | FQ58: 0 | FR58: 0 | FS58: 0 | FT58: 0 | FU58: 0 | FV58: 0 | FW58: 0 | FX58: 0 | FY58: 0 | FZ58: 0 | GA58: 0 | GB58: 0 | GC58: 0 | GD58: 0 | GE58: 0 | GF58: 0 | GG58: 0 | GH58: 0 | GI58: 0 | GJ58: 0 | GK58: 0 | GL58: 0 | GM58: 0 | GN58: 0 | GO58: 0 | GP58: 0 | GQ58: 0 | GR58: 0 | GS58: 0 | GT58: =GS58+GT31 -> 0 | GU58: 0 | GV58: 0 | GW58: 0 | GX58: 0 | GY58: 0 | GZ58: 0 | HA58: 0
D59: Payback | E59: Period | G59: =INDEX(J8:HA8,F59) ->  | H59: =INDEX(J5:HA5,F59) -> 2020-01-01 | I59: 43831 | J59: 43831 | K59: 43831 | L59: 43831 | M59: 43831 | N59: 43831 | O59: 43831 | P59: 43831 | Q59: 43831 | R59: 43831 | S59: 43831 | T59: 43831 | U59: 43831 | V59: 43831 | W59: 43831 | X59: 43831 | Y59: 43831 | Z59: 43831 | AA59: 43831 | AB59: 43831 | AC59: 43831 | AD59: 43831 | AE59: 43831 | AF59: 43831 | AG59: 43831 | AH59: 43831 | AI59: 43831 | AJ59: 43831 | AK59: 43831 | AL59: 43831 | AM59: 43831 | AN59: 43831 | AO59: 43831 | AP59: 43831 | AQ59: 43831 | AR59: 43831 | AS59: 43831 | AT59: 43831 | AU59: 43831 | AV59: 43831 | AW59: 43831 | AX59: 43831 | AY59: 43831 | AZ59: 43831 | BA59: 43831 | BB59: 43831 | BC59: 43831 | BD59: 43831 | BE59: 43831 | BF59: 43831 | BG59: 43831 | BH59: 43831 | BI59: 43831 | BJ59: 43831 | BK59: 43831 | BL59: 43831 | BM59: 43831 | BN59: 43831 | BO59: 43831 | BP59: 43831 | BQ59: 43831 | BR59: 43831 | BS59: 43831 | BT59: 43831 | BU59: 43831 | BV59: 43831 | BW59: 43831 | BX59: 43831 | BY59: 43831 | BZ59: 43831 | CA59: 43831 | CB59: 43831 | CC59: 43831 | CD59: 43831 | CE59: 43831 | CF59: 43831 | CG59: 43831 | CH59: 43831 | CI59: 43831 | CJ59: 43831 | CK59: 43831 | CL59: 43831 | CM59: 43831 | CN59: 43831 | CO59: 43831 | CP59: 43831 | CQ59: 43831 | CR59: 43831 | CS59: 43831 | CT59: 43831 | CU59: 43831 | CV59: 43831 | CW59: 43831 | CX59: 43831 | CY59: 43831 | CZ59: 43831 | DA59: 43831 | DB59: 43831 | DC59: 43831 | DD59: 43831 | DE59: 43831 | DF59: 43831 | DG59: 43831 | DH59: 43831 | DI59: 43831 | DJ59: 43831 | DK59: 43831 | DL59: 43831 | DM59: 43831 | DN59: 43831 | DO59: 43831 | DP59: 43831 | DQ59: 43831 | DR59: 43831 | DS59: 43831 | DT59: 43831 | DU59: 43831 | DV59: 43831 | DW59: 43831 | DX59: 43831 | DY59: 43831 | DZ59: 43831 | EA59: 43831 | EB59: 43831 | EC59: 43831 | ED59: 43831 | EE59: 43831 | EF59: 43831 | EG59: 43831 | EH59: 43831 | EI59: 43831 | EJ59: 43831 | EK59: 43831 | EL59: 43831 | EM59: 43831 | EN59: 43831 | EO59: 43831 | EP59: 43831 | EQ59: 43831 | ER59: 43831 | ES59: 43831 | ET59: 43831 | EU59: 43831 | EV59: 43831 | EW59: 43831 | EX59: 43831 | EY59: 43831 | EZ59: 43831 | FA59: 43831 | FB59: 43831 | FC59: 43831 | FD59: 43831 | FE59: 43831 | FF59: 43831 | FG59: 43831 | FH59: 43831 | FI59: 43831 | FJ59: 43831 | FK59: 43831 | FL59: 43831 | FM59: 43831 | FN59: 43831 | FO59: 43831 | FP59: 43831 | FQ59: 43831 | FR59: 43831 | FS59: 43831 | FT59: 43831 | FU59: 43831 | FV59: 43831 | FW59: 43831 | FX59: 43831 | FY59: 43831 | FZ59: 43831 | GA59: 43831 | GB59: 43831 | GC59: 43831 | GD59: 43831 | GE59: 43831 | GF59: 43831 | GG59: 43831 | GH59: 43831 | GI59: 43831 | GJ59: 43831 | GK59: 43831 | GL59: 43831 | GM59: 43831 | GN59: 43831 | GO59: 43831 | GP59: 43831 | GQ59: 43831 | GR59: 43831 | GS59: 43831 | GT59: 43831 | GU59: 43831 | GV59: 43831 | GW59: 43831 | GX59: 43831 | GY59: 43831
D61: Rf Periodic | E61: % p.p. | F61: =F21 -> 0.027 | J61: =(1+$F$61)^(J4/12)-1 -> 0 | K61: 0 | L61: 0 | M61: 0 | N61: 0 | O61: 0 | P61: 0 | Q61: 0 | R61: 0 | S61: 0 | T61: 0 | U61: 0 | V61: 0 | W61: 0 | X61: 0 | Y61: 0 | Z61: 0 | AA61: 0 | AB61: 0 | AC61: 0 | AD61: 0 | AE61: 0 | AF61: 0 | AG61: 0 | AH61: 0 | AI61: 0 | AJ61: 0 | AK61: 0 | AL61: 0 | AM61: 0 | AN61: 0 | AO61: 0 | AP61: =(1+$F$61)^(AP4/12)-1 -> 0 | AQ61: 0 | AR61: 0 | AS61: 0 | AT61: 0 | AU61: 0 | AV61: 0 | AW61: 0 | AX61: 0 | AY61: 0 | AZ61: 0 | BA61: 0 | BB61: 0 | BC61: 0 | BD61: 0 | BE61: 0 | BF61: 0 | BG61: 0 | BH61: 0 | BI61: 0 | BJ61: 0 | BK61: 0 | BL61: 0 | BM61: 0 | BN61: 0 | BO61: 0 | BP61: 0 | BQ61: 0 | BR61: 0 | BS61: 0 | BT61: 0 | BU61: 0 | BV61: =(1+$F$61)^(BV4/12)-1 -> 0 | BW61: 0 | BX61: 0 | BY61: 0 | BZ61: 0 | CA61: 0 | CB61: 0 | CC61: 0 | CD61: 0 | CE61: 0 | CF61: 0 | CG61: 0 | CH61: 0 | CI61: 0 | CJ61: 0 | CK61: 0 | CL61: 0 | CM61: 0 | CN61: 0 | CO61: 0 | CP61: 0 | CQ61: 0 | CR61: 0 | CS61: 0 | CT61: 0 | CU61: 0 | CV61: 0 | CW61: 0 | CX61: 0 | CY61: 0 | CZ61: 0 | DA61: 0 | DB61: =(1+$F$61)^(DB4/12)-1 -> 0 | DC61: 0 | DD61: 0 | DE61: 0 | DF61: 0 | DG61: 0 | DH61: 0 | DI61: 0 | DJ61: 0 | DK61: 0 | DL61: 0 | DM61: 0 | DN61: 0 | DO61: 0 | DP61: 0 | DQ61: 0 | DR61: 0 | DS61: 0 | DT61: 0 | DU61: 0 | DV61: 0 | DW61: 0 | DX61: 0 | DY61: 0 | DZ61: 0 | EA61: 0 | EB61: 0 | EC61: 0 | ED61: 0 | EE61: 0 | EF61: 0 | EG61: 0 | EH61: =(1+$F$61)^(EH4/12)-1 -> 0 | EI61: 0 | EJ61: 0 | EK61: 0 | EL61: 0 | EM61: 0 | EN61: 0 | EO61: 0 | EP61: 0 | EQ61: 0 | ER61: 0 | ES61: 0 | ET61: 0 | EU61: 0 | EV61: 0 | EW61: 0 | EX61: 0 | EY61: 0 | EZ61: 0 | FA61: 0 | FB61: 0 | FC61: 0 | FD61: 0 | FE61: 0 | FF61: 0 | FG61: 0 | FH61: 0 | FI61: 0 | FJ61: 0 | FK61: 0 | FL61: 0 | FM61: 0 | FN61: =(1+$F$61)^(FN4/12)-1 -> 0 | FO61: 0 | FP61: 0 | FQ61: 0 | FR61: 0 | FS61: 0 | FT61: 0 | FU61: 0 | FV61: 0 | FW61: 0 | FX61: 0 | FY61: 0 | FZ61: 0 | GA61: 0 | GB61: 0 | GC61: 0 | GD61: 0 | GE61: 0 | GF61: 0 | GG61: 0 | GH61: 0 | GI61: 0 | GJ61: 0 | GK61: 0 | GL61: 0 | GM61: 0 | GN61: 0 | GO61: 0 | GP61: 0 | GQ61: 0 | GR61: 0 | GS61: 0 | GT61: =(1+$F$61)^(GT4/12)-1 -> 0 | GU61: 0 | GV61: 0 | GW61: 0 | GX61: 0 | GY61: 0 | GZ61: 0 | HA61: 0
D62: Index | E62: Index | I62: 1 | J62: =I62*(1+J61) -> 1 | K62: =J62*(1+K61) -> 1 | L62: 1 | M62: 1 | N62: 1 | O62: 1 | P62: 1 | Q62: 1 | R62: 1 | S62: 1 | T62: 1 | U62: 1 | V62: 1 | W62: 1 | X62: 1 | Y62: 1 | Z62: 1 | AA62: 1 | AB62: 1 | AC62: 1 | AD62: 1 | AE62: 1 | AF62: 1 | AG62: 1 | AH62: 1 | AI62: 1 | AJ62: 1 | AK62: 1 | AL62: 1 | AM62: 1 | AN62: 1 | AO62: 1 | AP62: 1 | AQ62: 1 | AR62: 1 | AS62: 1 | AT62: 1 | AU62: 1 | AV62: 1 | AW62: 1 | AX62: 1 | AY62: 1 | AZ62: 1 | BA62: 1 | BB62: 1 | BC62: 1 | BD62: 1 | BE62: 1 | BF62: 1 | BG62: 1 | BH62: 1 | BI62: 1 | BJ62: 1 | BK62: 1 | BL62: 1 | BM62: 1 | BN62: 1 | BO62: 1 | BP62: 1 | BQ62: 1 | BR62: 1 | BS62: 1 | BT62: 1 | BU62: 1 | BV62: 1 | BW62: =BV62*(1+BW61) -> 1 | BX62: 1 | BY62: 1 | BZ62: 1 | CA62: 1 | CB62: 1 | CC62: 1 | CD62: 1 | CE62: 1 | CF62: 1 | CG62: 1 | CH62: 1 | CI62: 1 | CJ62: 1 | CK62: 1 | CL62: 1 | CM62: 1 | CN62: 1 | CO62: 1 | CP62: 1 | CQ62: 1 | CR62: 1 | CS62: 1 | CT62: 1 | CU62: 1 | CV62: 1 | CW62: 1 | CX62: 1 | CY62: 1 | CZ62: 1 | DA62: 1 | DB62: 1 | DC62: 1 | DD62: 1 | DE62: 1 | DF62: 1 | DG62: 1 | DH62: 1 | DI62: 1 | DJ62: 1 | DK62: 1 | DL62: 1 | DM62: 1 | DN62: 1 | DO62: 1 | DP62: 1 | DQ62: 1 | DR62: 1 | DS62: 1 | DT62: 1 | DU62: 1 | DV62: 1 | DW62: 1 | DX62: 1 | DY62: 1 | DZ62: 1 | EA62: 1 | EB62: 1 | EC62: 1 | ED62: 1 | EE62: 1 | EF62: 1 | EG62: 1 | EH62: 1 | EI62: =EH62*(1+EI61) -> 1 | EJ62: 1 | EK62: 1 | EL62: 1 | EM62: 1 | EN62: 1 | EO62: 1 | EP62: 1 | EQ62: 1 | ER62: 1 | ES62: 1 | ET62: 1 | EU62: 1 | EV62: 1 | EW62: 1 | EX62: 1 | EY62: 1 | EZ62: 1 | FA62: 1 | FB62: 1 | FC62: 1 | FD62: 1 | FE62: 1 | FF62: 1 | FG62: 1 | FH62: 1 | FI62: 1 | FJ62: 1 | FK62: 1 | FL62: 1 | FM62: 1 | FN62: 1 | FO62: 1 | FP62: 1 | FQ62: 1 | FR62: 1 | FS62: 1 | FT62: 1 | FU62: 1 | FV62: 1 | FW62: 1 | FX62: 1 | FY62: 1 | FZ62: 1 | GA62: 1 | GB62: 1 | GC62: 1 | GD62: 1 | GE62: 1 | GF62: 1 | GG62: 1 | GH62: 1 | GI62: 1 | GJ62: 1 | GK62: 1 | GL62: 1 | GM62: 1 | GN62: 1 | GO62: 1 | GP62: 1 | GQ62: 1 | GR62: 1 | GS62: 1 | GT62: 1 | GU62: =GT62*(1+GU61) -> 1 | GV62: 1 | GW62: 1 | GX62: 1 | GY62: 1 | GZ62: 1 | HA62: 1
D63: Counter | E63: Counter | F63: =F3 -> 33 | I63: =F63 -> 33 | J63: =I63-1 -> 32 | K63: =J63-1 -> 31 | L63: 30 | M63: 29 | N63: 28 | O63: 27 | P63: 26 | Q63: 25 | R63: 24 | S63: 23 | T63: 22 | U63: 21 | V63: 20 | W63: 19 | X63: 18 | Y63: 17 | Z63: 16 | AA63: 15 | AB63: 14 | AC63: 13 | AD63: 12 | AE63: 11 | AF63: 10 | AG63: 9 | AH63: 8 | AI63: 7 | AJ63: 6 | AK63: 5 | AL63: 4 | AM63: 3 | AN63: 2 | AO63: 1 | AP63: 0 | AQ63: -1 | AR63: -2 | AS63: -3 | AT63: -4 | AU63: -5 | AV63: -6 | AW63: -7 | AX63: -8 | AY63: -9 | AZ63: -10 | BA63: -11 | BB63: -12 | BC63: -13 | BD63: -14 | BE63: -15 | BF63: -16 | BG63: -17 | BH63: -18 | BI63: -19 | BJ63: -20 | BK63: -21 | BL63: -22 | BM63: -23 | BN63: -24 | BO63: -25 | BP63: -26 | BQ63: -27 | BR63: -28 | BS63: -29 | BT63: -30 | BU63: -31 | BV63: -32 | BW63: =BV63-1 -> -33 | BX63: -34 | BY63: -35 | BZ63: -36 | CA63: -37 | CB63: -38 | CC63: -39 | CD63: -40 | CE63: -41 | CF63: -42 | CG63: -43 | CH63: -44 | CI63: -45 | CJ63: -46 | CK63: -47 | CL63: -48 | CM63: -49 | CN63: -50 | CO63: -51 | CP63: -52 | CQ63: -53 | CR63: -54 | CS63: -55 | CT63: -56 | CU63: -57 | CV63: -58 | CW63: -59 | CX63: -60 | CY63: -61 | CZ63: -62 | DA63: -63 | DB63: -64 | DC63: -65 | DD63: -66 | DE63: -67 | DF63: -68 | DG63: -69 | DH63: -70 | DI63: -71 | DJ63: -72 | DK63: -73 | DL63: -74 | DM63: -75 | DN63: -76 | DO63: -77 | DP63: -78 | DQ63: -79 | DR63: -80 | DS63: -81 | DT63: -82 | DU63: -83 | DV63: -84 | DW63: -85 | DX63: -86 | DY63: -87 | DZ63: -88 | EA63: -89 | EB63: -90 | EC63: -91 | ED63: -92 | EE63: -93 | EF63: -94 | EG63: -95 | EH63: -96 | EI63: =EH63-1 -> -97 | EJ63: -98 | EK63: -99 | EL63: -100 | EM63: -101 | EN63: -102 | EO63: -103 | EP63: -104 | EQ63: -105 | ER63: -106 | ES63: -107 | ET63: -108 | EU63: -109 | EV63: -110 | EW63: -111 | EX63: -112 | EY63: -113 | EZ63: -114 | FA63: -115 | FB63: -116 | FC63: -117 | FD63: -118 | FE63: -119 | FF63: -120 | FG63: -121 | FH63: -122 | FI63: -123 | FJ63: -124 | FK63: -125 | FL63: -126 | FM63: -127 | FN63: -128 | FO63: -129 | FP63: -130 | FQ63: -131 | FR63: -132 | FS63: -133 | FT63: -134 | FU63: -135 | FV63: -136 | FW63: -137 | FX63: -138 | FY63: -139 | FZ63: -140 | GA63: -141 | GB63: -142 | GC63: -143 | GD63: -144 | GE63: -145 | GF63: -146 | GG63: -147 | GH63: -148 | GI63: -149 | GJ63: -150 | GK63: -151 | GL63: -152 | GM63: -153 | GN63: -154 | GO63: -155 | GP63: -156 | GQ63: -157 | GR63: -158 | GS63: -159 | GT63: -160 | GU63: =GT63-1 -> -161 | GV63: -162 | GW63: -163 | GX63: -164 | GY63: -165 | GZ63: -166 | HA63: -167
D64: FV Factor | E64: Index | J64: =IF(J3,OFFSET($J$62,0,J63)) -> FALSE | K64: FALSE | L64: FALSE | M64: FALSE | N64: FALSE | O64: FALSE | P64: FALSE | Q64: FALSE | R64: FALSE | S64: FALSE | T64: FALSE | U64: FALSE | V64: FALSE | W64: FALSE | X64: FALSE | Y64: FALSE | Z64: FALSE | AA64: FALSE | AB64: FALSE | AC64: FALSE | AD64: FALSE | AE64: FALSE | AF64: FALSE | AG64: FALSE | AH64: FALSE | AI64: FALSE | AJ64: FALSE | AK64: FALSE | AL64: FALSE | AM64: FALSE | AN64: FALSE | AO64: FALSE | AP64: =IF(AP3,OFFSET($J$62,0,AP63)) -> FALSE | AQ64: FALSE | AR64: FALSE | AS64: FALSE | AT64: FALSE | AU64: FALSE | AV64: FALSE | AW64: FALSE | AX64: FALSE | AY64: FALSE | AZ64: FALSE | BA64: FALSE | BB64: FALSE | BC64: FALSE | BD64: FALSE | BE64: FALSE | BF64: FALSE | BG64: FALSE | BH64: FALSE | BI64: FALSE | BJ64: FALSE | BK64: FALSE | BL64: FALSE | BM64: FALSE | BN64: FALSE | BO64: FALSE | BP64: FALSE | BQ64: FALSE | BR64: FALSE | BS64: FALSE | BT64: FALSE | BU64: FALSE | BV64: =IF(BV3,OFFSET($J$62,0,BV63)) -> FALSE | BW64: FALSE | BX64: FALSE | BY64: FALSE | BZ64: FALSE | CA64: FALSE | CB64: FALSE | CC64: FALSE | CD64: FALSE | CE64: FALSE | CF64: FALSE | CG64: FALSE | CH64: FALSE | CI64: FALSE | CJ64: FALSE | CK64: FALSE | CL64: FALSE | CM64: FALSE | CN64: FALSE | CO64: FALSE | CP64: FALSE | CQ64: FALSE | CR64: FALSE | CS64: FALSE | CT64: FALSE | CU64: FALSE | CV64: FALSE | CW64: FALSE | CX64: FALSE | CY64: FALSE | CZ64: FALSE | DA64: FALSE | DB64: =IF(DB3,OFFSET($J$62,0,DB63)) -> FALSE | DC64: FALSE | DD64: FALSE | DE64: FALSE | DF64: FALSE | DG64: FALSE | DH64: FALSE | DI64: FALSE | DJ64: FALSE | DK64: FALSE | DL64: FALSE | DM64: FALSE | DN64: FALSE | DO64: FALSE | DP64: FALSE | DQ64: FALSE | DR64: FALSE | DS64: FALSE | DT64: FALSE | DU64: FALSE | DV64: FALSE | DW64: FALSE | DX64: FALSE | DY64: FALSE | DZ64: FALSE | EA64: FALSE | EB64: FALSE | EC64: FALSE | ED64: FALSE | EE64: FALSE | EF64: FALSE | EG64: FALSE | EH64: =IF(EH3,OFFSET($J$62,0,EH63)) -> FALSE | EI64: FALSE | EJ64: FALSE | EK64: FALSE | EL64: FALSE | EM64: FALSE | EN64: FALSE | EO64: FALSE | EP64: FALSE | EQ64: FALSE | ER64: FALSE | ES64: FALSE | ET64: FALSE | EU64: FALSE | EV64: FALSE | EW64: FALSE | EX64: FALSE | EY64: FALSE | EZ64: FALSE | FA64: FALSE | FB64: FALSE | FC64: FALSE | FD64: FALSE | FE64: FALSE | FF64: FALSE | FG64: FALSE | FH64: FALSE | FI64: FALSE | FJ64: FALSE | FK64: FALSE | FL64: FALSE | FM64: FALSE | FN64: =IF(FN3,OFFSET($J$62,0,FN63)) -> FALSE | FO64: FALSE | FP64: FALSE | FQ64: FALSE | FR64: FALSE | FS64: FALSE | FT64: FALSE | FU64: FALSE | FV64: FALSE | FW64: FALSE | FX64: FALSE | FY64: FALSE | FZ64: FALSE | GA64: FALSE | GB64: FALSE | GC64: FALSE | GD64: FALSE | GE64: FALSE | GF64: FALSE | GG64: FALSE | GH64: FALSE | GI64: FALSE | GJ64: FALSE | GK64: FALSE | GL64: FALSE | GM64: FALSE | GN64: FALSE | GO64: FALSE | GP64: FALSE | GQ64: FALSE | GR64: FALSE | GS64: FALSE | GT64: =IF(GT3,OFFSET($J$62,0,GT63)) -> FALSE | GU64: FALSE | GV64: FALSE | GW64: FALSE | GX64: FALSE | GY64: FALSE | GZ64: FALSE | HA64: FALSE
D65: Total Capital Expenditures | E65: EUR | J65: =J26+J27 -> 0 | K65: 0 | L65: 0 | M65: 0 | N65: 0 | O65: 0 | P65: 0 | Q65: 0 | R65: 0 | S65: 0 | T65: 0 | U65: 0 | V65: 0 | W65: 20000 | X65: 20000 | Y65: 20000 | Z65: 20000 | AA65: 20000 | AB65: 20000 | AC65: 20000 | AD65: 20000 | AE65: 20000 | AF65: 20000 | AG65: 20000 | AH65: 20000 | AI65: 20000 | AJ65: 20000 | AK65: 20000 | AL65: 20000 | AM65: 20000 | AN65: 20000 | AO65: 20000 | AP65: =AP26+AP27 -> 20000 | AQ65: 20000 | AR65: 20000 | AS65: 20000 | AT65: 20000 | AU65: 20000 | AV65: 20000 | AW65: 20000 | AX65: 20000 | AY65: 20000 | AZ65: 20000 | BA65: 20000 | BB65: 20000 | BC65: 20000 | BD65: 20000 | BE65: 20000 | BF65: 20000 | BG65: 20000 | BH65: 20000 | BI65: 20000 | BJ65: 20000 | BK65: 20000 | BL65: 20000 | BM65: 20000 | BN65: 20000 | BO65: 20000 | BP65: 20000 | BQ65: 20000 | BR65: 20000 | BS65: 20000 | BT65: 20000 | BU65: 20000 | BV65: =BV26+BV27 -> 20000 | BW65: 20000 | BX65: 20000 | BY65: 20000 | BZ65: 20000 | CA65: 20000 | CB65: 20000 | CC65: 20000 | CD65: 20000 | CE65: 20000 | CF65: 20000 | CG65: 20000 | CH65: 20000 | CI65: 20000 | CJ65: 20000 | CK65: 20000 | CL65: 20000 | CM65: 20000 | CN65: 20000 | CO65: 20000 | CP65: 20000 | CQ65: 20000 | CR65: 20000 | CS65: 20000 | CT65: 20000 | CU65: 20000 | CV65: 20000 | CW65: 20000 | CX65: 20000 | CY65: 20000 | CZ65: 20000 | DA65: 20000 | DB65: =DB26+DB27 -> 20000 | DC65: 20000 | DD65: 20000 | DE65: 20000 | DF65: 20000 | DG65: 20000 | DH65: 20000 | DI65: 20000 | DJ65: 20000 | DK65: 20000 | DL65: 20000 | DM65: 20000 | DN65: 20000 | DO65: 20000 | DP65: 20000 | DQ65: 20000 | DR65: 20000 | DS65: 20000 | DT65: 20000 | DU65: 20000 | DV65: 20000 | DW65: 20000 | DX65: 20000 | DY65: 20000 | DZ65: 20000 | EA65: 20000 | EB65: 20000 | EC65: 20000 | ED65: 20000 | EE65: 20000 | EF65: 20000 | EG65: 20000 | EH65: =EH26+EH27 -> 20000 | EI65: 20000 | EJ65: 20000 | EK65: 20000 | EL65: 20000 | EM65: 20000 | EN65: 20000 | EO65: 20000 | EP65: 20000 | EQ65: 20000 | ER65: 20000 | ES65: 20000 | ET65: 20000 | EU65: 20000 | EV65: 20000 | EW65: 20000 | EX65: 20000 | EY65: 20000 | EZ65: 20000 | FA65: 20000 | FB65: 20000 | FC65: 20000 | FD65: 20000 | FE65: 20000 | FF65: 20000 | FG65: 20000 | FH65: 20000 | FI65: 20000 | FJ65: 20000 | FK65: 20000 | FL65: 20000 | FM65: 20000 | FN65: =FN26+FN27 -> 20000 | FO65: 20000 | FP65: 20000 | FQ65: 20000 | FR65: 20000 | FS65: 20000 | FT65: 20000 | FU65: 20000 | FV65: 20000 | FW65: 20000 | FX65: 20000 | FY65: 20000 | FZ65: 20000 | GA65: 20000 | GB65: 20000 | GC65: 20000 | GD65: 20000 | GE65: 20000 | GF65: 20000 | GG65: 20000 | GH65: 20000 | GI65: 20000 | GJ65: 20000 | GK65: 20000 | GL65: 20000 | GM65: 20000 | GN65: 20000 | GO65: 20000 | GP65: 20000 | GQ65: 20000 | GR65: 20000 | GS65: 20000 | GT65: =GT26+GT27 -> 20000 | GU65: 20000 | GV65: 20000 | GW65: 20000 | GX65: 20000 | GY65: 20000 | GZ65: 20000 | HA65: 20000
D66: Future Value | E66: EUR | F66: =SUM(J66:HA66) -> 0 | J66: =J65*J64 -> 0 | K66: =K65*K64 -> 0 | L66: 0 | M66: 0 | N66: 0 | O66: 0 | P66: 0 | Q66: 0 | R66: 0 | S66: 0 | T66: 0 | U66: 0 | V66: 0 | W66: 0 | X66: 0 | Y66: 0 | Z66: 0 | AA66: 0 | AB66: 0 | AC66: 0 | AD66: 0 | AE66: 0 | AF66: 0 | AG66: 0 | AH66: 0 | AI66: 0 | AJ66: 0 | AK66: 0 | AL66: 0 | AM66: 0 | AN66: 0 | AO66: 0 | AP66: 0 | AQ66: 0 | AR66: 0 | AS66: 0 | AT66: 0 | AU66: 0 | AV66: 0 | AW66: 0 | AX66: 0 | AY66: 0 | AZ66: 0 | BA66: 0 | BB66: 0 | BC66: 0 | BD66: 0 | BE66: 0 | BF66: 0 | BG66: 0 | BH66: 0 | BI66: 0 | BJ66: 0 | BK66: 0 | BL66: 0 | BM66: 0 | BN66: 0 | BO66: 0 | BP66: 0 | BQ66: 0 | BR66: 0 | BS66: 0 | BT66: 0 | BU66: 0 | BV66: 0 | BW66: =BW65*BW64 -> 0 | BX66: 0 | BY66: 0 | BZ66: 0 | CA66: 0 | CB66: 0 | CC66: 0 | CD66: 0 | CE66: 0 | CF66: 0 | CG66: 0 | CH66: 0 | CI66: 0 | CJ66: 0 | CK66: 0 | CL66: 0 | CM66: 0 | CN66: 0 | CO66: 0 | CP66: 0 | CQ66: 0 | CR66: 0 | CS66: 0 | CT66: 0 | CU66: 0 | CV66: 0 | CW66: 0 | CX66: 0 | CY66: 0 | CZ66: 0 | DA66: 0 | DB66: 0 | DC66: 0 | DD66: 0 | DE66: 0 | DF66: 0 | DG66: 0 | DH66: 0 | DI66: 0 | DJ66: 0 | DK66: 0 | DL66: 0 | DM66: 0 | DN66: 0 | DO66: 0 | DP66: 0 | DQ66: 0 | DR66: 0 | DS66: 0 | DT66: 0 | DU66: 0 | DV66: 0 | DW66: 0 | DX66: 0 | DY66: 0 | DZ66: 0 | EA66: 0 | EB66: 0 | EC66: 0 | ED66: 0 | EE66: 0 | EF66: 0 | EG66: 0 | EH66: 0 | EI66: =EI65*EI64 -> 0 | EJ66: 0 | EK66: 0 | EL66: 0 | EM66: 0 | EN66: 0 | EO66: 0 | EP66: 0 | EQ66: 0 | ER66: 0 | ES66: 0 | ET66: 0 | EU66: 0 | EV66: 0 | EW66: 0 | EX66: 0 | EY66: 0 | EZ66: 0 | FA66: 0 | FB66: 0 | FC66: 0 | FD66: 0 | FE66: 0 | FF66: 0 | FG66: 0 | FH66: 0 | FI66: 0 | FJ66: 0 | FK66: 0 | FL66: 0 | FM66: 0 | FN66: 0 | FO66: 0 | FP66: 0 | FQ66: 0 | FR66: 0 | FS66: 0 | FT66: 0 | FU66: 0 | FV66: 0 | FW66: 0 | FX66: 0 | FY66: 0 | FZ66: 0 | GA66: 0 | GB66: 0 | GC66: 0 | GD66: 0 | GE66: 0 | GF66: 0 | GG66: 0 | GH66: 0 | GI66: 0 | GJ66: 0 | GK66: 0 | GL66: 0 | GM66: 0 | GN66: 0 | GO66: 0 | GP66: 0 | GQ66: 0 | GR66: 0 | GS66: 0 | GT66: 0 | GU66: =GU65*GU64 -> 0 | GV66: 0 | GW66: 0 | GX66: 0 | GY66: 0 | GZ66: 0 | HA66: 0
D67: Period Before COD | E67: Flag | F67: =F3 -> 33 | J67: =$F$67=J2 -> FALSE | K67: FALSE | L67: FALSE | M67: FALSE | N67: FALSE | O67: FALSE | P67: FALSE | Q67: FALSE | R67: FALSE | S67: FALSE | T67: FALSE | U67: FALSE | V67: FALSE | W67: FALSE | X67: FALSE | Y67: FALSE | Z67: FALSE | AA67: FALSE | AB67: FALSE | AC67: FALSE | AD67: FALSE | AE67: FALSE | AF67: FALSE | AG67: FALSE | AH67: FALSE | AI67: FALSE | AJ67: FALSE | AK67: FALSE | AL67: FALSE | AM67: FALSE | AN67: FALSE | AO67: FALSE | AP67: =$F$67=AP2 -> TRUE | AQ67: FALSE | AR67: FALSE | AS67: FALSE | AT67: FALSE | AU67: FALSE | AV67: FALSE | AW67: FALSE | AX67: FALSE | AY67: FALSE | AZ67: FALSE | BA67: FALSE | BB67: FALSE | BC67: FALSE | BD67: FALSE | BE67: FALSE | BF67: FALSE | BG67: FALSE | BH67: FALSE | BI67: FALSE | BJ67: FALSE | BK67: FALSE | BL67: FALSE | BM67: FALSE | BN67: FALSE | BO67: FALSE | BP67: FALSE | BQ67: FALSE | BR67: FALSE | BS67: FALSE | BT67: FALSE | BU67: FALSE | BV67: =$F$67=BV2 -> FALSE | BW67: FALSE | BX67: FALSE | BY67: FALSE | BZ67: FALSE | CA67: FALSE | CB67: FALSE | CC67: FALSE | CD67: FALSE | CE67: FALSE | CF67: FALSE | CG67: FALSE | CH67: FALSE | CI67: FALSE | CJ67: FALSE | CK67: FALSE | CL67: FALSE | CM67: FALSE | CN67: FALSE | CO67: FALSE | CP67: FALSE | CQ67: FALSE | CR67: FALSE | CS67: FALSE | CT67: FALSE | CU67: FALSE | CV67: FALSE | CW67: FALSE | CX67: FALSE | CY67: FALSE | CZ67: FALSE | DA67: FALSE | DB67: =$F$67=DB2 -> FALSE | DC67: FALSE | DD67: FALSE | DE67: FALSE | DF67: FALSE | DG67: FALSE | DH67: FALSE | DI67: FALSE | DJ67: FALSE | DK67: FALSE | DL67: FALSE | DM67: FALSE | DN67: FALSE | DO67: FALSE | DP67: FALSE | DQ67: FALSE | DR67: FALSE | DS67: FALSE | DT67: FALSE | DU67: FALSE | DV67: FALSE | DW67: FALSE | DX67: FALSE | DY67: FALSE | DZ67: FALSE | EA67: FALSE | EB67: FALSE | EC67: FALSE | ED67: FALSE | EE67: FALSE | EF67: FALSE | EG67: FALSE | EH67: =$F$67=EH2 -> FALSE | EI67: FALSE | EJ67: FALSE | EK67: FALSE | EL67: FALSE | EM67: FALSE | EN67: FALSE | EO67: FALSE | EP67: FALSE | EQ67: FALSE | ER67: FALSE | ES67: FALSE | ET67: FALSE | EU67: FALSE | EV67: FALSE | EW67: FALSE | EX67: FALSE | EY67: FALSE | EZ67: FALSE | FA67: FALSE | FB67: FALSE | FC67: FALSE | FD67: FALSE | FE67: FALSE | FF67: FALSE | FG67: FALSE | FH67: FALSE | FI67: FALSE | FJ67: FALSE | FK67: FALSE | FL67: FALSE | FM67: FALSE | FN67: =$F$67=FN2 -> FALSE | FO67: FALSE | FP67: FALSE | FQ67: FALSE | FR67: FALSE | FS67: FALSE | FT67: FALSE | FU67: FALSE | FV67: FALSE | FW67: FALSE | FX67: FALSE | FY67: FALSE | FZ67: FALSE | GA67: FALSE | GB67: FALSE | GC67: FALSE | GD67: FALSE | GE67: FALSE | GF67: FALSE | GG67: FALSE | GH67: FALSE | GI67: FALSE | GJ67: FALSE | GK67: FALSE | GL67: FALSE | GM67: FALSE | GN67: FALSE | GO67: FALSE | GP67: FALSE | GQ67: FALSE | GR67: FALSE | GS67: FALSE | GT67: =$F$67=GT2 -> FALSE | GU67: FALSE | GV67: FALSE | GW67: FALSE | GX67: FALSE | GY67: FALSE | GZ67: FALSE | HA67: FALSE
D68: Cash Outflow | E68: EUR | F68: =F66 -> 0 | J68: =$F$68*J67 -> 0 | K68: =$F$68*K67 -> 0 | L68: 0 | M68: 0 | N68: 0 | O68: 0 | P68: 0 | Q68: 0 | R68: 0 | S68: 0 | T68: 0 | U68: 0 | V68: 0 | W68: 0 | X68: 0 | Y68: 0 | Z68: 0 | AA68: 0 | AB68: 0 | AC68: 0 | AD68: 0 | AE68: 0 | AF68: 0 | AG68: 0 | AH68: 0 | AI68: 0 | AJ68: 0 | AK68: 0 | AL68: 0 | AM68: 0 | AN68: 0 | AO68: 0 | AP68: 0 | AQ68: 0 | AR68: 0 | AS68: 0 | AT68: 0 | AU68: 0 | AV68: 0 | AW68: 0 | AX68: 0 | AY68: 0 | AZ68: 0 | BA68: 0 | BB68: 0 | BC68: 0 | BD68: 0 | BE68: 0 | BF68: 0 | BG68: 0 | BH68: 0 | BI68: 0 | BJ68: 0 | BK68: 0 | BL68: 0 | BM68: 0 | BN68: 0 | BO68: 0 | BP68: 0 | BQ68: 0 | BR68: 0 | BS68: 0 | BT68: 0 | BU68: 0 | BV68: 0 | BW68: =$F$68*BW67 -> 0 | BX68: 0 | BY68: 0 | BZ68: 0 | CA68: 0 | CB68: 0 | CC68: 0 | CD68: 0 | CE68: 0 | CF68: 0 | CG68: 0 | CH68: 0 | CI68: 0 | CJ68: 0 | CK68: 0 | CL68: 0 | CM68: 0 | CN68: 0 | CO68: 0 | CP68: 0 | CQ68: 0 | CR68: 0 | CS68: 0 | CT68: 0 | CU68: 0 | CV68: 0 | CW68: 0 | CX68: 0 | CY68: 0 | CZ68: 0 | DA68: 0 | DB68: 0 | DC68: 0 | DD68: 0 | DE68: 0 | DF68: 0 | DG68: 0 | DH68: 0 | DI68: 0 | DJ68: 0 | DK68: 0 | DL68: 0 | DM68: 0 | DN68: 0 | DO68: 0 | DP68: 0 | DQ68: 0 | DR68: 0 | DS68: 0 | DT68: 0 | DU68: 0 | DV68: 0 | DW68: 0 | DX68: 0 | DY68: 0 | DZ68: 0 | EA68: 0 | EB68: 0 | EC68: 0 | ED68: 0 | EE68: 0 | EF68: 0 | EG68: 0 | EH68: 0 | EI68: =$F$68*EI67 -> 0 | EJ68: 0 | EK68: 0 | EL68: 0 | EM68: 0 | EN68: 0 | EO68: 0 | EP68: 0 | EQ68: 0 | ER68: 0 | ES68: 0 | ET68: 0 | EU68: 0 | EV68: 0 | EW68: 0 | EX68: 0 | EY68: 0 | EZ68: 0 | FA68: 0 | FB68: 0 | FC68: 0 | FD68: 0 | FE68: 0 | FF68: 0 | FG68: 0 | FH68: 0 | FI68: 0 | FJ68: 0 | FK68: 0 | FL68: 0 | FM68: 0 | FN68: 0 | FO68: 0 | FP68: 0 | FQ68: 0 | FR68: 0 | FS68: 0 | FT68: 0 | FU68: 0 | FV68: 0 | FW68: 0 | FX68: 0 | FY68: 0 | FZ68: 0 | GA68: 0 | GB68: 0 | GC68: 0 | GD68: 0 | GE68: 0 | GF68: 0 | GG68: 0 | GH68: 0 | GI68: 0 | GJ68: 0 | GK68: 0 | GL68: 0 | GM68: 0 | GN68: 0 | GO68: 0 | GP68: 0 | GQ68: 0 | GR68: 0 | GS68: 0 | GT68: 0 | GU68: =$F$68*GU67 -> 0 | GV68: 0 | GW68: 0 | GX68: 0 | GY68: 0 | GZ68: 0 | HA68: 0
D69: PMT after COD | E69: EUR | F69: =-PMT(F61,F9,F66) -> 0 | J69: =$F$69*J9 -> 0 | K69: 0 | L69: 0 | M69: 0 | N69: 0 | O69: 0 | P69: 0 | Q69: 0 | R69: 0 | S69: 0 | T69: 0 | U69: 0 | V69: 0 | W69: 0 | X69: 0 | Y69: 0 | Z69: 0 | AA69: 0 | AB69: 0 | AC69: 0 | AD69: 0 | AE69: 0 | AF69: 0 | AG69: 0 | AH69: 0 | AI69: 0 | AJ69: 0 | AK69: 0 | AL69: 0 | AM69: 0 | AN69: 0 | AO69: 0 | AP69: =$F$69*AP9 -> 0 | AQ69: 0 | AR69: 0 | AS69: 0 | AT69: 0 | AU69: 0 | AV69: 0 | AW69: 0 | AX69: 0 | AY69: 0 | AZ69: 0 | BA69: 0 | BB69: 0 | BC69: 0 | BD69: 0 | BE69: 0 | BF69: 0 | BG69: 0 | BH69: 0 | BI69: 0 | BJ69: 0 | BK69: 0 | BL69: 0 | BM69: 0 | BN69: 0 | BO69: 0 | BP69: 0 | BQ69: 0 | BR69: 0 | BS69: 0 | BT69: 0 | BU69: 0 | BV69: =$F$69*BV9 -> 0 | BW69: 0 | BX69: 0 | BY69: 0 | BZ69: 0 | CA69: 0 | CB69: 0 | CC69: 0 | CD69: 0 | CE69: 0 | CF69: 0 | CG69: 0 | CH69: 0 | CI69: 0 | CJ69: 0 | CK69: 0 | CL69: 0 | CM69: 0 | CN69: 0 | CO69: 0 | CP69: 0 | CQ69: 0 | CR69: 0 | CS69: 0 | CT69: 0 | CU69: 0 | CV69: 0 | CW69: 0 | CX69: 0 | CY69: 0 | CZ69: 0 | DA69: 0 | DB69: =$F$69*DB9 -> 0 | DC69: 0 | DD69: 0 | DE69: 0 | DF69: 0 | DG69: 0 | DH69: 0 | DI69: 0 | DJ69: 0 | DK69: 0 | DL69: 0 | DM69: 0 | DN69: 0 | DO69: 0 | DP69: 0 | DQ69: 0 | DR69: 0 | DS69: 0 | DT69: 0 | DU69: 0 | DV69: 0 | DW69: 0 | DX69: 0 | DY69: 0 | DZ69: 0 | EA69: 0 | EB69: 0 | EC69: 0 | ED69: 0 | EE69: 0 | EF69: 0 | EG69: 0 | EH69: =$F$69*EH9 -> 0 | EI69: 0 | EJ69: 0 | EK69: 0 | EL69: 0 | EM69: 0 | EN69: 0 | EO69: 0 | EP69: 0 | EQ69: 0 | ER69: 0 | ES69: 0 | ET69: 0 | EU69: 0 | EV69: 0 | EW69: 0 | EX69: 0 | EY69: 0 | EZ69: 0 | FA69: 0 | FB69: 0 | FC69: 0 | FD69: 0 | FE69: 0 | FF69: 0 | FG69: 0 | FH69: 0 | FI69: 0 | FJ69: 0 | FK69: 0 | FL69: 0 | FM69: 0 | FN69: =$F$69*FN9 -> 0 | FO69: 0 | FP69: 0 | FQ69: 0 | FR69: 0 | FS69: 0 | FT69: 0 | FU69: 0 | FV69: 0 | FW69: 0 | FX69: 0 | FY69: 0 | FZ69: 0 | GA69: 0 | GB69: 0 | GC69: 0 | GD69: 0 | GE69: 0 | GF69: 0 | GG69: 0 | GH69: 0 | GI69: 0 | GJ69: 0 | GK69: 0 | GL69: 0 | GM69: 0 | GN69: 0 | GO69: 0 | GP69: 0 | GQ69: 0 | GR69: 0 | GS69: 0 | GT69: =$F$69*GT9 -> 0 | GU69: 0 | GV69: 0 | GW69: 0 | GX69: 0 | GY69: 0 | GZ69: 0 | HA69: 0
D70: Net Cash on Rf | E70: EUR | G70: =IRR(J70:HA70) ->  | J70: =J69-J68 -> 0 | K70: =K69-K68 -> 0 | L70: 0 | M70: 0 | N70: 0 | O70: 0 | P70: 0 | Q70: 0 | R70: 0 | S70: 0 | T70: 0 | U70: 0 | V70: 0 | W70: 0 | X70: 0 | Y70: 0 | Z70: 0 | AA70: 0 | AB70: 0 | AC70: 0 | AD70: 0 | AE70: 0 | AF70: 0 | AG70: 0 | AH70: 0 | AI70: 0 | AJ70: 0 | AK70: 0 | AL70: 0 | AM70: 0 | AN70: 0 | AO70: 0 | AP70: 0 | AQ70: 0 | AR70: 0 | AS70: 0 | AT70: 0 | AU70: 0 | AV70: 0 | AW70: 0 | AX70: 0 | AY70: 0 | AZ70: 0 | BA70: 0 | BB70: 0 | BC70: 0 | BD70: 0 | BE70: 0 | BF70: 0 | BG70: 0 | BH70: 0 | BI70: 0 | BJ70: 0 | BK70: 0 | BL70: 0 | BM70: 0 | BN70: 0 | BO70: 0 | BP70: 0 | BQ70: 0 | BR70: 0 | BS70: 0 | BT70: 0 | BU70: 0 | BV70: 0 | BW70: =BW69-BW68 -> 0 | BX70: 0 | BY70: 0 | BZ70: 0 | CA70: 0 | CB70: 0 | CC70: 0 | CD70: 0 | CE70: 0 | CF70: 0 | CG70: 0 | CH70: 0 | CI70: 0 | CJ70: 0 | CK70: 0 | CL70: 0 | CM70: 0 | CN70: 0 | CO70: 0 | CP70: 0 | CQ70: 0 | CR70: 0 | CS70: 0 | CT70: 0 | CU70: 0 | CV70: 0 | CW70: 0 | CX70: 0 | CY70: 0 | CZ70: 0 | DA70: 0 | DB70: 0 | DC70: 0 | DD70: 0 | DE70: 0 | DF70: 0 | DG70: 0 | DH70: 0 | DI70: 0 | DJ70: 0 | DK70: 0 | DL70: 0 | DM70: 0 | DN70: 0 | DO70: 0 | DP70: 0 | DQ70: 0 | DR70: 0 | DS70: 0 | DT70: 0 | DU70: 0 | DV70: 0 | DW70: 0 | DX70: 0 | DY70: 0 | DZ70: 0 | EA70: 0 | EB70: 0 | EC70: 0 | ED70: 0 | EE70: 0 | EF70: 0 | EG70: 0 | EH70: 0 | EI70: =EI69-EI68 -> 0 | EJ70: 0 | EK70: 0 | EL70: 0 | EM70: 0 | EN70: 0 | EO70: 0 | EP70: 0 | EQ70: 0 | ER70: 0 | ES70: 0 | ET70: 0 | EU70: 0 | EV70: 0 | EW70: 0 | EX70: 0 | EY70: 0 | EZ70: 0 | FA70: 0 | FB70: 0 | FC70: 0 | FD70: 0 | FE70: 0 | FF70: 0 | FG70: 0 | FH70: 0 | FI70: 0 | FJ70: 0 | FK70: 0 | FL70: 0 | FM70: 0 | FN70: 0 | FO70: 0 | FP70: 0 | FQ70: 0 | FR70: 0 | FS70: 0 | FT70: 0 | FU70: 0 | FV70: 0 | FW70: 0 | FX70: 0 | FY70: 0 | FZ70: 0 | GA70: 0 | GB70: 0 | GC70: 0 | GD70: 0 | GE70: 0 | GF70: 0 | GG70: 0 | GH70: 0 | GI70: 0 | GJ70: 0 | GK70: 0 | GL70: 0 | GM70: 0 | GN70: 0 | GO70: 0 | GP70: 0 | GQ70: 0 | GR70: 0 | GS70: 0 | GT70: 0 | GU70: =GU69-GU68 -> 0 | GV70: 0 | GW70: 0 | GX70: 0 | GY70: 0 | GZ70: 0 | HA70: 0
D72: Premium over Rf | E72: EUR | J72: =J31-J70 -> 0 | K72: 0 | L72: 0 | M72: 0 | N72: 0 | O72: 0 | P72: 0 | Q72: 0 | R72: 0 | S72: 0 | T72: 0 | U72: 0 | V72: 0 | W72: 0 | X72: 0 | Y72: 0 | Z72: 0 | AA72: 0 | AB72: 0 | AC72: 0 | AD72: 0 | AE72: 0 | AF72: 0 | AG72: 0 | AH72: 0 | AI72: 0 | AJ72: 0 | AK72: 0 | AL72: 0 | AM72: 0 | AN72: 0 | AO72: 0 | AP72: =AP31-AP70 -> 0 | AQ72: 0 | AR72: 0 | AS72: 0 | AT72: 0 | AU72: 0 | AV72: 0 | AW72: 0 | AX72: 0 | AY72: 0 | AZ72: 0 | BA72: 0 | BB72: 0 | BC72: 0 | BD72: 0 | BE72: 0 | BF72: 0 | BG72: 0 | BH72: 0 | BI72: 0 | BJ72: 0 | BK72: 0 | BL72: 0 | BM72: 0 | BN72: 0 | BO72: 0 | BP72: 0 | BQ72: 0 | BR72: 0 | BS72: 0 | BT72: 0 | BU72: 0 | BV72: =BV31-BV70 -> 0 | BW72: 0 | BX72: 0 | BY72: 0 | BZ72: 0 | CA72: 0 | CB72: 0 | CC72: 0 | CD72: 0 | CE72: 0 | CF72: 0 | CG72: 0 | CH72: 0 | CI72: 0 | CJ72: 0 | CK72: 0 | CL72: 0 | CM72: 0 | CN72: 0 | CO72: 0 | CP72: 0 | CQ72: 0 | CR72: 0 | CS72: 0 | CT72: 0 | CU72: 0 | CV72: 0 | CW72: 0 | CX72: 0 | CY72: 0 | CZ72: 0 | DA72: 0 | DB72: =DB31-DB70 -> 0 | DC72: 0 | DD72: 0 | DE72: 0 | DF72: 0 | DG72: 0 | DH72: 0 | DI72: 0 | DJ72: 0 | DK72: 0 | DL72: 0 | DM72: 0 | DN72: 0 | DO72: 0 | DP72: 0 | DQ72: 0 | DR72: 0 | DS72: 0 | DT72: 0 | DU72: 0 | DV72: 0 | DW72: 0 | DX72: 0 | DY72: 0 | DZ72: 0 | EA72: 0 | EB72: 0 | EC72: 0 | ED72: 0 | EE72: 0 | EF72: 0 | EG72: 0 | EH72: =EH31-EH70 -> 0 | EI72: 0 | EJ72: 0 | EK72: 0 | EL72: 0 | EM72: 0 | EN72: 0 | EO72: 0 | EP72: 0 | EQ72: 0 | ER72: 0 | ES72: 0 | ET72: 0 | EU72: 0 | EV72: 0 | EW72: 0 | EX72: 0 | EY72: 0 | EZ72: 0 | FA72: 0 | FB72: 0 | FC72: 0 | FD72: 0 | FE72: 0 | FF72: 0 | FG72: 0 | FH72: 0 | FI72: 0 | FJ72: 0 | FK72: 0 | FL72: 0 | FM72: 0 | FN72: =FN31-FN70 -> 0 | FO72: 0 | FP72: 0 | FQ72: 0 | FR72: 0 | FS72: 0 | FT72: 0 | FU72: 0 | FV72: 0 | FW72: 0 | FX72: 0 | FY72: 0 | FZ72: 0 | GA72: 0 | GB72: 0 | GC72: 0 | GD72: 0 | GE72: 0 | GF72: 0 | GG72: 0 | GH72: 0 | GI72: 0 | GJ72: 0 | GK72: 0 | GL72: 0 | GM72: 0 | GN72: 0 | GO72: 0 | GP72: 0 | GQ72: 0 | GR72: 0 | GS72: 0 | GT72: =GT31-GT70 -> 0 | GU72: 0 | GV72: 0 | GW72: 0 | GX72: 0 | GY72: 0 | GZ72: 0 | HA72: 0
D73: Premium over Rf % | E73: % | F73: =XIRR(J72:HA72,J5:HA5) -> 
D74: NPV of Premium | E74: EUR | F74: =XNPV(F61,J72:HA72,J5:HA5) -> 0
D75: PMT | E75: EUR | F75: =PMT(F61,F9,-F74) -> 0
D76: Divided by Investment | E76: % | F76: =F75/F66 -> 

Sheet Development Fee and Analysis
B1: Timeline
D2: Date | I2: 2020-01-01 | J2: =EDATE(I2, J9) -> 2020-02-01 | K2: 2020-03-01 | L2: 2020-04-01 | M2: 2020-05-01 | N2: 2020-06-01 | O2: 2020-07-01 | P2: 2020-08-01 | Q2: 2020-09-01 | R2: 2020-10-01 | S2: 2020-11-01 | T2: 2020-12-01 | U2: 2021-01-01 | V2: 2021-02-01 | W2: 2021-03-01 | X2: 2021-04-01 | Y2: 2021-05-01 | Z2: 2021-06-01 | AA2: 2021-07-01 | AB2: 2021-08-01 | AC2: 2021-09-01 | AD2: 2021-10-01 | AE2: 2021-11-01 | AF2: 2021-12-01 | AG2: 2022-01-01 | AH2: 2022-02-01 | AI2: 2022-03-01 | AJ2: 2022-04-01 | AK2: 2023-04-01 | AL2: 2024-04-01 | AM2: 2025-04-01 | AN2: 2026-04-01 | AO2: 2027-04-01 | AP2: =EDATE(AO2, AP9) -> 2028-04-01 | AQ2: 2029-04-01 | AR2: 2030-04-01 | AS2: 2031-04-01 | AT2: 2032-04-01 | AU2: 2033-04-01 | AV2: 2034-04-01 | AW2: 2035-04-01 | AX2: 2036-04-01 | AY2: 2037-04-01 | AZ2: 2038-04-01 | BA2: 2039-04-01 | BB2: 2040-04-01 | BC2: 2041-04-01 | BD2: 2042-04-01 | BE2: 2043-04-01 | BF2: 2044-04-01 | BG2: 2045-04-01 | BH2: 2046-04-01 | BI2: 2047-04-01 | BJ2: 2048-04-01 | BK2: 2049-04-01 | BL2: 2050-04-01 | BM2: 2051-04-01 | BN2: 2052-04-01 | BO2: 2053-04-01 | BP2: 2054-04-01 | BQ2: 2055-04-01 | BR2: 2056-04-01 | BS2: 2057-04-01 | BT2: 2058-04-01 | BU2: 2059-04-01 | BV2: =EDATE(BU2, BV9) -> 2060-04-01 | BW2: 2061-04-01 | BX2: 2062-04-01 | BY2: 2063-04-01 | BZ2: 2064-04-01 | CA2: 2065-04-01 | CB2: 2066-04-01 | CC2: 2067-04-01 | CD2: 2068-04-01 | CE2: 2069-04-01 | CF2: 2070-04-01 | CG2: 2071-04-01 | CH2: 2072-04-01 | CI2: 2073-04-01 | CJ2: 2074-04-01 | CK2: 2075-04-01 | CL2: 2076-04-01 | CM2: 2077-04-01 | CN2: 2078-04-01 | CO2: 2079-04-01 | CP2: 2080-04-01 | CQ2: 2081-04-01 | CR2: 2082-04-01 | CS2: 2083-04-01 | CT2: 2084-04-01 | CU2: 2085-04-01 | CV2: 2086-04-01 | CW2: 2087-04-01 | CX2: 2088-04-01 | CY2: 2089-04-01 | CZ2: 2090-04-01 | DA2: 2091-04-01 | DB2: =EDATE(DA2, DB9) -> 2092-04-01 | DC2: 2093-04-01 | DD2: 2094-04-01 | DE2: 2095-04-01 | DF2: 2096-04-01 | DG2: 2097-04-01 | DH2: 2098-04-01 | DI2: 2099-04-01 | DJ2: 2100-04-01 | DK2: 2101-04-01 | DL2: 2102-04-01 | DM2: 2103-04-01 | DN2: 2104-04-01 | DO2: 2105-04-01 | DP2: 2106-04-01 | DQ2: 2107-04-01 | DR2: 2108-04-01 | DS2: 2109-04-01 | DT2: 2110-04-01 | DU2: 2111-04-01 | DV2: 2112-04-01 | DW2: 2113-04-01 | DX2: 2114-04-01 | DY2: 2115-04-01 | DZ2: 2116-04-01 | EA2: 2117-04-01 | EB2: 2118-04-01 | EC2: 2119-04-01 | ED2: 2120-04-01 | EE2: 2121-04-01 | EF2: 2122-04-01 | EG2: 2123-04-01 | EH2: =EDATE(EG2, EH9) -> 2124-04-01 | EI2: 2125-04-01 | EJ2: 2126-04-01 | EK2: 2127-04-01 | EL2: 2128-04-01 | EM2: 2129-04-01 | EN2: 2130-04-01 | EO2: 2131-04-01 | EP2: 2132-04-01 | EQ2: 2133-04-01 | ER2: 2134-04-01 | ES2: 2135-04-01 | ET2: 2136-04-01 | EU2: 2137-04-01 | EV2: 2138-04-01 | EW2: 2139-04-01 | EX2: 2140-04-01 | EY2: 2141-04-01 | EZ2: 2142-04-01 | FA2: 2143-04-01 | FB2: 2144-04-01 | FC2: 2145-04-01 | FD2: 2146-04-01 | FE2: 2147-04-01 | FF2: 2148-04-01 | FG2: 2149-04-01 | FH2: 2150-04-01 | FI2: 2151-04-01 | FJ2: 2152-04-01 | FK2: 2153-04-01 | FL2: 2154-04-01 | FM2: 2155-04-01 | FN2: =EDATE(FM2, FN9) -> 2156-04-01 | FO2: 2157-04-01 | FP2: 2158-04-01 | FQ2: 2159-04-01 | FR2: 2160-04-01 | FS2: 2161-04-01 | FT2: 2162-04-01 | FU2: 2163-04-01 | FV2: 2164-04-01 | FW2: 2165-04-01 | FX2: 2166-04-01 | FY2: 2167-04-01 | FZ2: 2168-04-01 | GA2: 2169-04-01 | GB2: 2170-04-01 | GC2: 2171-04-01 | GD2: 2172-04-01 | GE2: 2173-04-01 | GF2: 2174-04-01 | GG2: 2175-04-01 | GH2: 2176-04-01 | GI2: 2177-04-01 | GJ2: 2178-04-01 | GK2: 2179-04-01 | GL2: 2180-04-01 | GM2: 2181-04-01 | GN2: 2182-04-01 | GO2: 2183-04-01 | GP2: 2184-04-01 | GQ2: 2185-04-01 | GR2: 2186-04-01 | GS2: 2187-04-01 | GT2: =EDATE(GS2, GT9) -> 2188-04-01 | GU2: 2189-04-01 | GV2: 2190-04-01 | GW2: 2191-04-01 | GX2: 2192-04-01 | GY2: 2193-04-01 | GZ2: 2194-04-01 | HA2: 2195-04-01
D3: Period | J3: 1 | K3: 2 | L3: 3 | M3: 4 | N3: 5 | O3: 6 | P3: 7 | Q3: 8 | R3: 9 | S3: 10 | T3: 11 | U3: 12 | V3: 13 | W3: 14 | X3: 15 | Y3: 16 | Z3: 17 | AA3: 18 | AB3: 19 | AC3: 20 | AD3: 21 | AE3: 22 | AF3: 23 | AG3: 24 | AH3: 25 | AI3: 26 | AJ3: 27 | AK3: 28 | AL3: 29 | AM3: 30 | AN3: 31 | AO3: 32 | AP3: 33 | AQ3: 34 | AR3: 35 | AS3: 36 | AT3: 37 | AU3: 38 | AV3: 39 | AW3: 40 | AX3: 41 | AY3: 42 | AZ3: 43 | BA3: 44 | BB3: 45 | BC3: 46 | BD3: 47 | BE3: 48 | BF3: 49 | BG3: 50 | BH3: 51 | BI3: 52 | BJ3: 53 | BK3: 54 | BL3: 55 | BM3: 56 | BN3: 57 | BO3: 58 | BP3: 59 | BQ3: 60 | BR3: 61 | BS3: 62 | BT3: 63 | BU3: 64 | BV3: 65 | BW3: 66 | BX3: 67 | BY3: 68 | BZ3: 69 | CA3: 70 | CB3: 71 | CC3: 72 | CD3: 73 | CE3: 74 | CF3: 75 | CG3: 76 | CH3: 77 | CI3: 78 | CJ3: 79 | CK3: 80 | CL3: 81 | CM3: 82 | CN3: 83 | CO3: 84 | CP3: 85 | CQ3: 86 | CR3: 87 | CS3: 88 | CT3: 89 | CU3: 90 | CV3: 91 | CW3: 92 | CX3: 93 | CY3: 94 | CZ3: 95 | DA3: 96 | DB3: 97 | DC3: 98 | DD3: 99 | DE3: 100 | DF3: 101 | DG3: 102 | DH3: 103 | DI3: 104 | DJ3: 105 | DK3: 106 | DL3: 107 | DM3: 108 | DN3: 109 | DO3: 110 | DP3: 111 | DQ3: 112 | DR3: 113 | DS3: 114 | DT3: 115 | DU3: 116 | DV3: 117 | DW3: 118 | DX3: 119 | DY3: 120 | DZ3: 121 | EA3: 122 | EB3: 123 | EC3: 124 | ED3: 125 | EE3: 126 | EF3: 127 | EG3: 128 | EH3: 129 | EI3: 130 | EJ3: 131 | EK3: 132 | EL3: 133 | EM3: 134 | EN3: 135 | EO3: 136 | EP3: 137 | EQ3: 138 | ER3: 139 | ES3: 140 | ET3: 141 | EU3: 142 | EV3: 143 | EW3: 144 | EX3: 145 | EY3: 146 | EZ3: 147 | FA3: 148 | FB3: 149 | FC3: 150 | FD3: 151 | FE3: 152 | FF3: 153 | FG3: 154 | FH3: 155 | FI3: 156 | FJ3: 157 | FK3: 158 | FL3: 159 | FM3: 160 | FN3: 161 | FO3: 162 | FP3: 163 | FQ3: 164 | FR3: 165 | FS3: 166 | FT3: 167 | FU3: 168 | FV3: 169 | FW3: 170 | FX3: 171 | FY3: 172 | FZ3: 173 | GA3: 174 | GB3: 175 | GC3: 176 | GD3: 177 | GE3: 178 | GF3: 179 | GG3: 180 | GH3: 181 | GI3: 182 | GJ3: 183 | GK3: 184 | GL3: 185 | GM3: 186 | GN3: 187 | GO3: 188 | GP3: 189 | GQ3: 190 | GR3: 191 | GS3: 192 | GT3: 193 | GU3: 194 | GV3: 195 | GW3: 196 | GX3: 197 | GY3: 198 | GZ3: 199 | HA3: 200
D4: Pre-COD | E4: Pre-COD | F4: =F5+F6 -> 27 | J4: =J3<=$F$4 -> TRUE | K4: TRUE | L4: TRUE | M4: TRUE | N4: TRUE | O4: TRUE | P4: TRUE | Q4: TRUE | R4: TRUE | S4: TRUE | T4: TRUE | U4: TRUE | V4: TRUE | W4: TRUE | X4: TRUE | Y4: TRUE | Z4: TRUE | AA4: TRUE | AB4: TRUE | AC4: TRUE | AD4: TRUE | AE4: TRUE | AF4: TRUE | AG4: TRUE | AH4: TRUE | AI4: TRUE | AJ4: TRUE | AK4: FALSE | AL4: FALSE | AM4: FALSE | AN4: FALSE | AO4: FALSE | AP4: =AP3<=$F$4 -> FALSE | AQ4: FALSE | AR4: FALSE | AS4: FALSE | AT4: FALSE | AU4: FALSE | AV4: FALSE | AW4: FALSE | AX4: FALSE | AY4: FALSE | AZ4: FALSE | BA4: FALSE | BB4: FALSE | BC4: FALSE | BD4: FALSE | BE4: FALSE | BF4: FALSE | BG4: FALSE | BH4: FALSE | BI4: FALSE | BJ4: FALSE | BK4: FALSE | BL4: FALSE | BM4: FALSE | BN4: FALSE | BO4: FALSE | BP4: FALSE | BQ4: FALSE | BR4: FALSE | BS4: FALSE | BT4: FALSE | BU4: FALSE | BV4: =BV3<=$F$4 -> FALSE | BW4: FALSE | BX4: FALSE | BY4: FALSE | BZ4: FALSE | CA4: FALSE | CB4: FALSE | CC4: FALSE | CD4: FALSE | CE4: FALSE | CF4: FALSE | CG4: FALSE | CH4: FALSE | CI4: FALSE | CJ4: FALSE | CK4: FALSE | CL4: FALSE | CM4: FALSE | CN4: FALSE | CO4: FALSE | CP4: FALSE | CQ4: FALSE | CR4: FALSE | CS4: FALSE | CT4: FALSE | CU4: FALSE | CV4: FALSE | CW4: FALSE | CX4: FALSE | CY4: FALSE | CZ4: FALSE | DA4: FALSE | DB4: =DB3<=$F$4 -> FALSE | DC4: FALSE | DD4: FALSE | DE4: FALSE | DF4: FALSE | DG4: FALSE | DH4: FALSE | DI4: FALSE | DJ4: FALSE | DK4: FALSE | DL4: FALSE | DM4: FALSE | DN4: FALSE | DO4: FALSE | DP4: FALSE | DQ4: FALSE | DR4: FALSE | DS4: FALSE | DT4: FALSE | DU4: FALSE | DV4: FALSE | DW4: FALSE | DX4: FALSE | DY4: FALSE | DZ4: FALSE | EA4: FALSE | EB4: FALSE | EC4: FALSE | ED4: FALSE | EE4: FALSE | EF4: FALSE | EG4: FALSE | EH4: =EH3<=$F$4 -> FALSE | EI4: FALSE | EJ4: FALSE | EK4: FALSE | EL4: FALSE | EM4: FALSE | EN4: FALSE | EO4: FALSE | EP4: FALSE | EQ4: FALSE | ER4: FALSE | ES4: FALSE | ET4: FALSE | EU4: FALSE | EV4: FALSE | EW4: FALSE | EX4: FALSE | EY4: FALSE | EZ4: FALSE | FA4: FALSE | FB4: FALSE | FC4: FALSE | FD4: FALSE | FE4: FALSE | FF4: FALSE | FG4: FALSE | FH4: FALSE | FI4: FALSE | FJ4: FALSE | FK4: FALSE | FL4: FALSE | FM4: FALSE | FN4: =FN3<=$F$4 -> FALSE | FO4: FALSE | FP4: FALSE | FQ4: FALSE | FR4: FALSE | FS4: FALSE | FT4: FALSE | FU4: FALSE | FV4: FALSE | FW4: FALSE | FX4: FALSE | FY4: FALSE | FZ4: FALSE | GA4: FALSE | GB4: FALSE | GC4: FALSE | GD4: FALSE | GE4: FALSE | GF4: FALSE | GG4: FALSE | GH4: FALSE | GI4: FALSE | GJ4: FALSE | GK4: FALSE | GL4: FALSE | GM4: FALSE | GN4: FALSE | GO4: FALSE | GP4: FALSE | GQ4: FALSE | GR4: FALSE | GS4: FALSE | GT4: =GT3<=$F$4 -> FALSE | GU4: FALSE | GV4: FALSE | GW4: FALSE | GX4: FALSE | GY4: FALSE | GZ4: FALSE | HA4: FALSE
D5: Development Period | E5: Month | F5: =F14 -> 15 | J5: =J3<=$F$5 -> TRUE | K5: TRUE | L5: TRUE | M5: TRUE | N5: TRUE | O5: TRUE | P5: TRUE | Q5: TRUE | R5: TRUE | S5: TRUE | T5: TRUE | U5: TRUE | V5: TRUE | W5: TRUE | X5: TRUE | Y5: FALSE | Z5: FALSE | AA5: FALSE | AB5: FALSE | AC5: FALSE | AD5: FALSE | AE5: FALSE | AF5: FALSE | AG5: FALSE | AH5: FALSE | AI5: FALSE | AJ5: FALSE | AK5: FALSE | AL5: FALSE | AM5: FALSE | AN5: FALSE | AO5: FALSE | AP5: =AP3<=$F$5 -> FALSE | AQ5: FALSE | AR5: FALSE | AS5: FALSE | AT5: FALSE | AU5: FALSE | AV5: FALSE | AW5: FALSE | AX5: FALSE | AY5: FALSE | AZ5: FALSE | BA5: FALSE | BB5: FALSE | BC5: FALSE | BD5: FALSE | BE5: FALSE | BF5: FALSE | BG5: FALSE | BH5: FALSE | BI5: FALSE | BJ5: FALSE | BK5: FALSE | BL5: FALSE | BM5: FALSE | BN5: FALSE | BO5: FALSE | BP5: FALSE | BQ5: FALSE | BR5: FALSE | BS5: FALSE | BT5: FALSE | BU5: FALSE | BV5: =BV3<=$F$5 -> FALSE | BW5: FALSE | BX5: FALSE | BY5: FALSE | BZ5: FALSE | CA5: FALSE | CB5: FALSE | CC5: FALSE | CD5: FALSE | CE5: FALSE | CF5: FALSE | CG5: FALSE | CH5: FALSE | CI5: FALSE | CJ5: FALSE | CK5: FALSE | CL5: FALSE | CM5: FALSE | CN5: FALSE | CO5: FALSE | CP5: FALSE | CQ5: FALSE | CR5: FALSE | CS5: FALSE | CT5: FALSE | CU5: FALSE | CV5: FALSE | CW5: FALSE | CX5: FALSE | CY5: FALSE | CZ5: FALSE | DA5: FALSE | DB5: =DB3<=$F$5 -> FALSE | DC5: FALSE | DD5: FALSE | DE5: FALSE | DF5: FALSE | DG5: FALSE | DH5: FALSE | DI5: FALSE | DJ5: FALSE | DK5: FALSE | DL5: FALSE | DM5: FALSE | DN5: FALSE | DO5: FALSE | DP5: FALSE | DQ5: FALSE | DR5: FALSE | DS5: FALSE | DT5: FALSE | DU5: FALSE | DV5: FALSE | DW5: FALSE | DX5: FALSE | DY5: FALSE | DZ5: FALSE | EA5: FALSE | EB5: FALSE | EC5: FALSE | ED5: FALSE | EE5: FALSE | EF5: FALSE | EG5: FALSE | EH5: =EH3<=$F$5 -> FALSE | EI5: FALSE | EJ5: FALSE | EK5: FALSE | EL5: FALSE | EM5: FALSE | EN5: FALSE | EO5: FALSE | EP5: FALSE | EQ5: FALSE | ER5: FALSE | ES5: FALSE | ET5: FALSE | EU5: FALSE | EV5: FALSE | EW5: FALSE | EX5: FALSE | EY5: FALSE | EZ5: FALSE | FA5: FALSE | FB5: FALSE | FC5: FALSE | FD5: FALSE | FE5: FALSE | FF5: FALSE | FG5: FALSE | FH5: FALSE | FI5: FALSE | FJ5: FALSE | FK5: FALSE | FL5: FALSE | FM5: FALSE | FN5: =FN3<=$F$5 -> FALSE | FO5: FALSE | FP5: FALSE | FQ5: FALSE | FR5: FALSE | FS5: FALSE | FT5: FALSE | FU5: FALSE | FV5: FALSE | FW5: FALSE | FX5: FALSE | FY5: FALSE | FZ5: FALSE | GA5: FALSE | GB5: FALSE | GC5: FALSE | GD5: FALSE | GE5: FALSE | GF5: FALSE | GG5: FALSE | GH5: FALSE | GI5: FALSE | GJ5: FALSE | GK5: FALSE | GL5: FALSE | GM5: FALSE | GN5: FALSE | GO5: FALSE | GP5: FALSE | GQ5: FALSE | GR5: FALSE | GS5: FALSE | GT5: =GT3<=$F$5 -> FALSE | GU5: FALSE | GV5: FALSE | GW5: FALSE | GX5: FALSE | GY5: FALSE | GZ5: FALSE | HA5: FALSE
D6: Construction period | E6: Month | F6: =F15 -> 12 | J6: =AND(J4,NOT(J5)) -> FALSE | K6: FALSE | L6: FALSE | M6: FALSE | N6: FALSE | O6: FALSE | P6: FALSE | Q6: FALSE | R6: FALSE | S6: FALSE | T6: FALSE | U6: FALSE | V6: FALSE | W6: FALSE | X6: FALSE | Y6: TRUE | Z6: TRUE | AA6: TRUE | AB6: TRUE | AC6: TRUE | AD6: TRUE | AE6: TRUE | AF6: TRUE | AG6: TRUE | AH6: TRUE | AI6: TRUE | AJ6: TRUE | AK6: FALSE | AL6: FALSE | AM6: FALSE | AN6: FALSE | AO6: FALSE | AP6: =AND(AP4,NOT(AP5)) -> FALSE | AQ6: FALSE | AR6: FALSE | AS6: FALSE | AT6: FALSE | AU6: FALSE | AV6: FALSE | AW6: FALSE | AX6: FALSE | AY6: FALSE | AZ6: FALSE | BA6: FALSE | BB6: FALSE | BC6: FALSE | BD6: FALSE | BE6: FALSE | BF6: FALSE | BG6: FALSE | BH6: FALSE | BI6: FALSE | BJ6: FALSE | BK6: FALSE | BL6: FALSE | BM6: FALSE | BN6: FALSE | BO6: FALSE | BP6: FALSE | BQ6: FALSE | BR6: FALSE | BS6: FALSE | BT6: FALSE | BU6: FALSE | BV6: =AND(BV4,NOT(BV5)) -> FALSE | BW6: FALSE | BX6: FALSE | BY6: FALSE | BZ6: FALSE | CA6: FALSE | CB6: FALSE | CC6: FALSE | CD6: FALSE | CE6: FALSE | CF6: FALSE | CG6: FALSE | CH6: FALSE | CI6: FALSE | CJ6: FALSE | CK6: FALSE | CL6: FALSE | CM6: FALSE | CN6: FALSE | CO6: FALSE | CP6: FALSE | CQ6: FALSE | CR6: FALSE | CS6: FALSE | CT6: FALSE | CU6: FALSE | CV6: FALSE | CW6: FALSE | CX6: FALSE | CY6: FALSE | CZ6: FALSE | DA6: FALSE | DB6: =AND(DB4,NOT(DB5)) -> FALSE | DC6: FALSE | DD6: FALSE | DE6: FALSE | DF6: FALSE | DG6: FALSE | DH6: FALSE | DI6: FALSE | DJ6: FALSE | DK6: FALSE | DL6: FALSE | DM6: FALSE | DN6: FALSE | DO6: FALSE | DP6: FALSE | DQ6: FALSE | DR6: FALSE | DS6: FALSE | DT6: FALSE | DU6: FALSE | DV6: FALSE | DW6: FALSE | DX6: FALSE | DY6: FALSE | DZ6: FALSE | EA6: FALSE | EB6: FALSE | EC6: FALSE | ED6: FALSE | EE6: FALSE | EF6: FALSE | EG6: FALSE | EH6: =AND(EH4,NOT(EH5)) -> FALSE | EI6: FALSE | EJ6: FALSE | EK6: FALSE | EL6: FALSE | EM6: FALSE | EN6: FALSE | EO6: FALSE | EP6: FALSE | EQ6: FALSE | ER6: FALSE | ES6: FALSE | ET6: FALSE | EU6: FALSE | EV6: FALSE | EW6: FALSE | EX6: FALSE | EY6: FALSE | EZ6: FALSE | FA6: FALSE | FB6: FALSE | FC6: FALSE | FD6: FALSE | FE6: FALSE | FF6: FALSE | FG6: FALSE | FH6: FALSE | FI6: FALSE | FJ6: FALSE | FK6: FALSE | FL6: FALSE | FM6: FALSE | FN6: =AND(FN4,NOT(FN5)) -> FALSE | FO6: FALSE | FP6: FALSE | FQ6: FALSE | FR6: FALSE | FS6: FALSE | FT6: FALSE | FU6: FALSE | FV6: FALSE | FW6: FALSE | FX6: FALSE | FY6: FALSE | FZ6: FALSE | GA6: FALSE | GB6: FALSE | GC6: FALSE | GD6: FALSE | GE6: FALSE | GF6: FALSE | GG6: FALSE | GH6: FALSE | GI6: FALSE | GJ6: FALSE | GK6: FALSE | GL6: FALSE | GM6: FALSE | GN6: FALSE | GO6: FALSE | GP6: FALSE | GQ6: FALSE | GR6: FALSE | GS6: FALSE | GT6: =AND(GT4,NOT(GT5)) -> FALSE | GU6: FALSE | GV6: FALSE | GW6: FALSE | GX6: FALSE | GY6: FALSE | GZ6: FALSE | HA6: FALSE
D7: Age of project | J7: =I7+NOT(J4) -> 0 | K7: 0 | L7: 0 | M7: 0 | N7: 0 | O7: 0 | P7: 0 | Q7: 0 | R7: 0 | S7: 0 | T7: 0 | U7: 0 | V7: 0 | W7: 0 | X7: 0 | Y7: 0 | Z7: 0 | AA7: 0 | AB7: 0 | AC7: 0 | AD7: 0 | AE7: 0 | AF7: 0 | AG7: 0 | AH7: 0 | AI7: 0 | AJ7: 0 | AK7: 1 | AL7: 2 | AM7: 3 | AN7: 4 | AO7: 5 | AP7: =AO7+NOT(AP4) -> 6 | AQ7: 7 | AR7: 8 | AS7: 9 | AT7: 10 | AU7: 11 | AV7: 12 | AW7: 13 | AX7: 14 | AY7: 15 | AZ7: 16 | BA7: 17 | BB7: 18 | BC7: 19 | BD7: 20 | BE7: 21 | BF7: 22 | BG7: 23 | BH7: 24 | BI7: 25 | BJ7: 26 | BK7: 27 | BL7: 28 | BM7: 29 | BN7: 30 | BO7: 31 | BP7: 32 | BQ7: 33 | BR7: 34 | BS7: 35 | BT7: 36 | BU7: 37 | BV7: =BU7+NOT(BV4) -> 38 | BW7: 39 | BX7: 40 | BY7: 41 | BZ7: 42 | CA7: 43 | CB7: 44 | CC7: 45 | CD7: 46 | CE7: 47 | CF7: 48 | CG7: 49 | CH7: 50 | CI7: 51 | CJ7: 52 | CK7: 53 | CL7: 54 | CM7: 55 | CN7: 56 | CO7: 57 | CP7: 58 | CQ7: 59 | CR7: 60 | CS7: 61 | CT7: 62 | CU7: 63 | CV7: 64 | CW7: 65 | CX7: 66 | CY7: 67 | CZ7: 68 | DA7: 69 | DB7: =DA7+NOT(DB4) -> 70 | DC7: 71 | DD7: 72 | DE7: 73 | DF7: 74 | DG7: 75 | DH7: 76 | DI7: 77 | DJ7: 78 | DK7: 79 | DL7: 80 | DM7: 81 | DN7: 82 | DO7: 83 | DP7: 84 | DQ7: 85 | DR7: 86 | DS7: 87 | DT7: 88 | DU7: 89 | DV7: 90 | DW7: 91 | DX7: 92 | DY7: 93 | DZ7: 94 | EA7: 95 | EB7: 96 | EC7: 97 | ED7: 98 | EE7: 99 | EF7: 100 | EG7: 101 | EH7: =EG7+NOT(EH4) -> 102 | EI7: 103 | EJ7: 104 | EK7: 105 | EL7: 106 | EM7: 107 | EN7: 108 | EO7: 109 | EP7: 110 | EQ7: 111 | ER7: 112 | ES7: 113 | ET7: 114 | EU7: 115 | EV7: 116 | EW7: 117 | EX7: 118 | EY7: 119 | EZ7: 120 | FA7: 121 | FB7: 122 | FC7: 123 | FD7: 124 | FE7: 125 | FF7: 126 | FG7: 127 | FH7: 128 | FI7: 129 | FJ7: 130 | FK7: 131 | FL7: 132 | FM7: 133 | FN7: =FM7+NOT(FN4) -> 134 | FO7: 135 | FP7: 136 | FQ7: 137 | FR7: 138 | FS7: 139 | FT7: 140 | FU7: 141 | FV7: 142 | FW7: 143 | FX7: 144 | FY7: 145 | FZ7: 146 | GA7: 147 | GB7: 148 | GC7: 149 | GD7: 150 | GE7: 151 | GF7: 152 | GG7: 153 | GH7: 154 | GI7: 155 | GJ7: 156 | GK7: 157 | GL7: 158 | GM7: 159 | GN7: 160 | GO7: 161 | GP7: 162 | GQ7: 163 | GR7: 164 | GS7: 165 | GT7: =GS7+NOT(GT4) -> 166 | GU7: 167 | GV7: 168 | GW7: 169 | GX7: 170 | GY7: 171 | GZ7: 172 | HA7: 173
D8: Operating period | E8: Years | F8: 30 | J8: =AND(J7<=$F$8, NOT(J4)) -> FALSE | K8: FALSE | L8: FALSE | M8: FALSE | N8: FALSE | O8: FALSE | P8: FALSE | Q8: FALSE | R8: FALSE | S8: FALSE | T8: FALSE | U8: FALSE | V8: FALSE | W8: FALSE | X8: FALSE | Y8: FALSE | Z8: FALSE | AA8: FALSE | AB8: FALSE | AC8: FALSE | AD8: FALSE | AE8: FALSE | AF8: FALSE | AG8: FALSE | AH8: FALSE | AI8: FALSE | AJ8: FALSE | AK8: TRUE | AL8: TRUE | AM8: TRUE | AN8: TRUE | AO8: TRUE | AP8: =AND(AP7<=$F$8, NOT(AP4)) -> TRUE | AQ8: TRUE | AR8: TRUE | AS8: TRUE | AT8: TRUE | AU8: TRUE | AV8: TRUE | AW8: TRUE | AX8: TRUE | AY8: TRUE | AZ8: TRUE | BA8: TRUE | BB8: TRUE | BC8: TRUE | BD8: TRUE | BE8: TRUE | BF8: TRUE | BG8: TRUE | BH8: TRUE | BI8: TRUE | BJ8: TRUE | BK8: TRUE | BL8: TRUE | BM8: TRUE | BN8: TRUE | BO8: FALSE | BP8: FALSE | BQ8: FALSE | BR8: FALSE | BS8: FALSE | BT8: FALSE | BU8: FALSE | BV8: =AND(BV7<=$F$8, NOT(BV4)) -> FALSE | BW8: FALSE | BX8: FALSE | BY8: FALSE | BZ8: FALSE | CA8: FALSE | CB8: FALSE | CC8: FALSE | CD8: FALSE | CE8: FALSE | CF8: FALSE | CG8: FALSE | CH8: FALSE | CI8: FALSE | CJ8: FALSE | CK8: FALSE | CL8: FALSE | CM8: FALSE | CN8: FALSE | CO8: FALSE | CP8: FALSE | CQ8: FALSE | CR8: FALSE | CS8: FALSE | CT8: FALSE | CU8: FALSE | CV8: FALSE | CW8: FALSE | CX8: FALSE | CY8: FALSE | CZ8: FALSE | DA8: FALSE | DB8: =AND(DB7<=$F$8, NOT(DB4)) -> FALSE | DC8: FALSE | DD8: FALSE | DE8: FALSE | DF8: FALSE | DG8: FALSE | DH8: FALSE | DI8: FALSE | DJ8: FALSE | DK8: FALSE | DL8: FALSE | DM8: FALSE | DN8: FALSE | DO8: FALSE | DP8: FALSE | DQ8: FALSE | DR8: FALSE | DS8: FALSE | DT8: FALSE | DU8: FALSE | DV8: FALSE | DW8: FALSE | DX8: FALSE | DY8: FALSE | DZ8: FALSE | EA8: FALSE | EB8: FALSE | EC8: FALSE | ED8: FALSE | EE8: FALSE | EF8: FALSE | EG8: FALSE | EH8: =AND(EH7<=$F$8, NOT(EH4)) -> FALSE | EI8: FALSE | EJ8: FALSE | EK8: FALSE | EL8: FALSE | EM8: FALSE | EN8: FALSE | EO8: FALSE | EP8: FALSE | EQ8: FALSE | ER8: FALSE | ES8: FALSE | ET8: FALSE | EU8: FALSE | EV8: FALSE | EW8: FALSE | EX8: FALSE | EY8: FALSE | EZ8: FALSE | FA8: FALSE | FB8: FALSE | FC8: FALSE | FD8: FALSE | FE8: FALSE | FF8: FALSE | FG8: FALSE | FH8: FALSE | FI8: FALSE | FJ8: FALSE | FK8: FALSE | FL8: FALSE | FM8: FALSE | FN8: =AND(FN7<=$F$8, NOT(FN4)) -> FALSE | FO8: FALSE | FP8: FALSE | FQ8: FALSE | FR8: FALSE | FS8: FALSE | FT8: FALSE | FU8: FALSE | FV8: FALSE | FW8: FALSE | FX8: FALSE | FY8: FALSE | FZ8: FALSE | GA8: FALSE | GB8: FALSE | GC8: FALSE | GD8: FALSE | GE8: FALSE | GF8: FALSE | GG8: FALSE | GH8: FALSE | GI8: FALSE | GJ8: FALSE | GK8: FALSE | GL8: FALSE | GM8: FALSE | GN8: FALSE | GO8: FALSE | GP8: FALSE | GQ8: FALSE | GR8: FALSE | GS8: FALSE | GT8: =AND(GT7<=$F$8, NOT(GT4)) -> FALSE | GU8: FALSE | GV8: FALSE | GW8: FALSE | GX8: FALSE | GY8: FALSE | GZ8: FALSE | HA8: FALSE
D9: Month | E9: Model Period | F9: 1 | G9: 12 | J9: =IF(J4, $F$9, $G$9) -> 1 | K9: 1 | L9: 1 | M9: 1 | N9: 1 | O9: 1 | P9: 1 | Q9: 1 | R9: 1 | S9: 1 | T9: 1 | U9: 1 | V9: 1 | W9: 1 | X9: 1 | Y9: 1 | Z9: 1 | AA9: 1 | AB9: 1 | AC9: 1 | AD9: 1 | AE9: 1 | AF9: 1 | AG9: 1 | AH9: 1 | AI9: 1 | AJ9: 1 | AK9: 12 | AL9: 12 | AM9: 12 | AN9: 12 | AO9: 12 | AP9: =IF(AP4, $F$9, $G$9) -> 12 | AQ9: 12 | AR9: 12 | AS9: 12 | AT9: 12 | AU9: 12 | AV9: 12 | AW9: 12 | AX9: 12 | AY9: 12 | AZ9: 12 | BA9: 12 | BB9: 12 | BC9: 12 | BD9: 12 | BE9: 12 | BF9: 12 | BG9: 12 | BH9: 12 | BI9: 12 | BJ9: 12 | BK9: 12 | BL9: 12 | BM9: 12 | BN9: 12 | BO9: 12 | BP9: 12 | BQ9: 12 | BR9: 12 | BS9: 12 | BT9: 12 | BU9: 12 | BV9: =IF(BV4, $F$9, $G$9) -> 12 | BW9: 12 | BX9: 12 | BY9: 12 | BZ9: 12 | CA9: 12 | CB9: 12 | CC9: 12 | CD9: 12 | CE9: 12 | CF9: 12 | CG9: 12 | CH9: 12 | CI9: 12 | CJ9: 12 | CK9: 12 | CL9: 12 | CM9: 12 | CN9: 12 | CO9: 12 | CP9: 12 | CQ9: 12 | CR9: 12 | CS9: 12 | CT9: 12 | CU9: 12 | CV9: 12 | CW9: 12 | CX9: 12 | CY9: 12 | CZ9: 12 | DA9: 12 | DB9: =IF(DB4, $F$9, $G$9) -> 12 | DC9: 12 | DD9: 12 | DE9: 12 | DF9: 12 | DG9: 12 | DH9: 12 | DI9: 12 | DJ9: 12 | DK9: 12 | DL9: 12 | DM9: 12 | DN9: 12 | DO9: 12 | DP9: 12 | DQ9: 12 | DR9: 12 | DS9: 12 | DT9: 12 | DU9: 12 | DV9: 12 | DW9: 12 | DX9: 12 | DY9: 12 | DZ9: 12 | EA9: 12 | EB9: 12 | EC9: 12 | ED9: 12 | EE9: 12 | EF9: 12 | EG9: 12 | EH9: =IF(EH4, $F$9, $G$9) -> 12 | EI9: 12 | EJ9: 12 | EK9: 12 | EL9: 12 | EM9: 12 | EN9: 12 | EO9: 12 | EP9: 12 | EQ9: 12 | ER9: 12 | ES9: 12 | ET9: 12 | EU9: 12 | EV9: 12 | EW9: 12 | EX9: 12 | EY9: 12 | EZ9: 12 | FA9: 12 | FB9: 12 | FC9: 12 | FD9: 12 | FE9: 12 | FF9: 12 | FG9: 12 | FH9: 12 | FI9: 12 | FJ9: 12 | FK9: 12 | FL9: 12 | FM9: 12 | FN9: =IF(FN4, $F$9, $G$9) -> 12 | FO9: 12 | FP9: 12 | FQ9: 12 | FR9: 12 | FS9: 12 | FT9: 12 | FU9: 12 | FV9: 12 | FW9: 12 | FX9: 12 | FY9: 12 | FZ9: 12 | GA9: 12 | GB9: 12 | GC9: 12 | GD9: 12 | GE9: 12 | GF9: 12 | GG9: 12 | GH9: 12 | GI9: 12 | GJ9: 12 | GK9: 12 | GL9: 12 | GM9: 12 | GN9: 12 | GO9: 12 | GP9: 12 | GQ9: 12 | GR9: 12 | GS9: 12 | GT9: =IF(GT4, $F$9, $G$9) -> 12 | GU9: 12 | GV9: 12 | GW9: 12 | GX9: 12 | GY9: 12 | GZ9: 12 | HA9: 12
B11: Inputs
C13: General Inputs
D14: Development Period | E14: Months | F14: 15 | G14: IRR - Cash Basis | I14: =F43 -> 0.08105324209
D15: Construction Period | E15: Months | F15: 12
D16: Development Cost (actual) | E16: EUR | F16: 20000 | G16: IRR with Dev Fee as Cost | I16: =F49 -> 0
D17: EPC Cost | E17: EUR | F17: 400000
D18: EBITDA p.a. | E18: EUR | F18: 30000 | G18: IRR to Partner | I18: =E71 -> FALSE
D19: EBITDA Growth | E19: % | F19: 0.025
G20: IRR to Developer - Cash | I20: =E75 -> FALSE
C21: Development Inputs | G21: IRR to Developer - Econ | I21: =E80 -> FALSE
D22: Probability of Success | E22: % | F22: 0.1
D23: Target Development Profit | E23: % | F23: 0.15
D25: Loss Scenarios | E25: Number
D26: Costs of Loss from Failures | E26: EUR
D27: Total Cost Including Success | E27: EUR
D29: Target Profit = Development Fee | E29: EUR
D31: Developer/Sponsor Investment | E31: % | F31: 0.55
D32: Partner Investment | E32: % | F32: =1-F31 -> 0.45
B34: Fundamental Cash Flow Analysis
C36: Project Cash Flow
D37: Development Cost (actual) | E37: EUR | F37: =F16 -> 20000 | G37: =F5 -> 15 | J37: =$F$37/$G$37*J5 -> 1333.333333 | K37: =$F$37/$F$5*K5 -> 1333.333333 | L37: 1333.333333 | M37: 1333.333333 | N37: 1333.333333 | O37: 1333.333333 | P37: 1333.333333 | Q37: 1333.333333 | R37: 1333.333333 | S37: 1333.333333 | T37: 1333.333333 | U37: 1333.333333 | V37: 1333.333333 | W37: 1333.333333 | X37: 1333.333333 | Y37: 0 | Z37: 0 | AA37: 0 | AB37: 0 | AC37: 0 | AD37: 0 | AE37: 0 | AF37: 0 | AG37: 0 | AH37: 0 | AI37: 0 | AJ37: 0 | AK37: 0 | AL37: 0 | AM37: 0 | AN37: 0 | AO37: 0 | AP37: 0 | AQ37: =$F$37/$F$5*AQ5 -> 0 | AR37: 0 | AS37: 0 | AT37: 0 | AU37: 0 | AV37: 0 | AW37: 0 | AX37: 0 | AY37: 0 | AZ37: 0 | BA37: 0 | BB37: 0 | BC37: 0 | BD37: 0 | BE37: 0 | BF37: 0 | BG37: 0 | BH37: 0 | BI37: 0 | BJ37: 0 | BK37: 0 | BL37: 0 | BM37: 0 | BN37: 0 | BO37: 0 | BP37: 0 | BQ37: 0 | BR37: 0 | BS37: 0 | BT37: 0 | BU37: 0 | BV37: 0 | BW37: =$F$37/$F$5*BW5 -> 0 | BX37: 0 | BY37: 0 | BZ37: 0 | CA37: 0 | CB37: 0 | CC37: 0 | CD37: 0 | CE37: 0 | CF37: 0 | CG37: 0 | CH37: 0 | CI37: 0 | CJ37: 0 | CK37: 0 | CL37: 0 | CM37: 0 | CN37: 0 | CO37: 0 | CP37: 0 | CQ37: 0 | CR37: 0 | CS37: 0 | CT37: 0 | CU37: 0 | CV37: 0 | CW37: 0 | CX37: 0 | CY37: 0 | CZ37: 0 | DA37: 0 | DB37: 0 | DC37: =$F$37/$F$5*DC5 -> 0 | DD37: 0 | DE37: 0 | DF37: 0 | DG37: 0 | DH37: 0 | DI37: 0 | DJ37: 0 | DK37: 0 | DL37: 0 | DM37: 0 | DN37: 0 | DO37: 0 | DP37: 0 | DQ37: 0 | DR37: 0 | DS37: 0 | DT37: 0 | DU37: 0 | DV37: 0 | DW37: 0 | DX37: 0 | DY37: 0 | DZ37: 0 | EA37: 0 | EB37: 0 | EC37: 0 | ED37: 0 | EE37: 0 | EF37: 0 | EG37: 0 | EH37: 0 | EI37: =$F$37/$F$5*EI5 -> 0 | EJ37: 0 | EK37: 0 | EL37: 0 | EM37: 0 | EN37: 0 | EO37: 0 | EP37: 0 | EQ37: 0 | ER37: 0 | ES37: 0 | ET37: 0 | EU37: 0 | EV37: 0 | EW37: 0 | EX37: 0 | EY37: 0 | EZ37: 0 | FA37: 0 | FB37: 0 | FC37: 0 | FD37: 0 | FE37: 0 | FF37: 0 | FG37: 0 | FH37: 0 | FI37: 0 | FJ37: 0 | FK37: 0 | FL37: 0 | FM37: 0 | FN37: 0 | FO37: =$F$37/$F$5*FO5 -> 0 | FP37: 0 | FQ37: 0 | FR37: 0 | FS37: 0 | FT37: 0 | FU37: 0 | FV37: 0 | FW37: 0 | FX37: 0 | FY37: 0 | FZ37: 0 | GA37: 0 | GB37: 0 | GC37: 0 | GD37: 0 | GE37: 0 | GF37: 0 | GG37: 0 | GH37: 0 | GI37: 0 | GJ37: 0 | GK37: 0 | GL37: 0 | GM37: 0 | GN37: 0 | GO37: 0 | GP37: 0 | GQ37: 0 | GR37: 0 | GS37: 0 | GT37: 0 | GU37: =$F$37/$F$5*GU5 -> 0 | GV37: 0 | GW37: 0 | GX37: 0 | GY37: 0 | GZ37: 0 | HA37: 0
D38: EPC cost | E38: EUR | F38: =F17 -> 400000 | J38: =$F$38/$F$6*J6 -> 0 | K38: 0 | L38: 0 | M38: 0 | N38: 0 | O38: 0 | P38: 0 | Q38: 0 | R38: 0 | S38: 0 | T38: 0 | U38: 0 | V38: 0 | W38: 0 | X38: 0 | Y38: 33333.33333 | Z38: 33333.33333 | AA38: 33333.33333 | AB38: 33333.33333 | AC38: 33333.33333 | AD38: 33333.33333 | AE38: 33333.33333 | AF38: 33333.33333 | AG38: 33333.33333 | AH38: 33333.33333 | AI38: 33333.33333 | AJ38: 33333.33333 | AK38: 0 | AL38: 0 | AM38: 0 | AN38: 0 | AO38: 0 | AP38: =$F$38/$F$6*AP6 -> 0 | AQ38: 0 | AR38: 0 | AS38: 0 | AT38: 0 | AU38: 0 | AV38: 0 | AW38: 0 | AX38: 0 | AY38: 0 | AZ38: 0 | BA38: 0 | BB38: 0 | BC38: 0 | BD38: 0 | BE38: 0 | BF38: 0 | BG38: 0 | BH38: 0 | BI38: 0 | BJ38: 0 | BK38: 0 | BL38: 0 | BM38: 0 | BN38: 0 | BO38: 0 | BP38: 0 | BQ38: 0 | BR38: 0 | BS38: 0 | BT38: 0 | BU38: 0 | BV38: =$F$38/$F$6*BV6 -> 0 | BW38: 0 | BX38: 0 | BY38: 0 | BZ38: 0 | CA38: 0 | CB38: 0 | CC38: 0 | CD38: 0 | CE38: 0 | CF38: 0 | CG38: 0 | CH38: 0 | CI38: 0 | CJ38: 0 | CK38: 0 | CL38: 0 | CM38: 0 | CN38: 0 | CO38: 0 | CP38: 0 | CQ38: 0 | CR38: 0 | CS38: 0 | CT38: 0 | CU38: 0 | CV38: 0 | CW38: 0 | CX38: 0 | CY38: 0 | CZ38: 0 | DA38: 0 | DB38: =$F$38/$F$6*DB6 -> 0 | DC38: 0 | DD38: 0 | DE38: 0 | DF38: 0 | DG38: 0 | DH38: 0 | DI38: 0 | DJ38: 0 | DK38: 0 | DL38: 0 | DM38: 0 | DN38: 0 | DO38: 0 | DP38: 0 | DQ38: 0 | DR38: 0 | DS38: 0 | DT38: 0 | DU38: 0 | DV38: 0 | DW38: 0 | DX38: 0 | DY38: 0 | DZ38: 0 | EA38: 0 | EB38: 0 | EC38: 0 | ED38: 0 | EE38: 0 | EF38: 0 | EG38: 0 | EH38: =$F$38/$F$6*EH6 -> 0 | EI38: 0 | EJ38: 0 | EK38: 0 | EL38: 0 | EM38: 0 | EN38: 0 | EO38: 0 | EP38: 0 | EQ38: 0 | ER38: 0 | ES38: 0 | ET38: 0 | EU38: 0 | EV38: 0 | EW38: 0 | EX38: 0 | EY38: 0 | EZ38: 0 | FA38: 0 | FB38: 0 | FC38: 0 | FD38: 0 | FE38: 0 | FF38: 0 | FG38: 0 | FH38: 0 | FI38: 0 | FJ38: 0 | FK38: 0 | FL38: 0 | FM38: 0 | FN38: =$F$38/$F$6*FN6 -> 0 | FO38: 0 | FP38: 0 | FQ38: 0 | FR38: 0 | FS38: 0 | FT38: 0 | FU38: 0 | FV38: 0 | FW38: 0 | FX38: 0 | FY38: 0 | FZ38: 0 | GA38: 0 | GB38: 0 | GC38: 0 | GD38: 0 | GE38: 0 | GF38: 0 | GG38: 0 | GH38: 0 | GI38: 0 | GJ38: 0 | GK38: 0 | GL38: 0 | GM38: 0 | GN38: 0 | GO38: 0 | GP38: 0 | GQ38: 0 | GR38: 0 | GS38: 0 | GT38: =$F$38/$F$6*GT6 -> 0 | GU38: 0 | GV38: 0 | GW38: 0 | GX38: 0 | GY38: 0 | GZ38: 0 | HA38: 0
D39: EBITDA Growth Index | E39: Index | F39: =F19 -> 0.025 | I39: 1 | J39: =I39*(1+$F$39*J8) -> 1 | K39: 1 | L39: 1 | M39: 1 | N39: 1 | O39: 1 | P39: 1 | Q39: 1 | R39: 1 | S39: 1 | T39: 1 | U39: 1 | V39: 1 | W39: 1 | X39: 1 | Y39: 1 | Z39: 1 | AA39: 1 | AB39: 1 | AC39: 1 | AD39: 1 | AE39: 1 | AF39: 1 | AG39: 1 | AH39: 1 | AI39: 1 | AJ39: 1 | AK39: 1.025 | AL39: 1.050625 | AM39: 1.076890625 | AN39: 1.103812891 | AO39: 1.131408213 | AP39: =AO39*(1+$F$39*AP8) -> 1.159693418 | AQ39: 1.188685754 | AR39: 1.218402898 | AS39: 1.24886297 | AT39: 1.280084544 | AU39: 1.312086658 | AV39: 1.344888824 | AW39: 1.378511045 | AX39: 1.412973821 | AY39: 1.448298166 | AZ39: 1.484505621 | BA39: 1.521618261 | BB39: 1.559658718 | BC39: 1.598650186 | BD39: 1.63861644 | BE39: 1.679581851 | BF39: 1.721571398 | BG39: 1.764610683 | BH39: 1.80872595 | BI39: 1.853944098 | BJ39: 1.900292701 | BK39: 1.947800018 | BL39: 1.996495019 | BM39: 2.046407394 | BN39: 2.097567579 | BO39: 2.097567579 | BP39: 2.097567579 | BQ39: 2.097567579 | BR39: 2.097567579 | BS39: 2.097567579 | BT39: 2.097567579 | BU39: 2.097567579 | BV39: =BU39*(1+$F$39*BV8) -> 2.097567579 | BW39: 2.097567579 | BX39: 2.097567579 | BY39: 2.097567579 | BZ39: 2.097567579 | CA39: 2.097567579 | CB39: 2.097567579 | CC39: 2.097567579 | CD39: 2.097567579 | CE39: 2.097567579 | CF39: 2.097567579 | CG39: 2.097567579 | CH39: 2.097567579 | CI39: 2.097567579 | CJ39: 2.097567579 | CK39: 2.097567579 | CL39: 2.097567579 | CM39: 2.097567579 | CN39: 2.097567579 | CO39: 2.097567579 | CP39: 2.097567579 | CQ39: 2.097567579 | CR39: 2.097567579 | CS39: 2.097567579 | CT39: 2.097567579 | CU39: 2.097567579 | CV39: 2.097567579 | CW39: 2.097567579 | CX39: 2.097567579 | CY39: 2.097567579 | CZ39: 2.097567579 | DA39: 2.097567579 | DB39: =DA39*(1+$F$39*DB8) -> 2.097567579 | DC39: 2.097567579 | DD39: 2.097567579 | DE39: 2.097567579 | DF39: 2.097567579 | DG39: 2.097567579 | DH39: 2.097567579 | DI39: 2.097567579 | DJ39: 2.097567579 | DK39: 2.097567579 | DL39: 2.097567579 | DM39: 2.097567579 | DN39: 2.097567579 | DO39: 2.097567579 | DP39: 2.097567579 | DQ39: 2.097567579 | DR39: 2.097567579 | DS39: 2.097567579 | DT39: 2.097567579 | DU39: 2.097567579 | DV39: 2.097567579 | DW39: 2.097567579 | DX39: 2.097567579 | DY39: 2.097567579 | DZ39: 2.097567579 | EA39: 2.097567579 | EB39: 2.097567579 | EC39: 2.097567579 | ED39: 2.097567579 | EE39: 2.097567579 | EF39: 2.097567579 | EG39: 2.097567579 | EH39: =EG39*(1+$F$39*EH8) -> 2.097567579 | EI39: 2.097567579 | EJ39: 2.097567579 | EK39: 2.097567579 | EL39: 2.097567579 | EM39: 2.097567579 | EN39: 2.097567579 | EO39: 2.097567579 | EP39: 2.097567579 | EQ39: 2.097567579 | ER39: 2.097567579 | ES39: 2.097567579 | ET39: 2.097567579 | EU39: 2.097567579 | EV39: 2.097567579 | EW39: 2.097567579 | EX39: 2.097567579 | EY39: 2.097567579 | EZ39: 2.097567579 | FA39: 2.097567579 | FB39: 2.097567579 | FC39: 2.097567579 | FD39: 2.097567579 | FE39: 2.097567579 | FF39: 2.097567579 | FG39: 2.097567579 | FH39: 2.097567579 | FI39: 2.097567579 | FJ39: 2.097567579 | FK39: 2.097567579 | FL39: 2.097567579 | FM39: 2.097567579 | FN39: =FM39*(1+$F$39*FN8) -> 2.097567579 | FO39: 2.097567579 | FP39: 2.097567579 | FQ39: 2.097567579 | FR39: 2.097567579 | FS39: 2.097567579 | FT39: 2.097567579 | FU39: 2.097567579 | FV39: 2.097567579 | FW39: 2.097567579 | FX39: 2.097567579 | FY39: 2.097567579 | FZ39: 2.097567579 | GA39: 2.097567579 | GB39: 2.097567579 | GC39: 2.097567579 | GD39: 2.097567579 | GE39: 2.097567579 | GF39: 2.097567579 | GG39: 2.097567579 | GH39: 2.097567579 | GI39: 2.097567579 | GJ39: 2.097567579 | GK39: 2.097567579 | GL39: 2.097567579 | GM39: 2.097567579 | GN39: 2.097567579 | GO39: 2.097567579 | GP39: 2.097567579 | GQ39: 2.097567579 | GR39: 2.097567579 | GS39: 2.097567579 | GT39: =GS39*(1+$F$39*GT8) -> 2.097567579 | GU39: 2.097567579 | GV39: 2.097567579 | GW39: 2.097567579 | GX39: 2.097567579 | GY39: 2.097567579 | GZ39: 2.097567579 | HA39: 2.097567579
D40: EBITDA p.a. | E40: EUR | F40: =F18 -> 30000 | J40: =$F$40*J8*J39 -> 0 | K40: 0 | L40: 0 | M40: 0 | N40: 0 | O40: 0 | P40: 0 | Q40: 0 | R40: 0 | S40: 0 | T40: 0 | U40: 0 | V40: 0 | W40: 0 | X40: 0 | Y40: 0 | Z40: 0 | AA40: 0 | AB40: 0 | AC40: 0 | AD40: 0 | AE40: 0 | AF40: 0 | AG40: 0 | AH40: 0 | AI40: 0 | AJ40: 0 | AK40: 30750 | AL40: 31518.75 | AM40: 32306.71875 | AN40: 33114.38672 | AO40: 33942.24639 | AP40: =$F$40*AP8*AP39 -> 34790.80255 | AQ40: 35660.57261 | AR40: 36552.08693 | AS40: 37465.8891 | AT40: 38402.53633 | AU40: 39362.59973 | AV40: 40346.66473 | AW40: 41355.33135 | AX40: 42389.21463 | AY40: 43448.94499 | AZ40: 44535.16862 | BA40: 45648.54784 | BB40: 46789.76153 | BC40: 47959.50557 | BD40: 49158.49321 | BE40: 50387.45554 | BF40: 51647.14193 | BG40: 52938.32048 | BH40: 54261.77849 | BI40: 55618.32295 | BJ40: 57008.78102 | BK40: 58434.00055 | BL40: 59894.85056 | BM40: 61392.22183 | BN40: 62927.02737 | BO40: 0 | BP40: 0 | BQ40: 0 | BR40: 0 | BS40: 0 | BT40: 0 | BU40: 0 | BV40: =$F$40*BV8*BV39 -> 0 | BW40: 0 | BX40: 0 | BY40: 0 | BZ40: 0 | CA40: 0 | CB40: 0 | CC40: 0 | CD40: 0 | CE40: 0 | CF40: 0 | CG40: 0 | CH40: 0 | CI40: 0 | CJ40: 0 | CK40: 0 | CL40: 0 | CM40: 0 | CN40: 0 | CO40: 0 | CP40: 0 | CQ40: 0 | CR40: 0 | CS40: 0 | CT40: 0 | CU40: 0 | CV40: 0 | CW40: 0 | CX40: 0 | CY40: 0 | CZ40: 0 | DA40: 0 | DB40: =$F$40*DB8*DB39 -> 0 | DC40: 0 | DD40: 0 | DE40: 0 | DF40: 0 | DG40: 0 | DH40: 0 | DI40: 0 | DJ40: 0 | DK40: 0 | DL40: 0 | DM40: 0 | DN40: 0 | DO40: 0 | DP40: 0 | DQ40: 0 | DR40: 0 | DS40: 0 | DT40: 0 | DU40: 0 | DV40: 0 | DW40: 0 | DX40: 0 | DY40: 0 | DZ40: 0 | EA40: 0 | EB40: 0 | EC40: 0 | ED40: 0 | EE40: 0 | EF40: 0 | EG40: 0 | EH40: =$F$40*EH8*EH39 -> 0 | EI40: 0 | EJ40: 0 | EK40: 0 | EL40: 0 | EM40: 0 | EN40: 0 | EO40: 0 | EP40: 0 | EQ40: 0 | ER40: 0 | ES40: 0 | ET40: 0 | EU40: 0 | EV40: 0 | EW40: 0 | EX40: 0 | EY40: 0 | EZ40: 0 | FA40: 0 | FB40: 0 | FC40: 0 | FD40: 0 | FE40: 0 | FF40: 0 | FG40: 0 | FH40: 0 | FI40: 0 | FJ40: 0 | FK40: 0 | FL40: 0 | FM40: 0 | FN40: =$F$40*FN8*FN39 -> 0 | FO40: 0 | FP40: 0 | FQ40: 0 | FR40: 0 | FS40: 0 | FT40: 0 | FU40: 0 | FV40: 0 | FW40: 0 | FX40: 0 | FY40: 0 | FZ40: 0 | GA40: 0 | GB40: 0 | GC40: 0 | GD40: 0 | GE40: 0 | GF40: 0 | GG40: 0 | GH40: 0 | GI40: 0 | GJ40: 0 | GK40: 0 | GL40: 0 | GM40: 0 | GN40: 0 | GO40: 0 | GP40: 0 | GQ40: 0 | GR40: 0 | GS40: 0 | GT40: =$F$40*GT8*GT39 -> 0 | GU40: 0 | GV40: 0 | GW40: 0 | GX40: 0 | GY40: 0 | GZ40: 0 | HA40: 0
D42: Project Cash Flow | E42: EUR | J42: =J40-J38-J37 -> -1333.333333 | K42: =K40-K38-K37 -> -1333.333333 | L42: -1333.333333 | M42: -1333.333333 | N42: -1333.333333 | O42: -1333.333333 | P42: -1333.333333 | Q42: -1333.333333 | R42: -1333.333333 | S42: -1333.333333 | T42: -1333.333333 | U42: -1333.333333 | V42: -1333.333333 | W42: -1333.333333 | X42: -1333.333333 | Y42: -33333.33333 | Z42: -33333.33333 | AA42: -33333.33333 | AB42: -33333.33333 | AC42: -33333.33333 | AD42: -33333.33333 | AE42: -33333.33333 | AF42: -33333.33333 | AG42: -33333.33333 | AH42: -33333.33333 | AI42: -33333.33333 | AJ42: -33333.33333 | AK42: 30750 | AL42: 31518.75 | AM42: 32306.71875 | AN42: 33114.38672 | AO42: 33942.24639 | AP42: 34790.80255 | AQ42: 35660.57261 | AR42: 36552.08693 | AS42: 37465.8891 | AT42: 38402.53633 | AU42: 39362.59973 | AV42: 40346.66473 | AW42: 41355.33135 | AX42: 42389.21463 | AY42: 43448.94499 | AZ42: 44535.16862 | BA42: 45648.54784 | BB42: 46789.76153 | BC42: 47959.50557 | BD42: 49158.49321 | BE42: 50387.45554 | BF42: 51647.14193 | BG42: 52938.32048 | BH42: 54261.77849 | BI42: 55618.32295 | BJ42: 57008.78102 | BK42: 58434.00055 | BL42: 59894.85056 | BM42: 61392.22183 | BN42: 62927.02737 | BO42: 0 | BP42: 0 | BQ42: 0 | BR42: 0 | BS42: 0 | BT42: 0 | BU42: 0 | BV42: 0 | BW42: =BW40-BW38-BW37 -> 0 | BX42: 0 | BY42: 0 | BZ42: 0 | CA42: 0 | CB42: 0 | CC42: 0 | CD42: 0 | CE42: 0 | CF42: 0 | CG42: 0 | CH42: 0 | CI42: 0 | CJ42: 0 | CK42: 0 | CL42: 0 | CM42: 0 | CN42: 0 | CO42: 0 | CP42: 0 | CQ42: 0 | CR42: 0 | CS42: 0 | CT42: 0 | CU42: 0 | CV42: 0 | CW42: 0 | CX42: 0 | CY42: 0 | CZ42: 0 | DA42: 0 | DB42: 0 | DC42: 0 | DD42: 0 | DE42: 0 | DF42: 0 | DG42: 0 | DH42: 0 | DI42: 0 | DJ42: 0 | DK42: 0 | DL42: 0 | DM42: 0 | DN42: 0 | DO42: 0 | DP42: 0 | DQ42: 0 | DR42: 0 | DS42: 0 | DT42: 0 | DU42: 0 | DV42: 0 | DW42: 0 | DX42: 0 | DY42: 0 | DZ42: 0 | EA42: 0 | EB42: 0 | EC42: 0 | ED42: 0 | EE42: 0 | EF42: 0 | EG42: 0 | EH42: 0 | EI42: =EI40-EI38-EI37 -> 0 | EJ42: 0 | EK42: 0 | EL42: 0 | EM42: 0 | EN42: 0 | EO42: 0 | EP42: 0 | EQ42: 0 | ER42: 0 | ES42: 0 | ET42: 0 | EU42: 0 | EV42: 0 | EW42: 0 | EX42: 0 | EY42: 0 | EZ42: 0 | FA42: 0 | FB42: 0 | FC42: 0 | FD42: 0 | FE42: 0 | FF42: 0 | FG42: 0 | FH42: 0 | FI42: 0 | FJ42: 0 | FK42: 0 | FL42: 0 | FM42: 0 | FN42: 0 | FO42: 0 | FP42: 0 | FQ42: 0 | FR42: 0 | FS42: 0 | FT42: 0 | FU42: 0 | FV42: 0 | FW42: 0 | FX42: 0 | FY42: 0 | FZ42: 0 | GA42: 0 | GB42: 0 | GC42: 0 | GD42: 0 | GE42: 0 | GF42: 0 | GG42: 0 | GH42: 0 | GI42: 0 | GJ42: 0 | GK42: 0 | GL42: 0 | GM42: 0 | GN42: 0 | GO42: 0 | GP42: 0 | GQ42: 0 | GR42: 0 | GS42: 0 | GT42: 0 | GU42: =GU40-GU38-GU37 -> 0 | GV42: 0 | GW42: 0 | GX42: 0 | GY42: 0 | GZ42: 0 | HA42: 0
D43: Project IRR | E43: % | F43: =XIRR(J42:HA42, J2:HA2) -> 0.08105324209
D45: Financial Close | E45: Flag | F45: =F5+1 -> 16 | J45: =$F$45=J3 -> FALSE | K45: FALSE | L45: FALSE | M45: FALSE | N45: FALSE | O45: FALSE | P45: FALSE | Q45: FALSE | R45: FALSE | S45: FALSE | T45: FALSE | U45: FALSE | V45: FALSE | W45: FALSE | X45: FALSE | Y45: TRUE | Z45: FALSE | AA45: FALSE | AB45: FALSE | AC45: FALSE | AD45: FALSE | AE45: FALSE | AF45: FALSE | AG45: FALSE | AH45: FALSE | AI45: FALSE | AJ45: FALSE | AK45: FALSE | AL45: FALSE | AM45: FALSE | AN45: FALSE | AO45: FALSE | AP45: =$F$45=AP3 -> FALSE | AQ45: FALSE | AR45: FALSE | AS45: FALSE | AT45: FALSE | AU45: FALSE | AV45: FALSE | AW45: FALSE | AX45: FALSE | AY45: FALSE | AZ45: FALSE | BA45: FALSE | BB45: FALSE | BC45: FALSE | BD45: FALSE | BE45: FALSE | BF45: FALSE | BG45: FALSE | BH45: FALSE | BI45: FALSE | BJ45: FALSE | BK45: FALSE | BL45: FALSE | BM45: FALSE | BN45: FALSE | BO45: FALSE | BP45: FALSE | BQ45: FALSE | BR45: FALSE | BS45: FALSE | BT45: FALSE | BU45: FALSE | BV45: =$F$45=BV3 -> FALSE | BW45: FALSE | BX45: FALSE | BY45: FALSE | BZ45: FALSE | CA45: FALSE | CB45: FALSE | CC45: FALSE | CD45: FALSE | CE45: FALSE | CF45: FALSE | CG45: FALSE | CH45: FALSE | CI45: FALSE | CJ45: FALSE | CK45: FALSE | CL45: FALSE | CM45: FALSE | CN45: FALSE | CO45: FALSE | CP45: FALSE | CQ45: FALSE | CR45: FALSE | CS45: FALSE | CT45: FALSE | CU45: FALSE | CV45: FALSE | CW45: FALSE | CX45: FALSE | CY45: FALSE | CZ45: FALSE | DA45: FALSE | DB45: =$F$45=DB3 -> FALSE | DC45: FALSE | DD45: FALSE | DE45: FALSE | DF45: FALSE | DG45: FALSE | DH45: FALSE | DI45: FALSE | DJ45: FALSE | DK45: FALSE | DL45: FALSE | DM45: FALSE | DN45: FALSE | DO45: FALSE | DP45: FALSE | DQ45: FALSE | DR45: FALSE | DS45: FALSE | DT45: FALSE | DU45: FALSE | DV45: FALSE | DW45: FALSE | DX45: FALSE | DY45: FALSE | DZ45: FALSE | EA45: FALSE | EB45: FALSE | EC45: FALSE | ED45: FALSE | EE45: FALSE | EF45: FALSE | EG45: FALSE | EH45: =$F$45=EH3 -> FALSE | EI45: FALSE | EJ45: FALSE | EK45: FALSE | EL45: FALSE | EM45: FALSE | EN45: FALSE | EO45: FALSE | EP45: FALSE | EQ45: FALSE | ER45: FALSE | ES45: FALSE | ET45: FALSE | EU45: FALSE | EV45: FALSE | EW45: FALSE | EX45: FALSE | EY45: FALSE | EZ45: FALSE | FA45: FALSE | FB45: FALSE | FC45: FALSE | FD45: FALSE | FE45: FALSE | FF45: FALSE | FG45: FALSE | FH45: FALSE | FI45: FALSE | FJ45: FALSE | FK45: FALSE | FL45: FALSE | FM45: FALSE | FN45: =$F$45=FN3 -> FALSE | FO45: FALSE | FP45: FALSE | FQ45: FALSE | FR45: FALSE | FS45: FALSE | FT45: FALSE | FU45: FALSE | FV45: FALSE | FW45: FALSE | FX45: FALSE | FY45: FALSE | FZ45: FALSE | GA45: FALSE | GB45: FALSE | GC45: FALSE | GD45: FALSE | GE45: FALSE | GF45: FALSE | GG45: FALSE | GH45: FALSE | GI45: FALSE | GJ45: FALSE | GK45: FALSE | GL45: FALSE | GM45: FALSE | GN45: FALSE | GO45: FALSE | GP45: FALSE | GQ45: FALSE | GR45: FALSE | GS45: FALSE | GT45: =$F$45=GT3 -> FALSE | GU45: FALSE | GV45: FALSE | GW45: FALSE | GX45: FALSE | GY45: FALSE | GZ45: FALSE | HA45: FALSE
D46: Development Fee | E46: EUR
D48: Project Cash Flow with Development Fee as Cost | E48: EUR
D49: IRR with Development Fee | E49: %
D51: Development Cost at FC | E51: EUR | F51: =F37 -> 20000 | J51: =$F$51*J45 -> 0 | K51: =$F$51*K45 -> 0 | L51: 0 | M51: 0 | N51: 0 | O51: 0 | P51: 0 | Q51: 0 | R51: 0 | S51: 0 | T51: 0 | U51: 0 | V51: 0 | W51: 0 | X51: 0 | Y51: 20000 | Z51: 0 | AA51: 0 | AB51: 0 | AC51: 0 | AD51: 0 | AE51: 0 | AF51: 0 | AG51: 0 | AH51: 0 | AI51: 0 | AJ51: 0 | AK51: 0 | AL51: 0 | AM51: 0 | AN51: 0 | AO51: 0 | AP51: 0 | AQ51: 0 | AR51: 0 | AS51: 0 | AT51: 0 | AU51: 0 | AV51: 0 | AW51: 0 | AX51: 0 | AY51: 0 | AZ51: 0 | BA51: 0 | BB51: 0 | BC51: 0 | BD51: 0 | BE51: 0 | BF51: 0 | BG51: 0 | BH51: 0 | BI51: 0 | BJ51: 0 | BK51: 0 | BL51: 0 | BM51: 0 | BN51: 0 | BO51: 0 | BP51: 0 | BQ51: 0 | BR51: 0 | BS51: 0 | BT51: 0 | BU51: 0 | BV51: 0 | BW51: =$F$51*BW45 -> 0 | BX51: 0 | BY51: 0 | BZ51: 0 | CA51: 0 | CB51: 0 | CC51: 0 | CD51: 0 | CE51: 0 | CF51: 0 | CG51: 0 | CH51: 0 | CI51: 0 | CJ51: 0 | CK51: 0 | CL51: 0 | CM51: 0 | CN51: 0 | CO51: 0 | CP51: 0 | CQ51: 0 | CR51: 0 | CS51: 0 | CT51: 0 | CU51: 0 | CV51: 0 | CW51: 0 | CX51: 0 | CY51: 0 | CZ51: 0 | DA51: 0 | DB51: 0 | DC51: 0 | DD51: 0 | DE51: 0 | DF51: 0 | DG51: 0 | DH51: 0 | DI51: 0 | DJ51: 0 | DK51: 0 | DL51: 0 | DM51: 0 | DN51: 0 | DO51: 0 | DP51: 0 | DQ51: 0 | DR51: 0 | DS51: 0 | DT51: 0 | DU51: 0 | DV51: 0 | DW51: 0 | DX51: 0 | DY51: 0 | DZ51: 0 | EA51: 0 | EB51: 0 | EC51: 0 | ED51: 0 | EE51: 0 | EF51: 0 | EG51: 0 | EH51: 0 | EI51: =$F$51*EI45 -> 0 | EJ51: 0 | EK51: 0 | EL51: 0 | EM51: 0 | EN51: 0 | EO51: 0 | EP51: 0 | EQ51: 0 | ER51: 0 | ES51: 0 | ET51: 0 | EU51: 0 | EV51: 0 | EW51: 0 | EX51: 0 | EY51: 0 | EZ51: 0 | FA51: 0 | FB51: 0 | FC51: 0 | FD51: 0 | FE51: 0 | FF51: 0 | FG51: 0 | FH51: 0 | FI51: 0 | FJ51: 0 | FK51: 0 | FL51: 0 | FM51: 0 | FN51: 0 | FO51: 0 | FP51: 0 | FQ51: 0 | FR51: 0 | FS51: 0 | FT51: 0 | FU51: 0 | FV51: 0 | FW51: 0 | FX51: 0 | FY51: 0 | FZ51: 0 | GA51: 0 | GB51: 0 | GC51: 0 | GD51: 0 | GE51: 0 | GF51: 0 | GG51: 0 | GH51: 0 | GI51: 0 | GJ51: 0 | GK51: 0 | GL51: 0 | GM51: 0 | GN51: 0 | GO51: 0 | GP51: 0 | GQ51: 0 | GR51: 0 | GS51: 0 | GT51: 0 | GU51: =$F$51*GU45 -> 0 | GV51: 0 | GW51: 0 | GX51: 0 | GY51: 0 | GZ51: 0 | HA51: 0
B53: Uses and Sources
C54: Uses of Funds
D55: Development Cost | F55: =F16 -> 20000
D56: Development Fee
D57: EPC Cost | F57: =F17 -> 400000
D58: Total Uses | F58: =SUM(F55:F57) -> 420000
C60: Sources of Funds
D61: Developer/Sponsor | E61: =F31 -> 0.55
D62: Partner | E62: =F32 -> 0.45
D63: Total Sources | F63: =SUM(F61:F62) -> 0
B65: Funding and Cash Flow Allocation
D66: Financial Close Flag | J66: =J45 -> FALSE | K66: =K45 -> FALSE | L66: FALSE | M66: FALSE | N66: FALSE | O66: FALSE | P66: FALSE | Q66: FALSE | R66: FALSE | S66: FALSE | T66: FALSE | U66: FALSE | V66: FALSE | W66: FALSE | X66: FALSE | Y66: TRUE | Z66: FALSE | AA66: FALSE | AB66: FALSE | AC66: FALSE | AD66: FALSE | AE66: FALSE | AF66: FALSE | AG66: FALSE | AH66: FALSE | AI66: FALSE | AJ66: FALSE | AK66: FALSE | AL66: FALSE | AM66: FALSE | AN66: FALSE | AO66: FALSE | AP66: FALSE | AQ66: FALSE | AR66: FALSE | AS66: FALSE | AT66: FALSE | AU66: FALSE | AV66: FALSE | AW66: FALSE | AX66: FALSE | AY66: FALSE | AZ66: FALSE | BA66: FALSE | BB66: FALSE | BC66: FALSE | BD66: FALSE | BE66: FALSE | BF66: FALSE | BG66: FALSE | BH66: FALSE | BI66: FALSE | BJ66: FALSE | BK66: FALSE | BL66: FALSE | BM66: FALSE | BN66: FALSE | BO66: FALSE | BP66: FALSE | BQ66: FALSE | BR66: FALSE | BS66: FALSE | BT66: FALSE | BU66: FALSE | BV66: FALSE | BW66: =BW45 -> FALSE | BX66: FALSE | BY66: FALSE | BZ66: FALSE | CA66: FALSE | CB66: FALSE | CC66: FALSE | CD66: FALSE | CE66: FALSE | CF66: FALSE | CG66: FALSE | CH66: FALSE | CI66: FALSE | CJ66: FALSE | CK66: FALSE | CL66: FALSE | CM66: FALSE | CN66: FALSE | CO66: FALSE | CP66: FALSE | CQ66: FALSE | CR66: FALSE | CS66: FALSE | CT66: FALSE | CU66: FALSE | CV66: FALSE | CW66: FALSE | CX66: FALSE | CY66: FALSE | CZ66: FALSE | DA66: FALSE | DB66: FALSE | DC66: FALSE | DD66: FALSE | DE66: FALSE | DF66: FALSE | DG66: FALSE | DH66: FALSE | DI66: FALSE | DJ66: FALSE | DK66: FALSE | DL66: FALSE | DM66: FALSE | DN66: FALSE | DO66: FALSE | DP66: FALSE | DQ66: FALSE | DR66: FALSE | DS66: FALSE | DT66: FALSE | DU66: FALSE | DV66: FALSE | DW66: FALSE | DX66: FALSE | DY66: FALSE | DZ66: FALSE | EA66: FALSE | EB66: FALSE | EC66: FALSE | ED66: FALSE | EE66: FALSE | EF66: FALSE | EG66: FALSE | EH66: FALSE | EI66: =EI45 -> FALSE | EJ66: FALSE | EK66: FALSE | EL66: FALSE | EM66: FALSE | EN66: FALSE | EO66: FALSE | EP66: FALSE | EQ66: FALSE | ER66: FALSE | ES66: FALSE | ET66: FALSE | EU66: FALSE | EV66: FALSE | EW66: FALSE | EX66: FALSE | EY66: FALSE | EZ66: FALSE | FA66: FALSE | FB66: FALSE | FC66: FALSE | FD66: FALSE | FE66: FALSE | FF66: FALSE | FG66: FALSE | FH66: FALSE | FI66: FALSE | FJ66: FALSE | FK66: FALSE | FL66: FALSE | FM66: FALSE | FN66: FALSE | FO66: FALSE | FP66: FALSE | FQ66: FALSE | FR66: FALSE | FS66: FALSE | FT66: FALSE | FU66: FALSE | FV66: FALSE | FW66: FALSE | FX66: FALSE | FY66: FALSE | FZ66: FALSE | GA66: FALSE | GB66: FALSE | GC66: FALSE | GD66: FALSE | GE66: FALSE | GF66: FALSE | GG66: FALSE | GH66: FALSE | GI66: FALSE | GJ66: FALSE | GK66: FALSE | GL66: FALSE | GM66: FALSE | GN66: FALSE | GO66: FALSE | GP66: FALSE | GQ66: FALSE | GR66: FALSE | GS66: FALSE | GT66: FALSE | GU66: =GU45 -> FALSE | GV66: FALSE | GW66: FALSE | GX66: FALSE | GY66: FALSE | GZ66: FALSE | HA66: FALSE
D67: Partner Payment for Development (Both Fee & Cost) | E67: =E62 -> 0.45 | H67: =SUM(I67:XFD67) -> 0 | J67: =$F$67*J66*$E$67 -> 0 | K67: =$F$67*K66*$E$67 -> 0 | L67: 0 | M67: 0 | N67: 0 | O67: 0 | P67: 0 | Q67: 0 | R67: 0 | S67: 0 | T67: 0 | U67: 0 | V67: 0 | W67: 0 | X67: 0 | Y67: 0 | Z67: 0 | AA67: 0 | AB67: 0 | AC67: 0 | AD67: 0 | AE67: 0 | AF67: 0 | AG67: 0 | AH67: 0 | AI67: 0 | AJ67: 0 | AK67: 0 | AL67: 0 | AM67: 0 | AN67: 0 | AO67: 0 | AP67: 0 | AQ67: 0 | AR67: 0 | AS67: 0 | AT67: 0 | AU67: 0 | AV67: 0 | AW67: 0 | AX67: 0 | AY67: 0 | AZ67: 0 | BA67: 0 | BB67: 0 | BC67: 0 | BD67: 0 | BE67: 0 | BF67: 0 | BG67: 0 | BH67: 0 | BI67: 0 | BJ67: 0 | BK67: 0 | BL67: 0 | BM67: 0 | BN67: 0 | BO67: 0 | BP67: 0 | BQ67: 0 | BR67: 0 | BS67: 0 | BT67: 0 | BU67: 0 | BV67: 0 | BW67: =$F$67*BW66*$E$67 -> 0 | BX67: 0 | BY67: 0 | BZ67: 0 | CA67: 0 | CB67: 0 | CC67: 0 | CD67: 0 | CE67: 0 | CF67: 0 | CG67: 0 | CH67: 0 | CI67: 0 | CJ67: 0 | CK67: 0 | CL67: 0 | CM67: 0 | CN67: 0 | CO67: 0 | CP67: 0 | CQ67: 0 | CR67: 0 | CS67: 0 | CT67: 0 | CU67: 0 | CV67: 0 | CW67: 0 | CX67: 0 | CY67: 0 | CZ67: 0 | DA67: 0 | DB67: 0 | DC67: 0 | DD67: 0 | DE67: 0 | DF67: 0 | DG67: 0 | DH67: 0 | DI67: 0 | DJ67: 0 | DK67: 0 | DL67: 0 | DM67: 0 | DN67: 0 | DO67: 0 | DP67: 0 | DQ67: 0 | DR67: 0 | DS67: 0 | DT67: 0 | DU67: 0 | DV67: 0 | DW67: 0 | DX67: 0 | DY67: 0 | DZ67: 0 | EA67: 0 | EB67: 0 | EC67: 0 | ED67: 0 | EE67: 0 | EF67: 0 | EG67: 0 | EH67: 0 | EI67: =$F$67*EI66*$E$67 -> 0 | EJ67: 0 | EK67: 0 | EL67: 0 | EM67: 0 | EN67: 0 | EO67: 0 | EP67: 0 | EQ67: 0 | ER67: 0 | ES67: 0 | ET67: 0 | EU67: 0 | EV67: 0 | EW67: 0 | EX67: 0 | EY67: 0 | EZ67: 0 | FA67: 0 | FB67: 0 | FC67: 0 | FD67: 0 | FE67: 0 | FF67: 0 | FG67: 0 | FH67: 0 | FI67: 0 | FJ67: 0 | FK67: 0 | FL67: 0 | FM67: 0 | FN67: 0 | FO67: 0 | FP67: 0 | FQ67: 0 | FR67: 0 | FS67: 0 | FT67: 0 | FU67: 0 | FV67: 0 | FW67: 0 | FX67: 0 | FY67: 0 | FZ67: 0 | GA67: 0 | GB67: 0 | GC67: 0 | GD67: 0 | GE67: 0 | GF67: 0 | GG67: 0 | GH67: 0 | GI67: 0 | GJ67: 0 | GK67: 0 | GL67: 0 | GM67: 0 | GN67: 0 | GO67: 0 | GP67: 0 | GQ67: 0 | GR67: 0 | GS67: 0 | GT67: 0 | GU67: =$F$67*GU66*$E$67 -> 0 | GV67: 0 | GW67: 0 | GX67: 0 | GY67: 0 | GZ67: 0 | HA67: 0
D68: Partner Funding for EPC | E68: =E62 -> 0.45 | F68: =F57 -> 400000 | H68: =SUM(I68:XFD68) -> 180000 | J68: =$E$68*J38 -> 0 | K68: 0 | L68: 0 | M68: 0 | N68: 0 | O68: 0 | P68: 0 | Q68: 0 | R68: 0 | S68: 0 | T68: 0 | U68: 0 | V68: 0 | W68: 0 | X68: 0 | Y68: 15000 | Z68: 15000 | AA68: 15000 | AB68: 15000 | AC68: 15000 | AD68: 15000 | AE68: 15000 | AF68: 15000 | AG68: 15000 | AH68: 15000 | AI68: 15000 | AJ68: 15000 | AK68: 0 | AL68: 0 | AM68: 0 | AN68: 0 | AO68: 0 | AP68: =$E$68*AP38 -> 0 | AQ68: 0 | AR68: 0 | AS68: 0 | AT68: 0 | AU68: 0 | AV68: 0 | AW68: 0 | AX68: 0 | AY68: 0 | AZ68: 0 | BA68: 0 | BB68: 0 | BC68: 0 | BD68: 0 | BE68: 0 | BF68: 0 | BG68: 0 | BH68: 0 | BI68: 0 | BJ68: 0 | BK68: 0 | BL68: 0 | BM68: 0 | BN68: 0 | BO68: 0 | BP68: 0 | BQ68: 0 | BR68: 0 | BS68: 0 | BT68: 0 | BU68: 0 | BV68: =$E$68*BV38 -> 0 | BW68: 0 | BX68: 0 | BY68: 0 | BZ68: 0 | CA68: 0 | CB68: 0 | CC68: 0 | CD68: 0 | CE68: 0 | CF68: 0 | CG68: 0 | CH68: 0 | CI68: 0 | CJ68: 0 | CK68: 0 | CL68: 0 | CM68: 0 | CN68: 0 | CO68: 0 | CP68: 0 | CQ68: 0 | CR68: 0 | CS68: 0 | CT68: 0 | CU68: 0 | CV68: 0 | CW68: 0 | CX68: 0 | CY68: 0 | CZ68: 0 | DA68: 0 | DB68: =$E$68*DB38 -> 0 | DC68: 0 | DD68: 0 | DE68: 0 | DF68: 0 | DG68: 0 | DH68: 0 | DI68: 0 | DJ68: 0 | DK68: 0 | DL68: 0 | DM68: 0 | DN68: 0 | DO68: 0 | DP68: 0 | DQ68: 0 | DR68: 0 | DS68: 0 | DT68: 0 | DU68: 0 | DV68: 0 | DW68: 0 | DX68: 0 | DY68: 0 | DZ68: 0 | EA68: 0 | EB68: 0 | EC68: 0 | ED68: 0 | EE68: 0 | EF68: 0 | EG68: 0 | EH68: =$E$68*EH38 -> 0 | EI68: 0 | EJ68: 0 | EK68: 0 | EL68: 0 | EM68: 0 | EN68: 0 | EO68: 0 | EP68: 0 | EQ68: 0 | ER68: 0 | ES68: 0 | ET68: 0 | EU68: 0 | EV68: 0 | EW68: 0 | EX68: 0 | EY68: 0 | EZ68: 0 | FA68: 0 | FB68: 0 | FC68: 0 | FD68: 0 | FE68: 0 | FF68: 0 | FG68: 0 | FH68: 0 | FI68: 0 | FJ68: 0 | FK68: 0 | FL68: 0 | FM68: 0 | FN68: =$E$68*FN38 -> 0 | FO68: 0 | FP68: 0 | FQ68: 0 | FR68: 0 | FS68: 0 | FT68: 0 | FU68: 0 | FV68: 0 | FW68: 0 | FX68: 0 | FY68: 0 | FZ68: 0 | GA68: 0 | GB68: 0 | GC68: 0 | GD68: 0 | GE68: 0 | GF68: 0 | GG68: 0 | GH68: 0 | GI68: 0 | GJ68: 0 | GK68: 0 | GL68: 0 | GM68: 0 | GN68: 0 | GO68: 0 | GP68: 0 | GQ68: 0 | GR68: 0 | GS68: 0 | GT68: =$E$68*GT38 -> 0 | GU68: 0 | GV68: 0 | GW68: 0 | GX68: 0 | GY68: 0 | GZ68: 0 | HA68: 0
D69: Dividends | E69: =E62 -> 0.45 | H69: =SUM(I69:XFD69) -> 0
D70: Net Cash Flow to Partner | J70: =J69-J68-J67-0.0001 -> -0.0001 | K70: =K69-K68-K67 -> 0 | L70: =L69-L68-L67 -> 0 | M70: 0 | N70: 0 | O70: 0 | P70: 0 | Q70: 0 | R70: 0 | S70: 0 | T70: 0 | U70: 0 | V70: 0 | W70: 0 | X70: 0 | Y70: -15000 | Z70: -15000 | AA70: -15000 | AB70: -15000 | AC70: -15000 | AD70: -15000 | AE70: -15000 | AF70: -15000 | AG70: -15000 | AH70: -15000 | AI70: -15000 | AJ70: -15000 | AK70: 0 | AL70: 0 | AM70: 0 | AN70: 0 | AO70: 0 | AP70: 0 | AQ70: 0 | AR70: 0 | AS70: 0 | AT70: 0 | AU70: 0 | AV70: 0 | AW70: 0 | AX70: 0 | AY70: 0 | AZ70: 0 | BA70: 0 | BB70: 0 | BC70: 0 | BD70: 0 | BE70: 0 | BF70: 0 | BG70: 0 | BH70: 0 | BI70: 0 | BJ70: 0 | BK70: 0 | BL70: 0 | BM70: 0 | BN70: 0 | BO70: 0 | BP70: 0 | BQ70: 0 | BR70: 0 | BS70: 0 | BT70: 0 | BU70: 0 | BV70: 0 | BW70: 0 | BX70: =BX69-BX68-BX67 -> 0 | BY70: 0 | BZ70: 0 | CA70: 0 | CB70: 0 | CC70: 0 | CD70: 0 | CE70: 0 | CF70: 0 | CG70: 0 | CH70: 0 | CI70: 0 | CJ70: 0 | CK70: 0 | CL70: 0 | CM70: 0 | CN70: 0 | CO70: 0 | CP70: 0 | CQ70: 0 | CR70: 0 | CS70: 0 | CT70: 0 | CU70: 0 | CV70: 0 | CW70: 0 | CX70: 0 | CY70: 0 | CZ70: 0 | DA70: 0 | DB70: 0 | DC70: 0 | DD70: 0 | DE70: 0 | DF70: 0 | DG70: 0 | DH70: 0 | DI70: 0 | DJ70: 0 | DK70: 0 | DL70: 0 | DM70: 0 | DN70: 0 | DO70: 0 | DP70: 0 | DQ70: 0 | DR70: 0 | DS70: 0 | DT70: 0 | DU70: 0 | DV70: 0 | DW70: 0 | DX70: 0 | DY70: 0 | DZ70: 0 | EA70: 0 | EB70: 0 | EC70: 0 | ED70: 0 | EE70: 0 | EF70: 0 | EG70: 0 | EH70: 0 | EI70: 0 | EJ70: =EJ69-EJ68-EJ67 -> 0 | EK70: 0 | EL70: 0 | EM70: 0 | EN70: 0 | EO70: 0 | EP70: 0 | EQ70: 0 | ER70: 0 | ES70: 0 | ET70: 0 | EU70: 0 | EV70: 0 | EW70: 0 | EX70: 0 | EY70: 0 | EZ70: 0 | FA70: 0 | FB70: 0 | FC70: 0 | FD70: 0 | FE70: 0 | FF70: 0 | FG70: 0 | FH70: 0 | FI70: 0 | FJ70: 0 | FK70: 0 | FL70: 0 | FM70: 0 | FN70: 0 | FO70: 0 | FP70: 0 | FQ70: 0 | FR70: 0 | FS70: 0 | FT70: 0 | FU70: 0 | FV70: 0 | FW70: 0 | FX70: 0 | FY70: 0 | FZ70: 0 | GA70: 0 | GB70: 0 | GC70: 0 | GD70: 0 | GE70: 0 | GF70: 0 | GG70: 0 | GH70: 0 | GI70: 0 | GJ70: 0 | GK70: 0 | GL70: 0 | GM70: 0 | GN70: 0 | GO70: 0 | GP70: 0 | GQ70: 0 | GR70: 0 | GS70: 0 | GT70: 0 | GU70: 0 | GV70: =GV69-GV68-GV67 -> 0 | GW70: 0 | GX70: 0 | GY70: 0 | GZ70: 0 | HA70: 0
D71: IRR to Partner | E71: =IFERROR(XIRR(J70:HA70,J2:HA2),FALSE) -> FALSE
D73: Total Cash Flow (No Development Fee Outflow) | J73: =J42 -> -1333.333333 | K73: =K42 -> -1333.333333 | L73: -1333.333333 | M73: -1333.333333 | N73: -1333.333333 | O73: -1333.333333 | P73: -1333.333333 | Q73: -1333.333333 | R73: -1333.333333 | S73: -1333.333333 | T73: -1333.333333 | U73: -1333.333333 | V73: -1333.333333 | W73: -1333.333333 | X73: -1333.333333 | Y73: -33333.33333 | Z73: -33333.33333 | AA73: -33333.33333 | AB73: -33333.33333 | AC73: -33333.33333 | AD73: -33333.33333 | AE73: -33333.33333 | AF73: -33333.33333 | AG73: -33333.33333 | AH73: -33333.33333 | AI73: -33333.33333 | AJ73: -33333.33333 | AK73: 30750 | AL73: 31518.75 | AM73: 32306.71875 | AN73: 33114.38672 | AO73: 33942.24639 | AP73: 34790.80255 | AQ73: 35660.57261 | AR73: 36552.08693 | AS73: 37465.8891 | AT73: 38402.53633 | AU73: 39362.59973 | AV73: 40346.66473 | AW73: 41355.33135 | AX73: 42389.21463 | AY73: 43448.94499 | AZ73: 44535.16862 | BA73: 45648.54784 | BB73: 46789.76153 | BC73: 47959.50557 | BD73: 49158.49321 | BE73: 50387.45554 | BF73: 51647.14193 | BG73: 52938.32048 | BH73: 54261.77849 | BI73: 55618.32295 | BJ73: 57008.78102 | BK73: 58434.00055 | BL73: 59894.85056 | BM73: 61392.22183 | BN73: 62927.02737 | BO73: 0 | BP73: 0 | BQ73: 0 | BR73: 0 | BS73: 0 | BT73: 0 | BU73: 0 | BV73: 0 | BW73: =BW42 -> 0 | BX73: 0 | BY73: 0 | BZ73: 0 | CA73: 0 | CB73: 0 | CC73: 0 | CD73: 0 | CE73: 0 | CF73: 0 | CG73: 0 | CH73: 0 | CI73: 0 | CJ73: 0 | CK73: 0 | CL73: 0 | CM73: 0 | CN73: 0 | CO73: 0 | CP73: 0 | CQ73: 0 | CR73: 0 | CS73: 0 | CT73: 0 | CU73: 0 | CV73: 0 | CW73: 0 | CX73: 0 | CY73: 0 | CZ73: 0 | DA73: 0 | DB73: 0 | DC73: 0 | DD73: 0 | DE73: 0 | DF73: 0 | DG73: 0 | DH73: 0 | DI73: 0 | DJ73: 0 | DK73: 0 | DL73: 0 | DM73: 0 | DN73: 0 | DO73: 0 | DP73: 0 | DQ73: 0 | DR73: 0 | DS73: 0 | DT73: 0 | DU73: 0 | DV73: 0 | DW73: 0 | DX73: 0 | DY73: 0 | DZ73: 0 | EA73: 0 | EB73: 0 | EC73: 0 | ED73: 0 | EE73: 0 | EF73: 0 | EG73: 0 | EH73: 0 | EI73: =EI42 -> 0 | EJ73: 0 | EK73: 0 | EL73: 0 | EM73: 0 | EN73: 0 | EO73: 0 | EP73: 0 | EQ73: 0 | ER73: 0 | ES73: 0 | ET73: 0 | EU73: 0 | EV73: 0 | EW73: 0 | EX73: 0 | EY73: 0 | EZ73: 0 | FA73: 0 | FB73: 0 | FC73: 0 | FD73: 0 | FE73: 0 | FF73: 0 | FG73: 0 | FH73: 0 | FI73: 0 | FJ73: 0 | FK73: 0 | FL73: 0 | FM73: 0 | FN73: 0 | FO73: 0 | FP73: 0 | FQ73: 0 | FR73: 0 | FS73: 0 | FT73: 0 | FU73: 0 | FV73: 0 | FW73: 0 | FX73: 0 | FY73: 0 | FZ73: 0 | GA73: 0 | GB73: 0 | GC73: 0 | GD73: 0 | GE73: 0 | GF73: 0 | GG73: 0 | GH73: 0 | GI73: 0 | GJ73: 0 | GK73: 0 | GL73: 0 | GM73: 0 | GN73: 0 | GO73: 0 | GP73: 0 | GQ73: 0 | GR73: 0 | GS73: 0 | GT73: 0 | GU73: =GU42 -> 0 | GV73: 0 | GW73: 0 | GX73: 0 | GY73: 0 | GZ73: 0 | HA73: 0
D74: Developer/Sponsor Funding | H74: =SUM(I74:XFD74) -> 0
D75: IRR to Developer/Sponsor | E75: =IFERROR(XIRR(J74:HA74,J2:HA2),FALSE) -> FALSE
D78: Total Cash Flow (With Development Outflow) | J78: =J48 -> 0 | K78: =K48 -> 0 | L78: 0 | M78: 0 | N78: 0 | O78: 0 | P78: 0 | Q78: 0 | R78: 0 | S78: 0 | T78: 0 | U78: 0 | V78: 0 | W78: 0 | X78: 0 | Y78: 0 | Z78: 0 | AA78: 0 | AB78: 0 | AC78: 0 | AD78: 0 | AE78: 0 | AF78: 0 | AG78: 0 | AH78: 0 | AI78: 0 | AJ78: 0 | AK78: 0 | AL78: 0 | AM78: 0 | AN78: 0 | AO78: 0 | AP78: 0 | AQ78: 0 | AR78: 0 | AS78: 0 | AT78: 0 | AU78: 0 | AV78: 0 | AW78: 0 | AX78: 0 | AY78: 0 | AZ78: 0 | BA78: 0 | BB78: 0 | BC78: 0 | BD78: 0 | BE78: 0 | BF78: 0 | BG78: 0 | BH78: 0 | BI78: 0 | BJ78: 0 | BK78: 0 | BL78: 0 | BM78: 0 | BN78: 0 | BO78: 0 | BP78: 0 | BQ78: 0 | BR78: 0 | BS78: 0 | BT78: 0 | BU78: 0 | BV78: 0 | BW78: =BW48 -> 0 | BX78: 0 | BY78: 0 | BZ78: 0 | CA78: 0 | CB78: 0 | CC78: 0 | CD78: 0 | CE78: 0 | CF78: 0 | CG78: 0 | CH78: 0 | CI78: 0 | CJ78: 0 | CK78: 0 | CL78: 0 | CM78: 0 | CN78: 0 | CO78: 0 | CP78: 0 | CQ78: 0 | CR78: 0 | CS78: 0 | CT78: 0 | CU78: 0 | CV78: 0 | CW78: 0 | CX78: 0 | CY78: 0 | CZ78: 0 | DA78: 0 | DB78: 0 | DC78: 0 | DD78: 0 | DE78: 0 | DF78: 0 | DG78: 0 | DH78: 0 | DI78: 0 | DJ78: 0 | DK78: 0 | DL78: 0 | DM78: 0 | DN78: 0 | DO78: 0 | DP78: 0 | DQ78: 0 | DR78: 0 | DS78: 0 | DT78: 0 | DU78: 0 | DV78: 0 | DW78: 0 | DX78: 0 | DY78: 0 | DZ78: 0 | EA78: 0 | EB78: 0 | EC78: 0 | ED78: 0 | EE78: 0 | EF78: 0 | EG78: 0 | EH78: 0 | EI78: =EI48 -> 0 | EJ78: 0 | EK78: 0 | EL78: 0 | EM78: 0 | EN78: 0 | EO78: 0 | EP78: 0 | EQ78: 0 | ER78: 0 | ES78: 0 | ET78: 0 | EU78: 0 | EV78: 0 | EW78: 0 | EX78: 0 | EY78: 0 | EZ78: 0 | FA78: 0 | FB78: 0 | FC78: 0 | FD78: 0 | FE78: 0 | FF78: 0 | FG78: 0 | FH78: 0 | FI78: 0 | FJ78: 0 | FK78: 0 | FL78: 0 | FM78: 0 | FN78: 0 | FO78: 0 | FP78: 0 | FQ78: 0 | FR78: 0 | FS78: 0 | FT78: 0 | FU78: 0 | FV78: 0 | FW78: 0 | FX78: 0 | FY78: 0 | FZ78: 0 | GA78: 0 | GB78: 0 | GC78: 0 | GD78: 0 | GE78: 0 | GF78: 0 | GG78: 0 | GH78: 0 | GI78: 0 | GJ78: 0 | GK78: 0 | GL78: 0 | GM78: 0 | GN78: 0 | GO78: 0 | GP78: 0 | GQ78: 0 | GR78: 0 | GS78: 0 | GT78: 0 | GU78: =GU48 -> 0 | GV78: 0 | GW78: 0 | GX78: 0 | GY78: 0 | GZ78: 0 | HA78: 0
D79: Developer/Sponsor Funding | J79: =J78-J70 -> 0.0001 | K79: =K78-K70 -> 0 | L79: 0 | M79: 0 | N79: 0 | O79: 0 | P79: 0 | Q79: 0 | R79: 0 | S79: 0 | T79: 0 | U79: 0 | V79: 0 | W79: 0 | X79: 0 | Y79: 15000 | Z79: 15000 | AA79: 15000 | AB79: 15000 | AC79: 15000 | AD79: 15000 | AE79: 15000 | AF79: 15000 | AG79: 15000 | AH79: 15000 | AI79: 15000 | AJ79: 15000 | AK79: 0 | AL79: 0 | AM79: 0 | AN79: 0 | AO79: 0 | AP79: 0 | AQ79: 0 | AR79: 0 | AS79: 0 | AT79: 0 | AU79: 0 | AV79: 0 | AW79: 0 | AX79: 0 | AY79: 0 | AZ79: 0 | BA79: 0 | BB79: 0 | BC79: 0 | BD79: 0 | BE79: 0 | BF79: 0 | BG79: 0 | BH79: 0 | BI79: 0 | BJ79: 0 | BK79: 0 | BL79: 0 | BM79: 0 | BN79: 0 | BO79: 0 | BP79: 0 | BQ79: 0 | BR79: 0 | BS79: 0 | BT79: 0 | BU79: 0 | BV79: 0 | BW79: =BW78-BW70 -> 0 | BX79: 0 | BY79: 0 | BZ79: 0 | CA79: 0 | CB79: 0 | CC79: 0 | CD79: 0 | CE79: 0 | CF79: 0 | CG79: 0 | CH79: 0 | CI79: 0 | CJ79: 0 | CK79: 0 | CL79: 0 | CM79: 0 | CN79: 0 | CO79: 0 | CP79: 0 | CQ79: 0 | CR79: 0 | CS79: 0 | CT79: 0 | CU79: 0 | CV79: 0 | CW79: 0 | CX79: 0 | CY79: 0 | CZ79: 0 | DA79: 0 | DB79: 0 | DC79: 0 | DD79: 0 | DE79: 0 | DF79: 0 | DG79: 0 | DH79: 0 | DI79: 0 | DJ79: 0 | DK79: 0 | DL79: 0 | DM79: 0 | DN79: 0 | DO79: 0 | DP79: 0 | DQ79: 0 | DR79: 0 | DS79: 0 | DT79: 0 | DU79: 0 | DV79: 0 | DW79: 0 | DX79: 0 | DY79: 0 | DZ79: 0 | EA79: 0 | EB79: 0 | EC79: 0 | ED79: 0 | EE79: 0 | EF79: 0 | EG79: 0 | EH79: 0 | EI79: =EI78-EI70 -> 0 | EJ79: 0 | EK79: 0 | EL79: 0 | EM79: 0 | EN79: 0 | EO79: 0 | EP79: 0 | EQ79: 0 | ER79: 0 | ES79: 0 | ET79: 0 | EU79: 0 | EV79: 0 | EW79: 0 | EX79: 0 | EY79: 0 | EZ79: 0 | FA79: 0 | FB79: 0 | FC79: 0 | FD79: 0 | FE79: 0 | FF79: 0 | FG79: 0 | FH79: 0 | FI79: 0 | FJ79: 0 | FK79: 0 | FL79: 0 | FM79: 0 | FN79: 0 | FO79: 0 | FP79: 0 | FQ79: 0 | FR79: 0 | FS79: 0 | FT79: 0 | FU79: 0 | FV79: 0 | FW79: 0 | FX79: 0 | FY79: 0 | FZ79: 0 | GA79: 0 | GB79: 0 | GC79: 0 | GD79: 0 | GE79: 0 | GF79: 0 | GG79: 0 | GH79: 0 | GI79: 0 | GJ79: 0 | GK79: 0 | GL79: 0 | GM79: 0 | GN79: 0 | GO79: 0 | GP79: 0 | GQ79: 0 | GR79: 0 | GS79: 0 | GT79: 0 | GU79: =GU78-GU70 -> 0 | GV79: 0 | GW79: 0 | GX79: 0 | GY79: 0 | GZ79: 0 | HA79: 0
D80: IRR to Developer/Sponsor | E80: =IFERROR(XIRR(J79:HA79,J2:HA2),FALSE) -> FALSE

Sheet Development Fee with Fixed Debt
B1: Timeline
D2: Date | I2: 2020-01-01 | J2: =EDATE(I2, J9) -> 2020-02-01 | K2: 2020-03-01 | L2: 2021-03-01 | M2: 2022-03-01 | N2: 2023-03-01 | O2: 2024-03-01 | P2: 2025-03-01 | Q2: 2026-03-01 | R2: 2027-03-01 | S2: 2028-03-01 | T2: 2029-03-01 | U2: 2030-03-01 | V2: 2031-03-01 | W2: 2032-03-01 | X2: 2033-03-01 | Y2: 2034-03-01 | Z2: 2035-03-01 | AA2: 2036-03-01 | AB2: 2037-03-01 | AC2: 2038-03-01 | AD2: 2039-03-01 | AE2: 2040-03-01 | AF2: 2041-03-01 | AG2: 2042-03-01 | AH2: 2043-03-01 | AI2: 2044-03-01 | AJ2: 2045-03-01 | AK2: 2046-03-01 | AL2: 2047-03-01 | AM2: 2048-03-01 | AN2: 2049-03-01 | AO2: 2050-03-01 | AP2: =EDATE(AO2, AP9) -> 2051-03-01 | AQ2: 2052-03-01 | AR2: 2053-03-01 | AS2: 2054-03-01 | AT2: 2055-03-01 | AU2: 2056-03-01 | AV2: 2057-03-01 | AW2: 2058-03-01 | AX2: 2059-03-01 | AY2: 2060-03-01 | AZ2: 2061-03-01 | BA2: 2062-03-01 | BB2: 2063-03-01 | BC2: 2064-03-01 | BD2: 2065-03-01 | BE2: 2066-03-01 | BF2: 2067-03-01 | BG2: 2068-03-01 | BH2: 2069-03-01 | BI2: 2070-03-01 | BJ2: 2071-03-01 | BK2: 2072-03-01 | BL2: 2073-03-01 | BM2: 2074-03-01 | BN2: 2075-03-01 | BO2: 2076-03-01 | BP2: 2077-03-01 | BQ2: 2078-03-01 | BR2: 2079-03-01 | BS2: 2080-03-01 | BT2: 2081-03-01 | BU2: 2082-03-01 | BV2: =EDATE(BU2, BV9) -> 2083-03-01 | BW2: 2084-03-01 | BX2: 2085-03-01 | BY2: 2086-03-01 | BZ2: 2087-03-01 | CA2: 2088-03-01 | CB2: 2089-03-01 | CC2: 2090-03-01 | CD2: 2091-03-01 | CE2: 2092-03-01 | CF2: 2093-03-01 | CG2: 2094-03-01 | CH2: 2095-03-01 | CI2: 2096-03-01 | CJ2: 2097-03-01 | CK2: 2098-03-01 | CL2: 2099-03-01 | CM2: 2100-03-01 | CN2: 2101-03-01 | CO2: 2102-03-01 | CP2: 2103-03-01 | CQ2: 2104-03-01 | CR2: 2105-03-01 | CS2: 2106-03-01 | CT2: 2107-03-01 | CU2: 2108-03-01 | CV2: 2109-03-01 | CW2: 2110-03-01 | CX2: 2111-03-01 | CY2: 2112-03-01 | CZ2: 2113-03-01 | DA2: 2114-03-01 | DB2: =EDATE(DA2, DB9) -> 2115-03-01 | DC2: 2116-03-01 | DD2: 2117-03-01 | DE2: 2118-03-01 | DF2: 2119-03-01 | DG2: 2120-03-01 | DH2: 2121-03-01 | DI2: 2122-03-01 | DJ2: 2123-03-01 | DK2: 2124-03-01 | DL2: 2125-03-01 | DM2: 2126-03-01 | DN2: 2127-03-01 | DO2: 2128-03-01 | DP2: 2129-03-01 | DQ2: 2130-03-01 | DR2: 2131-03-01 | DS2: 2132-03-01 | DT2: 2133-03-01 | DU2: 2134-03-01 | DV2: 2135-03-01 | DW2: 2136-03-01 | DX2: 2137-03-01 | DY2: 2138-03-01 | DZ2: 2139-03-01 | EA2: 2140-03-01 | EB2: 2141-03-01 | EC2: 2142-03-01 | ED2: 2143-03-01 | EE2: 2144-03-01 | EF2: 2145-03-01 | EG2: 2146-03-01 | EH2: =EDATE(EG2, EH9) -> 2147-03-01 | EI2: 2148-03-01 | EJ2: 2149-03-01 | EK2: 2150-03-01 | EL2: 2151-03-01 | EM2: 2152-03-01 | EN2: 2153-03-01 | EO2: 2154-03-01 | EP2: 2155-03-01 | EQ2: 2156-03-01 | ER2: 2157-03-01 | ES2: 2158-03-01 | ET2: 2159-03-01 | EU2: 2160-03-01 | EV2: 2161-03-01 | EW2: 2162-03-01 | EX2: 2163-03-01 | EY2: 2164-03-01 | EZ2: 2165-03-01 | FA2: 2166-03-01 | FB2: 2167-03-01 | FC2: 2168-03-01 | FD2: 2169-03-01 | FE2: 2170-03-01 | FF2: 2171-03-01 | FG2: 2172-03-01 | FH2: 2173-03-01 | FI2: 2174-03-01 | FJ2: 2175-03-01 | FK2: 2176-03-01 | FL2: 2177-03-01 | FM2: 2178-03-01 | FN2: =EDATE(FM2, FN9) -> 2179-03-01 | FO2: 2180-03-01 | FP2: 2181-03-01 | FQ2: 2182-03-01 | FR2: 2183-03-01 | FS2: 2184-03-01 | FT2: 2185-03-01 | FU2: 2186-03-01 | FV2: 2187-03-01 | FW2: 2188-03-01 | FX2: 2189-03-01 | FY2: 2190-03-01 | FZ2: 2191-03-01 | GA2: 2192-03-01 | GB2: 2193-03-01 | GC2: 2194-03-01 | GD2: 2195-03-01 | GE2: 2196-03-01 | GF2: 2197-03-01 | GG2: 2198-03-01 | GH2: 2199-03-01 | GI2: 2200-03-01 | GJ2: 2201-03-01 | GK2: 2202-03-01 | GL2: 2203-03-01 | GM2: 2204-03-01 | GN2: 2205-03-01 | GO2: 2206-03-01 | GP2: 2207-03-01 | GQ2: 2208-03-01 | GR2: 2209-03-01 | GS2: 2210-03-01 | GT2: =EDATE(GS2, GT9) -> 2211-03-01 | GU2: 2212-03-01 | GV2: 2213-03-01 | GW2: 2214-03-01 | GX2: 2215-03-01 | GY2: 2216-03-01 | GZ2: 2217-03-01 | HA2: 2218-03-01
D3: Period | J3: 1 | K3: 2 | L3: 3 | M3: 4 | N3: 5 | O3: 6 | P3: 7 | Q3: 8 | R3: 9 | S3: 10 | T3: 11 | U3: 12 | V3: 13 | W3: 14 | X3: 15 | Y3: 16 | Z3: 17 | AA3: 18 | AB3: 19 | AC3: 20 | AD3: 21 | AE3: 22 | AF3: 23 | AG3: 24 | AH3: 25 | AI3: 26 | AJ3: 27 | AK3: 28 | AL3: 29 | AM3: 30 | AN3: 31 | AO3: 32 | AP3: 33 | AQ3: 34 | AR3: 35 | AS3: 36 | AT3: 37 | AU3: 38 | AV3: 39 | AW3: 40 | AX3: 41 | AY3: 42 | AZ3: 43 | BA3: 44 | BB3: 45 | BC3: 46 | BD3: 47 | BE3: 48 | BF3: 49 | BG3: 50 | BH3: 51 | BI3: 52 | BJ3: 53 | BK3: 54 | BL3: 55 | BM3: 56 | BN3: 57 | BO3: 58 | BP3: 59 | BQ3: 60 | BR3: 61 | BS3: 62 | BT3: 63 | BU3: 64 | BV3: 65 | BW3: 66 | BX3: 67 | BY3: 68 | BZ3: 69 | CA3: 70 | CB3: 71 | CC3: 72 | CD3: 73 | CE3: 74 | CF3: 75 | CG3: 76 | CH3: 77 | CI3: 78 | CJ3: 79 | CK3: 80 | CL3: 81 | CM3: 82 | CN3: 83 | CO3: 84 | CP3: 85 | CQ3: 86 | CR3: 87 | CS3: 88 | CT3: 89 | CU3: 90 | CV3: 91 | CW3: 92 | CX3: 93 | CY3: 94 | CZ3: 95 | DA3: 96 | DB3: 97 | DC3: 98 | DD3: 99 | DE3: 100 | DF3: 101 | DG3: 102 | DH3: 103 | DI3: 104 | DJ3: 105 | DK3: 106 | DL3: 107 | DM3: 108 | DN3: 109 | DO3: 110 | DP3: 111 | DQ3: 112 | DR3: 113 | DS3: 114 | DT3: 115 | DU3: 116 | DV3: 117 | DW3: 118 | DX3: 119 | DY3: 120 | DZ3: 121 | EA3: 122 | EB3: 123 | EC3: 124 | ED3: 125 | EE3: 126 | EF3: 127 | EG3: 128 | EH3: 129 | EI3: 130 | EJ3: 131 | EK3: 132 | EL3: 133 | EM3: 134 | EN3: 135 | EO3: 136 | EP3: 137 | EQ3: 138 | ER3: 139 | ES3: 140 | ET3: 141 | EU3: 142 | EV3: 143 | EW3: 144 | EX3: 145 | EY3: 146 | EZ3: 147 | FA3: 148 | FB3: 149 | FC3: 150 | FD3: 151 | FE3: 152 | FF3: 153 | FG3: 154 | FH3: 155 | FI3: 156 | FJ3: 157 | FK3: 158 | FL3: 159 | FM3: 160 | FN3: 161 | FO3: 162 | FP3: 163 | FQ3: 164 | FR3: 165 | FS3: 166 | FT3: 167 | FU3: 168 | FV3: 169 | FW3: 170 | FX3: 171 | FY3: 172 | FZ3: 173 | GA3: 174 | GB3: 175 | GC3: 176 | GD3: 177 | GE3: 178 | GF3: 179 | GG3: 180 | GH3: 181 | GI3: 182 | GJ3: 183 | GK3: 184 | GL3: 185 | GM3: 186 | GN3: 187 | GO3: 188 | GP3: 189 | GQ3: 190 | GR3: 191 | GS3: 192 | GT3: 193 | GU3: 194 | GV3: 195 | GW3: 196 | GX3: 197 | GY3: 198 | GZ3: 199 | HA3: 200
D4: Development Period | E4: Month | F4: =F14 -> 1 | J4: =J3<=$F$4 -> TRUE | K4: FALSE | L4: FALSE | M4: FALSE | N4: FALSE | O4: FALSE | P4: FALSE | Q4: FALSE | R4: FALSE | S4: FALSE | T4: FALSE | U4: FALSE | V4: FALSE | W4: FALSE | X4: FALSE | Y4: FALSE | Z4: FALSE | AA4: FALSE | AB4: FALSE | AC4: FALSE | AD4: FALSE | AE4: FALSE | AF4: FALSE | AG4: FALSE | AH4: FALSE | AI4: FALSE | AJ4: FALSE | AK4: FALSE | AL4: FALSE | AM4: FALSE | AN4: FALSE | AO4: FALSE | AP4: =AP3<=$F$4 -> FALSE | AQ4: FALSE | AR4: FALSE | AS4: FALSE | AT4: FALSE | AU4: FALSE | AV4: FALSE | AW4: FALSE | AX4: FALSE | AY4: FALSE | AZ4: FALSE | BA4: FALSE | BB4: FALSE | BC4: FALSE | BD4: FALSE | BE4: FALSE | BF4: FALSE | BG4: FALSE | BH4: FALSE | BI4: FALSE | BJ4: FALSE | BK4: FALSE | BL4: FALSE | BM4: FALSE | BN4: FALSE | BO4: FALSE | BP4: FALSE | BQ4: FALSE | BR4: FALSE | BS4: FALSE | BT4: FALSE | BU4: FALSE | BV4: =BV3<=$F$4 -> FALSE | BW4: FALSE | BX4: FALSE | BY4: FALSE | BZ4: FALSE | CA4: FALSE | CB4: FALSE | CC4: FALSE | CD4: FALSE | CE4: FALSE | CF4: FALSE | CG4: FALSE | CH4: FALSE | CI4: FALSE | CJ4: FALSE | CK4: FALSE | CL4: FALSE | CM4: FALSE | CN4: FALSE | CO4: FALSE | CP4: FALSE | CQ4: FALSE | CR4: FALSE | CS4: FALSE | CT4: FALSE | CU4: FALSE | CV4: FALSE | CW4: FALSE | CX4: FALSE | CY4: FALSE | CZ4: FALSE | DA4: FALSE | DB4: =DB3<=$F$4 -> FALSE | DC4: FALSE | DD4: FALSE | DE4: FALSE | DF4: FALSE | DG4: FALSE | DH4: FALSE | DI4: FALSE | DJ4: FALSE | DK4: FALSE | DL4: FALSE | DM4: FALSE | DN4: FALSE | DO4: FALSE | DP4: FALSE | DQ4: FALSE | DR4: FALSE | DS4: FALSE | DT4: FALSE | DU4: FALSE | DV4: FALSE | DW4: FALSE | DX4: FALSE | DY4: FALSE | DZ4: FALSE | EA4: FALSE | EB4: FALSE | EC4: FALSE | ED4: FALSE | EE4: FALSE | EF4: FALSE | EG4: FALSE | EH4: =EH3<=$F$4 -> FALSE | EI4: FALSE | EJ4: FALSE | EK4: FALSE | EL4: FALSE | EM4: FALSE | EN4: FALSE | EO4: FALSE | EP4: FALSE | EQ4: FALSE | ER4: FALSE | ES4: FALSE | ET4: FALSE | EU4: FALSE | EV4: FALSE | EW4: FALSE | EX4: FALSE | EY4: FALSE | EZ4: FALSE | FA4: FALSE | FB4: FALSE | FC4: FALSE | FD4: FALSE | FE4: FALSE | FF4: FALSE | FG4: FALSE | FH4: FALSE | FI4: FALSE | FJ4: FALSE | FK4: FALSE | FL4: FALSE | FM4: FALSE | FN4: =FN3<=$F$4 -> FALSE | FO4: FALSE | FP4: FALSE | FQ4: FALSE | FR4: FALSE | FS4: FALSE | FT4: FALSE | FU4: FALSE | FV4: FALSE | FW4: FALSE | FX4: FALSE | FY4: FALSE | FZ4: FALSE | GA4: FALSE | GB4: FALSE | GC4: FALSE | GD4: FALSE | GE4: FALSE | GF4: FALSE | GG4: FALSE | GH4: FALSE | GI4: FALSE | GJ4: FALSE | GK4: FALSE | GL4: FALSE | GM4: FALSE | GN4: FALSE | GO4: FALSE | GP4: FALSE | GQ4: FALSE | GR4: FALSE | GS4: FALSE | GT4: =GT3<=$F$4 -> FALSE | GU4: FALSE | GV4: FALSE | GW4: FALSE | GX4: FALSE | GY4: FALSE | GZ4: FALSE | HA4: FALSE
D5: Construction period | E5: Month | F5: =F15 -> 1 | J5: =AND(J8,NOT(J4)) -> FALSE | K5: TRUE | L5: FALSE | M5: FALSE | N5: FALSE | O5: FALSE | P5: FALSE | Q5: FALSE | R5: FALSE | S5: FALSE | T5: FALSE | U5: FALSE | V5: FALSE | W5: FALSE | X5: FALSE | Y5: FALSE | Z5: FALSE | AA5: FALSE | AB5: FALSE | AC5: FALSE | AD5: FALSE | AE5: FALSE | AF5: FALSE | AG5: FALSE | AH5: FALSE | AI5: FALSE | AJ5: FALSE | AK5: FALSE | AL5: FALSE | AM5: FALSE | AN5: FALSE | AO5: FALSE | AP5: =AND(AP8,NOT(AP4)) -> FALSE | AQ5: FALSE | AR5: FALSE | AS5: FALSE | AT5: FALSE | AU5: FALSE | AV5: FALSE | AW5: FALSE | AX5: FALSE | AY5: FALSE | AZ5: FALSE | BA5: FALSE | BB5: FALSE | BC5: FALSE | BD5: FALSE | BE5: FALSE | BF5: FALSE | BG5: FALSE | BH5: FALSE | BI5: FALSE | BJ5: FALSE | BK5: FALSE | BL5: FALSE | BM5: FALSE | BN5: FALSE | BO5: FALSE | BP5: FALSE | BQ5: FALSE | BR5: FALSE | BS5: FALSE | BT5: FALSE | BU5: FALSE | BV5: =AND(BV8,NOT(BV4)) -> FALSE | BW5: FALSE | BX5: FALSE | BY5: FALSE | BZ5: FALSE | CA5: FALSE | CB5: FALSE | CC5: FALSE | CD5: FALSE | CE5: FALSE | CF5: FALSE | CG5: FALSE | CH5: FALSE | CI5: FALSE | CJ5: FALSE | CK5: FALSE | CL5: FALSE | CM5: FALSE | CN5: FALSE | CO5: FALSE | CP5: FALSE | CQ5: FALSE | CR5: FALSE | CS5: FALSE | CT5: FALSE | CU5: FALSE | CV5: FALSE | CW5: FALSE | CX5: FALSE | CY5: FALSE | CZ5: FALSE | DA5: FALSE | DB5: =AND(DB8,NOT(DB4)) -> FALSE | DC5: FALSE | DD5: FALSE | DE5: FALSE | DF5: FALSE | DG5: FALSE | DH5: FALSE | DI5: FALSE | DJ5: FALSE | DK5: FALSE | DL5: FALSE | DM5: FALSE | DN5: FALSE | DO5: FALSE | DP5: FALSE | DQ5: FALSE | DR5: FALSE | DS5: FALSE | DT5: FALSE | DU5: FALSE | DV5: FALSE | DW5: FALSE | DX5: FALSE | DY5: FALSE | DZ5: FALSE | EA5: FALSE | EB5: FALSE | EC5: FALSE | ED5: FALSE | EE5: FALSE | EF5: FALSE | EG5: FALSE | EH5: =AND(EH8,NOT(EH4)) -> FALSE | EI5: FALSE | EJ5: FALSE | EK5: FALSE | EL5: FALSE | EM5: FALSE | EN5: FALSE | EO5: FALSE | EP5: FALSE | EQ5: FALSE | ER5: FALSE | ES5: FALSE | ET5: FALSE | EU5: FALSE | EV5: FALSE | EW5: FALSE | EX5: FALSE | EY5: FALSE | EZ5: FALSE | FA5: FALSE | FB5: FALSE | FC5: FALSE | FD5: FALSE | FE5: FALSE | FF5: FALSE | FG5: FALSE | FH5: FALSE | FI5: FALSE | FJ5: FALSE | FK5: FALSE | FL5: FALSE | FM5: FALSE | FN5: =AND(FN8,NOT(FN4)) -> FALSE | FO5: FALSE | FP5: FALSE | FQ5: FALSE | FR5: FALSE | FS5: FALSE | FT5: FALSE | FU5: FALSE | FV5: FALSE | FW5: FALSE | FX5: FALSE | FY5: FALSE | FZ5: FALSE | GA5: FALSE | GB5: FALSE | GC5: FALSE | GD5: FALSE | GE5: FALSE | GF5: FALSE | GG5: FALSE | GH5: FALSE | GI5: FALSE | GJ5: FALSE | GK5: FALSE | GL5: FALSE | GM5: FALSE | GN5: FALSE | GO5: FALSE | GP5: FALSE | GQ5: FALSE | GR5: FALSE | GS5: FALSE | GT5: =AND(GT8,NOT(GT4)) -> FALSE | GU5: FALSE | GV5: FALSE | GW5: FALSE | GX5: FALSE | GY5: FALSE | GZ5: FALSE | HA5: FALSE
D6: Age of project | J6: =I6+NOT(J8) -> 0 | K6: 0 | L6: 1 | M6: 2 | N6: 3 | O6: 4 | P6: 5 | Q6: 6 | R6: 7 | S6: 8 | T6: 9 | U6: 10 | V6: 11 | W6: 12 | X6: 13 | Y6: 14 | Z6: 15 | AA6: 16 | AB6: 17 | AC6: 18 | AD6: 19 | AE6: 20 | AF6: 21 | AG6: 22 | AH6: 23 | AI6: 24 | AJ6: 25 | AK6: 26 | AL6: 27 | AM6: 28 | AN6: 29 | AO6: 30 | AP6: =AO6+NOT(AP8) -> 31 | AQ6: 32 | AR6: 33 | AS6: 34 | AT6: 35 | AU6: 36 | AV6: 37 | AW6: 38 | AX6: 39 | AY6: 40 | AZ6: 41 | BA6: 42 | BB6: 43 | BC6: 44 | BD6: 45 | BE6: 46 | BF6: 47 | BG6: 48 | BH6: 49 | BI6: 50 | BJ6: 51 | BK6: 52 | BL6: 53 | BM6: 54 | BN6: 55 | BO6: 56 | BP6: 57 | BQ6: 58 | BR6: 59 | BS6: 60 | BT6: 61 | BU6: 62 | BV6: =BU6+NOT(BV8) -> 63 | BW6: 64 | BX6: 65 | BY6: 66 | BZ6: 67 | CA6: 68 | CB6: 69 | CC6: 70 | CD6: 71 | CE6: 72 | CF6: 73 | CG6: 74 | CH6: 75 | CI6: 76 | CJ6: 77 | CK6: 78 | CL6: 79 | CM6: 80 | CN6: 81 | CO6: 82 | CP6: 83 | CQ6: 84 | CR6: 85 | CS6: 86 | CT6: 87 | CU6: 88 | CV6: 89 | CW6: 90 | CX6: 91 | CY6: 92 | CZ6: 93 | DA6: 94 | DB6: =DA6+NOT(DB8) -> 95 | DC6: 96 | DD6: 97 | DE6: 98 | DF6: 99 | DG6: 100 | DH6: 101 | DI6: 102 | DJ6: 103 | DK6: 104 | DL6: 105 | DM6: 106 | DN6: 107 | DO6: 108 | DP6: 109 | DQ6: 110 | DR6: 111 | DS6: 112 | DT6: 113 | DU6: 114 | DV6: 115 | DW6: 116 | DX6: 117 | DY6: 118 | DZ6: 119 | EA6: 120 | EB6: 121 | EC6: 122 | ED6: 123 | EE6: 124 | EF6: 125 | EG6: 126 | EH6: =EG6+NOT(EH8) -> 127 | EI6: 128 | EJ6: 129 | EK6: 130 | EL6: 131 | EM6: 132 | EN6: 133 | EO6: 134 | EP6: 135 | EQ6: 136 | ER6: 137 | ES6: 138 | ET6: 139 | EU6: 140 | EV6: 141 | EW6: 142 | EX6: 143 | EY6: 144 | EZ6: 145 | FA6: 146 | FB6: 147 | FC6: 148 | FD6: 149 | FE6: 150 | FF6: 151 | FG6: 152 | FH6: 153 | FI6: 154 | FJ6: 155 | FK6: 156 | FL6: 157 | FM6: 158 | FN6: =FM6+NOT(FN8) -> 159 | FO6: 160 | FP6: 161 | FQ6: 162 | FR6: 163 | FS6: 164 | FT6: 165 | FU6: 166 | FV6: 167 | FW6: 168 | FX6: 169 | FY6: 170 | FZ6: 171 | GA6: 172 | GB6: 173 | GC6: 174 | GD6: 175 | GE6: 176 | GF6: 177 | GG6: 178 | GH6: 179 | GI6: 180 | GJ6: 181 | GK6: 182 | GL6: 183 | GM6: 184 | GN6: 185 | GO6: 186 | GP6: 187 | GQ6: 188 | GR6: 189 | GS6: 190 | GT6: =GS6+NOT(GT8) -> 191 | GU6: 192 | GV6: 193 | GW6: 194 | GX6: 195 | GY6: 196 | GZ6: 197 | HA6: 198
D7: Operating period | E7: Years | F7: 30 | J7: =AND(J6<=$F$7, NOT(J8)) -> FALSE | K7: FALSE | L7: TRUE | M7: TRUE | N7: TRUE | O7: TRUE | P7: TRUE | Q7: TRUE | R7: TRUE | S7: TRUE | T7: TRUE | U7: TRUE | V7: TRUE | W7: TRUE | X7: TRUE | Y7: TRUE | Z7: TRUE | AA7: TRUE | AB7: TRUE | AC7: TRUE | AD7: TRUE | AE7: TRUE | AF7: TRUE | AG7: TRUE | AH7: TRUE | AI7: TRUE | AJ7: TRUE | AK7: TRUE | AL7: TRUE | AM7: TRUE | AN7: TRUE | AO7: TRUE | AP7: =AND(AP6<=$F$7, NOT(AP8)) -> FALSE | AQ7: FALSE | AR7: FALSE | AS7: FALSE | AT7: FALSE | AU7: FALSE | AV7: FALSE | AW7: FALSE | AX7: FALSE | AY7: FALSE | AZ7: FALSE | BA7: FALSE | BB7: FALSE | BC7: FALSE | BD7: FALSE | BE7: FALSE | BF7: FALSE | BG7: FALSE | BH7: FALSE | BI7: FALSE | BJ7: FALSE | BK7: FALSE | BL7: FALSE | BM7: FALSE | BN7: FALSE | BO7: FALSE | BP7: FALSE | BQ7: FALSE | BR7: FALSE | BS7: FALSE | BT7: FALSE | BU7: FALSE | BV7: =AND(BV6<=$F$7, NOT(BV8)) -> FALSE | BW7: FALSE | BX7: FALSE | BY7: FALSE | BZ7: FALSE | CA7: FALSE | CB7: FALSE | CC7: FALSE | CD7: FALSE | CE7: FALSE | CF7: FALSE | CG7: FALSE | CH7: FALSE | CI7: FALSE | CJ7: FALSE | CK7: FALSE | CL7: FALSE | CM7: FALSE | CN7: FALSE | CO7: FALSE | CP7: FALSE | CQ7: FALSE | CR7: FALSE | CS7: FALSE | CT7: FALSE | CU7: FALSE | CV7: FALSE | CW7: FALSE | CX7: FALSE | CY7: FALSE | CZ7: FALSE | DA7: FALSE | DB7: =AND(DB6<=$F$7, NOT(DB8)) -> FALSE | DC7: FALSE | DD7: FALSE | DE7: FALSE | DF7: FALSE | DG7: FALSE | DH7: FALSE | DI7: FALSE | DJ7: FALSE | DK7: FALSE | DL7: FALSE | DM7: FALSE | DN7: FALSE | DO7: FALSE | DP7: FALSE | DQ7: FALSE | DR7: FALSE | DS7: FALSE | DT7: FALSE | DU7: FALSE | DV7: FALSE | DW7: FALSE | DX7: FALSE | DY7: FALSE | DZ7: FALSE | EA7: FALSE | EB7: FALSE | EC7: FALSE | ED7: FALSE | EE7: FALSE | EF7: FALSE | EG7: FALSE | EH7: =AND(EH6<=$F$7, NOT(EH8)) -> FALSE | EI7: FALSE | EJ7: FALSE | EK7: FALSE | EL7: FALSE | EM7: FALSE | EN7: FALSE | EO7: FALSE | EP7: FALSE | EQ7: FALSE | ER7: FALSE | ES7: FALSE | ET7: FALSE | EU7: FALSE | EV7: FALSE | EW7: FALSE | EX7: FALSE | EY7: FALSE | EZ7: FALSE | FA7: FALSE | FB7: FALSE | FC7: FALSE | FD7: FALSE | FE7: FALSE | FF7: FALSE | FG7: FALSE | FH7: FALSE | FI7: FALSE | FJ7: FALSE | FK7: FALSE | FL7: FALSE | FM7: FALSE | FN7: =AND(FN6<=$F$7, NOT(FN8)) -> FALSE | FO7: FALSE | FP7: FALSE | FQ7: FALSE | FR7: FALSE | FS7: FALSE | FT7: FALSE | FU7: FALSE | FV7: FALSE | FW7: FALSE | FX7: FALSE | FY7: FALSE | FZ7: FALSE | GA7: FALSE | GB7: FALSE | GC7: FALSE | GD7: FALSE | GE7: FALSE | GF7: FALSE | GG7: FALSE | GH7: FALSE | GI7: FALSE | GJ7: FALSE | GK7: FALSE | GL7: FALSE | GM7: FALSE | GN7: FALSE | GO7: FALSE | GP7: FALSE | GQ7: FALSE | GR7: FALSE | GS7: FALSE | GT7: =AND(GT6<=$F$7, NOT(GT8)) -> FALSE | GU7: FALSE | GV7: FALSE | GW7: FALSE | GX7: FALSE | GY7: FALSE | GZ7: FALSE | HA7: FALSE
D8: Pre-COD | E8: Months Pre | F8: =F4+F5 -> 2 | J8: =J3<=$F$8 -> TRUE | K8: TRUE | L8: FALSE | M8: FALSE | N8: FALSE | O8: FALSE | P8: FALSE | Q8: FALSE | R8: FALSE | S8: FALSE | T8: FALSE | U8: FALSE | V8: FALSE | W8: FALSE | X8: FALSE | Y8: FALSE | Z8: FALSE | AA8: FALSE | AB8: FALSE | AC8: FALSE | AD8: FALSE | AE8: FALSE | AF8: FALSE | AG8: FALSE | AH8: FALSE | AI8: FALSE | AJ8: FALSE | AK8: FALSE | AL8: FALSE | AM8: FALSE | AN8: FALSE | AO8: FALSE | AP8: =AP3<=$F$8 -> FALSE | AQ8: FALSE | AR8: FALSE | AS8: FALSE | AT8: FALSE | AU8: FALSE | AV8: FALSE | AW8: FALSE | AX8: FALSE | AY8: FALSE | AZ8: FALSE | BA8: FALSE | BB8: FALSE | BC8: FALSE | BD8: FALSE | BE8: FALSE | BF8: FALSE | BG8: FALSE | BH8: FALSE | BI8: FALSE | BJ8: FALSE | BK8: FALSE | BL8: FALSE | BM8: FALSE | BN8: FALSE | BO8: FALSE | BP8: FALSE | BQ8: FALSE | BR8: FALSE | BS8: FALSE | BT8: FALSE | BU8: FALSE | BV8: =BV3<=$F$8 -> FALSE | BW8: FALSE | BX8: FALSE | BY8: FALSE | BZ8: FALSE | CA8: FALSE | CB8: FALSE | CC8: FALSE | CD8: FALSE | CE8: FALSE | CF8: FALSE | CG8: FALSE | CH8: FALSE | CI8: FALSE | CJ8: FALSE | CK8: FALSE | CL8: FALSE | CM8: FALSE | CN8: FALSE | CO8: FALSE | CP8: FALSE | CQ8: FALSE | CR8: FALSE | CS8: FALSE | CT8: FALSE | CU8: FALSE | CV8: FALSE | CW8: FALSE | CX8: FALSE | CY8: FALSE | CZ8: FALSE | DA8: FALSE | DB8: =DB3<=$F$8 -> FALSE | DC8: FALSE | DD8: FALSE | DE8: FALSE | DF8: FALSE | DG8: FALSE | DH8: FALSE | DI8: FALSE | DJ8: FALSE | DK8: FALSE | DL8: FALSE | DM8: FALSE | DN8: FALSE | DO8: FALSE | DP8: FALSE | DQ8: FALSE | DR8: FALSE | DS8: FALSE | DT8: FALSE | DU8: FALSE | DV8: FALSE | DW8: FALSE | DX8: FALSE | DY8: FALSE | DZ8: FALSE | EA8: FALSE | EB8: FALSE | EC8: FALSE | ED8: FALSE | EE8: FALSE | EF8: FALSE | EG8: FALSE | EH8: =EH3<=$F$8 -> FALSE | EI8: FALSE | EJ8: FALSE | EK8: FALSE | EL8: FALSE | EM8: FALSE | EN8: FALSE | EO8: FALSE | EP8: FALSE | EQ8: FALSE | ER8: FALSE | ES8: FALSE | ET8: FALSE | EU8: FALSE | EV8: FALSE | EW8: FALSE | EX8: FALSE | EY8: FALSE | EZ8: FALSE | FA8: FALSE | FB8: FALSE | FC8: FALSE | FD8: FALSE | FE8: FALSE | FF8: FALSE | FG8: FALSE | FH8: FALSE | FI8: FALSE | FJ8: FALSE | FK8: FALSE | FL8: FALSE | FM8: FALSE | FN8: =FN3<=$F$8 -> FALSE | FO8: FALSE | FP8: FALSE | FQ8: FALSE | FR8: FALSE | FS8: FALSE | FT8: FALSE | FU8: FALSE | FV8: FALSE | FW8: FALSE | FX8: FALSE | FY8: FALSE | FZ8: FALSE | GA8: FALSE | GB8: FALSE | GC8: FALSE | GD8: FALSE | GE8: FALSE | GF8: FALSE | GG8: FALSE | GH8: FALSE | GI8: FALSE | GJ8: FALSE | GK8: FALSE | GL8: FALSE | GM8: FALSE | GN8: FALSE | GO8: FALSE | GP8: FALSE | GQ8: FALSE | GR8: FALSE | GS8: FALSE | GT8: =GT3<=$F$8 -> FALSE | GU8: FALSE | GV8: FALSE | GW8: FALSE | GX8: FALSE | GY8: FALSE | GZ8: FALSE | HA8: FALSE
D9: Month | E9: Model Period | F9: 1 | G9: 12 | J9: =IF(J8, $F$9, $G$9) -> 1 | K9: 1 | L9: 12 | M9: 12 | N9: 12 | O9: 12 | P9: 12 | Q9: 12 | R9: 12 | S9: 12 | T9: 12 | U9: 12 | V9: 12 | W9: 12 | X9: 12 | Y9: 12 | Z9: 12 | AA9: 12 | AB9: 12 | AC9: 12 | AD9: 12 | AE9: 12 | AF9: 12 | AG9: 12 | AH9: 12 | AI9: 12 | AJ9: 12 | AK9: 12 | AL9: 12 | AM9: 12 | AN9: 12 | AO9: 12 | AP9: =IF(AP8, $F$9, $G$9) -> 12 | AQ9: 12 | AR9: 12 | AS9: 12 | AT9: 12 | AU9: 12 | AV9: 12 | AW9: 12 | AX9: 12 | AY9: 12 | AZ9: 12 | BA9: 12 | BB9: 12 | BC9: 12 | BD9: 12 | BE9: 12 | BF9: 12 | BG9: 12 | BH9: 12 | BI9: 12 | BJ9: 12 | BK9: 12 | BL9: 12 | BM9: 12 | BN9: 12 | BO9: 12 | BP9: 12 | BQ9: 12 | BR9: 12 | BS9: 12 | BT9: 12 | BU9: 12 | BV9: =IF(BV8, $F$9, $G$9) -> 12 | BW9: 12 | BX9: 12 | BY9: 12 | BZ9: 12 | CA9: 12 | CB9: 12 | CC9: 12 | CD9: 12 | CE9: 12 | CF9: 12 | CG9: 12 | CH9: 12 | CI9: 12 | CJ9: 12 | CK9: 12 | CL9: 12 | CM9: 12 | CN9: 12 | CO9: 12 | CP9: 12 | CQ9: 12 | CR9: 12 | CS9: 12 | CT9: 12 | CU9: 12 | CV9: 12 | CW9: 12 | CX9: 12 | CY9: 12 | CZ9: 12 | DA9: 12 | DB9: =IF(DB8, $F$9, $G$9) -> 12 | DC9: 12 | DD9: 12 | DE9: 12 | DF9: 12 | DG9: 12 | DH9: 12 | DI9: 12 | DJ9: 12 | DK9: 12 | DL9: 12 | DM9: 12 | DN9: 12 | DO9: 12 | DP9: 12 | DQ9: 12 | DR9: 12 | DS9: 12 | DT9: 12 | DU9: 12 | DV9: 12 | DW9: 12 | DX9: 12 | DY9: 12 | DZ9: 12 | EA9: 12 | EB9: 12 | EC9: 12 | ED9: 12 | EE9: 12 | EF9: 12 | EG9: 12 | EH9: =IF(EH8, $F$9, $G$9) -> 12 | EI9: 12 | EJ9: 12 | EK9: 12 | EL9: 12 | EM9: 12 | EN9: 12 | EO9: 12 | EP9: 12 | EQ9: 12 | ER9: 12 | ES9: 12 | ET9: 12 | EU9: 12 | EV9: 12 | EW9: 12 | EX9: 12 | EY9: 12 | EZ9: 12 | FA9: 12 | FB9: 12 | FC9: 12 | FD9: 12 | FE9: 12 | FF9: 12 | FG9: 12 | FH9: 12 | FI9: 12 | FJ9: 12 | FK9: 12 | FL9: 12 | FM9: 12 | FN9: =IF(FN8, $F$9, $G$9) -> 12 | FO9: 12 | FP9: 12 | FQ9: 12 | FR9: 12 | FS9: 12 | FT9: 12 | FU9: 12 | FV9: 12 | FW9: 12 | FX9: 12 | FY9: 12 | FZ9: 12 | GA9: 12 | GB9: 12 | GC9: 12 | GD9: 12 | GE9: 12 | GF9: 12 | GG9: 12 | GH9: 12 | GI9: 12 | GJ9: 12 | GK9: 12 | GL9: 12 | GM9: 12 | GN9: 12 | GO9: 12 | GP9: 12 | GQ9: 12 | GR9: 12 | GS9: 12 | GT9: =IF(GT8, $F$9, $G$9) -> 12 | GU9: 12 | GV9: 12 | GW9: 12 | GX9: 12 | GY9: 12 | GZ9: 12 | HA9: 12
B11: Inputs
C13: General Inputs
D14: Development Period | E14: Months | F14: 1 | G14: PIRR - Cash Basis | I14: =F48 -> 0.06839130223
D15: Construction Period | E15: Months | F15: 1 | G15: PIRR - Dev Fee Subtract | I15: =F54 -> 0.06204259694
D16: Development Cost (actual) | E16: EUR | F16: 20000
D17: EPC Cost | E17: EUR | F17: 400000 | G17: EIRR Cash Basis | I17: =F101 -> FALSE
D18: EBITDA p.a. | E18: EUR | F18: 25000 | G18: EIRR Dev Fee Subtracted | I18: =F97 -> FALSE
D19: EBITDA Growth | E19: % | F19: 0.025
D20: Re-invesment Rate | E20: % | F20: 0.1 | G20: EIRR to Partner | I20: =E113 -> FALSE
G21: EIRR to Developer | I21: =E118 -> FALSE
C22: Development Inputs
D23: Probability of Success | E23: % | F23: 0.4
D24: Target Development Profit | E24: % | F24: 0.1
D26: Loss Scenarios | E26: Number | F26: =1/F23-1 -> 1.5
D27: Costs of Loss from Failures | E27: EUR | F27: =F26*F16 -> 30000
D29: Target Profit | E29: EUR | F29: =F27*(1+F24)*G29 -> 33000 | G29: TRUE
D30: Development Fee | E30: EUR | F30: =F29 -> 33000
D32: Developer/Sponsor Investment | E32: % | F32: 0.5
D33: Partner Investment | E33: % | F33: =1-F32 -> 0.5
C35: Financing Inputs
D36: Debt to Capital | E36: % | F36: 0.8
D37: Debt Tenure | E37: Years | F37: 20
D38: Interest Rate | E38: % | F38: 0.035
B40: Fundamental Cash Flow Analysis
D42: Development Cost (actual) | E42: EUR | F42: =F16 -> 20000 | G42: =F4 -> 1 | J42: =$F$42/$G$42*J4 -> 20000 | K42: =$F$42/$F$4*K4 -> 0 | L42: 0 | M42: 0 | N42: 0 | O42: 0 | P42: 0 | Q42: 0 | R42: 0 | S42: 0 | T42: 0 | U42: 0 | V42: 0 | W42: 0 | X42: 0 | Y42: 0 | Z42: 0 | AA42: 0 | AB42: 0 | AC42: 0 | AD42: 0 | AE42: 0 | AF42: 0 | AG42: 0 | AH42: 0 | AI42: 0 | AJ42: 0 | AK42: 0 | AL42: 0 | AM42: 0 | AN42: 0 | AO42: 0 | AP42: 0 | AQ42: =$F$42/$F$4*AQ4 -> 0 | AR42: 0 | AS42: 0 | AT42: 0 | AU42: 0 | AV42: 0 | AW42: 0 | AX42: 0 | AY42: 0 | AZ42: 0 | BA42: 0 | BB42: 0 | BC42: 0 | BD42: 0 | BE42: 0 | BF42: 0 | BG42: 0 | BH42: 0 | BI42: 0 | BJ42: 0 | BK42: 0 | BL42: 0 | BM42: 0 | BN42: 0 | BO42: 0 | BP42: 0 | BQ42: 0 | BR42: 0 | BS42: 0 | BT42: 0 | BU42: 0 | BV42: 0 | BW42: =$F$42/$F$4*BW4 -> 0 | BX42: 0 | BY42: 0 | BZ42: 0 | CA42: 0 | CB42: 0 | CC42: 0 | CD42: 0 | CE42: 0 | CF42: 0 | CG42: 0 | CH42: 0 | CI42: 0 | CJ42: 0 | CK42: 0 | CL42: 0 | CM42: 0 | CN42: 0 | CO42: 0 | CP42: 0 | CQ42: 0 | CR42: 0 | CS42: 0 | CT42: 0 | CU42: 0 | CV42: 0 | CW42: 0 | CX42: 0 | CY42: 0 | CZ42: 0 | DA42: 0 | DB42: 0 | DC42: =$F$42/$F$4*DC4 -> 0 | DD42: 0 | DE42: 0 | DF42: 0 | DG42: 0 | DH42: 0 | DI42: 0 | DJ42: 0 | DK42: 0 | DL42: 0 | DM42: 0 | DN42: 0 | DO42: 0 | DP42: 0 | DQ42: 0 | DR42: 0 | DS42: 0 | DT42: 0 | DU42: 0 | DV42: 0 | DW42: 0 | DX42: 0 | DY42: 0 | DZ42: 0 | EA42: 0 | EB42: 0 | EC42: 0 | ED42: 0 | EE42: 0 | EF42: 0 | EG42: 0 | EH42: 0 | EI42: =$F$42/$F$4*EI4 -> 0 | EJ42: 0 | EK42: 0 | EL42: 0 | EM42: 0 | EN42: 0 | EO42: 0 | EP42: 0 | EQ42: 0 | ER42: 0 | ES42: 0 | ET42: 0 | EU42: 0 | EV42: 0 | EW42: 0 | EX42: 0 | EY42: 0 | EZ42: 0 | FA42: 0 | FB42: 0 | FC42: 0 | FD42: 0 | FE42: 0 | FF42: 0 | FG42: 0 | FH42: 0 | FI42: 0 | FJ42: 0 | FK42: 0 | FL42: 0 | FM42: 0 | FN42: 0 | FO42: =$F$42/$F$4*FO4 -> 0 | FP42: 0 | FQ42: 0 | FR42: 0 | FS42: 0 | FT42: 0 | FU42: 0 | FV42: 0 | FW42: 0 | FX42: 0 | FY42: 0 | FZ42: 0 | GA42: 0 | GB42: 0 | GC42: 0 | GD42: 0 | GE42: 0 | GF42: 0 | GG42: 0 | GH42: 0 | GI42: 0 | GJ42: 0 | GK42: 0 | GL42: 0 | GM42: 0 | GN42: 0 | GO42: 0 | GP42: 0 | GQ42: 0 | GR42: 0 | GS42: 0 | GT42: 0 | GU42: =$F$42/$F$4*GU4 -> 0 | GV42: 0 | GW42: 0 | GX42: 0 | GY42: 0 | GZ42: 0 | HA42: 0
D43: EPC cost | E43: EUR | F43: =F17 -> 400000 | J43: =$F$43/$F$5*J5 -> 0 | K43: 400000 | L43: 0 | M43: 0 | N43: 0 | O43: 0 | P43: 0 | Q43: 0 | R43: 0 | S43: 0 | T43: 0 | U43: 0 | V43: 0 | W43: 0 | X43: 0 | Y43: 0 | Z43: 0 | AA43: 0 | AB43: 0 | AC43: 0 | AD43: 0 | AE43: 0 | AF43: 0 | AG43: 0 | AH43: 0 | AI43: 0 | AJ43: 0 | AK43: 0 | AL43: 0 | AM43: 0 | AN43: 0 | AO43: 0 | AP43: =$F$43/$F$5*AP5 -> 0 | AQ43: 0 | AR43: 0 | AS43: 0 | AT43: 0 | AU43: 0 | AV43: 0 | AW43: 0 | AX43: 0 | AY43: 0 | AZ43: 0 | BA43: 0 | BB43: 0 | BC43: 0 | BD43: 0 | BE43: 0 | BF43: 0 | BG43: 0 | BH43: 0 | BI43: 0 | BJ43: 0 | BK43: 0 | BL43: 0 | BM43: 0 | BN43: 0 | BO43: 0 | BP43: 0 | BQ43: 0 | BR43: 0 | BS43: 0 | BT43: 0 | BU43: 0 | BV43: =$F$43/$F$5*BV5 -> 0 | BW43: 0 | BX43: 0 | BY43: 0 | BZ43: 0 | CA43: 0 | CB43: 0 | CC43: 0 | CD43: 0 | CE43: 0 | CF43: 0 | CG43: 0 | CH43: 0 | CI43: 0 | CJ43: 0 | CK43: 0 | CL43: 0 | CM43: 0 | CN43: 0 | CO43: 0 | CP43: 0 | CQ43: 0 | CR43: 0 | CS43: 0 | CT43: 0 | CU43: 0 | CV43: 0 | CW43: 0 | CX43: 0 | CY43: 0 | CZ43: 0 | DA43: 0 | DB43: =$F$43/$F$5*DB5 -> 0 | DC43: 0 | DD43: 0 | DE43: 0 | DF43: 0 | DG43: 0 | DH43: 0 | DI43: 0 | DJ43: 0 | DK43: 0 | DL43: 0 | DM43: 0 | DN43: 0 | DO43: 0 | DP43: 0 | DQ43: 0 | DR43: 0 | DS43: 0 | DT43: 0 | DU43: 0 | DV43: 0 | DW43: 0 | DX43: 0 | DY43: 0 | DZ43: 0 | EA43: 0 | EB43: 0 | EC43: 0 | ED43: 0 | EE43: 0 | EF43: 0 | EG43: 0 | EH43: =$F$43/$F$5*EH5 -> 0 | EI43: 0 | EJ43: 0 | EK43: 0 | EL43: 0 | EM43: 0 | EN43: 0 | EO43: 0 | EP43: 0 | EQ43: 0 | ER43: 0 | ES43: 0 | ET43: 0 | EU43: 0 | EV43: 0 | EW43: 0 | EX43: 0 | EY43: 0 | EZ43: 0 | FA43: 0 | FB43: 0 | FC43: 0 | FD43: 0 | FE43: 0 | FF43: 0 | FG43: 0 | FH43: 0 | FI43: 0 | FJ43: 0 | FK43: 0 | FL43: 0 | FM43: 0 | FN43: =$F$43/$F$5*FN5 -> 0 | FO43: 0 | FP43: 0 | FQ43: 0 | FR43: 0 | FS43: 0 | FT43: 0 | FU43: 0 | FV43: 0 | FW43: 0 | FX43: 0 | FY43: 0 | FZ43: 0 | GA43: 0 | GB43: 0 | GC43: 0 | GD43: 0 | GE43: 0 | GF43: 0 | GG43: 0 | GH43: 0 | GI43: 0 | GJ43: 0 | GK43: 0 | GL43: 0 | GM43: 0 | GN43: 0 | GO43: 0 | GP43: 0 | GQ43: 0 | GR43: 0 | GS43: 0 | GT43: =$F$43/$F$5*GT5 -> 0 | GU43: 0 | GV43: 0 | GW43: 0 | GX43: 0 | GY43: 0 | GZ43: 0 | HA43: 0
D44: EBITDA Growth Index | E44: Index | F44: =F19 -> 0.025 | I44: 1 | J44: =I44*(1+$F$44*J7) -> 1 | K44: 1 | L44: 1.025 | M44: 1.050625 | N44: 1.076890625 | O44: 1.103812891 | P44: 1.131408213 | Q44: 1.159693418 | R44: 1.188685754 | S44: 1.218402898 | T44: 1.24886297 | U44: 1.280084544 | V44: 1.312086658 | W44: 1.344888824 | X44: 1.378511045 | Y44: 1.412973821 | Z44: 1.448298166 | AA44: 1.484505621 | AB44: 1.521618261 | AC44: 1.559658718 | AD44: 1.598650186 | AE44: 1.63861644 | AF44: 1.679581851 | AG44: 1.721571398 | AH44: 1.764610683 | AI44: 1.80872595 | AJ44: 1.853944098 | AK44: 1.900292701 | AL44: 1.947800018 | AM44: 1.996495019 | AN44: 2.046407394 | AO44: 2.097567579 | AP44: =AO44*(1+$F$44*AP7) -> 2.097567579 | AQ44: 2.097567579 | AR44: 2.097567579 | AS44: 2.097567579 | AT44: 2.097567579 | AU44: 2.097567579 | AV44: 2.097567579 | AW44: 2.097567579 | AX44: 2.097567579 | AY44: 2.097567579 | AZ44: 2.097567579 | BA44: 2.097567579 | BB44: 2.097567579 | BC44: 2.097567579 | BD44: 2.097567579 | BE44: 2.097567579 | BF44: 2.097567579 | BG44: 2.097567579 | BH44: 2.097567579 | BI44: 2.097567579 | BJ44: 2.097567579 | BK44: 2.097567579 | BL44: 2.097567579 | BM44: 2.097567579 | BN44: 2.097567579 | BO44: 2.097567579 | BP44: 2.097567579 | BQ44: 2.097567579 | BR44: 2.097567579 | BS44: 2.097567579 | BT44: 2.097567579 | BU44: 2.097567579 | BV44: =BU44*(1+$F$44*BV7) -> 2.097567579 | BW44: 2.097567579 | BX44: 2.097567579 | BY44: 2.097567579 | BZ44: 2.097567579 | CA44: 2.097567579 | CB44: 2.097567579 | CC44: 2.097567579 | CD44: 2.097567579 | CE44: 2.097567579 | CF44: 2.097567579 | CG44: 2.097567579 | CH44: 2.097567579 | CI44: 2.097567579 | CJ44: 2.097567579 | CK44: 2.097567579 | CL44: 2.097567579 | CM44: 2.097567579 | CN44: 2.097567579 | CO44: 2.097567579 | CP44: 2.097567579 | CQ44: 2.097567579 | CR44: 2.097567579 | CS44: 2.097567579 | CT44: 2.097567579 | CU44: 2.097567579 | CV44: 2.097567579 | CW44: 2.097567579 | CX44: 2.097567579 | CY44: 2.097567579 | CZ44: 2.097567579 | DA44: 2.097567579 | DB44: =DA44*(1+$F$44*DB7) -> 2.097567579 | DC44: 2.097567579 | DD44: 2.097567579 | DE44: 2.097567579 | DF44: 2.097567579 | DG44: 2.097567579 | DH44: 2.097567579 | DI44: 2.097567579 | DJ44: 2.097567579 | DK44: 2.097567579 | DL44: 2.097567579 | DM44: 2.097567579 | DN44: 2.097567579 | DO44: 2.097567579 | DP44: 2.097567579 | DQ44: 2.097567579 | DR44: 2.097567579 | DS44: 2.097567579 | DT44: 2.097567579 | DU44: 2.097567579 | DV44: 2.097567579 | DW44: 2.097567579 | DX44: 2.097567579 | DY44: 2.097567579 | DZ44: 2.097567579 | EA44: 2.097567579 | EB44: 2.097567579 | EC44: 2.097567579 | ED44: 2.097567579 | EE44: 2.097567579 | EF44: 2.097567579 | EG44: 2.097567579 | EH44: =EG44*(1+$F$44*EH7) -> 2.097567579 | EI44: 2.097567579 | EJ44: 2.097567579 | EK44: 2.097567579 | EL44: 2.097567579 | EM44: 2.097567579 | EN44: 2.097567579 | EO44: 2.097567579 | EP44: 2.097567579 | EQ44: 2.097567579 | ER44: 2.097567579 | ES44: 2.097567579 | ET44: 2.097567579 | EU44: 2.097567579 | EV44: 2.097567579 | EW44: 2.097567579 | EX44: 2.097567579 | EY44: 2.097567579 | EZ44: 2.097567579 | FA44: 2.097567579 | FB44: 2.097567579 | FC44: 2.097567579 | FD44: 2.097567579 | FE44: 2.097567579 | FF44: 2.097567579 | FG44: 2.097567579 | FH44: 2.097567579 | FI44: 2.097567579 | FJ44: 2.097567579 | FK44: 2.097567579 | FL44: 2.097567579 | FM44: 2.097567579 | FN44: =FM44*(1+$F$44*FN7) -> 2.097567579 | FO44: 2.097567579 | FP44: 2.097567579 | FQ44: 2.097567579 | FR44: 2.097567579 | FS44: 2.097567579 | FT44: 2.097567579 | FU44: 2.097567579 | FV44: 2.097567579 | FW44: 2.097567579 | FX44: 2.097567579 | FY44: 2.097567579 | FZ44: 2.097567579 | GA44: 2.097567579 | GB44: 2.097567579 | GC44: 2.097567579 | GD44: 2.097567579 | GE44: 2.097567579 | GF44: 2.097567579 | GG44: 2.097567579 | GH44: 2.097567579 | GI44: 2.097567579 | GJ44: 2.097567579 | GK44: 2.097567579 | GL44: 2.097567579 | GM44: 2.097567579 | GN44: 2.097567579 | GO44: 2.097567579 | GP44: 2.097567579 | GQ44: 2.097567579 | GR44: 2.097567579 | GS44: 2.097567579 | GT44: =GS44*(1+$F$44*GT7) -> 2.097567579 | GU44: 2.097567579 | GV44: 2.097567579 | GW44: 2.097567579 | GX44: 2.097567579 | GY44: 2.097567579 | GZ44: 2.097567579 | HA44: 2.097567579
D45: EBITDA p.a. | E45: EUR | F45: =F18 -> 25000 | J45: =$F$45*J7*J44 -> 0 | K45: 0 | L45: 25625 | M45: 26265.625 | N45: 26922.26562 | O45: 27595.32227 | P45: 28285.20532 | Q45: 28992.33546 | R45: 29717.14384 | S45: 30460.07244 | T45: 31221.57425 | U45: 32002.1136 | V45: 32802.16645 | W45: 33622.22061 | X45: 34462.77612 | Y45: 35324.34552 | Z45: 36207.45416 | AA45: 37112.64052 | AB45: 38040.45653 | AC45: 38991.46794 | AD45: 39966.25464 | AE45: 40965.41101 | AF45: 41989.54628 | AG45: 43039.28494 | AH45: 44115.26706 | AI45: 45218.14874 | AJ45: 46348.60246 | AK45: 47507.31752 | AL45: 48695.00046 | AM45: 49912.37547 | AN45: 51160.18486 | AO45: 52439.18948 | AP45: =$F$45*AP7*AP44 -> 0 | AQ45: 0 | AR45: 0 | AS45: 0 | AT45: 0 | AU45: 0 | AV45: 0 | AW45: 0 | AX45: 0 | AY45: 0 | AZ45: 0 | BA45: 0 | BB45: 0 | BC45: 0 | BD45: 0 | BE45: 0 | BF45: 0 | BG45: 0 | BH45: 0 | BI45: 0 | BJ45: 0 | BK45: 0 | BL45: 0 | BM45: 0 | BN45: 0 | BO45: 0 | BP45: 0 | BQ45: 0 | BR45: 0 | BS45: 0 | BT45: 0 | BU45: 0 | BV45: =$F$45*BV7*BV44 -> 0 | BW45: 0 | BX45: 0 | BY45: 0 | BZ45: 0 | CA45: 0 | CB45: 0 | CC45: 0 | CD45: 0 | CE45: 0 | CF45: 0 | CG45: 0 | CH45: 0 | CI45: 0 | CJ45: 0 | CK45: 0 | CL45: 0 | CM45: 0 | CN45: 0 | CO45: 0 | CP45: 0 | CQ45: 0 | CR45: 0 | CS45: 0 | CT45: 0 | CU45: 0 | CV45: 0 | CW45: 0 | CX45: 0 | CY45: 0 | CZ45: 0 | DA45: 0 | DB45: =$F$45*DB7*DB44 -> 0 | DC45: 0 | DD45: 0 | DE45: 0 | DF45: 0 | DG45: 0 | DH45: 0 | DI45: 0 | DJ45: 0 | DK45: 0 | DL45: 0 | DM45: 0 | DN45: 0 | DO45: 0 | DP45: 0 | DQ45: 0 | DR45: 0 | DS45: 0 | DT45: 0 | DU45: 0 | DV45: 0 | DW45: 0 | DX45: 0 | DY45: 0 | DZ45: 0 | EA45: 0 | EB45: 0 | EC45: 0 | ED45: 0 | EE45: 0 | EF45: 0 | EG45: 0 | EH45: =$F$45*EH7*EH44 -> 0 | EI45: 0 | EJ45: 0 | EK45: 0 | EL45: 0 | EM45: 0 | EN45: 0 | EO45: 0 | EP45: 0 | EQ45: 0 | ER45: 0 | ES45: 0 | ET45: 0 | EU45: 0 | EV45: 0 | EW45: 0 | EX45: 0 | EY45: 0 | EZ45: 0 | FA45: 0 | FB45: 0 | FC45: 0 | FD45: 0 | FE45: 0 | FF45: 0 | FG45: 0 | FH45: 0 | FI45: 0 | FJ45: 0 | FK45: 0 | FL45: 0 | FM45: 0 | FN45: =$F$45*FN7*FN44 -> 0 | FO45: 0 | FP45: 0 | FQ45: 0 | FR45: 0 | FS45: 0 | FT45: 0 | FU45: 0 | FV45: 0 | FW45: 0 | FX45: 0 | FY45: 0 | FZ45: 0 | GA45: 0 | GB45: 0 | GC45: 0 | GD45: 0 | GE45: 0 | GF45: 0 | GG45: 0 | GH45: 0 | GI45: 0 | GJ45: 0 | GK45: 0 | GL45: 0 | GM45: 0 | GN45: 0 | GO45: 0 | GP45: 0 | GQ45: 0 | GR45: 0 | GS45: 0 | GT45: =$F$45*GT7*GT44 -> 0 | GU45: 0 | GV45: 0 | GW45: 0 | GX45: 0 | GY45: 0 | GZ45: 0 | HA45: 0
D47: Project Cash Flow | E47: EUR | J47: =J45-J43-J42 -> -20000 | K47: =K45-K43-K42 -> -400000 | L47: 25625 | M47: 26265.625 | N47: 26922.26562 | O47: 27595.32227 | P47: 28285.20532 | Q47: 28992.33546 | R47: 29717.14384 | S47: 30460.07244 | T47: 31221.57425 | U47: 32002.1136 | V47: 32802.16645 | W47: 33622.22061 | X47: 34462.77612 | Y47: 35324.34552 | Z47: 36207.45416 | AA47: 37112.64052 | AB47: 38040.45653 | AC47: 38991.46794 | AD47: 39966.25464 | AE47: 40965.41101 | AF47: 41989.54628 | AG47: 43039.28494 | AH47: 44115.26706 | AI47: 45218.14874 | AJ47: 46348.60246 | AK47: 47507.31752 | AL47: 48695.00046 | AM47: 49912.37547 | AN47: 51160.18486 | AO47: 52439.18948 | AP47: 0 | AQ47: 0 | AR47: 0 | AS47: 0 | AT47: 0 | AU47: 0 | AV47: 0 | AW47: 0 | AX47: 0 | AY47: 0 | AZ47: 0 | BA47: 0 | BB47: 0 | BC47: 0 | BD47: 0 | BE47: 0 | BF47: 0 | BG47: 0 | BH47: 0 | BI47: 0 | BJ47: 0 | BK47: 0 | BL47: 0 | BM47: 0 | BN47: 0 | BO47: 0 | BP47: 0 | BQ47: 0 | BR47: 0 | BS47: 0 | BT47: 0 | BU47: 0 | BV47: 0 | BW47: =BW45-BW43-BW42 -> 0 | BX47: 0 | BY47: 0 | BZ47: 0 | CA47: 0 | CB47: 0 | CC47: 0 | CD47: 0 | CE47: 0 | CF47: 0 | CG47: 0 | CH47: 0 | CI47: 0 | CJ47: 0 | CK47: 0 | CL47: 0 | CM47: 0 | CN47: 0 | CO47: 0 | CP47: 0 | CQ47: 0 | CR47: 0 | CS47: 0 | CT47: 0 | CU47: 0 | CV47: 0 | CW47: 0 | CX47: 0 | CY47: 0 | CZ47: 0 | DA47: 0 | DB47: 0 | DC47: 0 | DD47: 0 | DE47: 0 | DF47: 0 | DG47: 0 | DH47: 0 | DI47: 0 | DJ47: 0 | DK47: 0 | DL47: 0 | DM47: 0 | DN47: 0 | DO47: 0 | DP47: 0 | DQ47: 0 | DR47: 0 | DS47: 0 | DT47: 0 | DU47: 0 | DV47: 0 | DW47: 0 | DX47: 0 | DY47: 0 | DZ47: 0 | EA47: 0 | EB47: 0 | EC47: 0 | ED47: 0 | EE47: 0 | EF47: 0 | EG47: 0 | EH47: 0 | EI47: =EI45-EI43-EI42 -> 0 | EJ47: 0 | EK47: 0 | EL47: 0 | EM47: 0 | EN47: 0 | EO47: 0 | EP47: 0 | EQ47: 0 | ER47: 0 | ES47: 0 | ET47: 0 | EU47: 0 | EV47: 0 | EW47: 0 | EX47: 0 | EY47: 0 | EZ47: 0 | FA47: 0 | FB47: 0 | FC47: 0 | FD47: 0 | FE47: 0 | FF47: 0 | FG47: 0 | FH47: 0 | FI47: 0 | FJ47: 0 | FK47: 0 | FL47: 0 | FM47: 0 | FN47: 0 | FO47: 0 | FP47: 0 | FQ47: 0 | FR47: 0 | FS47: 0 | FT47: 0 | FU47: 0 | FV47: 0 | FW47: 0 | FX47: 0 | FY47: 0 | FZ47: 0 | GA47: 0 | GB47: 0 | GC47: 0 | GD47: 0 | GE47: 0 | GF47: 0 | GG47: 0 | GH47: 0 | GI47: 0 | GJ47: 0 | GK47: 0 | GL47: 0 | GM47: 0 | GN47: 0 | GO47: 0 | GP47: 0 | GQ47: 0 | GR47: 0 | GS47: 0 | GT47: 0 | GU47: =GU45-GU43-GU42 -> 0 | GV47: 0 | GW47: 0 | GX47: 0 | GY47: 0 | GZ47: 0 | HA47: 0
D48: Project IRR | E48: % | F48: =XIRR(J47:HA47, J2:HA2) -> 0.06839130223
D50: Financial Close | E50: Flag | F50: =F4+1 -> 2 | J50: =$F$50=J3 -> FALSE | K50: TRUE | L50: FALSE | M50: FALSE | N50: FALSE | O50: FALSE | P50: FALSE | Q50: FALSE | R50: FALSE | S50: FALSE | T50: FALSE | U50: FALSE | V50: FALSE | W50: FALSE | X50: FALSE | Y50: FALSE | Z50: FALSE | AA50: FALSE | AB50: FALSE | AC50: FALSE | AD50: FALSE | AE50: FALSE | AF50: FALSE | AG50: FALSE | AH50: FALSE | AI50: FALSE | AJ50: FALSE | AK50: FALSE | AL50: FALSE | AM50: FALSE | AN50: FALSE | AO50: FALSE | AP50: =$F$50=AP3 -> FALSE | AQ50: FALSE | AR50: FALSE | AS50: FALSE | AT50: FALSE | AU50: FALSE | AV50: FALSE | AW50: FALSE | AX50: FALSE | AY50: FALSE | AZ50: FALSE | BA50: FALSE | BB50: FALSE | BC50: FALSE | BD50: FALSE | BE50: FALSE | BF50: FALSE | BG50: FALSE | BH50: FALSE | BI50: FALSE | BJ50: FALSE | BK50: FALSE | BL50: FALSE | BM50: FALSE | BN50: FALSE | BO50: FALSE | BP50: FALSE | BQ50: FALSE | BR50: FALSE | BS50: FALSE | BT50: FALSE | BU50: FALSE | BV50: =$F$50=BV3 -> FALSE | BW50: FALSE | BX50: FALSE | BY50: FALSE | BZ50: FALSE | CA50: FALSE | CB50: FALSE | CC50: FALSE | CD50: FALSE | CE50: FALSE | CF50: FALSE | CG50: FALSE | CH50: FALSE | CI50: FALSE | CJ50: FALSE | CK50: FALSE | CL50: FALSE | CM50: FALSE | CN50: FALSE | CO50: FALSE | CP50: FALSE | CQ50: FALSE | CR50: FALSE | CS50: FALSE | CT50: FALSE | CU50: FALSE | CV50: FALSE | CW50: FALSE | CX50: FALSE | CY50: FALSE | CZ50: FALSE | DA50: FALSE | DB50: =$F$50=DB3 -> FALSE | DC50: FALSE | DD50: FALSE | DE50: FALSE | DF50: FALSE | DG50: FALSE | DH50: FALSE | DI50: FALSE | DJ50: FALSE | DK50: FALSE | DL50: FALSE | DM50: FALSE | DN50: FALSE | DO50: FALSE | DP50: FALSE | DQ50: FALSE | DR50: FALSE | DS50: FALSE | DT50: FALSE | DU50: FALSE | DV50: FALSE | DW50: FALSE | DX50: FALSE | DY50: FALSE | DZ50: FALSE | EA50: FALSE | EB50: FALSE | EC50: FALSE | ED50: FALSE | EE50: FALSE | EF50: FALSE | EG50: FALSE | EH50: =$F$50=EH3 -> FALSE | EI50: FALSE | EJ50: FALSE | EK50: FALSE | EL50: FALSE | EM50: FALSE | EN50: FALSE | EO50: FALSE | EP50: FALSE | EQ50: FALSE | ER50: FALSE | ES50: FALSE | ET50: FALSE | EU50: FALSE | EV50: FALSE | EW50: FALSE | EX50: FALSE | EY50: FALSE | EZ50: FALSE | FA50: FALSE | FB50: FALSE | FC50: FALSE | FD50: FALSE | FE50: FALSE | FF50: FALSE | FG50: FALSE | FH50: FALSE | FI50: FALSE | FJ50: FALSE | FK50: FALSE | FL50: FALSE | FM50: FALSE | FN50: =$F$50=FN3 -> FALSE | FO50: FALSE | FP50: FALSE | FQ50: FALSE | FR50: FALSE | FS50: FALSE | FT50: FALSE | FU50: FALSE | FV50: FALSE | FW50: FALSE | FX50: FALSE | FY50: FALSE | FZ50: FALSE | GA50: FALSE | GB50: FALSE | GC50: FALSE | GD50: FALSE | GE50: FALSE | GF50: FALSE | GG50: FALSE | GH50: FALSE | GI50: FALSE | GJ50: FALSE | GK50: FALSE | GL50: FALSE | GM50: FALSE | GN50: FALSE | GO50: FALSE | GP50: FALSE | GQ50: FALSE | GR50: FALSE | GS50: FALSE | GT50: =$F$50=GT3 -> FALSE | GU50: FALSE | GV50: FALSE | GW50: FALSE | GX50: FALSE | GY50: FALSE | GZ50: FALSE | HA50: FALSE
D51: Development Fee | E51: EUR | F51: =F30 -> 33000 | J51: =$F$51*J50 -> 0 | K51: =$F$51*K50 -> 33000 | L51: 0 | M51: 0 | N51: 0 | O51: 0 | P51: 0 | Q51: 0 | R51: 0 | S51: 0 | T51: 0 | U51: 0 | V51: 0 | W51: 0 | X51: 0 | Y51: 0 | Z51: 0 | AA51: 0 | AB51: 0 | AC51: 0 | AD51: 0 | AE51: 0 | AF51: 0 | AG51: 0 | AH51: 0 | AI51: 0 | AJ51: 0 | AK51: 0 | AL51: 0 | AM51: 0 | AN51: 0 | AO51: 0 | AP51: 0 | AQ51: 0 | AR51: 0 | AS51: 0 | AT51: 0 | AU51: 0 | AV51: 0 | AW51: 0 | AX51: 0 | AY51: 0 | AZ51: 0 | BA51: 0 | BB51: 0 | BC51: 0 | BD51: 0 | BE51: 0 | BF51: 0 | BG51: 0 | BH51: 0 | BI51: 0 | BJ51: 0 | BK51: 0 | BL51: 0 | BM51: 0 | BN51: 0 | BO51: 0 | BP51: 0 | BQ51: 0 | BR51: 0 | BS51: 0 | BT51: 0 | BU51: 0 | BV51: 0 | BW51: =$F$51*BW50 -> 0 | BX51: 0 | BY51: 0 | BZ51: 0 | CA51: 0 | CB51: 0 | CC51: 0 | CD51: 0 | CE51: 0 | CF51: 0 | CG51: 0 | CH51: 0 | CI51: 0 | CJ51: 0 | CK51: 0 | CL51: 0 | CM51: 0 | CN51: 0 | CO51: 0 | CP51: 0 | CQ51: 0 | CR51: 0 | CS51: 0 | CT51: 0 | CU51: 0 | CV51: 0 | CW51: 0 | CX51: 0 | CY51: 0 | CZ51: 0 | DA51: 0 | DB51: 0 | DC51: 0 | DD51: 0 | DE51: 0 | DF51: 0 | DG51: 0 | DH51: 0 | DI51: 0 | DJ51: 0 | DK51: 0 | DL51: 0 | DM51: 0 | DN51: 0 | DO51: 0 | DP51: 0 | DQ51: 0 | DR51: 0 | DS51: 0 | DT51: 0 | DU51: 0 | DV51: 0 | DW51: 0 | DX51: 0 | DY51: 0 | DZ51: 0 | EA51: 0 | EB51: 0 | EC51: 0 | ED51: 0 | EE51: 0 | EF51: 0 | EG51: 0 | EH51: 0 | EI51: =$F$51*EI50 -> 0 | EJ51: 0 | EK51: 0 | EL51: 0 | EM51: 0 | EN51: 0 | EO51: 0 | EP51: 0 | EQ51: 0 | ER51: 0 | ES51: 0 | ET51: 0 | EU51: 0 | EV51: 0 | EW51: 0 | EX51: 0 | EY51: 0 | EZ51: 0 | FA51: 0 | FB51: 0 | FC51: 0 | FD51: 0 | FE51: 0 | FF51: 0 | FG51: 0 | FH51: 0 | FI51: 0 | FJ51: 0 | FK51: 0 | FL51: 0 | FM51: 0 | FN51: 0 | FO51: 0 | FP51: 0 | FQ51: 0 | FR51: 0 | FS51: 0 | FT51: 0 | FU51: 0 | FV51: 0 | FW51: 0 | FX51: 0 | FY51: 0 | FZ51: 0 | GA51: 0 | GB51: 0 | GC51: 0 | GD51: 0 | GE51: 0 | GF51: 0 | GG51: 0 | GH51: 0 | GI51: 0 | GJ51: 0 | GK51: 0 | GL51: 0 | GM51: 0 | GN51: 0 | GO51: 0 | GP51: 0 | GQ51: 0 | GR51: 0 | GS51: 0 | GT51: 0 | GU51: =$F$51*GU50 -> 0 | GV51: 0 | GW51: 0 | GX51: 0 | GY51: 0 | GZ51: 0 | HA51: 0
D53: Project Cash Flow with Development Fee as Cost | E53: EUR | J53: =J47-J51 -> -20000 | K53: -433000 | L53: 25625 | M53: 26265.625 | N53: 26922.26562 | O53: 27595.32227 | P53: 28285.20532 | Q53: 28992.33546 | R53: 29717.14384 | S53: 30460.07244 | T53: 31221.57425 | U53: 32002.1136 | V53: 32802.16645 | W53: 33622.22061 | X53: 34462.77612 | Y53: 35324.34552 | Z53: 36207.45416 | AA53: 37112.64052 | AB53: 38040.45653 | AC53: 38991.46794 | AD53: 39966.25464 | AE53: 40965.41101 | AF53: 41989.54628 | AG53: 43039.28494 | AH53: 44115.26706 | AI53: 45218.14874 | AJ53: 46348.60246 | AK53: 47507.31752 | AL53: 48695.00046 | AM53: 49912.37547 | AN53: 51160.18486 | AO53: 52439.18948 | AP53: =AP47-AP51 -> 0 | AQ53: 0 | AR53: 0 | AS53: 0 | AT53: 0 | AU53: 0 | AV53: 0 | AW53: 0 | AX53: 0 | AY53: 0 | AZ53: 0 | BA53: 0 | BB53: 0 | BC53: 0 | BD53: 0 | BE53: 0 | BF53: 0 | BG53: 0 | BH53: 0 | BI53: 0 | BJ53: 0 | BK53: 0 | BL53: 0 | BM53: 0 | BN53: 0 | BO53: 0 | BP53: 0 | BQ53: 0 | BR53: 0 | BS53: 0 | BT53: 0 | BU53: 0 | BV53: =BV47-BV51 -> 0 | BW53: 0 | BX53: 0 | BY53: 0 | BZ53: 0 | CA53: 0 | CB53: 0 | CC53: 0 | CD53: 0 | CE53: 0 | CF53: 0 | CG53: 0 | CH53: 0 | CI53: 0 | CJ53: 0 | CK53: 0 | CL53: 0 | CM53: 0 | CN53: 0 | CO53: 0 | CP53: 0 | CQ53: 0 | CR53: 0 | CS53: 0 | CT53: 0 | CU53: 0 | CV53: 0 | CW53: 0 | CX53: 0 | CY53: 0 | CZ53: 0 | DA53: 0 | DB53: =DB47-DB51 -> 0 | DC53: 0 | DD53: 0 | DE53: 0 | DF53: 0 | DG53: 0 | DH53: 0 | DI53: 0 | DJ53: 0 | DK53: 0 | DL53: 0 | DM53: 0 | DN53: 0 | DO53: 0 | DP53: 0 | DQ53: 0 | DR53: 0 | DS53: 0 | DT53: 0 | DU53: 0 | DV53: 0 | DW53: 0 | DX53: 0 | DY53: 0 | DZ53: 0 | EA53: 0 | EB53: 0 | EC53: 0 | ED53: 0 | EE53: 0 | EF53: 0 | EG53: 0 | EH53: =EH47-EH51 -> 0 | EI53: 0 | EJ53: 0 | EK53: 0 | EL53: 0 | EM53: 0 | EN53: 0 | EO53: 0 | EP53: 0 | EQ53: 0 | ER53: 0 | ES53: 0 | ET53: 0 | EU53: 0 | EV53: 0 | EW53: 0 | EX53: 0 | EY53: 0 | EZ53: 0 | FA53: 0 | FB53: 0 | FC53: 0 | FD53: 0 | FE53: 0 | FF53: 0 | FG53: 0 | FH53: 0 | FI53: 0 | FJ53: 0 | FK53: 0 | FL53: 0 | FM53: 0 | FN53: =FN47-FN51 -> 0 | FO53: 0 | FP53: 0 | FQ53: 0 | FR53: 0 | FS53: 0 | FT53: 0 | FU53: 0 | FV53: 0 | FW53: 0 | FX53: 0 | FY53: 0 | FZ53: 0 | GA53: 0 | GB53: 0 | GC53: 0 | GD53: 0 | GE53: 0 | GF53: 0 | GG53: 0 | GH53: 0 | GI53: 0 | GJ53: 0 | GK53: 0 | GL53: 0 | GM53: 0 | GN53: 0 | GO53: 0 | GP53: 0 | GQ53: 0 | GR53: 0 | GS53: 0 | GT53: =GT47-GT51 -> 0 | GU53: 0 | GV53: 0 | GW53: 0 | GX53: 0 | GY53: 0 | GZ53: 0 | HA53: 0
D54: IRR with Development Fee | E54: % | F54: =XIRR(J53:HA53,J2:HA2) -> 0.06204259694
D56: Development Cost at FC | E56: EUR | F56: =F42 -> 20000 | J56: =$F$56*J50 -> 0 | K56: =$F$56*K50 -> 20000 | L56: 0 | M56: 0 | N56: 0 | O56: 0 | P56: 0 | Q56: 0 | R56: 0 | S56: 0 | T56: 0 | U56: 0 | V56: 0 | W56: 0 | X56: 0 | Y56: 0 | Z56: 0 | AA56: 0 | AB56: 0 | AC56: 0 | AD56: 0 | AE56: 0 | AF56: 0 | AG56: 0 | AH56: 0 | AI56: 0 | AJ56: 0 | AK56: 0 | AL56: 0 | AM56: 0 | AN56: 0 | AO56: 0 | AP56: 0 | AQ56: 0 | AR56: 0 | AS56: 0 | AT56: 0 | AU56: 0 | AV56: 0 | AW56: 0 | AX56: 0 | AY56: 0 | AZ56: 0 | BA56: 0 | BB56: 0 | BC56: 0 | BD56: 0 | BE56: 0 | BF56: 0 | BG56: 0 | BH56: 0 | BI56: 0 | BJ56: 0 | BK56: 0 | BL56: 0 | BM56: 0 | BN56: 0 | BO56: 0 | BP56: 0 | BQ56: 0 | BR56: 0 | BS56: 0 | BT56: 0 | BU56: 0 | BV56: 0 | BW56: =$F$56*BW50 -> 0 | BX56: 0 | BY56: 0 | BZ56: 0 | CA56: 0 | CB56: 0 | CC56: 0 | CD56: 0 | CE56: 0 | CF56: 0 | CG56: 0 | CH56: 0 | CI56: 0 | CJ56: 0 | CK56: 0 | CL56: 0 | CM56: 0 | CN56: 0 | CO56: 0 | CP56: 0 | CQ56: 0 | CR56: 0 | CS56: 0 | CT56: 0 | CU56: 0 | CV56: 0 | CW56: 0 | CX56: 0 | CY56: 0 | CZ56: 0 | DA56: 0 | DB56: 0 | DC56: 0 | DD56: 0 | DE56: 0 | DF56: 0 | DG56: 0 | DH56: 0 | DI56: 0 | DJ56: 0 | DK56: 0 | DL56: 0 | DM56: 0 | DN56: 0 | DO56: 0 | DP56: 0 | DQ56: 0 | DR56: 0 | DS56: 0 | DT56: 0 | DU56: 0 | DV56: 0 | DW56: 0 | DX56: 0 | DY56: 0 | DZ56: 0 | EA56: 0 | EB56: 0 | EC56: 0 | ED56: 0 | EE56: 0 | EF56: 0 | EG56: 0 | EH56: 0 | EI56: =$F$56*EI50 -> 0 | EJ56: 0 | EK56: 0 | EL56: 0 | EM56: 0 | EN56: 0 | EO56: 0 | EP56: 0 | EQ56: 0 | ER56: 0 | ES56: 0 | ET56: 0 | EU56: 0 | EV56: 0 | EW56: 0 | EX56: 0 | EY56: 0 | EZ56: 0 | FA56: 0 | FB56: 0 | FC56: 0 | FD56: 0 | FE56: 0 | FF56: 0 | FG56: 0 | FH56: 0 | FI56: 0 | FJ56: 0 | FK56: 0 | FL56: 0 | FM56: 0 | FN56: 0 | FO56: 0 | FP56: 0 | FQ56: 0 | FR56: 0 | FS56: 0 | FT56: 0 | FU56: 0 | FV56: 0 | FW56: 0 | FX56: 0 | FY56: 0 | FZ56: 0 | GA56: 0 | GB56: 0 | GC56: 0 | GD56: 0 | GE56: 0 | GF56: 0 | GG56: 0 | GH56: 0 | GI56: 0 | GJ56: 0 | GK56: 0 | GL56: 0 | GM56: 0 | GN56: 0 | GO56: 0 | GP56: 0 | GQ56: 0 | GR56: 0 | GS56: 0 | GT56: 0 | GU56: =$F$56*GU50 -> 0 | GV56: 0 | GW56: 0 | GX56: 0 | GY56: 0 | GZ56: 0 | HA56: 0
B58: Uses and Sources
C59: Uses of Funds
D60: Development Cost | F60: =F16 -> 20000
D61: Development Fee | F61: =F30 -> 33000
D62: EPC Cost | F62: =F17 -> 400000
D63: Total Uses | F63: =SUM(F60:F62) -> 453000
C65: Sources of Funds
D66: Debt | E66: =F36 -> 0.8
D67: Developer/Sponsor | E67: =F32 -> 0.5 | F67: =(F63-F66)*E67 -> 226500
D68: Partner | E68: =F33 -> 0.5 | F68: =(F63-F66)*E68 -> 226500
D69: Total Sources | F69: =SUM(F66:F68) -> 453000
D71: Equity Funding of EPC | F71: =F63-F66-F61-F60 -> 400000
C73: Overall Cash Flow Waterfall
D74: Repayment Flag | F74: =F37 -> 20 | J74: =AND(J7,J6<=$F$74) -> FALSE | K74: FALSE | L74: TRUE | M74: TRUE | N74: TRUE | O74: TRUE | P74: TRUE | Q74: TRUE | R74: TRUE | S74: TRUE | T74: TRUE | U74: TRUE | V74: TRUE | W74: TRUE | X74: TRUE | Y74: TRUE | Z74: TRUE | AA74: TRUE | AB74: TRUE | AC74: TRUE | AD74: TRUE | AE74: TRUE | AF74: FALSE | AG74: FALSE | AH74: FALSE | AI74: FALSE | AJ74: FALSE | AK74: FALSE | AL74: FALSE | AM74: FALSE | AN74: FALSE | AO74: FALSE | AP74: =AND(AP7,AP6<=$F$74) -> FALSE | AQ74: FALSE | AR74: FALSE | AS74: FALSE | AT74: FALSE | AU74: FALSE | AV74: FALSE | AW74: FALSE | AX74: FALSE | AY74: FALSE | AZ74: FALSE | BA74: FALSE | BB74: FALSE | BC74: FALSE | BD74: FALSE | BE74: FALSE | BF74: FALSE | BG74: FALSE | BH74: FALSE | BI74: FALSE | BJ74: FALSE | BK74: FALSE | BL74: FALSE | BM74: FALSE | BN74: FALSE | BO74: FALSE | BP74: FALSE | BQ74: FALSE | BR74: FALSE | BS74: FALSE | BT74: FALSE | BU74: FALSE | BV74: =AND(BV7,BV6<=$F$74) -> FALSE | BW74: FALSE | BX74: FALSE | BY74: FALSE | BZ74: FALSE | CA74: FALSE | CB74: FALSE | CC74: FALSE | CD74: FALSE | CE74: FALSE | CF74: FALSE | CG74: FALSE | CH74: FALSE | CI74: FALSE | CJ74: FALSE | CK74: FALSE | CL74: FALSE | CM74: FALSE | CN74: FALSE | CO74: FALSE | CP74: FALSE | CQ74: FALSE | CR74: FALSE | CS74: FALSE | CT74: FALSE | CU74: FALSE | CV74: FALSE | CW74: FALSE | CX74: FALSE | CY74: FALSE | CZ74: FALSE | DA74: FALSE | DB74: =AND(DB7,DB6<=$F$74) -> FALSE | DC74: FALSE | DD74: FALSE | DE74: FALSE | DF74: FALSE | DG74: FALSE | DH74: FALSE | DI74: FALSE | DJ74: FALSE | DK74: FALSE | DL74: FALSE | DM74: FALSE | DN74: FALSE | DO74: FALSE | DP74: FALSE | DQ74: FALSE | DR74: FALSE | DS74: FALSE | DT74: FALSE | DU74: FALSE | DV74: FALSE | DW74: FALSE | DX74: FALSE | DY74: FALSE | DZ74: FALSE | EA74: FALSE | EB74: FALSE | EC74: FALSE | ED74: FALSE | EE74: FALSE | EF74: FALSE | EG74: FALSE | EH74: =AND(EH7,EH6<=$F$74) -> FALSE | EI74: FALSE | EJ74: FALSE | EK74: FALSE | EL74: FALSE | EM74: FALSE | EN74: FALSE | EO74: FALSE | EP74: FALSE | EQ74: FALSE | ER74: FALSE | ES74: FALSE | ET74: FALSE | EU74: FALSE | EV74: FALSE | EW74: FALSE | EX74: FALSE | EY74: FALSE | EZ74: FALSE | FA74: FALSE | FB74: FALSE | FC74: FALSE | FD74: FALSE | FE74: FALSE | FF74: FALSE | FG74: FALSE | FH74: FALSE | FI74: FALSE | FJ74: FALSE | FK74: FALSE | FL74: FALSE | FM74: FALSE | FN74: =AND(FN7,FN6<=$F$74) -> FALSE | FO74: FALSE | FP74: FALSE | FQ74: FALSE | FR74: FALSE | FS74: FALSE | FT74: FALSE | FU74: FALSE | FV74: FALSE | FW74: FALSE | FX74: FALSE | FY74: FALSE | FZ74: FALSE | GA74: FALSE | GB74: FALSE | GC74: FALSE | GD74: FALSE | GE74: FALSE | GF74: FALSE | GG74: FALSE | GH74: FALSE | GI74: FALSE | GJ74: FALSE | GK74: FALSE | GL74: FALSE | GM74: FALSE | GN74: FALSE | GO74: FALSE | GP74: FALSE | GQ74: FALSE | GR74: FALSE | GS74: FALSE | GT74: =AND(GT7,GT6<=$F$74) -> FALSE | GU74: FALSE | GV74: FALSE | GW74: FALSE | GX74: FALSE | GY74: FALSE | GZ74: FALSE | HA74: FALSE
D76: CFADS =EBITDA | H76: =SUM(I76:XFD76) -> 654581.8513 | J76: =J45*J74 -> 0 | K76: 0 | L76: 25625 | M76: 26265.625 | N76: 26922.26562 | O76: 27595.32227 | P76: 28285.20532 | Q76: 28992.33546 | R76: 29717.14384 | S76: 30460.07244 | T76: 31221.57425 | U76: 32002.1136 | V76: 32802.16645 | W76: 33622.22061 | X76: 34462.77612 | Y76: 35324.34552 | Z76: 36207.45416 | AA76: 37112.64052 | AB76: 38040.45653 | AC76: 38991.46794 | AD76: 39966.25464 | AE76: 40965.41101 | AF76: 0 | AG76: 0 | AH76: 0 | AI76: 0 | AJ76: 0 | AK76: 0 | AL76: 0 | AM76: 0 | AN76: 0 | AO76: 0 | AP76: =AP45*AP74 -> 0 | AQ76: 0 | AR76: 0 | AS76: 0 | AT76: 0 | AU76: 0 | AV76: 0 | AW76: 0 | AX76: 0 | AY76: 0 | AZ76: 0 | BA76: 0 | BB76: 0 | BC76: 0 | BD76: 0 | BE76: 0 | BF76: 0 | BG76: 0 | BH76: 0 | BI76: 0 | BJ76: 0 | BK76: 0 | BL76: 0 | BM76: 0 | BN76: 0 | BO76: 0 | BP76: 0 | BQ76: 0 | BR76: 0 | BS76: 0 | BT76: 0 | BU76: 0 | BV76: =BV45*BV74 -> 0 | BW76: 0 | BX76: 0 | BY76: 0 | BZ76: 0 | CA76: 0 | CB76: 0 | CC76: 0 | CD76: 0 | CE76: 0 | CF76: 0 | CG76: 0 | CH76: 0 | CI76: 0 | CJ76: 0 | CK76: 0 | CL76: 0 | CM76: 0 | CN76: 0 | CO76: 0 | CP76: 0 | CQ76: 0 | CR76: 0 | CS76: 0 | CT76: 0 | CU76: 0 | CV76: 0 | CW76: 0 | CX76: 0 | CY76: 0 | CZ76: 0 | DA76: 0 | DB76: =DB45*DB74 -> 0 | DC76: 0 | DD76: 0 | DE76: 0 | DF76: 0 | DG76: 0 | DH76: 0 | DI76: 0 | DJ76: 0 | DK76: 0 | DL76: 0 | DM76: 0 | DN76: 0 | DO76: 0 | DP76: 0 | DQ76: 0 | DR76: 0 | DS76: 0 | DT76: 0 | DU76: 0 | DV76: 0 | DW76: 0 | DX76: 0 | DY76: 0 | DZ76: 0 | EA76: 0 | EB76: 0 | EC76: 0 | ED76: 0 | EE76: 0 | EF76: 0 | EG76: 0 | EH76: =EH45*EH74 -> 0 | EI76: 0 | EJ76: 0 | EK76: 0 | EL76: 0 | EM76: 0 | EN76: 0 | EO76: 0 | EP76: 0 | EQ76: 0 | ER76: 0 | ES76: 0 | ET76: 0 | EU76: 0 | EV76: 0 | EW76: 0 | EX76: 0 | EY76: 0 | EZ76: 0 | FA76: 0 | FB76: 0 | FC76: 0 | FD76: 0 | FE76: 0 | FF76: 0 | FG76: 0 | FH76: 0 | FI76: 0 | FJ76: 0 | FK76: 0 | FL76: 0 | FM76: 0 | FN76: =FN45*FN74 -> 0 | FO76: 0 | FP76: 0 | FQ76: 0 | FR76: 0 | FS76: 0 | FT76: 0 | FU76: 0 | FV76: 0 | FW76: 0 | FX76: 0 | FY76: 0 | FZ76: 0 | GA76: 0 | GB76: 0 | GC76: 0 | GD76: 0 | GE76: 0 | GF76: 0 | GG76: 0 | GH76: 0 | GI76: 0 | GJ76: 0 | GK76: 0 | GL76: 0 | GM76: 0 | GN76: 0 | GO76: 0 | GP76: 0 | GQ76: 0 | GR76: 0 | GS76: 0 | GT76: =GT45*GT74 -> 0 | GU76: 0 | GV76: 0 | GW76: 0 | GX76: 0 | GY76: 0 | GZ76: 0 | HA76: 0
D77: Interest Rate Index | G77: =F38 -> 0.035 | I77: 1 | J77: =I77*(1+$G$77*J7) -> 1 | K77: 1 | L77: 1.035 | M77: 1.071225 | N77: 1.108717875 | O77: 1.147523001 | P77: 1.187686306 | Q77: 1.229255326 | R77: 1.272279263 | S77: 1.316809037 | T77: 1.362897353 | U77: 1.410598761 | V77: 1.459969717 | W77: 1.511068657 | X77: 1.56395606 | Y77: 1.618694522 | Z77: 1.675348831 | AA77: 1.73398604 | AB77: 1.794675551 | AC77: 1.857489196 | AD77: 1.922501317 | AE77: 1.989788863 | AF77: 2.059431474 | AG77: 2.131511575 | AH77: 2.20611448 | AI77: 2.283328487 | AJ77: 2.363244984 | AK77: 2.445958559 | AL77: 2.531567108 | AM77: 2.620171957 | AN77: 2.711877976 | AO77: 2.806793705 | AP77: =AO77*(1+$G$77*AP7) -> 2.806793705 | AQ77: 2.806793705 | AR77: 2.806793705 | AS77: 2.806793705 | AT77: 2.806793705 | AU77: 2.806793705 | AV77: 2.806793705 | AW77: 2.806793705 | AX77: 2.806793705 | AY77: 2.806793705 | AZ77: 2.806793705 | BA77: 2.806793705 | BB77: 2.806793705 | BC77: 2.806793705 | BD77: 2.806793705 | BE77: 2.806793705 | BF77: 2.806793705 | BG77: 2.806793705 | BH77: 2.806793705 | BI77: 2.806793705 | BJ77: 2.806793705 | BK77: 2.806793705 | BL77: 2.806793705 | BM77: 2.806793705 | BN77: 2.806793705 | BO77: 2.806793705 | BP77: 2.806793705 | BQ77: 2.806793705 | BR77: 2.806793705 | BS77: 2.806793705 | BT77: 2.806793705 | BU77: 2.806793705 | BV77: =BU77*(1+$G$77*BV7) -> 2.806793705 | BW77: 2.806793705 | BX77: 2.806793705 | BY77: 2.806793705 | BZ77: 2.806793705 | CA77: 2.806793705 | CB77: 2.806793705 | CC77: 2.806793705 | CD77: 2.806793705 | CE77: 2.806793705 | CF77: 2.806793705 | CG77: 2.806793705 | CH77: 2.806793705 | CI77: 2.806793705 | CJ77: 2.806793705 | CK77: 2.806793705 | CL77: 2.806793705 | CM77: 2.806793705 | CN77: 2.806793705 | CO77: 2.806793705 | CP77: 2.806793705 | CQ77: 2.806793705 | CR77: 2.806793705 | CS77: 2.806793705 | CT77: 2.806793705 | CU77: 2.806793705 | CV77: 2.806793705 | CW77: 2.806793705 | CX77: 2.806793705 | CY77: 2.806793705 | CZ77: 2.806793705 | DA77: 2.806793705 | DB77: =DA77*(1+$G$77*DB7) -> 2.806793705 | DC77: 2.806793705 | DD77: 2.806793705 | DE77: 2.806793705 | DF77: 2.806793705 | DG77: 2.806793705 | DH77: 2.806793705 | DI77: 2.806793705 | DJ77: 2.806793705 | DK77: 2.806793705 | DL77: 2.806793705 | DM77: 2.806793705 | DN77: 2.806793705 | DO77: 2.806793705 | DP77: 2.806793705 | DQ77: 2.806793705 | DR77: 2.806793705 | DS77: 2.806793705 | DT77: 2.806793705 | DU77: 2.806793705 | DV77: 2.806793705 | DW77: 2.806793705 | DX77: 2.806793705 | DY77: 2.806793705 | DZ77: 2.806793705 | EA77: 2.806793705 | EB77: 2.806793705 | EC77: 2.806793705 | ED77: 2.806793705 | EE77: 2.806793705 | EF77: 2.806793705 | EG77: 2.806793705 | EH77: =EG77*(1+$G$77*EH7) -> 2.806793705 | EI77: 2.806793705 | EJ77: 2.806793705 | EK77: 2.806793705 | EL77: 2.806793705 | EM77: 2.806793705 | EN77: 2.806793705 | EO77: 2.806793705 | EP77: 2.806793705 | EQ77: 2.806793705 | ER77: 2.806793705 | ES77: 2.806793705 | ET77: 2.806793705 | EU77: 2.806793705 | EV77: 2.806793705 | EW77: 2.806793705 | EX77: 2.806793705 | EY77: 2.806793705 | EZ77: 2.806793705 | FA77: 2.806793705 | FB77: 2.806793705 | FC77: 2.806793705 | FD77: 2.806793705 | FE77: 2.806793705 | FF77: 2.806793705 | FG77: 2.806793705 | FH77: 2.806793705 | FI77: 2.806793705 | FJ77: 2.806793705 | FK77: 2.806793705 | FL77: 2.806793705 | FM77: 2.806793705 | FN77: =FM77*(1+$G$77*FN7) -> 2.806793705 | FO77: 2.806793705 | FP77: 2.806793705 | FQ77: 2.806793705 | FR77: 2.806793705 | FS77: 2.806793705 | FT77: 2.806793705 | FU77: 2.806793705 | FV77: 2.806793705 | FW77: 2.806793705 | FX77: 2.806793705 | FY77: 2.806793705 | FZ77: 2.806793705 | GA77: 2.806793705 | GB77: 2.806793705 | GC77: 2.806793705 | GD77: 2.806793705 | GE77: 2.806793705 | GF77: 2.806793705 | GG77: 2.806793705 | GH77: 2.806793705 | GI77: 2.806793705 | GJ77: 2.806793705 | GK77: 2.806793705 | GL77: 2.806793705 | GM77: 2.806793705 | GN77: 2.806793705 | GO77: 2.806793705 | GP77: 2.806793705 | GQ77: 2.806793705 | GR77: 2.806793705 | GS77: 2.806793705 | GT77: =GS77*(1+$G$77*GT7) -> 2.806793705 | GU77: 2.806793705 | GV77: 2.806793705 | GW77: 2.806793705 | GX77: 2.806793705 | GY77: 2.806793705 | GZ77: 2.806793705 | HA77: 2.806793705
D78: PV of CFADS to Compute LLCR | F78: =SUMPRODUCT(J76:HA76/J77:HA77) -> 452248.6536
D79: Implied DSCR for Sculpting (PV CFADS/Debt) | F79: =IF(F66,F78/F66,) -> 0
D81: Project Cash Flow | J81: =J45 -> 0 | K81: 0 | L81: 25625 | M81: 26265.625 | N81: 26922.26562 | O81: 27595.32227 | P81: 28285.20532 | Q81: 28992.33546 | R81: 29717.14384 | S81: 30460.07244 | T81: 31221.57425 | U81: 32002.1136 | V81: 32802.16645 | W81: 33622.22061 | X81: 34462.77612 | Y81: 35324.34552 | Z81: 36207.45416 | AA81: 37112.64052 | AB81: 38040.45653 | AC81: 38991.46794 | AD81: 39966.25464 | AE81: 40965.41101 | AF81: 41989.54628 | AG81: 43039.28494 | AH81: 44115.26706 | AI81: 45218.14874 | AJ81: 46348.60246 | AK81: 47507.31752 | AL81: 48695.00046 | AM81: 49912.37547 | AN81: 51160.18486 | AO81: 52439.18948 | AP81: =AP45 -> 0 | AQ81: 0 | AR81: 0 | AS81: 0 | AT81: 0 | AU81: 0 | AV81: 0 | AW81: 0 | AX81: 0 | AY81: 0 | AZ81: 0 | BA81: 0 | BB81: 0 | BC81: 0 | BD81: 0 | BE81: 0 | BF81: 0 | BG81: 0 | BH81: 0 | BI81: 0 | BJ81: 0 | BK81: 0 | BL81: 0 | BM81: 0 | BN81: 0 | BO81: 0 | BP81: 0 | BQ81: 0 | BR81: 0 | BS81: 0 | BT81: 0 | BU81: 0 | BV81: =BV45 -> 0 | BW81: 0 | BX81: 0 | BY81: 0 | BZ81: 0 | CA81: 0 | CB81: 0 | CC81: 0 | CD81: 0 | CE81: 0 | CF81: 0 | CG81: 0 | CH81: 0 | CI81: 0 | CJ81: 0 | CK81: 0 | CL81: 0 | CM81: 0 | CN81: 0 | CO81: 0 | CP81: 0 | CQ81: 0 | CR81: 0 | CS81: 0 | CT81: 0 | CU81: 0 | CV81: 0 | CW81: 0 | CX81: 0 | CY81: 0 | CZ81: 0 | DA81: 0 | DB81: =DB45 -> 0 | DC81: 0 | DD81: 0 | DE81: 0 | DF81: 0 | DG81: 0 | DH81: 0 | DI81: 0 | DJ81: 0 | DK81: 0 | DL81: 0 | DM81: 0 | DN81: 0 | DO81: 0 | DP81: 0 | DQ81: 0 | DR81: 0 | DS81: 0 | DT81: 0 | DU81: 0 | DV81: 0 | DW81: 0 | DX81: 0 | DY81: 0 | DZ81: 0 | EA81: 0 | EB81: 0 | EC81: 0 | ED81: 0 | EE81: 0 | EF81: 0 | EG81: 0 | EH81: =EH45 -> 0 | EI81: 0 | EJ81: 0 | EK81: 0 | EL81: 0 | EM81: 0 | EN81: 0 | EO81: 0 | EP81: 0 | EQ81: 0 | ER81: 0 | ES81: 0 | ET81: 0 | EU81: 0 | EV81: 0 | EW81: 0 | EX81: 0 | EY81: 0 | EZ81: 0 | FA81: 0 | FB81: 0 | FC81: 0 | FD81: 0 | FE81: 0 | FF81: 0 | FG81: 0 | FH81: 0 | FI81: 0 | FJ81: 0 | FK81: 0 | FL81: 0 | FM81: 0 | FN81: =FN45 -> 0 | FO81: 0 | FP81: 0 | FQ81: 0 | FR81: 0 | FS81: 0 | FT81: 0 | FU81: 0 | FV81: 0 | FW81: 0 | FX81: 0 | FY81: 0 | FZ81: 0 | GA81: 0 | GB81: 0 | GC81: 0 | GD81: 0 | GE81: 0 | GF81: 0 | GG81: 0 | GH81: 0 | GI81: 0 | GJ81: 0 | GK81: 0 | GL81: 0 | GM81: 0 | GN81: 0 | GO81: 0 | GP81: 0 | GQ81: 0 | GR81: 0 | GS81: 0 | GT81: =GT45 -> 0 | GU81: 0 | GV81: 0 | GW81: 0 | GX81: 0 | GY81: 0 | GZ81: 0 | HA81: 0
D82: Debt Service | F82: =F79 -> 0 | H82: =SUM(I82:XFD82) -> 0 | J82: =IF($F$82,J76/$F$82) -> FALSE | K82: =IF($F$82,K76/$F$82) -> FALSE | L82: FALSE | M82: FALSE | N82: FALSE | O82: FALSE | P82: FALSE | Q82: FALSE | R82: FALSE | S82: FALSE | T82: FALSE | U82: FALSE | V82: FALSE | W82: FALSE | X82: FALSE | Y82: FALSE | Z82: FALSE | AA82: FALSE | AB82: FALSE | AC82: FALSE | AD82: FALSE | AE82: FALSE | AF82: FALSE | AG82: FALSE | AH82: FALSE | AI82: FALSE | AJ82: FALSE | AK82: FALSE | AL82: FALSE | AM82: FALSE | AN82: FALSE | AO82: FALSE | AP82: FALSE | AQ82: FALSE | AR82: FALSE | AS82: FALSE | AT82: FALSE | AU82: FALSE | AV82: FALSE | AW82: FALSE | AX82: FALSE | AY82: FALSE | AZ82: FALSE | BA82: FALSE | BB82: FALSE | BC82: FALSE | BD82: FALSE | BE82: FALSE | BF82: FALSE | BG82: FALSE | BH82: FALSE | BI82: FALSE | BJ82: FALSE | BK82: FALSE | BL82: FALSE | BM82: FALSE | BN82: FALSE | BO82: FALSE | BP82: FALSE | BQ82: FALSE | BR82: FALSE | BS82: FALSE | BT82: FALSE | BU82: FALSE | BV82: FALSE | BW82: =IF($F$82,BW76/$F$82) -> FALSE | BX82: FALSE | BY82: FALSE | BZ82: FALSE | CA82: FALSE | CB82: FALSE | CC82: FALSE | CD82: FALSE | CE82: FALSE | CF82: FALSE | CG82: FALSE | CH82: FALSE | CI82: FALSE | CJ82: FALSE | CK82: FALSE | CL82: FALSE | CM82: FALSE | CN82: FALSE | CO82: FALSE | CP82: FALSE | CQ82: FALSE | CR82: FALSE | CS82: FALSE | CT82: FALSE | CU82: FALSE | CV82: FALSE | CW82: FALSE | CX82: FALSE | CY82: FALSE | CZ82: FALSE | DA82: FALSE | DB82: FALSE | DC82: FALSE | DD82: FALSE | DE82: FALSE | DF82: FALSE | DG82: FALSE | DH82: FALSE | DI82: FALSE | DJ82: FALSE | DK82: FALSE | DL82: FALSE | DM82: FALSE | DN82: FALSE | DO82: FALSE | DP82: FALSE | DQ82: FALSE | DR82: FALSE | DS82: FALSE | DT82: FALSE | DU82: FALSE | DV82: FALSE | DW82: FALSE | DX82: FALSE | DY82: FALSE | DZ82: FALSE | EA82: FALSE | EB82: FALSE | EC82: FALSE | ED82: FALSE | EE82: FALSE | EF82: FALSE | EG82: FALSE | EH82: FALSE | EI82: =IF($F$82,EI76/$F$82) -> FALSE | EJ82: FALSE | EK82: FALSE | EL82: FALSE | EM82: FALSE | EN82: FALSE | EO82: FALSE | EP82: FALSE | EQ82: FALSE | ER82: FALSE | ES82: FALSE | ET82: FALSE | EU82: FALSE | EV82: FALSE | EW82: FALSE | EX82: FALSE | EY82: FALSE | EZ82: FALSE | FA82: FALSE | FB82: FALSE | FC82: FALSE | FD82: FALSE | FE82: FALSE | FF82: FALSE | FG82: FALSE | FH82: FALSE | FI82: FALSE | FJ82: FALSE | FK82: FALSE | FL82: FALSE | FM82: FALSE | FN82: FALSE | FO82: FALSE | FP82: FALSE | FQ82: FALSE | FR82: FALSE | FS82: FALSE | FT82: FALSE | FU82: FALSE | FV82: FALSE | FW82: FALSE | FX82: FALSE | FY82: FALSE | FZ82: FALSE | GA82: FALSE | GB82: FALSE | GC82: FALSE | GD82: FALSE | GE82: FALSE | GF82: FALSE | GG82: FALSE | GH82: FALSE | GI82: FALSE | GJ82: FALSE | GK82: FALSE | GL82: FALSE | GM82: FALSE | GN82: FALSE | GO82: FALSE | GP82: FALSE | GQ82: FALSE | GR82: FALSE | GS82: FALSE | GT82: FALSE | GU82: =IF($F$82,GU76/$F$82) -> FALSE | GV82: FALSE | GW82: FALSE | GX82: FALSE | GY82: FALSE | GZ82: FALSE | HA82: FALSE
D83: Equity Cash Flow | H83: =SUM(I83:XFD83) -> 1125006.769 | J83: =J81-J82 -> 0 | K83: 0 | L83: 25625 | M83: 26265.625 | N83: 26922.26562 | O83: 27595.32227 | P83: 28285.20532 | Q83: 28992.33546 | R83: 29717.14384 | S83: 30460.07244 | T83: 31221.57425 | U83: 32002.1136 | V83: 32802.16645 | W83: 33622.22061 | X83: 34462.77612 | Y83: 35324.34552 | Z83: 36207.45416 | AA83: 37112.64052 | AB83: 38040.45653 | AC83: 38991.46794 | AD83: 39966.25464 | AE83: 40965.41101 | AF83: 41989.54628 | AG83: 43039.28494 | AH83: 44115.26706 | AI83: 45218.14874 | AJ83: 46348.60246 | AK83: 47507.31752 | AL83: 48695.00046 | AM83: 49912.37547 | AN83: 51160.18486 | AO83: 52439.18948 | AP83: =AP81-AP82 -> 0 | AQ83: 0 | AR83: 0 | AS83: 0 | AT83: 0 | AU83: 0 | AV83: 0 | AW83: 0 | AX83: 0 | AY83: 0 | AZ83: 0 | BA83: 0 | BB83: 0 | BC83: 0 | BD83: 0 | BE83: 0 | BF83: 0 | BG83: 0 | BH83: 0 | BI83: 0 | BJ83: 0 | BK83: 0 | BL83: 0 | BM83: 0 | BN83: 0 | BO83: 0 | BP83: 0 | BQ83: 0 | BR83: 0 | BS83: 0 | BT83: 0 | BU83: 0 | BV83: =BV81-BV82 -> 0 | BW83: 0 | BX83: 0 | BY83: 0 | BZ83: 0 | CA83: 0 | CB83: 0 | CC83: 0 | CD83: 0 | CE83: 0 | CF83: 0 | CG83: 0 | CH83: 0 | CI83: 0 | CJ83: 0 | CK83: 0 | CL83: 0 | CM83: 0 | CN83: 0 | CO83: 0 | CP83: 0 | CQ83: 0 | CR83: 0 | CS83: 0 | CT83: 0 | CU83: 0 | CV83: 0 | CW83: 0 | CX83: 0 | CY83: 0 | CZ83: 0 | DA83: 0 | DB83: =DB81-DB82 -> 0 | DC83: 0 | DD83: 0 | DE83: 0 | DF83: 0 | DG83: 0 | DH83: 0 | DI83: 0 | DJ83: 0 | DK83: 0 | DL83: 0 | DM83: 0 | DN83: 0 | DO83: 0 | DP83: 0 | DQ83: 0 | DR83: 0 | DS83: 0 | DT83: 0 | DU83: 0 | DV83: 0 | DW83: 0 | DX83: 0 | DY83: 0 | DZ83: 0 | EA83: 0 | EB83: 0 | EC83: 0 | ED83: 0 | EE83: 0 | EF83: 0 | EG83: 0 | EH83: =EH81-EH82 -> 0 | EI83: 0 | EJ83: 0 | EK83: 0 | EL83: 0 | EM83: 0 | EN83: 0 | EO83: 0 | EP83: 0 | EQ83: 0 | ER83: 0 | ES83: 0 | ET83: 0 | EU83: 0 | EV83: 0 | EW83: 0 | EX83: 0 | EY83: 0 | EZ83: 0 | FA83: 0 | FB83: 0 | FC83: 0 | FD83: 0 | FE83: 0 | FF83: 0 | FG83: 0 | FH83: 0 | FI83: 0 | FJ83: 0 | FK83: 0 | FL83: 0 | FM83: 0 | FN83: =FN81-FN82 -> 0 | FO83: 0 | FP83: 0 | FQ83: 0 | FR83: 0 | FS83: 0 | FT83: 0 | FU83: 0 | FV83: 0 | FW83: 0 | FX83: 0 | FY83: 0 | FZ83: 0 | GA83: 0 | GB83: 0 | GC83: 0 | GD83: 0 | GE83: 0 | GF83: 0 | GG83: 0 | GH83: 0 | GI83: 0 | GJ83: 0 | GK83: 0 | GL83: 0 | GM83: 0 | GN83: 0 | GO83: 0 | GP83: 0 | GQ83: 0 | GR83: 0 | GS83: 0 | GT83: =GT81-GT82 -> 0 | GU83: 0 | GV83: 0 | GW83: 0 | GX83: 0 | GY83: 0 | GZ83: 0 | HA83: 0
C85: Funding
D86: Total Funding Needs | H86: =SUM(I86:XFD86) -> 420000 | J86: =J42+J43 -> 20000 | K86: 400000 | L86: 0 | M86: 0 | N86: 0 | O86: 0 | P86: 0 | Q86: 0 | R86: 0 | S86: 0 | T86: 0 | U86: 0 | V86: 0 | W86: 0 | X86: 0 | Y86: 0 | Z86: 0 | AA86: 0 | AB86: 0 | AC86: 0 | AD86: 0 | AE86: 0 | AF86: 0 | AG86: 0 | AH86: 0 | AI86: 0 | AJ86: 0 | AK86: 0 | AL86: 0 | AM86: 0 | AN86: 0 | AO86: 0 | AP86: =AP42+AP43 -> 0 | AQ86: 0 | AR86: 0 | AS86: 0 | AT86: 0 | AU86: 0 | AV86: 0 | AW86: 0 | AX86: 0 | AY86: 0 | AZ86: 0 | BA86: 0 | BB86: 0 | BC86: 0 | BD86: 0 | BE86: 0 | BF86: 0 | BG86: 0 | BH86: 0 | BI86: 0 | BJ86: 0 | BK86: 0 | BL86: 0 | BM86: 0 | BN86: 0 | BO86: 0 | BP86: 0 | BQ86: 0 | BR86: 0 | BS86: 0 | BT86: 0 | BU86: 0 | BV86: =BV42+BV43 -> 0 | BW86: 0 | BX86: 0 | BY86: 0 | BZ86: 0 | CA86: 0 | CB86: 0 | CC86: 0 | CD86: 0 | CE86: 0 | CF86: 0 | CG86: 0 | CH86: 0 | CI86: 0 | CJ86: 0 | CK86: 0 | CL86: 0 | CM86: 0 | CN86: 0 | CO86: 0 | CP86: 0 | CQ86: 0 | CR86: 0 | CS86: 0 | CT86: 0 | CU86: 0 | CV86: 0 | CW86: 0 | CX86: 0 | CY86: 0 | CZ86: 0 | DA86: 0 | DB86: =DB42+DB43 -> 0 | DC86: 0 | DD86: 0 | DE86: 0 | DF86: 0 | DG86: 0 | DH86: 0 | DI86: 0 | DJ86: 0 | DK86: 0 | DL86: 0 | DM86: 0 | DN86: 0 | DO86: 0 | DP86: 0 | DQ86: 0 | DR86: 0 | DS86: 0 | DT86: 0 | DU86: 0 | DV86: 0 | DW86: 0 | DX86: 0 | DY86: 0 | DZ86: 0 | EA86: 0 | EB86: 0 | EC86: 0 | ED86: 0 | EE86: 0 | EF86: 0 | EG86: 0 | EH86: =EH42+EH43 -> 0 | EI86: 0 | EJ86: 0 | EK86: 0 | EL86: 0 | EM86: 0 | EN86: 0 | EO86: 0 | EP86: 0 | EQ86: 0 | ER86: 0 | ES86: 0 | ET86: 0 | EU86: 0 | EV86: 0 | EW86: 0 | EX86: 0 | EY86: 0 | EZ86: 0 | FA86: 0 | FB86: 0 | FC86: 0 | FD86: 0 | FE86: 0 | FF86: 0 | FG86: 0 | FH86: 0 | FI86: 0 | FJ86: 0 | FK86: 0 | FL86: 0 | FM86: 0 | FN86: =FN42+FN43 -> 0 | FO86: 0 | FP86: 0 | FQ86: 0 | FR86: 0 | FS86: 0 | FT86: 0 | FU86: 0 | FV86: 0 | FW86: 0 | FX86: 0 | FY86: 0 | FZ86: 0 | GA86: 0 | GB86: 0 | GC86: 0 | GD86: 0 | GE86: 0 | GF86: 0 | GG86: 0 | GH86: 0 | GI86: 0 | GJ86: 0 | GK86: 0 | GL86: 0 | GM86: 0 | GN86: 0 | GO86: 0 | GP86: 0 | GQ86: 0 | GR86: 0 | GS86: 0 | GT86: =GT42+GT43 -> 0 | GU86: 0 | GV86: 0 | GW86: 0 | GX86: 0 | GY86: 0 | GZ86: 0 | HA86: 0
D88: Equity Commitment | F88: =F67+F68 -> 453000 | J88: =$F$88 -> 453000 | K88: =$F$88 -> 453000 | L88: 453000 | M88: 453000 | N88: 453000 | O88: 453000 | P88: 453000 | Q88: 453000 | R88: 453000 | S88: 453000 | T88: 453000 | U88: 453000 | V88: 453000 | W88: 453000 | X88: 453000 | Y88: 453000 | Z88: 453000 | AA88: 453000 | AB88: 453000 | AC88: 453000 | AD88: 453000 | AE88: 453000 | AF88: 453000 | AG88: 453000 | AH88: 453000 | AI88: 453000 | AJ88: 453000 | AK88: 453000 | AL88: 453000 | AM88: 453000 | AN88: 453000 | AO88: 453000 | AP88: 453000 | AQ88: 453000 | AR88: 453000 | AS88: 453000 | AT88: 453000 | AU88: 453000 | AV88: 453000 | AW88: 453000 | AX88: 453000 | AY88: 453000 | AZ88: 453000 | BA88: 453000 | BB88: 453000 | BC88: 453000 | BD88: 453000 | BE88: 453000 | BF88: 453000 | BG88: 453000 | BH88: 453000 | BI88: 453000 | BJ88: 453000 | BK88: 453000 | BL88: 453000 | BM88: 453000 | BN88: 453000 | BO88: 453000 | BP88: 453000 | BQ88: 453000 | BR88: 453000 | BS88: 453000 | BT88: 453000 | BU88: 453000 | BV88: 453000 | BW88: =$F$88 -> 453000 | BX88: 453000 | BY88: 453000 | BZ88: 453000 | CA88: 453000 | CB88: 453000 | CC88: 453000 | CD88: 453000 | CE88: 453000 | CF88: 453000 | CG88: 453000 | CH88: 453000 | CI88: 453000 | CJ88: 453000 | CK88: 453000 | CL88: 453000 | CM88: 453000 | CN88: 453000 | CO88: 453000 | CP88: 453000 | CQ88: 453000 | CR88: 453000 | CS88: 453000 | CT88: 453000 | CU88: 453000 | CV88: 453000 | CW88: 453000 | CX88: 453000 | CY88: 453000 | CZ88: 453000 | DA88: 453000 | DB88: 453000 | DC88: 453000 | DD88: 453000 | DE88: 453000 | DF88: 453000 | DG88: 453000 | DH88: 453000 | DI88: 453000 | DJ88: 453000 | DK88: 453000 | DL88: 453000 | DM88: 453000 | DN88: 453000 | DO88: 453000 | DP88: 453000 | DQ88: 453000 | DR88: 453000 | DS88: 453000 | DT88: 453000 | DU88: 453000 | DV88: 453000 | DW88: 453000 | DX88: 453000 | DY88: 453000 | DZ88: 453000 | EA88: 453000 | EB88: 453000 | EC88: 453000 | ED88: 453000 | EE88: 453000 | EF88: 453000 | EG88: 453000 | EH88: 453000 | EI88: =$F$88 -> 453000 | EJ88: 453000 | EK88: 453000 | EL88: 453000 | EM88: 453000 | EN88: 453000 | EO88: 453000 | EP88: 453000 | EQ88: 453000 | ER88: 453000 | ES88: 453000 | ET88: 453000 | EU88: 453000 | EV88: 453000 | EW88: 453000 | EX88: 453000 | EY88: 453000 | EZ88: 453000 | FA88: 453000 | FB88: 453000 | FC88: 453000 | FD88: 453000 | FE88: 453000 | FF88: 453000 | FG88: 453000 | FH88: 453000 | FI88: 453000 | FJ88: 453000 | FK88: 453000 | FL88: 453000 | FM88: 453000 | FN88: 453000 | FO88: 453000 | FP88: 453000 | FQ88: 453000 | FR88: 453000 | FS88: 453000 | FT88: 453000 | FU88: 453000 | FV88: 453000 | FW88: 453000 | FX88: 453000 | FY88: 453000 | FZ88: 453000 | GA88: 453000 | GB88: 453000 | GC88: 453000 | GD88: 453000 | GE88: 453000 | GF88: 453000 | GG88: 453000 | GH88: 453000 | GI88: 453000 | GJ88: 453000 | GK88: 453000 | GL88: 453000 | GM88: 453000 | GN88: 453000 | GO88: 453000 | GP88: 453000 | GQ88: 453000 | GR88: 453000 | GS88: 453000 | GT88: 453000 | GU88: =$F$88 -> 453000 | GV88: 453000 | GW88: 453000 | GX88: 453000 | GY88: 453000 | GZ88: 453000 | HA88: 453000
D89: Less: Accumulated | J89: =J92 -> 0 | K89: =K92 -> 0 | L89: 0 | M89: 0 | N89: 0 | O89: 0 | P89: 0 | Q89: 0 | R89: 0 | S89: 0 | T89: 0 | U89: 0 | V89: 0 | W89: 0 | X89: 0 | Y89: 0 | Z89: 0 | AA89: 0 | AB89: 0 | AC89: 0 | AD89: 0 | AE89: 0 | AF89: 0 | AG89: 0 | AH89: 0 | AI89: 0 | AJ89: 0 | AK89: 0 | AL89: 0 | AM89: 0 | AN89: 0 | AO89: 0 | AP89: 0 | AQ89: 0 | AR89: 0 | AS89: 0 | AT89: 0 | AU89: 0 | AV89: 0 | AW89: 0 | AX89: 0 | AY89: 0 | AZ89: 0 | BA89: 0 | BB89: 0 | BC89: 0 | BD89: 0 | BE89: 0 | BF89: 0 | BG89: 0 | BH89: 0 | BI89: 0 | BJ89: 0 | BK89: 0 | BL89: 0 | BM89: 0 | BN89: 0 | BO89: 0 | BP89: 0 | BQ89: 0 | BR89: 0 | BS89: 0 | BT89: 0 | BU89: 0 | BV89: 0 | BW89: =BW92 -> 0 | BX89: 0 | BY89: 0 | BZ89: 0 | CA89: 0 | CB89: 0 | CC89: 0 | CD89: 0 | CE89: 0 | CF89: 0 | CG89: 0 | CH89: 0 | CI89: 0 | CJ89: 0 | CK89: 0 | CL89: 0 | CM89: 0 | CN89: 0 | CO89: 0 | CP89: 0 | CQ89: 0 | CR89: 0 | CS89: 0 | CT89: 0 | CU89: 0 | CV89: 0 | CW89: 0 | CX89: 0 | CY89: 0 | CZ89: 0 | DA89: 0 | DB89: 0 | DC89: 0 | DD89: 0 | DE89: 0 | DF89: 0 | DG89: 0 | DH89: 0 | DI89: 0 | DJ89: 0 | DK89: 0 | DL89: 0 | DM89: 0 | DN89: 0 | DO89: 0 | DP89: 0 | DQ89: 0 | DR89: 0 | DS89: 0 | DT89: 0 | DU89: 0 | DV89: 0 | DW89: 0 | DX89: 0 | DY89: 0 | DZ89: 0 | EA89: 0 | EB89: 0 | EC89: 0 | ED89: 0 | EE89: 0 | EF89: 0 | EG89: 0 | EH89: 0 | EI89: =EI92 -> 0 | EJ89: 0 | EK89: 0 | EL89: 0 | EM89: 0 | EN89: 0 | EO89: 0 | EP89: 0 | EQ89: 0 | ER89: 0 | ES89: 0 | ET89: 0 | EU89: 0 | EV89: 0 | EW89: 0 | EX89: 0 | EY89: 0 | EZ89: 0 | FA89: 0 | FB89: 0 | FC89: 0 | FD89: 0 | FE89: 0 | FF89: 0 | FG89: 0 | FH89: 0 | FI89: 0 | FJ89: 0 | FK89: 0 | FL89: 0 | FM89: 0 | FN89: 0 | FO89: 0 | FP89: 0 | FQ89: 0 | FR89: 0 | FS89: 0 | FT89: 0 | FU89: 0 | FV89: 0 | FW89: 0 | FX89: 0 | FY89: 0 | FZ89: 0 | GA89: 0 | GB89: 0 | GC89: 0 | GD89: 0 | GE89: 0 | GF89: 0 | GG89: 0 | GH89: 0 | GI89: 0 | GJ89: 0 | GK89: 0 | GL89: 0 | GM89: 0 | GN89: 0 | GO89: 0 | GP89: 0 | GQ89: 0 | GR89: 0 | GS89: 0 | GT89: 0 | GU89: =GU92 -> 0 | GV89: 0 | GW89: 0 | GX89: 0 | GY89: 0 | GZ89: 0 | HA89: 0
D90: Remaining Funding | J90: =J88-J89 -> 453000 | K90: =K88-K89 -> 453000 | L90: 453000 | M90: 453000 | N90: 453000 | O90: 453000 | P90: 453000 | Q90: 453000 | R90: 453000 | S90: 453000 | T90: 453000 | U90: 453000 | V90: 453000 | W90: 453000 | X90: 453000 | Y90: 453000 | Z90: 453000 | AA90: 453000 | AB90: 453000 | AC90: 453000 | AD90: 453000 | AE90: 453000 | AF90: 453000 | AG90: 453000 | AH90: 453000 | AI90: 453000 | AJ90: 453000 | AK90: 453000 | AL90: 453000 | AM90: 453000 | AN90: 453000 | AO90: 453000 | AP90: 453000 | AQ90: 453000 | AR90: 453000 | AS90: 453000 | AT90: 453000 | AU90: 453000 | AV90: 453000 | AW90: 453000 | AX90: 453000 | AY90: 453000 | AZ90: 453000 | BA90: 453000 | BB90: 453000 | BC90: 453000 | BD90: 453000 | BE90: 453000 | BF90: 453000 | BG90: 453000 | BH90: 453000 | BI90: 453000 | BJ90: 453000 | BK90: 453000 | BL90: 453000 | BM90: 453000 | BN90: 453000 | BO90: 453000 | BP90: 453000 | BQ90: 453000 | BR90: 453000 | BS90: 453000 | BT90: 453000 | BU90: 453000 | BV90: 453000 | BW90: =BW88-BW89 -> 453000 | BX90: 453000 | BY90: 453000 | BZ90: 453000 | CA90: 453000 | CB90: 453000 | CC90: 453000 | CD90: 453000 | CE90: 453000 | CF90: 453000 | CG90: 453000 | CH90: 453000 | CI90: 453000 | CJ90: 453000 | CK90: 453000 | CL90: 453000 | CM90: 453000 | CN90: 453000 | CO90: 453000 | CP90: 453000 | CQ90: 453000 | CR90: 453000 | CS90: 453000 | CT90: 453000 | CU90: 453000 | CV90: 453000 | CW90: 453000 | CX90: 453000 | CY90: 453000 | CZ90: 453000 | DA90: 453000 | DB90: 453000 | DC90: 453000 | DD90: 453000 | DE90: 453000 | DF90: 453000 | DG90: 453000 | DH90: 453000 | DI90: 453000 | DJ90: 453000 | DK90: 453000 | DL90: 453000 | DM90: 453000 | DN90: 453000 | DO90: 453000 | DP90: 453000 | DQ90: 453000 | DR90: 453000 | DS90: 453000 | DT90: 453000 | DU90: 453000 | DV90: 453000 | DW90: 453000 | DX90: 453000 | DY90: 453000 | DZ90: 453000 | EA90: 453000 | EB90: 453000 | EC90: 453000 | ED90: 453000 | EE90: 453000 | EF90: 453000 | EG90: 453000 | EH90: 453000 | EI90: =EI88-EI89 -> 453000 | EJ90: 453000 | EK90: 453000 | EL90: 453000 | EM90: 453000 | EN90: 453000 | EO90: 453000 | EP90: 453000 | EQ90: 453000 | ER90: 453000 | ES90: 453000 | ET90: 453000 | EU90: 453000 | EV90: 453000 | EW90: 453000 | EX90: 453000 | EY90: 453000 | EZ90: 453000 | FA90: 453000 | FB90: 453000 | FC90: 453000 | FD90: 453000 | FE90: 453000 | FF90: 453000 | FG90: 453000 | FH90: 453000 | FI90: 453000 | FJ90: 453000 | FK90: 453000 | FL90: 453000 | FM90: 453000 | FN90: 453000 | FO90: 453000 | FP90: 453000 | FQ90: 453000 | FR90: 453000 | FS90: 453000 | FT90: 453000 | FU90: 453000 | FV90: 453000 | FW90: 453000 | FX90: 453000 | FY90: 453000 | FZ90: 453000 | GA90: 453000 | GB90: 453000 | GC90: 453000 | GD90: 453000 | GE90: 453000 | GF90: 453000 | GG90: 453000 | GH90: 453000 | GI90: 453000 | GJ90: 453000 | GK90: 453000 | GL90: 453000 | GM90: 453000 | GN90: 453000 | GO90: 453000 | GP90: 453000 | GQ90: 453000 | GR90: 453000 | GS90: 453000 | GT90: 453000 | GU90: =GU88-GU89 -> 453000 | GV90: 453000 | GW90: 453000 | GX90: 453000 | GY90: 453000 | GZ90: 453000 | HA90: 453000
D92: Opening | J92: =I94 -> 0 | K92: =J94 -> 0 | L92: 0 | M92: 0 | N92: 0 | O92: 0 | P92: 0 | Q92: 0 | R92: 0 | S92: 0 | T92: 0 | U92: 0 | V92: 0 | W92: 0 | X92: 0 | Y92: 0 | Z92: 0 | AA92: 0 | AB92: 0 | AC92: 0 | AD92: 0 | AE92: 0 | AF92: 0 | AG92: 0 | AH92: 0 | AI92: 0 | AJ92: 0 | AK92: 0 | AL92: 0 | AM92: 0 | AN92: 0 | AO92: 0 | AP92: 0 | AQ92: 0 | AR92: 0 | AS92: 0 | AT92: 0 | AU92: 0 | AV92: 0 | AW92: 0 | AX92: 0 | AY92: 0 | AZ92: 0 | BA92: 0 | BB92: 0 | BC92: 0 | BD92: 0 | BE92: 0 | BF92: 0 | BG92: 0 | BH92: 0 | BI92: 0 | BJ92: 0 | BK92: 0 | BL92: 0 | BM92: 0 | BN92: 0 | BO92: 0 | BP92: 0 | BQ92: 0 | BR92: 0 | BS92: 0 | BT92: 0 | BU92: 0 | BV92: 0 | BW92: =BV94 -> 0 | BX92: 0 | BY92: 0 | BZ92: 0 | CA92: 0 | CB92: 0 | CC92: 0 | CD92: 0 | CE92: 0 | CF92: 0 | CG92: 0 | CH92: 0 | CI92: 0 | CJ92: 0 | CK92: 0 | CL92: 0 | CM92: 0 | CN92: 0 | CO92: 0 | CP92: 0 | CQ92: 0 | CR92: 0 | CS92: 0 | CT92: 0 | CU92: 0 | CV92: 0 | CW92: 0 | CX92: 0 | CY92: 0 | CZ92: 0 | DA92: 0 | DB92: 0 | DC92: 0 | DD92: 0 | DE92: 0 | DF92: 0 | DG92: 0 | DH92: 0 | DI92: 0 | DJ92: 0 | DK92: 0 | DL92: 0 | DM92: 0 | DN92: 0 | DO92: 0 | DP92: 0 | DQ92: 0 | DR92: 0 | DS92: 0 | DT92: 0 | DU92: 0 | DV92: 0 | DW92: 0 | DX92: 0 | DY92: 0 | DZ92: 0 | EA92: 0 | EB92: 0 | EC92: 0 | ED92: 0 | EE92: 0 | EF92: 0 | EG92: 0 | EH92: 0 | EI92: =EH94 -> 0 | EJ92: 0 | EK92: 0 | EL92: 0 | EM92: 0 | EN92: 0 | EO92: 0 | EP92: 0 | EQ92: 0 | ER92: 0 | ES92: 0 | ET92: 0 | EU92: 0 | EV92: 0 | EW92: 0 | EX92: 0 | EY92: 0 | EZ92: 0 | FA92: 0 | FB92: 0 | FC92: 0 | FD92: 0 | FE92: 0 | FF92: 0 | FG92: 0 | FH92: 0 | FI92: 0 | FJ92: 0 | FK92: 0 | FL92: 0 | FM92: 0 | FN92: 0 | FO92: 0 | FP92: 0 | FQ92: 0 | FR92: 0 | FS92: 0 | FT92: 0 | FU92: 0 | FV92: 0 | FW92: 0 | FX92: 0 | FY92: 0 | FZ92: 0 | GA92: 0 | GB92: 0 | GC92: 0 | GD92: 0 | GE92: 0 | GF92: 0 | GG92: 0 | GH92: 0 | GI92: 0 | GJ92: 0 | GK92: 0 | GL92: 0 | GM92: 0 | GN92: 0 | GO92: 0 | GP92: 0 | GQ92: 0 | GR92: 0 | GS92: 0 | GT92: 0 | GU92: =GT94 -> 0 | GV92: 0 | GW92: 0 | GX92: 0 | GY92: 0 | GZ92: 0 | HA92: 0
D93: Add: Equity Funding (Min)
D94: Closing | J94: =J92+J93 -> 0 | K94: =K92+K93 -> 0 | L94: 0 | M94: 0 | N94: 0 | O94: 0 | P94: 0 | Q94: 0 | R94: 0 | S94: 0 | T94: 0 | U94: 0 | V94: 0 | W94: 0 | X94: 0 | Y94: 0 | Z94: 0 | AA94: 0 | AB94: 0 | AC94: 0 | AD94: 0 | AE94: 0 | AF94: 0 | AG94: 0 | AH94: 0 | AI94: 0 | AJ94: 0 | AK94: 0 | AL94: 0 | AM94: 0 | AN94: 0 | AO94: 0 | AP94: 0 | AQ94: 0 | AR94: 0 | AS94: 0 | AT94: 0 | AU94: 0 | AV94: 0 | AW94: 0 | AX94: 0 | AY94: 0 | AZ94: 0 | BA94: 0 | BB94: 0 | BC94: 0 | BD94: 0 | BE94: 0 | BF94: 0 | BG94: 0 | BH94: 0 | BI94: 0 | BJ94: 0 | BK94: 0 | BL94: 0 | BM94: 0 | BN94: 0 | BO94: 0 | BP94: 0 | BQ94: 0 | BR94: 0 | BS94: 0 | BT94: 0 | BU94: 0 | BV94: 0 | BW94: =BW92+BW93 -> 0 | BX94: 0 | BY94: 0 | BZ94: 0 | CA94: 0 | CB94: 0 | CC94: 0 | CD94: 0 | CE94: 0 | CF94: 0 | CG94: 0 | CH94: 0 | CI94: 0 | CJ94: 0 | CK94: 0 | CL94: 0 | CM94: 0 | CN94: 0 | CO94: 0 | CP94: 0 | CQ94: 0 | CR94: 0 | CS94: 0 | CT94: 0 | CU94: 0 | CV94: 0 | CW94: 0 | CX94: 0 | CY94: 0 | CZ94: 0 | DA94: 0 | DB94: 0 | DC94: 0 | DD94: 0 | DE94: 0 | DF94: 0 | DG94: 0 | DH94: 0 | DI94: 0 | DJ94: 0 | DK94: 0 | DL94: 0 | DM94: 0 | DN94: 0 | DO94: 0 | DP94: 0 | DQ94: 0 | DR94: 0 | DS94: 0 | DT94: 0 | DU94: 0 | DV94: 0 | DW94: 0 | DX94: 0 | DY94: 0 | DZ94: 0 | EA94: 0 | EB94: 0 | EC94: 0 | ED94: 0 | EE94: 0 | EF94: 0 | EG94: 0 | EH94: 0 | EI94: =EI92+EI93 -> 0 | EJ94: 0 | EK94: 0 | EL94: 0 | EM94: 0 | EN94: 0 | EO94: 0 | EP94: 0 | EQ94: 0 | ER94: 0 | ES94: 0 | ET94: 0 | EU94: 0 | EV94: 0 | EW94: 0 | EX94: 0 | EY94: 0 | EZ94: 0 | FA94: 0 | FB94: 0 | FC94: 0 | FD94: 0 | FE94: 0 | FF94: 0 | FG94: 0 | FH94: 0 | FI94: 0 | FJ94: 0 | FK94: 0 | FL94: 0 | FM94: 0 | FN94: 0 | FO94: 0 | FP94: 0 | FQ94: 0 | FR94: 0 | FS94: 0 | FT94: 0 | FU94: 0 | FV94: 0 | FW94: 0 | FX94: 0 | FY94: 0 | FZ94: 0 | GA94: 0 | GB94: 0 | GC94: 0 | GD94: 0 | GE94: 0 | GF94: 0 | GG94: 0 | GH94: 0 | GI94: 0 | GJ94: 0 | GK94: 0 | GL94: 0 | GM94: 0 | GN94: 0 | GO94: 0 | GP94: 0 | GQ94: 0 | GR94: 0 | GS94: 0 | GT94: 0 | GU94: =GU92+GU93 -> 0 | GV94: 0 | GW94: 0 | GX94: 0 | GY94: 0 | GZ94: 0 | HA94: 0
D96: Net Equity Cash Flow with Development Fee Subtracted | H96: =SUM(I96:XFD96) -> 1125006.769 | J96: =J83-J93 -> 0 | K96: 0 | L96: 25625 | M96: 26265.625 | N96: 26922.26562 | O96: 27595.32227 | P96: 28285.20532 | Q96: 28992.33546 | R96: 29717.14384 | S96: 30460.07244 | T96: 31221.57425 | U96: 32002.1136 | V96: 32802.16645 | W96: 33622.22061 | X96: 34462.77612 | Y96: 35324.34552 | Z96: 36207.45416 | AA96: 37112.64052 | AB96: 38040.45653 | AC96: 38991.46794 | AD96: 39966.25464 | AE96: 40965.41101 | AF96: 41989.54628 | AG96: 43039.28494 | AH96: 44115.26706 | AI96: 45218.14874 | AJ96: 46348.60246 | AK96: 47507.31752 | AL96: 48695.00046 | AM96: 49912.37547 | AN96: 51160.18486 | AO96: 52439.18948 | AP96: =AP83-AP93 -> 0 | AQ96: 0 | AR96: 0 | AS96: 0 | AT96: 0 | AU96: 0 | AV96: 0 | AW96: 0 | AX96: 0 | AY96: 0 | AZ96: 0 | BA96: 0 | BB96: 0 | BC96: 0 | BD96: 0 | BE96: 0 | BF96: 0 | BG96: 0 | BH96: 0 | BI96: 0 | BJ96: 0 | BK96: 0 | BL96: 0 | BM96: 0 | BN96: 0 | BO96: 0 | BP96: 0 | BQ96: 0 | BR96: 0 | BS96: 0 | BT96: 0 | BU96: 0 | BV96: =BV83-BV93 -> 0 | BW96: 0 | BX96: 0 | BY96: 0 | BZ96: 0 | CA96: 0 | CB96: 0 | CC96: 0 | CD96: 0 | CE96: 0 | CF96: 0 | CG96: 0 | CH96: 0 | CI96: 0 | CJ96: 0 | CK96: 0 | CL96: 0 | CM96: 0 | CN96: 0 | CO96: 0 | CP96: 0 | CQ96: 0 | CR96: 0 | CS96: 0 | CT96: 0 | CU96: 0 | CV96: 0 | CW96: 0 | CX96: 0 | CY96: 0 | CZ96: 0 | DA96: 0 | DB96: =DB83-DB93 -> 0 | DC96: 0 | DD96: 0 | DE96: 0 | DF96: 0 | DG96: 0 | DH96: 0 | DI96: 0 | DJ96: 0 | DK96: 0 | DL96: 0 | DM96: 0 | DN96: 0 | DO96: 0 | DP96: 0 | DQ96: 0 | DR96: 0 | DS96: 0 | DT96: 0 | DU96: 0 | DV96: 0 | DW96: 0 | DX96: 0 | DY96: 0 | DZ96: 0 | EA96: 0 | EB96: 0 | EC96: 0 | ED96: 0 | EE96: 0 | EF96: 0 | EG96: 0 | EH96: =EH83-EH93 -> 0 | EI96: 0 | EJ96: 0 | EK96: 0 | EL96: 0 | EM96: 0 | EN96: 0 | EO96: 0 | EP96: 0 | EQ96: 0 | ER96: 0 | ES96: 0 | ET96: 0 | EU96: 0 | EV96: 0 | EW96: 0 | EX96: 0 | EY96: 0 | EZ96: 0 | FA96: 0 | FB96: 0 | FC96: 0 | FD96: 0 | FE96: 0 | FF96: 0 | FG96: 0 | FH96: 0 | FI96: 0 | FJ96: 0 | FK96: 0 | FL96: 0 | FM96: 0 | FN96: =FN83-FN93 -> 0 | FO96: 0 | FP96: 0 | FQ96: 0 | FR96: 0 | FS96: 0 | FT96: 0 | FU96: 0 | FV96: 0 | FW96: 0 | FX96: 0 | FY96: 0 | FZ96: 0 | GA96: 0 | GB96: 0 | GC96: 0 | GD96: 0 | GE96: 0 | GF96: 0 | GG96: 0 | GH96: 0 | GI96: 0 | GJ96: 0 | GK96: 0 | GL96: 0 | GM96: 0 | GN96: 0 | GO96: 0 | GP96: 0 | GQ96: 0 | GR96: 0 | GS96: 0 | GT96: =GT83-GT93 -> 0 | GU96: 0 | GV96: 0 | GW96: 0 | GX96: 0 | GY96: 0 | GZ96: 0 | HA96: 0
D97: Equity Cash Flow on Cash Basis | F97: =IFERROR(XIRR(J96:HA96,J2:HA2),FALSE) -> FALSE
D99: Add: Development Fee Not Cash Outfolw | J99: =J51 -> 0 | K99: =K51 -> 33000 | L99: 0 | M99: 0 | N99: 0 | O99: 0 | P99: 0 | Q99: 0 | R99: 0 | S99: 0 | T99: 0 | U99: 0 | V99: 0 | W99: 0 | X99: 0 | Y99: 0 | Z99: 0 | AA99: 0 | AB99: 0 | AC99: 0 | AD99: 0 | AE99: 0 | AF99: 0 | AG99: 0 | AH99: 0 | AI99: 0 | AJ99: 0 | AK99: 0 | AL99: 0 | AM99: 0 | AN99: 0 | AO99: 0 | AP99: 0 | AQ99: 0 | AR99: 0 | AS99: 0 | AT99: 0 | AU99: 0 | AV99: 0 | AW99: 0 | AX99: 0 | AY99: 0 | AZ99: 0 | BA99: 0 | BB99: 0 | BC99: 0 | BD99: 0 | BE99: 0 | BF99: 0 | BG99: 0 | BH99: 0 | BI99: 0 | BJ99: 0 | BK99: 0 | BL99: 0 | BM99: 0 | BN99: 0 | BO99: 0 | BP99: 0 | BQ99: 0 | BR99: 0 | BS99: 0 | BT99: 0 | BU99: 0 | BV99: 0 | BW99: =BW51 -> 0 | BX99: 0 | BY99: 0 | BZ99: 0 | CA99: 0 | CB99: 0 | CC99: 0 | CD99: 0 | CE99: 0 | CF99: 0 | CG99: 0 | CH99: 0 | CI99: 0 | CJ99: 0 | CK99: 0 | CL99: 0 | CM99: 0 | CN99: 0 | CO99: 0 | CP99: 0 | CQ99: 0 | CR99: 0 | CS99: 0 | CT99: 0 | CU99: 0 | CV99: 0 | CW99: 0 | CX99: 0 | CY99: 0 | CZ99: 0 | DA99: 0 | DB99: 0 | DC99: 0 | DD99: 0 | DE99: 0 | DF99: 0 | DG99: 0 | DH99: 0 | DI99: 0 | DJ99: 0 | DK99: 0 | DL99: 0 | DM99: 0 | DN99: 0 | DO99: 0 | DP99: 0 | DQ99: 0 | DR99: 0 | DS99: 0 | DT99: 0 | DU99: 0 | DV99: 0 | DW99: 0 | DX99: 0 | DY99: 0 | DZ99: 0 | EA99: 0 | EB99: 0 | EC99: 0 | ED99: 0 | EE99: 0 | EF99: 0 | EG99: 0 | EH99: 0 | EI99: =EI51 -> 0 | EJ99: 0 | EK99: 0 | EL99: 0 | EM99: 0 | EN99: 0 | EO99: 0 | EP99: 0 | EQ99: 0 | ER99: 0 | ES99: 0 | ET99: 0 | EU99: 0 | EV99: 0 | EW99: 0 | EX99: 0 | EY99: 0 | EZ99: 0 | FA99: 0 | FB99: 0 | FC99: 0 | FD99: 0 | FE99: 0 | FF99: 0 | FG99: 0 | FH99: 0 | FI99: 0 | FJ99: 0 | FK99: 0 | FL99: 0 | FM99: 0 | FN99: 0 | FO99: 0 | FP99: 0 | FQ99: 0 | FR99: 0 | FS99: 0 | FT99: 0 | FU99: 0 | FV99: 0 | FW99: 0 | FX99: 0 | FY99: 0 | FZ99: 0 | GA99: 0 | GB99: 0 | GC99: 0 | GD99: 0 | GE99: 0 | GF99: 0 | GG99: 0 | GH99: 0 | GI99: 0 | GJ99: 0 | GK99: 0 | GL99: 0 | GM99: 0 | GN99: 0 | GO99: 0 | GP99: 0 | GQ99: 0 | GR99: 0 | GS99: 0 | GT99: 0 | GU99: =GU51 -> 0 | GV99: 0 | GW99: 0 | GX99: 0 | GY99: 0 | GZ99: 0 | HA99: 0
D100: Net Cash Equity Cash Flow (Add the Development Fee)
D101: Equity IRR - Cash Basis | F101: =IFERROR(XIRR(J100:HA100,J2:HA2),FALSE) -> FALSE
B103: Funding and Cash Flow Allocation
D104: Financial Close Flag | J104: =J50 -> FALSE | K104: TRUE | L104: FALSE | M104: FALSE | N104: FALSE | O104: FALSE | P104: FALSE | Q104: FALSE | R104: FALSE | S104: FALSE | T104: FALSE | U104: FALSE | V104: FALSE | W104: FALSE | X104: FALSE | Y104: FALSE | Z104: FALSE | AA104: FALSE | AB104: FALSE | AC104: FALSE | AD104: FALSE | AE104: FALSE | AF104: FALSE | AG104: FALSE | AH104: FALSE | AI104: FALSE | AJ104: FALSE | AK104: FALSE | AL104: FALSE | AM104: FALSE | AN104: FALSE | AO104: FALSE | AP104: =AP50 -> FALSE | AQ104: FALSE | AR104: FALSE | AS104: FALSE | AT104: FALSE | AU104: FALSE | AV104: FALSE | AW104: FALSE | AX104: FALSE | AY104: FALSE | AZ104: FALSE | BA104: FALSE | BB104: FALSE | BC104: FALSE | BD104: FALSE | BE104: FALSE | BF104: FALSE | BG104: FALSE | BH104: FALSE | BI104: FALSE | BJ104: FALSE | BK104: FALSE | BL104: FALSE | BM104: FALSE | BN104: FALSE | BO104: FALSE | BP104: FALSE | BQ104: FALSE | BR104: FALSE | BS104: FALSE | BT104: FALSE | BU104: FALSE | BV104: =BV50 -> FALSE | BW104: FALSE | BX104: FALSE | BY104: FALSE | BZ104: FALSE | CA104: FALSE | CB104: FALSE | CC104: FALSE | CD104: FALSE | CE104: FALSE | CF104: FALSE | CG104: FALSE | CH104: FALSE | CI104: FALSE | CJ104: FALSE | CK104: FALSE | CL104: FALSE | CM104: FALSE | CN104: FALSE | CO104: FALSE | CP104: FALSE | CQ104: FALSE | CR104: FALSE | CS104: FALSE | CT104: FALSE | CU104: FALSE | CV104: FALSE | CW104: FALSE | CX104: FALSE | CY104: FALSE | CZ104: FALSE | DA104: FALSE | DB104: =DB50 -> FALSE | DC104: FALSE | DD104: FALSE | DE104: FALSE | DF104: FALSE | DG104: FALSE | DH104: FALSE | DI104: FALSE | DJ104: FALSE | DK104: FALSE | DL104: FALSE | DM104: FALSE | DN104: FALSE | DO104: FALSE | DP104: FALSE | DQ104: FALSE | DR104: FALSE | DS104: FALSE | DT104: FALSE | DU104: FALSE | DV104: FALSE | DW104: FALSE | DX104: FALSE | DY104: FALSE | DZ104: FALSE | EA104: FALSE | EB104: FALSE | EC104: FALSE | ED104: FALSE | EE104: FALSE | EF104: FALSE | EG104: FALSE | EH104: =EH50 -> FALSE | EI104: FALSE | EJ104: FALSE | EK104: FALSE | EL104: FALSE | EM104: FALSE | EN104: FALSE | EO104: FALSE | EP104: FALSE | EQ104: FALSE | ER104: FALSE | ES104: FALSE | ET104: FALSE | EU104: FALSE | EV104: FALSE | EW104: FALSE | EX104: FALSE | EY104: FALSE | EZ104: FALSE | FA104: FALSE | FB104: FALSE | FC104: FALSE | FD104: FALSE | FE104: FALSE | FF104: FALSE | FG104: FALSE | FH104: FALSE | FI104: FALSE | FJ104: FALSE | FK104: FALSE | FL104: FALSE | FM104: FALSE | FN104: =FN50 -> FALSE | FO104: FALSE | FP104: FALSE | FQ104: FALSE | FR104: FALSE | FS104: FALSE | FT104: FALSE | FU104: FALSE | FV104: FALSE | FW104: FALSE | FX104: FALSE | FY104: FALSE | FZ104: FALSE | GA104: FALSE | GB104: FALSE | GC104: FALSE | GD104: FALSE | GE104: FALSE | GF104: FALSE | GG104: FALSE | GH104: FALSE | GI104: FALSE | GJ104: FALSE | GK104: FALSE | GL104: FALSE | GM104: FALSE | GN104: FALSE | GO104: FALSE | GP104: FALSE | GQ104: FALSE | GR104: FALSE | GS104: FALSE | GT104: =GT50 -> FALSE | GU104: FALSE | GV104: FALSE | GW104: FALSE | GX104: FALSE | GY104: FALSE | GZ104: FALSE | HA104: FALSE
C106: Partner Cash Flow
D107: Total Equity Funded + Development Fee | J107: =J93 -> 0 | K107: =K93 -> 0 | L107: 0 | M107: 0 | N107: 0 | O107: 0 | P107: 0 | Q107: 0 | R107: 0 | S107: 0 | T107: 0 | U107: 0 | V107: 0 | W107: 0 | X107: 0 | Y107: 0 | Z107: 0 | AA107: 0 | AB107: 0 | AC107: 0 | AD107: 0 | AE107: 0 | AF107: 0 | AG107: 0 | AH107: 0 | AI107: 0 | AJ107: 0 | AK107: 0 | AL107: 0 | AM107: 0 | AN107: 0 | AO107: 0 | AP107: 0 | AQ107: 0 | AR107: 0 | AS107: 0 | AT107: 0 | AU107: 0 | AV107: 0 | AW107: 0 | AX107: 0 | AY107: 0 | AZ107: 0 | BA107: 0 | BB107: 0 | BC107: 0 | BD107: 0 | BE107: 0 | BF107: 0 | BG107: 0 | BH107: 0 | BI107: 0 | BJ107: 0 | BK107: 0 | BL107: 0 | BM107: 0 | BN107: 0 | BO107: 0 | BP107: 0 | BQ107: 0 | BR107: 0 | BS107: 0 | BT107: 0 | BU107: 0 | BV107: 0 | BW107: =BW93 -> 0 | BX107: 0 | BY107: 0 | BZ107: 0 | CA107: 0 | CB107: 0 | CC107: 0 | CD107: 0 | CE107: 0 | CF107: 0 | CG107: 0 | CH107: 0 | CI107: 0 | CJ107: 0 | CK107: 0 | CL107: 0 | CM107: 0 | CN107: 0 | CO107: 0 | CP107: 0 | CQ107: 0 | CR107: 0 | CS107: 0 | CT107: 0 | CU107: 0 | CV107: 0 | CW107: 0 | CX107: 0 | CY107: 0 | CZ107: 0 | DA107: 0 | DB107: 0 | DC107: 0 | DD107: 0 | DE107: 0 | DF107: 0 | DG107: 0 | DH107: 0 | DI107: 0 | DJ107: 0 | DK107: 0 | DL107: 0 | DM107: 0 | DN107: 0 | DO107: 0 | DP107: 0 | DQ107: 0 | DR107: 0 | DS107: 0 | DT107: 0 | DU107: 0 | DV107: 0 | DW107: 0 | DX107: 0 | DY107: 0 | DZ107: 0 | EA107: 0 | EB107: 0 | EC107: 0 | ED107: 0 | EE107: 0 | EF107: 0 | EG107: 0 | EH107: 0 | EI107: =EI93 -> 0 | EJ107: 0 | EK107: 0 | EL107: 0 | EM107: 0 | EN107: 0 | EO107: 0 | EP107: 0 | EQ107: 0 | ER107: 0 | ES107: 0 | ET107: 0 | EU107: 0 | EV107: 0 | EW107: 0 | EX107: 0 | EY107: 0 | EZ107: 0 | FA107: 0 | FB107: 0 | FC107: 0 | FD107: 0 | FE107: 0 | FF107: 0 | FG107: 0 | FH107: 0 | FI107: 0 | FJ107: 0 | FK107: 0 | FL107: 0 | FM107: 0 | FN107: 0 | FO107: 0 | FP107: 0 | FQ107: 0 | FR107: 0 | FS107: 0 | FT107: 0 | FU107: 0 | FV107: 0 | FW107: 0 | FX107: 0 | FY107: 0 | FZ107: 0 | GA107: 0 | GB107: 0 | GC107: 0 | GD107: 0 | GE107: 0 | GF107: 0 | GG107: 0 | GH107: 0 | GI107: 0 | GJ107: 0 | GK107: 0 | GL107: 0 | GM107: 0 | GN107: 0 | GO107: 0 | GP107: 0 | GQ107: 0 | GR107: 0 | GS107: 0 | GT107: 0 | GU107: =GU93 -> 0 | GV107: 0 | GW107: 0 | GX107: 0 | GY107: 0 | GZ107: 0 | HA107: 0
D108: Partnership Funding | F108: =F33 -> 0.5 | J108: =$F$108*J107 -> 0 | K108: =$F$108*K107 -> 0 | L108: 0 | M108: 0 | N108: 0 | O108: 0 | P108: 0 | Q108: 0 | R108: 0 | S108: 0 | T108: 0 | U108: 0 | V108: 0 | W108: 0 | X108: 0 | Y108: 0 | Z108: 0 | AA108: 0 | AB108: 0 | AC108: 0 | AD108: 0 | AE108: 0 | AF108: 0 | AG108: 0 | AH108: 0 | AI108: 0 | AJ108: 0 | AK108: 0 | AL108: 0 | AM108: 0 | AN108: 0 | AO108: 0 | AP108: 0 | AQ108: 0 | AR108: 0 | AS108: 0 | AT108: 0 | AU108: 0 | AV108: 0 | AW108: 0 | AX108: 0 | AY108: 0 | AZ108: 0 | BA108: 0 | BB108: 0 | BC108: 0 | BD108: 0 | BE108: 0 | BF108: 0 | BG108: 0 | BH108: 0 | BI108: 0 | BJ108: 0 | BK108: 0 | BL108: 0 | BM108: 0 | BN108: 0 | BO108: 0 | BP108: 0 | BQ108: 0 | BR108: 0 | BS108: 0 | BT108: 0 | BU108: 0 | BV108: 0 | BW108: =$F$108*BW107 -> 0 | BX108: 0 | BY108: 0 | BZ108: 0 | CA108: 0 | CB108: 0 | CC108: 0 | CD108: 0 | CE108: 0 | CF108: 0 | CG108: 0 | CH108: 0 | CI108: 0 | CJ108: 0 | CK108: 0 | CL108: 0 | CM108: 0 | CN108: 0 | CO108: 0 | CP108: 0 | CQ108: 0 | CR108: 0 | CS108: 0 | CT108: 0 | CU108: 0 | CV108: 0 | CW108: 0 | CX108: 0 | CY108: 0 | CZ108: 0 | DA108: 0 | DB108: 0 | DC108: 0 | DD108: 0 | DE108: 0 | DF108: 0 | DG108: 0 | DH108: 0 | DI108: 0 | DJ108: 0 | DK108: 0 | DL108: 0 | DM108: 0 | DN108: 0 | DO108: 0 | DP108: 0 | DQ108: 0 | DR108: 0 | DS108: 0 | DT108: 0 | DU108: 0 | DV108: 0 | DW108: 0 | DX108: 0 | DY108: 0 | DZ108: 0 | EA108: 0 | EB108: 0 | EC108: 0 | ED108: 0 | EE108: 0 | EF108: 0 | EG108: 0 | EH108: 0 | EI108: =$F$108*EI107 -> 0 | EJ108: 0 | EK108: 0 | EL108: 0 | EM108: 0 | EN108: 0 | EO108: 0 | EP108: 0 | EQ108: 0 | ER108: 0 | ES108: 0 | ET108: 0 | EU108: 0 | EV108: 0 | EW108: 0 | EX108: 0 | EY108: 0 | EZ108: 0 | FA108: 0 | FB108: 0 | FC108: 0 | FD108: 0 | FE108: 0 | FF108: 0 | FG108: 0 | FH108: 0 | FI108: 0 | FJ108: 0 | FK108: 0 | FL108: 0 | FM108: 0 | FN108: 0 | FO108: 0 | FP108: 0 | FQ108: 0 | FR108: 0 | FS108: 0 | FT108: 0 | FU108: 0 | FV108: 0 | FW108: 0 | FX108: 0 | FY108: 0 | FZ108: 0 | GA108: 0 | GB108: 0 | GC108: 0 | GD108: 0 | GE108: 0 | GF108: 0 | GG108: 0 | GH108: 0 | GI108: 0 | GJ108: 0 | GK108: 0 | GL108: 0 | GM108: 0 | GN108: 0 | GO108: 0 | GP108: 0 | GQ108: 0 | GR108: 0 | GS108: 0 | GT108: 0 | GU108: =$F$108*GU107 -> 0 | GV108: 0 | GW108: 0 | GX108: 0 | GY108: 0 | GZ108: 0 | HA108: 0
D110: Dividends | E110: =E68 -> 0.5 | H110: =SUM(I110:XFD110) -> 562503.3843 | J110: =$E$110*J83 -> 0 | K110: 0 | L110: 12812.5 | M110: 13132.8125 | N110: 13461.13281 | O110: 13797.66113 | P110: 14142.60266 | Q110: 14496.16773 | R110: 14858.57192 | S110: 15230.03622 | T110: 15610.78712 | U110: 16001.0568 | V110: 16401.08322 | W110: 16811.1103 | X110: 17231.38806 | Y110: 17662.17276 | Z110: 18103.72708 | AA110: 18556.32026 | AB110: 19020.22826 | AC110: 19495.73397 | AD110: 19983.12732 | AE110: 20482.7055 | AF110: 20994.77314 | AG110: 21519.64247 | AH110: 22057.63353 | AI110: 22609.07437 | AJ110: 23174.30123 | AK110: 23753.65876 | AL110: 24347.50023 | AM110: 24956.18773 | AN110: 25580.09243 | AO110: 26219.59474 | AP110: =$E$110*AP83 -> 0 | AQ110: 0 | AR110: 0 | AS110: 0 | AT110: 0 | AU110: 0 | AV110: 0 | AW110: 0 | AX110: 0 | AY110: 0 | AZ110: 0 | BA110: 0 | BB110: 0 | BC110: 0 | BD110: 0 | BE110: 0 | BF110: 0 | BG110: 0 | BH110: 0 | BI110: 0 | BJ110: 0 | BK110: 0 | BL110: 0 | BM110: 0 | BN110: 0 | BO110: 0 | BP110: 0 | BQ110: 0 | BR110: 0 | BS110: 0 | BT110: 0 | BU110: 0 | BV110: =$E$110*BV83 -> 0 | BW110: 0 | BX110: 0 | BY110: 0 | BZ110: 0 | CA110: 0 | CB110: 0 | CC110: 0 | CD110: 0 | CE110: 0 | CF110: 0 | CG110: 0 | CH110: 0 | CI110: 0 | CJ110: 0 | CK110: 0 | CL110: 0 | CM110: 0 | CN110: 0 | CO110: 0 | CP110: 0 | CQ110: 0 | CR110: 0 | CS110: 0 | CT110: 0 | CU110: 0 | CV110: 0 | CW110: 0 | CX110: 0 | CY110: 0 | CZ110: 0 | DA110: 0 | DB110: =$E$110*DB83 -> 0 | DC110: 0 | DD110: 0 | DE110: 0 | DF110: 0 | DG110: 0 | DH110: 0 | DI110: 0 | DJ110: 0 | DK110: 0 | DL110: 0 | DM110: 0 | DN110: 0 | DO110: 0 | DP110: 0 | DQ110: 0 | DR110: 0 | DS110: 0 | DT110: 0 | DU110: 0 | DV110: 0 | DW110: 0 | DX110: 0 | DY110: 0 | DZ110: 0 | EA110: 0 | EB110: 0 | EC110: 0 | ED110: 0 | EE110: 0 | EF110: 0 | EG110: 0 | EH110: =$E$110*EH83 -> 0 | EI110: 0 | EJ110: 0 | EK110: 0 | EL110: 0 | EM110: 0 | EN110: 0 | EO110: 0 | EP110: 0 | EQ110: 0 | ER110: 0 | ES110: 0 | ET110: 0 | EU110: 0 | EV110: 0 | EW110: 0 | EX110: 0 | EY110: 0 | EZ110: 0 | FA110: 0 | FB110: 0 | FC110: 0 | FD110: 0 | FE110: 0 | FF110: 0 | FG110: 0 | FH110: 0 | FI110: 0 | FJ110: 0 | FK110: 0 | FL110: 0 | FM110: 0 | FN110: =$E$110*FN83 -> 0 | FO110: 0 | FP110: 0 | FQ110: 0 | FR110: 0 | FS110: 0 | FT110: 0 | FU110: 0 | FV110: 0 | FW110: 0 | FX110: 0 | FY110: 0 | FZ110: 0 | GA110: 0 | GB110: 0 | GC110: 0 | GD110: 0 | GE110: 0 | GF110: 0 | GG110: 0 | GH110: 0 | GI110: 0 | GJ110: 0 | GK110: 0 | GL110: 0 | GM110: 0 | GN110: 0 | GO110: 0 | GP110: 0 | GQ110: 0 | GR110: 0 | GS110: 0 | GT110: =$E$110*GT83 -> 0 | GU110: 0 | GV110: 0 | GW110: 0 | GX110: 0 | GY110: 0 | GZ110: 0 | HA110: 0
D111: Net Cash Flow to Partner | H111: =SUM(I111:XFD111) -> 562503.3843 | J111: =J110-J108 -> 0 | K111: =K110-K108 -> 0 | L111: 12812.5 | M111: 13132.8125 | N111: 13461.13281 | O111: 13797.66113 | P111: 14142.60266 | Q111: 14496.16773 | R111: 14858.57192 | S111: 15230.03622 | T111: 15610.78712 | U111: 16001.0568 | V111: 16401.08322 | W111: 16811.1103 | X111: 17231.38806 | Y111: 17662.17276 | Z111: 18103.72708 | AA111: 18556.32026 | AB111: 19020.22826 | AC111: 19495.73397 | AD111: 19983.12732 | AE111: 20482.7055 | AF111: 20994.77314 | AG111: 21519.64247 | AH111: 22057.63353 | AI111: 22609.07437 | AJ111: 23174.30123 | AK111: 23753.65876 | AL111: 24347.50023 | AM111: 24956.18773 | AN111: 25580.09243 | AO111: 26219.59474 | AP111: 0 | AQ111: 0 | AR111: 0 | AS111: 0 | AT111: 0 | AU111: 0 | AV111: 0 | AW111: 0 | AX111: 0 | AY111: 0 | AZ111: 0 | BA111: 0 | BB111: 0 | BC111: 0 | BD111: 0 | BE111: 0 | BF111: 0 | BG111: 0 | BH111: 0 | BI111: 0 | BJ111: 0 | BK111: 0 | BL111: 0 | BM111: 0 | BN111: 0 | BO111: 0 | BP111: 0 | BQ111: 0 | BR111: 0 | BS111: 0 | BT111: 0 | BU111: 0 | BV111: 0 | BW111: =BW110-BW108 -> 0 | BX111: 0 | BY111: 0 | BZ111: 0 | CA111: 0 | CB111: 0 | CC111: 0 | CD111: 0 | CE111: 0 | CF111: 0 | CG111: 0 | CH111: 0 | CI111: 0 | CJ111: 0 | CK111: 0 | CL111: 0 | CM111: 0 | CN111: 0 | CO111: 0 | CP111: 0 | CQ111: 0 | CR111: 0 | CS111: 0 | CT111: 0 | CU111: 0 | CV111: 0 | CW111: 0 | CX111: 0 | CY111: 0 | CZ111: 0 | DA111: 0 | DB111: 0 | DC111: 0 | DD111: 0 | DE111: 0 | DF111: 0 | DG111: 0 | DH111: 0 | DI111: 0 | DJ111: 0 | DK111: 0 | DL111: 0 | DM111: 0 | DN111: 0 | DO111: 0 | DP111: 0 | DQ111: 0 | DR111: 0 | DS111: 0 | DT111: 0 | DU111: 0 | DV111: 0 | DW111: 0 | DX111: 0 | DY111: 0 | DZ111: 0 | EA111: 0 | EB111: 0 | EC111: 0 | ED111: 0 | EE111: 0 | EF111: 0 | EG111: 0 | EH111: 0 | EI111: =EI110-EI108 -> 0 | EJ111: 0 | EK111: 0 | EL111: 0 | EM111: 0 | EN111: 0 | EO111: 0 | EP111: 0 | EQ111: 0 | ER111: 0 | ES111: 0 | ET111: 0 | EU111: 0 | EV111: 0 | EW111: 0 | EX111: 0 | EY111: 0 | EZ111: 0 | FA111: 0 | FB111: 0 | FC111: 0 | FD111: 0 | FE111: 0 | FF111: 0 | FG111: 0 | FH111: 0 | FI111: 0 | FJ111: 0 | FK111: 0 | FL111: 0 | FM111: 0 | FN111: 0 | FO111: 0 | FP111: 0 | FQ111: 0 | FR111: 0 | FS111: 0 | FT111: 0 | FU111: 0 | FV111: 0 | FW111: 0 | FX111: 0 | FY111: 0 | FZ111: 0 | GA111: 0 | GB111: 0 | GC111: 0 | GD111: 0 | GE111: 0 | GF111: 0 | GG111: 0 | GH111: 0 | GI111: 0 | GJ111: 0 | GK111: 0 | GL111: 0 | GM111: 0 | GN111: 0 | GO111: 0 | GP111: 0 | GQ111: 0 | GR111: 0 | GS111: 0 | GT111: 0 | GU111: =GU110-GU108 -> 0 | GV111: 0 | GW111: 0 | GX111: 0 | GY111: 0 | GZ111: 0 | HA111: 0
D113: EIRR to Partner | E113: =IFERROR(XIRR(J111:HA111,J2:HA2),FALSE) -> FALSE
C115: Cash Flow to Develoer/Sponsor
D116: Total Cash Flow (No Development Fee Outflow) | J116: =J100 -> 0 | K116: =K100 -> 0 | L116: 0 | M116: 0 | N116: 0 | O116: 0 | P116: 0 | Q116: 0 | R116: 0 | S116: 0 | T116: 0 | U116: 0 | V116: 0 | W116: 0 | X116: 0 | Y116: 0 | Z116: 0 | AA116: 0 | AB116: 0 | AC116: 0 | AD116: 0 | AE116: 0 | AF116: 0 | AG116: 0 | AH116: 0 | AI116: 0 | AJ116: 0 | AK116: 0 | AL116: 0 | AM116: 0 | AN116: 0 | AO116: 0 | AP116: 0 | AQ116: 0 | AR116: 0 | AS116: 0 | AT116: 0 | AU116: 0 | AV116: 0 | AW116: 0 | AX116: 0 | AY116: 0 | AZ116: 0 | BA116: 0 | BB116: 0 | BC116: 0 | BD116: 0 | BE116: 0 | BF116: 0 | BG116: 0 | BH116: 0 | BI116: 0 | BJ116: 0 | BK116: 0 | BL116: 0 | BM116: 0 | BN116: 0 | BO116: 0 | BP116: 0 | BQ116: 0 | BR116: 0 | BS116: 0 | BT116: 0 | BU116: 0 | BV116: 0 | BW116: =BW100 -> 0 | BX116: 0 | BY116: 0 | BZ116: 0 | CA116: 0 | CB116: 0 | CC116: 0 | CD116: 0 | CE116: 0 | CF116: 0 | CG116: 0 | CH116: 0 | CI116: 0 | CJ116: 0 | CK116: 0 | CL116: 0 | CM116: 0 | CN116: 0 | CO116: 0 | CP116: 0 | CQ116: 0 | CR116: 0 | CS116: 0 | CT116: 0 | CU116: 0 | CV116: 0 | CW116: 0 | CX116: 0 | CY116: 0 | CZ116: 0 | DA116: 0 | DB116: 0 | DC116: 0 | DD116: 0 | DE116: 0 | DF116: 0 | DG116: 0 | DH116: 0 | DI116: 0 | DJ116: 0 | DK116: 0 | DL116: 0 | DM116: 0 | DN116: 0 | DO116: 0 | DP116: 0 | DQ116: 0 | DR116: 0 | DS116: 0 | DT116: 0 | DU116: 0 | DV116: 0 | DW116: 0 | DX116: 0 | DY116: 0 | DZ116: 0 | EA116: 0 | EB116: 0 | EC116: 0 | ED116: 0 | EE116: 0 | EF116: 0 | EG116: 0 | EH116: 0 | EI116: =EI100 -> 0 | EJ116: 0 | EK116: 0 | EL116: 0 | EM116: 0 | EN116: 0 | EO116: 0 | EP116: 0 | EQ116: 0 | ER116: 0 | ES116: 0 | ET116: 0 | EU116: 0 | EV116: 0 | EW116: 0 | EX116: 0 | EY116: 0 | EZ116: 0 | FA116: 0 | FB116: 0 | FC116: 0 | FD116: 0 | FE116: 0 | FF116: 0 | FG116: 0 | FH116: 0 | FI116: 0 | FJ116: 0 | FK116: 0 | FL116: 0 | FM116: 0 | FN116: 0 | FO116: 0 | FP116: 0 | FQ116: 0 | FR116: 0 | FS116: 0 | FT116: 0 | FU116: 0 | FV116: 0 | FW116: 0 | FX116: 0 | FY116: 0 | FZ116: 0 | GA116: 0 | GB116: 0 | GC116: 0 | GD116: 0 | GE116: 0 | GF116: 0 | GG116: 0 | GH116: 0 | GI116: 0 | GJ116: 0 | GK116: 0 | GL116: 0 | GM116: 0 | GN116: 0 | GO116: 0 | GP116: 0 | GQ116: 0 | GR116: 0 | GS116: 0 | GT116: 0 | GU116: =GU100 -> 0 | GV116: 0 | GW116: 0 | GX116: 0 | GY116: 0 | GZ116: 0 | HA116: 0
D117: Developer/Sponsor Funding | H117: =SUM(I117:XFD117) -> -562503.3843 | J117: =J116-J111 -> 0 | K117: =K116-K111 -> 0 | L117: -12812.5 | M117: -13132.8125 | N117: -13461.13281 | O117: -13797.66113 | P117: -14142.60266 | Q117: -14496.16773 | R117: -14858.57192 | S117: -15230.03622 | T117: -15610.78712 | U117: -16001.0568 | V117: -16401.08322 | W117: -16811.1103 | X117: -17231.38806 | Y117: -17662.17276 | Z117: -18103.72708 | AA117: -18556.32026 | AB117: -19020.22826 | AC117: -19495.73397 | AD117: -19983.12732 | AE117: -20482.7055 | AF117: -20994.77314 | AG117: -21519.64247 | AH117: -22057.63353 | AI117: -22609.07437 | AJ117: -23174.30123 | AK117: -23753.65876 | AL117: -24347.50023 | AM117: -24956.18773 | AN117: -25580.09243 | AO117: -26219.59474 | AP117: 0 | AQ117: 0 | AR117: 0 | AS117: 0 | AT117: 0 | AU117: 0 | AV117: 0 | AW117: 0 | AX117: 0 | AY117: 0 | AZ117: 0 | BA117: 0 | BB117: 0 | BC117: 0 | BD117: 0 | BE117: 0 | BF117: 0 | BG117: 0 | BH117: 0 | BI117: 0 | BJ117: 0 | BK117: 0 | BL117: 0 | BM117: 0 | BN117: 0 | BO117: 0 | BP117: 0 | BQ117: 0 | BR117: 0 | BS117: 0 | BT117: 0 | BU117: 0 | BV117: 0 | BW117: =BW116-BW111 -> 0 | BX117: 0 | BY117: 0 | BZ117: 0 | CA117: 0 | CB117: 0 | CC117: 0 | CD117: 0 | CE117: 0 | CF117: 0 | CG117: 0 | CH117: 0 | CI117: 0 | CJ117: 0 | CK117: 0 | CL117: 0 | CM117: 0 | CN117: 0 | CO117: 0 | CP117: 0 | CQ117: 0 | CR117: 0 | CS117: 0 | CT117: 0 | CU117: 0 | CV117: 0 | CW117: 0 | CX117: 0 | CY117: 0 | CZ117: 0 | DA117: 0 | DB117: 0 | DC117: 0 | DD117: 0 | DE117: 0 | DF117: 0 | DG117: 0 | DH117: 0 | DI117: 0 | DJ117: 0 | DK117: 0 | DL117: 0 | DM117: 0 | DN117: 0 | DO117: 0 | DP117: 0 | DQ117: 0 | DR117: 0 | DS117: 0 | DT117: 0 | DU117: 0 | DV117: 0 | DW117: 0 | DX117: 0 | DY117: 0 | DZ117: 0 | EA117: 0 | EB117: 0 | EC117: 0 | ED117: 0 | EE117: 0 | EF117: 0 | EG117: 0 | EH117: 0 | EI117: =EI116-EI111 -> 0 | EJ117: 0 | EK117: 0 | EL117: 0 | EM117: 0 | EN117: 0 | EO117: 0 | EP117: 0 | EQ117: 0 | ER117: 0 | ES117: 0 | ET117: 0 | EU117: 0 | EV117: 0 | EW117: 0 | EX117: 0 | EY117: 0 | EZ117: 0 | FA117: 0 | FB117: 0 | FC117: 0 | FD117: 0 | FE117: 0 | FF117: 0 | FG117: 0 | FH117: 0 | FI117: 0 | FJ117: 0 | FK117: 0 | FL117: 0 | FM117: 0 | FN117: 0 | FO117: 0 | FP117: 0 | FQ117: 0 | FR117: 0 | FS117: 0 | FT117: 0 | FU117: 0 | FV117: 0 | FW117: 0 | FX117: 0 | FY117: 0 | FZ117: 0 | GA117: 0 | GB117: 0 | GC117: 0 | GD117: 0 | GE117: 0 | GF117: 0 | GG117: 0 | GH117: 0 | GI117: 0 | GJ117: 0 | GK117: 0 | GL117: 0 | GM117: 0 | GN117: 0 | GO117: 0 | GP117: 0 | GQ117: 0 | GR117: 0 | GS117: 0 | GT117: 0 | GU117: =GU116-GU111 -> 0 | GV117: 0 | GW117: 0 | GX117: 0 | GY117: 0 | GZ117: 0 | HA117: 0
D118: EIRR to Developer/Sponsor | E118: =IFERROR(XIRR(J117:HA117,J2:HA2),FALSE) -> FALSE
C120: Graph
J121: =IF(J7,J2,NA()) ->  | L121: 2021-03-01 | M121: 2022-03-01 | N121: 2023-03-01 | O121: 2024-03-01 | P121: 2025-03-01 | Q121: 2026-03-01 | R121: 2027-03-01 | S121: 2028-03-01 | T121: 2029-03-01 | U121: 2030-03-01 | V121: 2031-03-01 | W121: 2032-03-01 | X121: 2033-03-01 | Y121: 2034-03-01 | Z121: 2035-03-01 | AA121: 2036-03-01 | AB121: 2037-03-01 | AC121: 2038-03-01 | AD121: 2039-03-01 | AE121: 2040-03-01 | AF121: 2041-03-01 | AG121: 2042-03-01 | AH121: 2043-03-01 | AI121: 2044-03-01 | AJ121: 2045-03-01 | AK121: 2046-03-01 | AL121: 2047-03-01 | AM121: 2048-03-01 | AN121: 2049-03-01 | AO121: 2050-03-01 | AP121: =IF(AP7,AP2,NA()) ->  | BV121: =IF(BV7,BV2,NA()) ->  | DB121: =IF(DB7,DB2,NA()) ->  | EH121: =IF(EH7,EH2,NA()) ->  | FN121: =IF(FN7,FN2,NA()) ->  | GT121: =IF(GT7,GT2,NA()) -> 
D122: CFADS | J122: =J45 -> 0 | K122: 0 | L122: 25625 | M122: 26265.625 | N122: 26922.26562 | O122: 27595.32227 | P122: 28285.20532 | Q122: 28992.33546 | R122: 29717.14384 | S122: 30460.07244 | T122: 31221.57425 | U122: 32002.1136 | V122: 32802.16645 | W122: 33622.22061 | X122: 34462.77612 | Y122: 35324.34552 | Z122: 36207.45416 | AA122: 37112.64052 | AB122: 38040.45653 | AC122: 38991.46794 | AD122: 39966.25464 | AE122: 40965.41101 | AF122: 41989.54628 | AG122: 43039.28494 | AH122: 44115.26706 | AI122: 45218.14874 | AJ122: 46348.60246 | AK122: 47507.31752 | AL122: 48695.00046 | AM122: 49912.37547 | AN122: 51160.18486 | AO122: 52439.18948 | AP122: =AP45 -> 0 | AQ122: 0 | AR122: 0 | AS122: 0 | AT122: 0 | AU122: 0 | AV122: 0 | AW122: 0 | AX122: 0 | AY122: 0 | AZ122: 0 | BA122: 0 | BB122: 0 | BC122: 0 | BD122: 0 | BE122: 0 | BF122: 0 | BG122: 0 | BH122: 0 | BI122: 0 | BJ122: 0 | BK122: 0 | BL122: 0 | BM122: 0 | BN122: 0 | BO122: 0 | BP122: 0 | BQ122: 0 | BR122: 0 | BS122: 0 | BT122: 0 | BU122: 0 | BV122: =BV45 -> 0 | BW122: 0 | BX122: 0 | BY122: 0 | BZ122: 0 | CA122: 0 | CB122: 0 | CC122: 0 | CD122: 0 | CE122: 0 | CF122: 0 | CG122: 0 | CH122: 0 | CI122: 0 | CJ122: 0 | CK122: 0 | CL122: 0 | CM122: 0 | CN122: 0 | CO122: 0 | CP122: 0 | CQ122: 0 | CR122: 0 | CS122: 0 | CT122: 0 | CU122: 0 | CV122: 0 | CW122: 0 | CX122: 0 | CY122: 0 | CZ122: 0 | DA122: 0 | DB122: =DB45 -> 0 | DC122: 0 | DD122: 0 | DE122: 0 | DF122: 0 | DG122: 0 | DH122: 0 | DI122: 0 | DJ122: 0 | DK122: 0 | DL122: 0 | DM122: 0 | DN122: 0 | DO122: 0 | DP122: 0 | DQ122: 0 | DR122: 0 | DS122: 0 | DT122: 0 | DU122: 0 | DV122: 0 | DW122: 0 | DX122: 0 | DY122: 0 | DZ122: 0 | EA122: 0 | EB122: 0 | EC122: 0 | ED122: 0 | EE122: 0 | EF122: 0 | EG122: 0 | EH122: =EH45 -> 0 | EI122: 0 | EJ122: 0 | EK122: 0 | EL122: 0 | EM122: 0 | EN122: 0 | EO122: 0 | EP122: 0 | EQ122: 0 | ER122: 0 | ES122: 0 | ET122: 0 | EU122: 0 | EV122: 0 | EW122: 0 | EX122: 0 | EY122: 0 | EZ122: 0 | FA122: 0 | FB122: 0 | FC122: 0 | FD122: 0 | FE122: 0 | FF122: 0 | FG122: 0 | FH122: 0 | FI122: 0 | FJ122: 0 | FK122: 0 | FL122: 0 | FM122: 0 | FN122: =FN45 -> 0 | FO122: 0 | FP122: 0 | FQ122: 0 | FR122: 0 | FS122: 0 | FT122: 0 | FU122: 0 | FV122: 0 | FW122: 0 | FX122: 0 | FY122: 0 | FZ122: 0 | GA122: 0 | GB122: 0 | GC122: 0 | GD122: 0 | GE122: 0 | GF122: 0 | GG122: 0 | GH122: 0 | GI122: 0 | GJ122: 0 | GK122: 0 | GL122: 0 | GM122: 0 | GN122: 0 | GO122: 0 | GP122: 0 | GQ122: 0 | GR122: 0 | GS122: 0 | GT122: =GT45 -> 0 | GU122: 0 | GV122: 0 | GW122: 0 | GX122: 0 | GY122: 0 | GZ122: 0 | HA122: 0
D123: Debt Service | J123: =J82 -> FALSE | K123: =K82 -> FALSE | L123: FALSE | M123: FALSE | N123: FALSE | O123: FALSE | P123: FALSE | Q123: FALSE | R123: FALSE | S123: FALSE | T123: FALSE | U123: FALSE | V123: FALSE | W123: FALSE | X123: FALSE | Y123: FALSE | Z123: FALSE | AA123: FALSE | AB123: FALSE | AC123: FALSE | AD123: FALSE | AE123: FALSE | AF123: FALSE | AG123: FALSE | AH123: FALSE | AI123: FALSE | AJ123: FALSE | AK123: FALSE | AL123: FALSE | AM123: FALSE | AN123: FALSE | AO123: FALSE | AP123: FALSE | AQ123: FALSE | AR123: FALSE | AS123: FALSE | AT123: FALSE | AU123: FALSE | AV123: FALSE | AW123: FALSE | AX123: FALSE | AY123: FALSE | AZ123: FALSE | BA123: FALSE | BB123: FALSE | BC123: FALSE | BD123: FALSE | BE123: FALSE | BF123: FALSE | BG123: FALSE | BH123: FALSE | BI123: FALSE | BJ123: FALSE | BK123: FALSE | BL123: FALSE | BM123: FALSE | BN123: FALSE | BO123: FALSE | BP123: FALSE | BQ123: FALSE | BR123: FALSE | BS123: FALSE | BT123: FALSE | BU123: FALSE | BV123: FALSE | BW123: =BW82 -> FALSE | BX123: FALSE | BY123: FALSE | BZ123: FALSE | CA123: FALSE | CB123: FALSE | CC123: FALSE | CD123: FALSE | CE123: FALSE | CF123: FALSE | CG123: FALSE | CH123: FALSE | CI123: FALSE | CJ123: FALSE | CK123: FALSE | CL123: FALSE | CM123: FALSE | CN123: FALSE | CO123: FALSE | CP123: FALSE | CQ123: FALSE | CR123: FALSE | CS123: FALSE | CT123: FALSE | CU123: FALSE | CV123: FALSE | CW123: FALSE | CX123: FALSE | CY123: FALSE | CZ123: FALSE | DA123: FALSE | DB123: FALSE | DC123: FALSE | DD123: FALSE | DE123: FALSE | DF123: FALSE | DG123: FALSE | DH123: FALSE | DI123: FALSE | DJ123: FALSE | DK123: FALSE | DL123: FALSE | DM123: FALSE | DN123: FALSE | DO123: FALSE | DP123: FALSE | DQ123: FALSE | DR123: FALSE | DS123: FALSE | DT123: FALSE | DU123: FALSE | DV123: FALSE | DW123: FALSE | DX123: FALSE | DY123: FALSE | DZ123: FALSE | EA123: FALSE | EB123: FALSE | EC123: FALSE | ED123: FALSE | EE123: FALSE | EF123: FALSE | EG123: FALSE | EH123: FALSE | EI123: =EI82 -> FALSE | EJ123: FALSE | EK123: FALSE | EL123: FALSE | EM123: FALSE | EN123: FALSE | EO123: FALSE | EP123: FALSE | EQ123: FALSE | ER123: FALSE | ES123: FALSE | ET123: FALSE | EU123: FALSE | EV123: FALSE | EW123: FALSE | EX123: FALSE | EY123: FALSE | EZ123: FALSE | FA123: FALSE | FB123: FALSE | FC123: FALSE | FD123: FALSE | FE123: FALSE | FF123: FALSE | FG123: FALSE | FH123: FALSE | FI123: FALSE | FJ123: FALSE | FK123: FALSE | FL123: FALSE | FM123: FALSE | FN123: FALSE | FO123: FALSE | FP123: FALSE | FQ123: FALSE | FR123: FALSE | FS123: FALSE | FT123: FALSE | FU123: FALSE | FV123: FALSE | FW123: FALSE | FX123: FALSE | FY123: FALSE | FZ123: FALSE | GA123: FALSE | GB123: FALSE | GC123: FALSE | GD123: FALSE | GE123: FALSE | GF123: FALSE | GG123: FALSE | GH123: FALSE | GI123: FALSE | GJ123: FALSE | GK123: FALSE | GL123: FALSE | GM123: FALSE | GN123: FALSE | GO123: FALSE | GP123: FALSE | GQ123: FALSE | GR123: FALSE | GS123: FALSE | GT123: FALSE | GU123: =GU82 -> FALSE | GV123: FALSE | GW123: FALSE | GX123: FALSE | GY123: FALSE | GZ123: FALSE | HA123: FALSE

Sheet Development Fee with DSCR Debt
B1: Timeline
D2: Date | I2: 2020-01-01 | J2: =EDATE(I2, J9) -> 2020-02-01 | K2: 2020-03-01 | L2: 2021-03-01 | M2: 2022-03-01 | N2: 2023-03-01 | O2: 2024-03-01 | P2: 2025-03-01 | Q2: 2026-03-01 | R2: 2027-03-01 | S2: 2028-03-01 | T2: 2029-03-01 | U2: 2030-03-01 | V2: 2031-03-01 | W2: 2032-03-01 | X2: 2033-03-01 | Y2: 2034-03-01 | Z2: 2035-03-01 | AA2: 2036-03-01 | AB2: 2037-03-01 | AC2: 2038-03-01 | AD2: 2039-03-01 | AE2: 2040-03-01 | AF2: 2041-03-01 | AG2: 2042-03-01 | AH2: 2043-03-01 | AI2: 2044-03-01 | AJ2: 2045-03-01 | AK2: 2046-03-01 | AL2: 2047-03-01 | AM2: 2048-03-01 | AN2: 2049-03-01 | AO2: 2050-03-01 | AP2: =EDATE(AO2, AP9) -> 2051-03-01 | AQ2: 2052-03-01 | AR2: 2053-03-01 | AS2: 2054-03-01 | AT2: 2055-03-01 | AU2: 2056-03-01 | AV2: 2057-03-01 | AW2: 2058-03-01 | AX2: 2059-03-01 | AY2: 2060-03-01 | AZ2: 2061-03-01 | BA2: 2062-03-01 | BB2: 2063-03-01 | BC2: 2064-03-01 | BD2: 2065-03-01 | BE2: 2066-03-01 | BF2: 2067-03-01 | BG2: 2068-03-01 | BH2: 2069-03-01 | BI2: 2070-03-01 | BJ2: 2071-03-01 | BK2: 2072-03-01 | BL2: 2073-03-01 | BM2: 2074-03-01 | BN2: 2075-03-01 | BO2: 2076-03-01 | BP2: 2077-03-01 | BQ2: 2078-03-01 | BR2: 2079-03-01 | BS2: 2080-03-01 | BT2: 2081-03-01 | BU2: 2082-03-01 | BV2: =EDATE(BU2, BV9) -> 2083-03-01 | BW2: 2084-03-01 | BX2: 2085-03-01 | BY2: 2086-03-01 | BZ2: 2087-03-01 | CA2: 2088-03-01 | CB2: 2089-03-01 | CC2: 2090-03-01 | CD2: 2091-03-01 | CE2: 2092-03-01 | CF2: 2093-03-01 | CG2: 2094-03-01 | CH2: 2095-03-01 | CI2: 2096-03-01 | CJ2: 2097-03-01 | CK2: 2098-03-01 | CL2: 2099-03-01 | CM2: 2100-03-01 | CN2: 2101-03-01 | CO2: 2102-03-01 | CP2: 2103-03-01 | CQ2: 2104-03-01 | CR2: 2105-03-01 | CS2: 2106-03-01 | CT2: 2107-03-01 | CU2: 2108-03-01 | CV2: 2109-03-01 | CW2: 2110-03-01 | CX2: 2111-03-01 | CY2: 2112-03-01 | CZ2: 2113-03-01 | DA2: 2114-03-01 | DB2: =EDATE(DA2, DB9) -> 2115-03-01 | DC2: 2116-03-01 | DD2: 2117-03-01 | DE2: 2118-03-01 | DF2: 2119-03-01 | DG2: 2120-03-01 | DH2: 2121-03-01 | DI2: 2122-03-01 | DJ2: 2123-03-01 | DK2: 2124-03-01 | DL2: 2125-03-01 | DM2: 2126-03-01 | DN2: 2127-03-01 | DO2: 2128-03-01 | DP2: 2129-03-01 | DQ2: 2130-03-01 | DR2: 2131-03-01 | DS2: 2132-03-01 | DT2: 2133-03-01 | DU2: 2134-03-01 | DV2: 2135-03-01 | DW2: 2136-03-01 | DX2: 2137-03-01 | DY2: 2138-03-01 | DZ2: 2139-03-01 | EA2: 2140-03-01 | EB2: 2141-03-01 | EC2: 2142-03-01 | ED2: 2143-03-01 | EE2: 2144-03-01 | EF2: 2145-03-01 | EG2: 2146-03-01 | EH2: =EDATE(EG2, EH9) -> 2147-03-01 | EI2: 2148-03-01 | EJ2: 2149-03-01 | EK2: 2150-03-01 | EL2: 2151-03-01 | EM2: 2152-03-01 | EN2: 2153-03-01 | EO2: 2154-03-01 | EP2: 2155-03-01 | EQ2: 2156-03-01 | ER2: 2157-03-01 | ES2: 2158-03-01 | ET2: 2159-03-01 | EU2: 2160-03-01 | EV2: 2161-03-01 | EW2: 2162-03-01 | EX2: 2163-03-01 | EY2: 2164-03-01 | EZ2: 2165-03-01 | FA2: 2166-03-01 | FB2: 2167-03-01 | FC2: 2168-03-01 | FD2: 2169-03-01 | FE2: 2170-03-01 | FF2: 2171-03-01 | FG2: 2172-03-01 | FH2: 2173-03-01 | FI2: 2174-03-01 | FJ2: 2175-03-01 | FK2: 2176-03-01 | FL2: 2177-03-01 | FM2: 2178-03-01 | FN2: =EDATE(FM2, FN9) -> 2179-03-01 | FO2: 2180-03-01 | FP2: 2181-03-01 | FQ2: 2182-03-01 | FR2: 2183-03-01 | FS2: 2184-03-01 | FT2: 2185-03-01 | FU2: 2186-03-01 | FV2: 2187-03-01 | FW2: 2188-03-01 | FX2: 2189-03-01 | FY2: 2190-03-01 | FZ2: 2191-03-01 | GA2: 2192-03-01 | GB2: 2193-03-01 | GC2: 2194-03-01 | GD2: 2195-03-01 | GE2: 2196-03-01 | GF2: 2197-03-01 | GG2: 2198-03-01 | GH2: 2199-03-01 | GI2: 2200-03-01 | GJ2: 2201-03-01 | GK2: 2202-03-01 | GL2: 2203-03-01 | GM2: 2204-03-01 | GN2: 2205-03-01 | GO2: 2206-03-01 | GP2: 2207-03-01 | GQ2: 2208-03-01 | GR2: 2209-03-01 | GS2: 2210-03-01 | GT2: =EDATE(GS2, GT9) -> 2211-03-01 | GU2: 2212-03-01 | GV2: 2213-03-01 | GW2: 2214-03-01 | GX2: 2215-03-01 | GY2: 2216-03-01 | GZ2: 2217-03-01 | HA2: 2218-03-01
D3: Period | J3: 1 | K3: 2 | L3: 3 | M3: 4 | N3: 5 | O3: 6 | P3: 7 | Q3: 8 | R3: 9 | S3: 10 | T3: 11 | U3: 12 | V3: 13 | W3: 14 | X3: 15 | Y3: 16 | Z3: 17 | AA3: 18 | AB3: 19 | AC3: 20 | AD3: 21 | AE3: 22 | AF3: 23 | AG3: 24 | AH3: 25 | AI3: 26 | AJ3: 27 | AK3: 28 | AL3: 29 | AM3: 30 | AN3: 31 | AO3: 32 | AP3: 33 | AQ3: 34 | AR3: 35 | AS3: 36 | AT3: 37 | AU3: 38 | AV3: 39 | AW3: 40 | AX3: 41 | AY3: 42 | AZ3: 43 | BA3: 44 | BB3: 45 | BC3: 46 | BD3: 47 | BE3: 48 | BF3: 49 | BG3: 50 | BH3: 51 | BI3: 52 | BJ3: 53 | BK3: 54 | BL3: 55 | BM3: 56 | BN3: 57 | BO3: 58 | BP3: 59 | BQ3: 60 | BR3: 61 | BS3: 62 | BT3: 63 | BU3: 64 | BV3: 65 | BW3: 66 | BX3: 67 | BY3: 68 | BZ3: 69 | CA3: 70 | CB3: 71 | CC3: 72 | CD3: 73 | CE3: 74 | CF3: 75 | CG3: 76 | CH3: 77 | CI3: 78 | CJ3: 79 | CK3: 80 | CL3: 81 | CM3: 82 | CN3: 83 | CO3: 84 | CP3: 85 | CQ3: 86 | CR3: 87 | CS3: 88 | CT3: 89 | CU3: 90 | CV3: 91 | CW3: 92 | CX3: 93 | CY3: 94 | CZ3: 95 | DA3: 96 | DB3: 97 | DC3: 98 | DD3: 99 | DE3: 100 | DF3: 101 | DG3: 102 | DH3: 103 | DI3: 104 | DJ3: 105 | DK3: 106 | DL3: 107 | DM3: 108 | DN3: 109 | DO3: 110 | DP3: 111 | DQ3: 112 | DR3: 113 | DS3: 114 | DT3: 115 | DU3: 116 | DV3: 117 | DW3: 118 | DX3: 119 | DY3: 120 | DZ3: 121 | EA3: 122 | EB3: 123 | EC3: 124 | ED3: 125 | EE3: 126 | EF3: 127 | EG3: 128 | EH3: 129 | EI3: 130 | EJ3: 131 | EK3: 132 | EL3: 133 | EM3: 134 | EN3: 135 | EO3: 136 | EP3: 137 | EQ3: 138 | ER3: 139 | ES3: 140 | ET3: 141 | EU3: 142 | EV3: 143 | EW3: 144 | EX3: 145 | EY3: 146 | EZ3: 147 | FA3: 148 | FB3: 149 | FC3: 150 | FD3: 151 | FE3: 152 | FF3: 153 | FG3: 154 | FH3: 155 | FI3: 156 | FJ3: 157 | FK3: 158 | FL3: 159 | FM3: 160 | FN3: 161 | FO3: 162 | FP3: 163 | FQ3: 164 | FR3: 165 | FS3: 166 | FT3: 167 | FU3: 168 | FV3: 169 | FW3: 170 | FX3: 171 | FY3: 172 | FZ3: 173 | GA3: 174 | GB3: 175 | GC3: 176 | GD3: 177 | GE3: 178 | GF3: 179 | GG3: 180 | GH3: 181 | GI3: 182 | GJ3: 183 | GK3: 184 | GL3: 185 | GM3: 186 | GN3: 187 | GO3: 188 | GP3: 189 | GQ3: 190 | GR3: 191 | GS3: 192 | GT3: 193 | GU3: 194 | GV3: 195 | GW3: 196 | GX3: 197 | GY3: 198 | GZ3: 199 | HA3: 200
D4: Development Period | E4: Month | F4: =F14 -> 1 | J4: =J3<=$F$4 -> TRUE | K4: FALSE | L4: FALSE | M4: FALSE | N4: FALSE | O4: FALSE | P4: FALSE | Q4: FALSE | R4: FALSE | S4: FALSE | T4: FALSE | U4: FALSE | V4: FALSE | W4: FALSE | X4: FALSE | Y4: FALSE | Z4: FALSE | AA4: FALSE | AB4: FALSE | AC4: FALSE | AD4: FALSE | AE4: FALSE | AF4: FALSE | AG4: FALSE | AH4: FALSE | AI4: FALSE | AJ4: FALSE | AK4: FALSE | AL4: FALSE | AM4: FALSE | AN4: FALSE | AO4: FALSE | AP4: =AP3<=$F$4 -> FALSE | AQ4: FALSE | AR4: FALSE | AS4: FALSE | AT4: FALSE | AU4: FALSE | AV4: FALSE | AW4: FALSE | AX4: FALSE | AY4: FALSE | AZ4: FALSE | BA4: FALSE | BB4: FALSE | BC4: FALSE | BD4: FALSE | BE4: FALSE | BF4: FALSE | BG4: FALSE | BH4: FALSE | BI4: FALSE | BJ4: FALSE | BK4: FALSE | BL4: FALSE | BM4: FALSE | BN4: FALSE | BO4: FALSE | BP4: FALSE | BQ4: FALSE | BR4: FALSE | BS4: FALSE | BT4: FALSE | BU4: FALSE | BV4: =BV3<=$F$4 -> FALSE | BW4: FALSE | BX4: FALSE | BY4: FALSE | BZ4: FALSE | CA4: FALSE | CB4: FALSE | CC4: FALSE | CD4: FALSE | CE4: FALSE | CF4: FALSE | CG4: FALSE | CH4: FALSE | CI4: FALSE | CJ4: FALSE | CK4: FALSE | CL4: FALSE | CM4: FALSE | CN4: FALSE | CO4: FALSE | CP4: FALSE | CQ4: FALSE | CR4: FALSE | CS4: FALSE | CT4: FALSE | CU4: FALSE | CV4: FALSE | CW4: FALSE | CX4: FALSE | CY4: FALSE | CZ4: FALSE | DA4: FALSE | DB4: =DB3<=$F$4 -> FALSE | DC4: FALSE | DD4: FALSE | DE4: FALSE | DF4: FALSE | DG4: FALSE | DH4: FALSE | DI4: FALSE | DJ4: FALSE | DK4: FALSE | DL4: FALSE | DM4: FALSE | DN4: FALSE | DO4: FALSE | DP4: FALSE | DQ4: FALSE | DR4: FALSE | DS4: FALSE | DT4: FALSE | DU4: FALSE | DV4: FALSE | DW4: FALSE | DX4: FALSE | DY4: FALSE | DZ4: FALSE | EA4: FALSE | EB4: FALSE | EC4: FALSE | ED4: FALSE | EE4: FALSE | EF4: FALSE | EG4: FALSE | EH4: =EH3<=$F$4 -> FALSE | EI4: FALSE | EJ4: FALSE | EK4: FALSE | EL4: FALSE | EM4: FALSE | EN4: FALSE | EO4: FALSE | EP4: FALSE | EQ4: FALSE | ER4: FALSE | ES4: FALSE | ET4: FALSE | EU4: FALSE | EV4: FALSE | EW4: FALSE | EX4: FALSE | EY4: FALSE | EZ4: FALSE | FA4: FALSE | FB4: FALSE | FC4: FALSE | FD4: FALSE | FE4: FALSE | FF4: FALSE | FG4: FALSE | FH4: FALSE | FI4: FALSE | FJ4: FALSE | FK4: FALSE | FL4: FALSE | FM4: FALSE | FN4: =FN3<=$F$4 -> FALSE | FO4: FALSE | FP4: FALSE | FQ4: FALSE | FR4: FALSE | FS4: FALSE | FT4: FALSE | FU4: FALSE | FV4: FALSE | FW4: FALSE | FX4: FALSE | FY4: FALSE | FZ4: FALSE | GA4: FALSE | GB4: FALSE | GC4: FALSE | GD4: FALSE | GE4: FALSE | GF4: FALSE | GG4: FALSE | GH4: FALSE | GI4: FALSE | GJ4: FALSE | GK4: FALSE | GL4: FALSE | GM4: FALSE | GN4: FALSE | GO4: FALSE | GP4: FALSE | GQ4: FALSE | GR4: FALSE | GS4: FALSE | GT4: =GT3<=$F$4 -> FALSE | GU4: FALSE | GV4: FALSE | GW4: FALSE | GX4: FALSE | GY4: FALSE | GZ4: FALSE | HA4: FALSE
D5: Construction period | E5: Month | F5: =F15 -> 1 | J5: =AND(J8,NOT(J4)) -> FALSE | K5: TRUE | L5: FALSE | M5: FALSE | N5: FALSE | O5: FALSE | P5: FALSE | Q5: FALSE | R5: FALSE | S5: FALSE | T5: FALSE | U5: FALSE | V5: FALSE | W5: FALSE | X5: FALSE | Y5: FALSE | Z5: FALSE | AA5: FALSE | AB5: FALSE | AC5: FALSE | AD5: FALSE | AE5: FALSE | AF5: FALSE | AG5: FALSE | AH5: FALSE | AI5: FALSE | AJ5: FALSE | AK5: FALSE | AL5: FALSE | AM5: FALSE | AN5: FALSE | AO5: FALSE | AP5: =AND(AP8,NOT(AP4)) -> FALSE | AQ5: FALSE | AR5: FALSE | AS5: FALSE | AT5: FALSE | AU5: FALSE | AV5: FALSE | AW5: FALSE | AX5: FALSE | AY5: FALSE | AZ5: FALSE | BA5: FALSE | BB5: FALSE | BC5: FALSE | BD5: FALSE | BE5: FALSE | BF5: FALSE | BG5: FALSE | BH5: FALSE | BI5: FALSE | BJ5: FALSE | BK5: FALSE | BL5: FALSE | BM5: FALSE | BN5: FALSE | BO5: FALSE | BP5: FALSE | BQ5: FALSE | BR5: FALSE | BS5: FALSE | BT5: FALSE | BU5: FALSE | BV5: =AND(BV8,NOT(BV4)) -> FALSE | BW5: FALSE | BX5: FALSE | BY5: FALSE | BZ5: FALSE | CA5: FALSE | CB5: FALSE | CC5: FALSE | CD5: FALSE | CE5: FALSE | CF5: FALSE | CG5: FALSE | CH5: FALSE | CI5: FALSE | CJ5: FALSE | CK5: FALSE | CL5: FALSE | CM5: FALSE | CN5: FALSE | CO5: FALSE | CP5: FALSE | CQ5: FALSE | CR5: FALSE | CS5: FALSE | CT5: FALSE | CU5: FALSE | CV5: FALSE | CW5: FALSE | CX5: FALSE | CY5: FALSE | CZ5: FALSE | DA5: FALSE | DB5: =AND(DB8,NOT(DB4)) -> FALSE | DC5: FALSE | DD5: FALSE | DE5: FALSE | DF5: FALSE | DG5: FALSE | DH5: FALSE | DI5: FALSE | DJ5: FALSE | DK5: FALSE | DL5: FALSE | DM5: FALSE | DN5: FALSE | DO5: FALSE | DP5: FALSE | DQ5: FALSE | DR5: FALSE | DS5: FALSE | DT5: FALSE | DU5: FALSE | DV5: FALSE | DW5: FALSE | DX5: FALSE | DY5: FALSE | DZ5: FALSE | EA5: FALSE | EB5: FALSE | EC5: FALSE | ED5: FALSE | EE5: FALSE | EF5: FALSE | EG5: FALSE | EH5: =AND(EH8,NOT(EH4)) -> FALSE | EI5: FALSE | EJ5: FALSE | EK5: FALSE | EL5: FALSE | EM5: FALSE | EN5: FALSE | EO5: FALSE | EP5: FALSE | EQ5: FALSE | ER5: FALSE | ES5: FALSE | ET5: FALSE | EU5: FALSE | EV5: FALSE | EW5: FALSE | EX5: FALSE | EY5: FALSE | EZ5: FALSE | FA5: FALSE | FB5: FALSE | FC5: FALSE | FD5: FALSE | FE5: FALSE | FF5: FALSE | FG5: FALSE | FH5: FALSE | FI5: FALSE | FJ5: FALSE | FK5: FALSE | FL5: FALSE | FM5: FALSE | FN5: =AND(FN8,NOT(FN4)) -> FALSE | FO5: FALSE | FP5: FALSE | FQ5: FALSE | FR5: FALSE | FS5: FALSE | FT5: FALSE | FU5: FALSE | FV5: FALSE | FW5: FALSE | FX5: FALSE | FY5: FALSE | FZ5: FALSE | GA5: FALSE | GB5: FALSE | GC5: FALSE | GD5: FALSE | GE5: FALSE | GF5: FALSE | GG5: FALSE | GH5: FALSE | GI5: FALSE | GJ5: FALSE | GK5: FALSE | GL5: FALSE | GM5: FALSE | GN5: FALSE | GO5: FALSE | GP5: FALSE | GQ5: FALSE | GR5: FALSE | GS5: FALSE | GT5: =AND(GT8,NOT(GT4)) -> FALSE | GU5: FALSE | GV5: FALSE | GW5: FALSE | GX5: FALSE | GY5: FALSE | GZ5: FALSE | HA5: FALSE
D6: Age of project | J6: =I6+NOT(J8) -> 0 | K6: 0 | L6: 1 | M6: 2 | N6: 3 | O6: 4 | P6: 5 | Q6: 6 | R6: 7 | S6: 8 | T6: 9 | U6: 10 | V6: 11 | W6: 12 | X6: 13 | Y6: 14 | Z6: 15 | AA6: 16 | AB6: 17 | AC6: 18 | AD6: 19 | AE6: 20 | AF6: 21 | AG6: 22 | AH6: 23 | AI6: 24 | AJ6: 25 | AK6: 26 | AL6: 27 | AM6: 28 | AN6: 29 | AO6: 30 | AP6: =AO6+NOT(AP8) -> 31 | AQ6: 32 | AR6: 33 | AS6: 34 | AT6: 35 | AU6: 36 | AV6: 37 | AW6: 38 | AX6: 39 | AY6: 40 | AZ6: 41 | BA6: 42 | BB6: 43 | BC6: 44 | BD6: 45 | BE6: 46 | BF6: 47 | BG6: 48 | BH6: 49 | BI6: 50 | BJ6: 51 | BK6: 52 | BL6: 53 | BM6: 54 | BN6: 55 | BO6: 56 | BP6: 57 | BQ6: 58 | BR6: 59 | BS6: 60 | BT6: 61 | BU6: 62 | BV6: =BU6+NOT(BV8) -> 63 | BW6: 64 | BX6: 65 | BY6: 66 | BZ6: 67 | CA6: 68 | CB6: 69 | CC6: 70 | CD6: 71 | CE6: 72 | CF6: 73 | CG6: 74 | CH6: 75 | CI6: 76 | CJ6: 77 | CK6: 78 | CL6: 79 | CM6: 80 | CN6: 81 | CO6: 82 | CP6: 83 | CQ6: 84 | CR6: 85 | CS6: 86 | CT6: 87 | CU6: 88 | CV6: 89 | CW6: 90 | CX6: 91 | CY6: 92 | CZ6: 93 | DA6: 94 | DB6: =DA6+NOT(DB8) -> 95 | DC6: 96 | DD6: 97 | DE6: 98 | DF6: 99 | DG6: 100 | DH6: 101 | DI6: 102 | DJ6: 103 | DK6: 104 | DL6: 105 | DM6: 106 | DN6: 107 | DO6: 108 | DP6: 109 | DQ6: 110 | DR6: 111 | DS6: 112 | DT6: 113 | DU6: 114 | DV6: 115 | DW6: 116 | DX6: 117 | DY6: 118 | DZ6: 119 | EA6: 120 | EB6: 121 | EC6: 122 | ED6: 123 | EE6: 124 | EF6: 125 | EG6: 126 | EH6: =EG6+NOT(EH8) -> 127 | EI6: 128 | EJ6: 129 | EK6: 130 | EL6: 131 | EM6: 132 | EN6: 133 | EO6: 134 | EP6: 135 | EQ6: 136 | ER6: 137 | ES6: 138 | ET6: 139 | EU6: 140 | EV6: 141 | EW6: 142 | EX6: 143 | EY6: 144 | EZ6: 145 | FA6: 146 | FB6: 147 | FC6: 148 | FD6: 149 | FE6: 150 | FF6: 151 | FG6: 152 | FH6: 153 | FI6: 154 | FJ6: 155 | FK6: 156 | FL6: 157 | FM6: 158 | FN6: =FM6+NOT(FN8) -> 159 | FO6: 160 | FP6: 161 | FQ6: 162 | FR6: 163 | FS6: 164 | FT6: 165 | FU6: 166 | FV6: 167 | FW6: 168 | FX6: 169 | FY6: 170 | FZ6: 171 | GA6: 172 | GB6: 173 | GC6: 174 | GD6: 175 | GE6: 176 | GF6: 177 | GG6: 178 | GH6: 179 | GI6: 180 | GJ6: 181 | GK6: 182 | GL6: 183 | GM6: 184 | GN6: 185 | GO6: 186 | GP6: 187 | GQ6: 188 | GR6: 189 | GS6: 190 | GT6: =GS6+NOT(GT8) -> 191 | GU6: 192 | GV6: 193 | GW6: 194 | GX6: 195 | GY6: 196 | GZ6: 197 | HA6: 198
D7: Operating period | E7: Years | F7: 30 | J7: =AND(J6<=$F$7, NOT(J8)) -> FALSE | K7: FALSE | L7: TRUE | M7: TRUE | N7: TRUE | O7: TRUE | P7: TRUE | Q7: TRUE | R7: TRUE | S7: TRUE | T7: TRUE | U7: TRUE | V7: TRUE | W7: TRUE | X7: TRUE | Y7: TRUE | Z7: TRUE | AA7: TRUE | AB7: TRUE | AC7: TRUE | AD7: TRUE | AE7: TRUE | AF7: TRUE | AG7: TRUE | AH7: TRUE | AI7: TRUE | AJ7: TRUE | AK7: TRUE | AL7: TRUE | AM7: TRUE | AN7: TRUE | AO7: TRUE | AP7: =AND(AP6<=$F$7, NOT(AP8)) -> FALSE | AQ7: FALSE | AR7: FALSE | AS7: FALSE | AT7: FALSE | AU7: FALSE | AV7: FALSE | AW7: FALSE | AX7: FALSE | AY7: FALSE | AZ7: FALSE | BA7: FALSE | BB7: FALSE | BC7: FALSE | BD7: FALSE | BE7: FALSE | BF7: FALSE | BG7: FALSE | BH7: FALSE | BI7: FALSE | BJ7: FALSE | BK7: FALSE | BL7: FALSE | BM7: FALSE | BN7: FALSE | BO7: FALSE | BP7: FALSE | BQ7: FALSE | BR7: FALSE | BS7: FALSE | BT7: FALSE | BU7: FALSE | BV7: =AND(BV6<=$F$7, NOT(BV8)) -> FALSE | BW7: FALSE | BX7: FALSE | BY7: FALSE | BZ7: FALSE | CA7: FALSE | CB7: FALSE | CC7: FALSE | CD7: FALSE | CE7: FALSE | CF7: FALSE | CG7: FALSE | CH7: FALSE | CI7: FALSE | CJ7: FALSE | CK7: FALSE | CL7: FALSE | CM7: FALSE | CN7: FALSE | CO7: FALSE | CP7: FALSE | CQ7: FALSE | CR7: FALSE | CS7: FALSE | CT7: FALSE | CU7: FALSE | CV7: FALSE | CW7: FALSE | CX7: FALSE | CY7: FALSE | CZ7: FALSE | DA7: FALSE | DB7: =AND(DB6<=$F$7, NOT(DB8)) -> FALSE | DC7: FALSE | DD7: FALSE | DE7: FALSE | DF7: FALSE | DG7: FALSE | DH7: FALSE | DI7: FALSE | DJ7: FALSE | DK7: FALSE | DL7: FALSE | DM7: FALSE | DN7: FALSE | DO7: FALSE | DP7: FALSE | DQ7: FALSE | DR7: FALSE | DS7: FALSE | DT7: FALSE | DU7: FALSE | DV7: FALSE | DW7: FALSE | DX7: FALSE | DY7: FALSE | DZ7: FALSE | EA7: FALSE | EB7: FALSE | EC7: FALSE | ED7: FALSE | EE7: FALSE | EF7: FALSE | EG7: FALSE | EH7: =AND(EH6<=$F$7, NOT(EH8)) -> FALSE | EI7: FALSE | EJ7: FALSE | EK7: FALSE | EL7: FALSE | EM7: FALSE | EN7: FALSE | EO7: FALSE | EP7: FALSE | EQ7: FALSE | ER7: FALSE | ES7: FALSE | ET7: FALSE | EU7: FALSE | EV7: FALSE | EW7: FALSE | EX7: FALSE | EY7: FALSE | EZ7: FALSE | FA7: FALSE | FB7: FALSE | FC7: FALSE | FD7: FALSE | FE7: FALSE | FF7: FALSE | FG7: FALSE | FH7: FALSE | FI7: FALSE | FJ7: FALSE | FK7: FALSE | FL7: FALSE | FM7: FALSE | FN7: =AND(FN6<=$F$7, NOT(FN8)) -> FALSE | FO7: FALSE | FP7: FALSE | FQ7: FALSE | FR7: FALSE | FS7: FALSE | FT7: FALSE | FU7: FALSE | FV7: FALSE | FW7: FALSE | FX7: FALSE | FY7: FALSE | FZ7: FALSE | GA7: FALSE | GB7: FALSE | GC7: FALSE | GD7: FALSE | GE7: FALSE | GF7: FALSE | GG7: FALSE | GH7: FALSE | GI7: FALSE | GJ7: FALSE | GK7: FALSE | GL7: FALSE | GM7: FALSE | GN7: FALSE | GO7: FALSE | GP7: FALSE | GQ7: FALSE | GR7: FALSE | GS7: FALSE | GT7: =AND(GT6<=$F$7, NOT(GT8)) -> FALSE | GU7: FALSE | GV7: FALSE | GW7: FALSE | GX7: FALSE | GY7: FALSE | GZ7: FALSE | HA7: FALSE
D8: Pre-COD | E8: Months Pre | F8: =F4+F5 -> 2 | J8: =J3<=$F$8 -> TRUE | K8: TRUE | L8: FALSE | M8: FALSE | N8: FALSE | O8: FALSE | P8: FALSE | Q8: FALSE | R8: FALSE | S8: FALSE | T8: FALSE | U8: FALSE | V8: FALSE | W8: FALSE | X8: FALSE | Y8: FALSE | Z8: FALSE | AA8: FALSE | AB8: FALSE | AC8: FALSE | AD8: FALSE | AE8: FALSE | AF8: FALSE | AG8: FALSE | AH8: FALSE | AI8: FALSE | AJ8: FALSE | AK8: FALSE | AL8: FALSE | AM8: FALSE | AN8: FALSE | AO8: FALSE | AP8: =AP3<=$F$8 -> FALSE | AQ8: FALSE | AR8: FALSE | AS8: FALSE | AT8: FALSE | AU8: FALSE | AV8: FALSE | AW8: FALSE | AX8: FALSE | AY8: FALSE | AZ8: FALSE | BA8: FALSE | BB8: FALSE | BC8: FALSE | BD8: FALSE | BE8: FALSE | BF8: FALSE | BG8: FALSE | BH8: FALSE | BI8: FALSE | BJ8: FALSE | BK8: FALSE | BL8: FALSE | BM8: FALSE | BN8: FALSE | BO8: FALSE | BP8: FALSE | BQ8: FALSE | BR8: FALSE | BS8: FALSE | BT8: FALSE | BU8: FALSE | BV8: =BV3<=$F$8 -> FALSE | BW8: FALSE | BX8: FALSE | BY8: FALSE | BZ8: FALSE | CA8: FALSE | CB8: FALSE | CC8: FALSE | CD8: FALSE | CE8: FALSE | CF8: FALSE | CG8: FALSE | CH8: FALSE | CI8: FALSE | CJ8: FALSE | CK8: FALSE | CL8: FALSE | CM8: FALSE | CN8: FALSE | CO8: FALSE | CP8: FALSE | CQ8: FALSE | CR8: FALSE | CS8: FALSE | CT8: FALSE | CU8: FALSE | CV8: FALSE | CW8: FALSE | CX8: FALSE | CY8: FALSE | CZ8: FALSE | DA8: FALSE | DB8: =DB3<=$F$8 -> FALSE | DC8: FALSE | DD8: FALSE | DE8: FALSE | DF8: FALSE | DG8: FALSE | DH8: FALSE | DI8: FALSE | DJ8: FALSE | DK8: FALSE | DL8: FALSE | DM8: FALSE | DN8: FALSE | DO8: FALSE | DP8: FALSE | DQ8: FALSE | DR8: FALSE | DS8: FALSE | DT8: FALSE | DU8: FALSE | DV8: FALSE | DW8: FALSE | DX8: FALSE | DY8: FALSE | DZ8: FALSE | EA8: FALSE | EB8: FALSE | EC8: FALSE | ED8: FALSE | EE8: FALSE | EF8: FALSE | EG8: FALSE | EH8: =EH3<=$F$8 -> FALSE | EI8: FALSE | EJ8: FALSE | EK8: FALSE | EL8: FALSE | EM8: FALSE | EN8: FALSE | EO8: FALSE | EP8: FALSE | EQ8: FALSE | ER8: FALSE | ES8: FALSE | ET8: FALSE | EU8: FALSE | EV8: FALSE | EW8: FALSE | EX8: FALSE | EY8: FALSE | EZ8: FALSE | FA8: FALSE | FB8: FALSE | FC8: FALSE | FD8: FALSE | FE8: FALSE | FF8: FALSE | FG8: FALSE | FH8: FALSE | FI8: FALSE | FJ8: FALSE | FK8: FALSE | FL8: FALSE | FM8: FALSE | FN8: =FN3<=$F$8 -> FALSE | FO8: FALSE | FP8: FALSE | FQ8: FALSE | FR8: FALSE | FS8: FALSE | FT8: FALSE | FU8: FALSE | FV8: FALSE | FW8: FALSE | FX8: FALSE | FY8: FALSE | FZ8: FALSE | GA8: FALSE | GB8: FALSE | GC8: FALSE | GD8: FALSE | GE8: FALSE | GF8: FALSE | GG8: FALSE | GH8: FALSE | GI8: FALSE | GJ8: FALSE | GK8: FALSE | GL8: FALSE | GM8: FALSE | GN8: FALSE | GO8: FALSE | GP8: FALSE | GQ8: FALSE | GR8: FALSE | GS8: FALSE | GT8: =GT3<=$F$8 -> FALSE | GU8: FALSE | GV8: FALSE | GW8: FALSE | GX8: FALSE | GY8: FALSE | GZ8: FALSE | HA8: FALSE
D9: Month | E9: Model Period | F9: 1 | G9: 12 | J9: =IF(J8, $F$9, $G$9) -> 1 | K9: 1 | L9: 12 | M9: 12 | N9: 12 | O9: 12 | P9: 12 | Q9: 12 | R9: 12 | S9: 12 | T9: 12 | U9: 12 | V9: 12 | W9: 12 | X9: 12 | Y9: 12 | Z9: 12 | AA9: 12 | AB9: 12 | AC9: 12 | AD9: 12 | AE9: 12 | AF9: 12 | AG9: 12 | AH9: 12 | AI9: 12 | AJ9: 12 | AK9: 12 | AL9: 12 | AM9: 12 | AN9: 12 | AO9: 12 | AP9: =IF(AP8, $F$9, $G$9) -> 12 | AQ9: 12 | AR9: 12 | AS9: 12 | AT9: 12 | AU9: 12 | AV9: 12 | AW9: 12 | AX9: 12 | AY9: 12 | AZ9: 12 | BA9: 12 | BB9: 12 | BC9: 12 | BD9: 12 | BE9: 12 | BF9: 12 | BG9: 12 | BH9: 12 | BI9: 12 | BJ9: 12 | BK9: 12 | BL9: 12 | BM9: 12 | BN9: 12 | BO9: 12 | BP9: 12 | BQ9: 12 | BR9: 12 | BS9: 12 | BT9: 12 | BU9: 12 | BV9: =IF(BV8, $F$9, $G$9) -> 12 | BW9: 12 | BX9: 12 | BY9: 12 | BZ9: 12 | CA9: 12 | CB9: 12 | CC9: 12 | CD9: 12 | CE9: 12 | CF9: 12 | CG9: 12 | CH9: 12 | CI9: 12 | CJ9: 12 | CK9: 12 | CL9: 12 | CM9: 12 | CN9: 12 | CO9: 12 | CP9: 12 | CQ9: 12 | CR9: 12 | CS9: 12 | CT9: 12 | CU9: 12 | CV9: 12 | CW9: 12 | CX9: 12 | CY9: 12 | CZ9: 12 | DA9: 12 | DB9: =IF(DB8, $F$9, $G$9) -> 12 | DC9: 12 | DD9: 12 | DE9: 12 | DF9: 12 | DG9: 12 | DH9: 12 | DI9: 12 | DJ9: 12 | DK9: 12 | DL9: 12 | DM9: 12 | DN9: 12 | DO9: 12 | DP9: 12 | DQ9: 12 | DR9: 12 | DS9: 12 | DT9: 12 | DU9: 12 | DV9: 12 | DW9: 12 | DX9: 12 | DY9: 12 | DZ9: 12 | EA9: 12 | EB9: 12 | EC9: 12 | ED9: 12 | EE9: 12 | EF9: 12 | EG9: 12 | EH9: =IF(EH8, $F$9, $G$9) -> 12 | EI9: 12 | EJ9: 12 | EK9: 12 | EL9: 12 | EM9: 12 | EN9: 12 | EO9: 12 | EP9: 12 | EQ9: 12 | ER9: 12 | ES9: 12 | ET9: 12 | EU9: 12 | EV9: 12 | EW9: 12 | EX9: 12 | EY9: 12 | EZ9: 12 | FA9: 12 | FB9: 12 | FC9: 12 | FD9: 12 | FE9: 12 | FF9: 12 | FG9: 12 | FH9: 12 | FI9: 12 | FJ9: 12 | FK9: 12 | FL9: 12 | FM9: 12 | FN9: =IF(FN8, $F$9, $G$9) -> 12 | FO9: 12 | FP9: 12 | FQ9: 12 | FR9: 12 | FS9: 12 | FT9: 12 | FU9: 12 | FV9: 12 | FW9: 12 | FX9: 12 | FY9: 12 | FZ9: 12 | GA9: 12 | GB9: 12 | GC9: 12 | GD9: 12 | GE9: 12 | GF9: 12 | GG9: 12 | GH9: 12 | GI9: 12 | GJ9: 12 | GK9: 12 | GL9: 12 | GM9: 12 | GN9: 12 | GO9: 12 | GP9: 12 | GQ9: 12 | GR9: 12 | GS9: 12 | GT9: =IF(GT8, $F$9, $G$9) -> 12 | GU9: 12 | GV9: 12 | GW9: 12 | GX9: 12 | GY9: 12 | GZ9: 12 | HA9: 12
B11: Inputs
C13: General Inputs
D14: Development Period | E14: Months | F14: 1 | G14: PIRR - Cash Basis | I14: =F49 -> 0.06839130223
D15: Construction Period | E15: Months | F15: 1 | G15: PIRR - Dev Fee Subtract | I15: =F55 -> 0.0640789777
D16: Development Cost (actual) | E16: EUR | F16: 20000
D17: EPC Cost | E17: EUR | F17: 400000 | G17: EIRR Cash Basis | I17: =F105 -> 0.0730627805
D18: EBITDA p.a. | E18: EUR | F18: 25000 | G18: EIRR Dev Fee Subtracted | I18: =F101 -> 0.06839130223
D19: EBITDA Growth | E19: % | F19: 0.025
D20: Re-invesment Rate | E20: % | F20: 0.1 | G20: EIRR to Partner | I20: =E117 -> 0.06839130223
G21: EIRR to Developer | I21: =E122 -> 0.07815047204
C22: Development Inputs
D23: Probability of Success | E23: % | F23: 0.5
D24: Target Development Profit | E24: % | F24: 0.1
D26: Loss Scenarios | E26: Number | F26: =1/F23-1 -> 1
D27: Costs of Loss from Failures | E27: EUR | F27: =F26*F16 -> 20000
D29: Target Profit | E29: EUR | F29: =F27*(1+F24)*G29 -> 22000 | G29: TRUE
D30: Development Fee | E30: EUR | F30: =F29 -> 22000
D32: Developer/Sponsor Investment | E32: % | F32: 0.5
D33: Partner Investment | E33: % | F33: =1-F32 -> 0.5
C35: Financing Inputs
D36: Target DSCR | E36: x | F36: 1.4
D37: Debt Tenure | E37: Years | F37: 20
D38: Interest Rate | E38: % | F38: 0.035
B41: Fundamental Cash Flow Analysis
D43: Development Cost (actual) | E43: EUR | F43: =F16 -> 20000 | G43: =F4 -> 1 | J43: =$F$43/$G$43*J4 -> 20000 | K43: =$F$43/$F$4*K4 -> 0 | L43: 0 | M43: 0 | N43: 0 | O43: 0 | P43: 0 | Q43: 0 | R43: 0 | S43: 0 | T43: 0 | U43: 0 | V43: 0 | W43: 0 | X43: 0 | Y43: 0 | Z43: 0 | AA43: 0 | AB43: 0 | AC43: 0 | AD43: 0 | AE43: 0 | AF43: 0 | AG43: 0 | AH43: 0 | AI43: 0 | AJ43: 0 | AK43: 0 | AL43: 0 | AM43: 0 | AN43: 0 | AO43: 0 | AP43: 0 | AQ43: =$F$43/$F$4*AQ4 -> 0 | AR43: 0 | AS43: 0 | AT43: 0 | AU43: 0 | AV43: 0 | AW43: 0 | AX43: 0 | AY43: 0 | AZ43: 0 | BA43: 0 | BB43: 0 | BC43: 0 | BD43: 0 | BE43: 0 | BF43: 0 | BG43: 0 | BH43: 0 | BI43: 0 | BJ43: 0 | BK43: 0 | BL43: 0 | BM43: 0 | BN43: 0 | BO43: 0 | BP43: 0 | BQ43: 0 | BR43: 0 | BS43: 0 | BT43: 0 | BU43: 0 | BV43: 0 | BW43: =$F$43/$F$4*BW4 -> 0 | BX43: 0 | BY43: 0 | BZ43: 0 | CA43: 0 | CB43: 0 | CC43: 0 | CD43: 0 | CE43: 0 | CF43: 0 | CG43: 0 | CH43: 0 | CI43: 0 | CJ43: 0 | CK43: 0 | CL43: 0 | CM43: 0 | CN43: 0 | CO43: 0 | CP43: 0 | CQ43: 0 | CR43: 0 | CS43: 0 | CT43: 0 | CU43: 0 | CV43: 0 | CW43: 0 | CX43: 0 | CY43: 0 | CZ43: 0 | DA43: 0 | DB43: 0 | DC43: =$F$43/$F$4*DC4 -> 0 | DD43: 0 | DE43: 0 | DF43: 0 | DG43: 0 | DH43: 0 | DI43: 0 | DJ43: 0 | DK43: 0 | DL43: 0 | DM43: 0 | DN43: 0 | DO43: 0 | DP43: 0 | DQ43: 0 | DR43: 0 | DS43: 0 | DT43: 0 | DU43: 0 | DV43: 0 | DW43: 0 | DX43: 0 | DY43: 0 | DZ43: 0 | EA43: 0 | EB43: 0 | EC43: 0 | ED43: 0 | EE43: 0 | EF43: 0 | EG43: 0 | EH43: 0 | EI43: =$F$43/$F$4*EI4 -> 0 | EJ43: 0 | EK43: 0 | EL43: 0 | EM43: 0 | EN43: 0 | EO43: 0 | EP43: 0 | EQ43: 0 | ER43: 0 | ES43: 0 | ET43: 0 | EU43: 0 | EV43: 0 | EW43: 0 | EX43: 0 | EY43: 0 | EZ43: 0 | FA43: 0 | FB43: 0 | FC43: 0 | FD43: 0 | FE43: 0 | FF43: 0 | FG43: 0 | FH43: 0 | FI43: 0 | FJ43: 0 | FK43: 0 | FL43: 0 | FM43: 0 | FN43: 0 | FO43: =$F$43/$F$4*FO4 -> 0 | FP43: 0 | FQ43: 0 | FR43: 0 | FS43: 0 | FT43: 0 | FU43: 0 | FV43: 0 | FW43: 0 | FX43: 0 | FY43: 0 | FZ43: 0 | GA43: 0 | GB43: 0 | GC43: 0 | GD43: 0 | GE43: 0 | GF43: 0 | GG43: 0 | GH43: 0 | GI43: 0 | GJ43: 0 | GK43: 0 | GL43: 0 | GM43: 0 | GN43: 0 | GO43: 0 | GP43: 0 | GQ43: 0 | GR43: 0 | GS43: 0 | GT43: 0 | GU43: =$F$43/$F$4*GU4 -> 0 | GV43: 0 | GW43: 0 | GX43: 0 | GY43: 0 | GZ43: 0 | HA43: 0
D44: EPC cost | E44: EUR | F44: =F17 -> 400000 | J44: =$F$44/$F$5*J5 -> 0 | K44: 400000 | L44: 0 | M44: 0 | N44: 0 | O44: 0 | P44: 0 | Q44: 0 | R44: 0 | S44: 0 | T44: 0 | U44: 0 | V44: 0 | W44: 0 | X44: 0 | Y44: 0 | Z44: 0 | AA44: 0 | AB44: 0 | AC44: 0 | AD44: 0 | AE44: 0 | AF44: 0 | AG44: 0 | AH44: 0 | AI44: 0 | AJ44: 0 | AK44: 0 | AL44: 0 | AM44: 0 | AN44: 0 | AO44: 0 | AP44: =$F$44/$F$5*AP5 -> 0 | AQ44: 0 | AR44: 0 | AS44: 0 | AT44: 0 | AU44: 0 | AV44: 0 | AW44: 0 | AX44: 0 | AY44: 0 | AZ44: 0 | BA44: 0 | BB44: 0 | BC44: 0 | BD44: 0 | BE44: 0 | BF44: 0 | BG44: 0 | BH44: 0 | BI44: 0 | BJ44: 0 | BK44: 0 | BL44: 0 | BM44: 0 | BN44: 0 | BO44: 0 | BP44: 0 | BQ44: 0 | BR44: 0 | BS44: 0 | BT44: 0 | BU44: 0 | BV44: =$F$44/$F$5*BV5 -> 0 | BW44: 0 | BX44: 0 | BY44: 0 | BZ44: 0 | CA44: 0 | CB44: 0 | CC44: 0 | CD44: 0 | CE44: 0 | CF44: 0 | CG44: 0 | CH44: 0 | CI44: 0 | CJ44: 0 | CK44: 0 | CL44: 0 | CM44: 0 | CN44: 0 | CO44: 0 | CP44: 0 | CQ44: 0 | CR44: 0 | CS44: 0 | CT44: 0 | CU44: 0 | CV44: 0 | CW44: 0 | CX44: 0 | CY44: 0 | CZ44: 0 | DA44: 0 | DB44: =$F$44/$F$5*DB5 -> 0 | DC44: 0 | DD44: 0 | DE44: 0 | DF44: 0 | DG44: 0 | DH44: 0 | DI44: 0 | DJ44: 0 | DK44: 0 | DL44: 0 | DM44: 0 | DN44: 0 | DO44: 0 | DP44: 0 | DQ44: 0 | DR44: 0 | DS44: 0 | DT44: 0 | DU44: 0 | DV44: 0 | DW44: 0 | DX44: 0 | DY44: 0 | DZ44: 0 | EA44: 0 | EB44: 0 | EC44: 0 | ED44: 0 | EE44: 0 | EF44: 0 | EG44: 0 | EH44: =$F$44/$F$5*EH5 -> 0 | EI44: 0 | EJ44: 0 | EK44: 0 | EL44: 0 | EM44: 0 | EN44: 0 | EO44: 0 | EP44: 0 | EQ44: 0 | ER44: 0 | ES44: 0 | ET44: 0 | EU44: 0 | EV44: 0 | EW44: 0 | EX44: 0 | EY44: 0 | EZ44: 0 | FA44: 0 | FB44: 0 | FC44: 0 | FD44: 0 | FE44: 0 | FF44: 0 | FG44: 0 | FH44: 0 | FI44: 0 | FJ44: 0 | FK44: 0 | FL44: 0 | FM44: 0 | FN44: =$F$44/$F$5*FN5 -> 0 | FO44: 0 | FP44: 0 | FQ44: 0 | FR44: 0 | FS44: 0 | FT44: 0 | FU44: 0 | FV44: 0 | FW44: 0 | FX44: 0 | FY44: 0 | FZ44: 0 | GA44: 0 | GB44: 0 | GC44: 0 | GD44: 0 | GE44: 0 | GF44: 0 | GG44: 0 | GH44: 0 | GI44: 0 | GJ44: 0 | GK44: 0 | GL44: 0 | GM44: 0 | GN44: 0 | GO44: 0 | GP44: 0 | GQ44: 0 | GR44: 0 | GS44: 0 | GT44: =$F$44/$F$5*GT5 -> 0 | GU44: 0 | GV44: 0 | GW44: 0 | GX44: 0 | GY44: 0 | GZ44: 0 | HA44: 0
D45: EBITDA Growth Index | E45: Index | F45: =F19 -> 0.025 | I45: 1 | J45: =I45*(1+$F$45*J7) -> 1 | K45: 1 | L45: 1.025 | M45: 1.050625 | N45: 1.076890625 | O45: 1.103812891 | P45: 1.131408213 | Q45: 1.159693418 | R45: 1.188685754 | S45: 1.218402898 | T45: 1.24886297 | U45: 1.280084544 | V45: 1.312086658 | W45: 1.344888824 | X45: 1.378511045 | Y45: 1.412973821 | Z45: 1.448298166 | AA45: 1.484505621 | AB45: 1.521618261 | AC45: 1.559658718 | AD45: 1.598650186 | AE45: 1.63861644 | AF45: 1.679581851 | AG45: 1.721571398 | AH45: 1.764610683 | AI45: 1.80872595 | AJ45: 1.853944098 | AK45: 1.900292701 | AL45: 1.947800018 | AM45: 1.996495019 | AN45: 2.046407394 | AO45: 2.097567579 | AP45: =AO45*(1+$F$45*AP7) -> 2.097567579 | AQ45: 2.097567579 | AR45: 2.097567579 | AS45: 2.097567579 | AT45: 2.097567579 | AU45: 2.097567579 | AV45: 2.097567579 | AW45: 2.097567579 | AX45: 2.097567579 | AY45: 2.097567579 | AZ45: 2.097567579 | BA45: 2.097567579 | BB45: 2.097567579 | BC45: 2.097567579 | BD45: 2.097567579 | BE45: 2.097567579 | BF45: 2.097567579 | BG45: 2.097567579 | BH45: 2.097567579 | BI45: 2.097567579 | BJ45: 2.097567579 | BK45: 2.097567579 | BL45: 2.097567579 | BM45: 2.097567579 | BN45: 2.097567579 | BO45: 2.097567579 | BP45: 2.097567579 | BQ45: 2.097567579 | BR45: 2.097567579 | BS45: 2.097567579 | BT45: 2.097567579 | BU45: 2.097567579 | BV45: =BU45*(1+$F$45*BV7) -> 2.097567579 | BW45: 2.097567579 | BX45: 2.097567579 | BY45: 2.097567579 | BZ45: 2.097567579 | CA45: 2.097567579 | CB45: 2.097567579 | CC45: 2.097567579 | CD45: 2.097567579 | CE45: 2.097567579 | CF45: 2.097567579 | CG45: 2.097567579 | CH45: 2.097567579 | CI45: 2.097567579 | CJ45: 2.097567579 | CK45: 2.097567579 | CL45: 2.097567579 | CM45: 2.097567579 | CN45: 2.097567579 | CO45: 2.097567579 | CP45: 2.097567579 | CQ45: 2.097567579 | CR45: 2.097567579 | CS45: 2.097567579 | CT45: 2.097567579 | CU45: 2.097567579 | CV45: 2.097567579 | CW45: 2.097567579 | CX45: 2.097567579 | CY45: 2.097567579 | CZ45: 2.097567579 | DA45: 2.097567579 | DB45: =DA45*(1+$F$45*DB7) -> 2.097567579 | DC45: 2.097567579 | DD45: 2.097567579 | DE45: 2.097567579 | DF45: 2.097567579 | DG45: 2.097567579 | DH45: 2.097567579 | DI45: 2.097567579 | DJ45: 2.097567579 | DK45: 2.097567579 | DL45: 2.097567579 | DM45: 2.097567579 | DN45: 2.097567579 | DO45: 2.097567579 | DP45: 2.097567579 | DQ45: 2.097567579 | DR45: 2.097567579 | DS45: 2.097567579 | DT45: 2.097567579 | DU45: 2.097567579 | DV45: 2.097567579 | DW45: 2.097567579 | DX45: 2.097567579 | DY45: 2.097567579 | DZ45: 2.097567579 | EA45: 2.097567579 | EB45: 2.097567579 | EC45: 2.097567579 | ED45: 2.097567579 | EE45: 2.097567579 | EF45: 2.097567579 | EG45: 2.097567579 | EH45: =EG45*(1+$F$45*EH7) -> 2.097567579 | EI45: 2.097567579 | EJ45: 2.097567579 | EK45: 2.097567579 | EL45: 2.097567579 | EM45: 2.097567579 | EN45: 2.097567579 | EO45: 2.097567579 | EP45: 2.097567579 | EQ45: 2.097567579 | ER45: 2.097567579 | ES45: 2.097567579 | ET45: 2.097567579 | EU45: 2.097567579 | EV45: 2.097567579 | EW45: 2.097567579 | EX45: 2.097567579 | EY45: 2.097567579 | EZ45: 2.097567579 | FA45: 2.097567579 | FB45: 2.097567579 | FC45: 2.097567579 | FD45: 2.097567579 | FE45: 2.097567579 | FF45: 2.097567579 | FG45: 2.097567579 | FH45: 2.097567579 | FI45: 2.097567579 | FJ45: 2.097567579 | FK45: 2.097567579 | FL45: 2.097567579 | FM45: 2.097567579 | FN45: =FM45*(1+$F$45*FN7) -> 2.097567579 | FO45: 2.097567579 | FP45: 2.097567579 | FQ45: 2.097567579 | FR45: 2.097567579 | FS45: 2.097567579 | FT45: 2.097567579 | FU45: 2.097567579 | FV45: 2.097567579 | FW45: 2.097567579 | FX45: 2.097567579 | FY45: 2.097567579 | FZ45: 2.097567579 | GA45: 2.097567579 | GB45: 2.097567579 | GC45: 2.097567579 | GD45: 2.097567579 | GE45: 2.097567579 | GF45: 2.097567579 | GG45: 2.097567579 | GH45: 2.097567579 | GI45: 2.097567579 | GJ45: 2.097567579 | GK45: 2.097567579 | GL45: 2.097567579 | GM45: 2.097567579 | GN45: 2.097567579 | GO45: 2.097567579 | GP45: 2.097567579 | GQ45: 2.097567579 | GR45: 2.097567579 | GS45: 2.097567579 | GT45: =GS45*(1+$F$45*GT7) -> 2.097567579 | GU45: 2.097567579 | GV45: 2.097567579 | GW45: 2.097567579 | GX45: 2.097567579 | GY45: 2.097567579 | GZ45: 2.097567579 | HA45: 2.097567579
D46: EBITDA p.a. | E46: EUR | F46: =F18 -> 25000 | J46: =$F$46*J7*J45 -> 0 | K46: 0 | L46: 25625 | M46: 26265.625 | N46: 26922.26562 | O46: 27595.32227 | P46: 28285.20532 | Q46: 28992.33546 | R46: 29717.14384 | S46: 30460.07244 | T46: 31221.57425 | U46: 32002.1136 | V46: 32802.16645 | W46: 33622.22061 | X46: 34462.77612 | Y46: 35324.34552 | Z46: 36207.45416 | AA46: 37112.64052 | AB46: 38040.45653 | AC46: 38991.46794 | AD46: 39966.25464 | AE46: 40965.41101 | AF46: 41989.54628 | AG46: 43039.28494 | AH46: 44115.26706 | AI46: 45218.14874 | AJ46: 46348.60246 | AK46: 47507.31752 | AL46: 48695.00046 | AM46: 49912.37547 | AN46: 51160.18486 | AO46: 52439.18948 | AP46: =$F$46*AP7*AP45 -> 0 | AQ46: 0 | AR46: 0 | AS46: 0 | AT46: 0 | AU46: 0 | AV46: 0 | AW46: 0 | AX46: 0 | AY46: 0 | AZ46: 0 | BA46: 0 | BB46: 0 | BC46: 0 | BD46: 0 | BE46: 0 | BF46: 0 | BG46: 0 | BH46: 0 | BI46: 0 | BJ46: 0 | BK46: 0 | BL46: 0 | BM46: 0 | BN46: 0 | BO46: 0 | BP46: 0 | BQ46: 0 | BR46: 0 | BS46: 0 | BT46: 0 | BU46: 0 | BV46: =$F$46*BV7*BV45 -> 0 | BW46: 0 | BX46: 0 | BY46: 0 | BZ46: 0 | CA46: 0 | CB46: 0 | CC46: 0 | CD46: 0 | CE46: 0 | CF46: 0 | CG46: 0 | CH46: 0 | CI46: 0 | CJ46: 0 | CK46: 0 | CL46: 0 | CM46: 0 | CN46: 0 | CO46: 0 | CP46: 0 | CQ46: 0 | CR46: 0 | CS46: 0 | CT46: 0 | CU46: 0 | CV46: 0 | CW46: 0 | CX46: 0 | CY46: 0 | CZ46: 0 | DA46: 0 | DB46: =$F$46*DB7*DB45 -> 0 | DC46: 0 | DD46: 0 | DE46: 0 | DF46: 0 | DG46: 0 | DH46: 0 | DI46: 0 | DJ46: 0 | DK46: 0 | DL46: 0 | DM46: 0 | DN46: 0 | DO46: 0 | DP46: 0 | DQ46: 0 | DR46: 0 | DS46: 0 | DT46: 0 | DU46: 0 | DV46: 0 | DW46: 0 | DX46: 0 | DY46: 0 | DZ46: 0 | EA46: 0 | EB46: 0 | EC46: 0 | ED46: 0 | EE46: 0 | EF46: 0 | EG46: 0 | EH46: =$F$46*EH7*EH45 -> 0 | EI46: 0 | EJ46: 0 | EK46: 0 | EL46: 0 | EM46: 0 | EN46: 0 | EO46: 0 | EP46: 0 | EQ46: 0 | ER46: 0 | ES46: 0 | ET46: 0 | EU46: 0 | EV46: 0 | EW46: 0 | EX46: 0 | EY46: 0 | EZ46: 0 | FA46: 0 | FB46: 0 | FC46: 0 | FD46: 0 | FE46: 0 | FF46: 0 | FG46: 0 | FH46: 0 | FI46: 0 | FJ46: 0 | FK46: 0 | FL46: 0 | FM46: 0 | FN46: =$F$46*FN7*FN45 -> 0 | FO46: 0 | FP46: 0 | FQ46: 0 | FR46: 0 | FS46: 0 | FT46: 0 | FU46: 0 | FV46: 0 | FW46: 0 | FX46: 0 | FY46: 0 | FZ46: 0 | GA46: 0 | GB46: 0 | GC46: 0 | GD46: 0 | GE46: 0 | GF46: 0 | GG46: 0 | GH46: 0 | GI46: 0 | GJ46: 0 | GK46: 0 | GL46: 0 | GM46: 0 | GN46: 0 | GO46: 0 | GP46: 0 | GQ46: 0 | GR46: 0 | GS46: 0 | GT46: =$F$46*GT7*GT45 -> 0 | GU46: 0 | GV46: 0 | GW46: 0 | GX46: 0 | GY46: 0 | GZ46: 0 | HA46: 0
D48: Project Cash Flow | E48: EUR | J48: =J46-J44-J43 -> -20000 | K48: =K46-K44-K43 -> -400000 | L48: 25625 | M48: 26265.625 | N48: 26922.26562 | O48: 27595.32227 | P48: 28285.20532 | Q48: 28992.33546 | R48: 29717.14384 | S48: 30460.07244 | T48: 31221.57425 | U48: 32002.1136 | V48: 32802.16645 | W48: 33622.22061 | X48: 34462.77612 | Y48: 35324.34552 | Z48: 36207.45416 | AA48: 37112.64052 | AB48: 38040.45653 | AC48: 38991.46794 | AD48: 39966.25464 | AE48: 40965.41101 | AF48: 41989.54628 | AG48: 43039.28494 | AH48: 44115.26706 | AI48: 45218.14874 | AJ48: 46348.60246 | AK48: 47507.31752 | AL48: 48695.00046 | AM48: 49912.37547 | AN48: 51160.18486 | AO48: 52439.18948 | AP48: 0 | AQ48: 0 | AR48: 0 | AS48: 0 | AT48: 0 | AU48: 0 | AV48: 0 | AW48: 0 | AX48: 0 | AY48: 0 | AZ48: 0 | BA48: 0 | BB48: 0 | BC48: 0 | BD48: 0 | BE48: 0 | BF48: 0 | BG48: 0 | BH48: 0 | BI48: 0 | BJ48: 0 | BK48: 0 | BL48: 0 | BM48: 0 | BN48: 0 | BO48: 0 | BP48: 0 | BQ48: 0 | BR48: 0 | BS48: 0 | BT48: 0 | BU48: 0 | BV48: 0 | BW48: =BW46-BW44-BW43 -> 0 | BX48: 0 | BY48: 0 | BZ48: 0 | CA48: 0 | CB48: 0 | CC48: 0 | CD48: 0 | CE48: 0 | CF48: 0 | CG48: 0 | CH48: 0 | CI48: 0 | CJ48: 0 | CK48: 0 | CL48: 0 | CM48: 0 | CN48: 0 | CO48: 0 | CP48: 0 | CQ48: 0 | CR48: 0 | CS48: 0 | CT48: 0 | CU48: 0 | CV48: 0 | CW48: 0 | CX48: 0 | CY48: 0 | CZ48: 0 | DA48: 0 | DB48: 0 | DC48: 0 | DD48: 0 | DE48: 0 | DF48: 0 | DG48: 0 | DH48: 0 | DI48: 0 | DJ48: 0 | DK48: 0 | DL48: 0 | DM48: 0 | DN48: 0 | DO48: 0 | DP48: 0 | DQ48: 0 | DR48: 0 | DS48: 0 | DT48: 0 | DU48: 0 | DV48: 0 | DW48: 0 | DX48: 0 | DY48: 0 | DZ48: 0 | EA48: 0 | EB48: 0 | EC48: 0 | ED48: 0 | EE48: 0 | EF48: 0 | EG48: 0 | EH48: 0 | EI48: =EI46-EI44-EI43 -> 0 | EJ48: 0 | EK48: 0 | EL48: 0 | EM48: 0 | EN48: 0 | EO48: 0 | EP48: 0 | EQ48: 0 | ER48: 0 | ES48: 0 | ET48: 0 | EU48: 0 | EV48: 0 | EW48: 0 | EX48: 0 | EY48: 0 | EZ48: 0 | FA48: 0 | FB48: 0 | FC48: 0 | FD48: 0 | FE48: 0 | FF48: 0 | FG48: 0 | FH48: 0 | FI48: 0 | FJ48: 0 | FK48: 0 | FL48: 0 | FM48: 0 | FN48: 0 | FO48: 0 | FP48: 0 | FQ48: 0 | FR48: 0 | FS48: 0 | FT48: 0 | FU48: 0 | FV48: 0 | FW48: 0 | FX48: 0 | FY48: 0 | FZ48: 0 | GA48: 0 | GB48: 0 | GC48: 0 | GD48: 0 | GE48: 0 | GF48: 0 | GG48: 0 | GH48: 0 | GI48: 0 | GJ48: 0 | GK48: 0 | GL48: 0 | GM48: 0 | GN48: 0 | GO48: 0 | GP48: 0 | GQ48: 0 | GR48: 0 | GS48: 0 | GT48: 0 | GU48: =GU46-GU44-GU43 -> 0 | GV48: 0 | GW48: 0 | GX48: 0 | GY48: 0 | GZ48: 0 | HA48: 0
D49: Project IRR | E49: % | F49: =XIRR(J48:HA48, J2:HA2) -> 0.06839130223
D51: Financial Close | E51: Flag | F51: =F4+1 -> 2 | J51: =$F$51=J3 -> FALSE | K51: TRUE | L51: FALSE | M51: FALSE | N51: FALSE | O51: FALSE | P51: FALSE | Q51: FALSE | R51: FALSE | S51: FALSE | T51: FALSE | U51: FALSE | V51: FALSE | W51: FALSE | X51: FALSE | Y51: FALSE | Z51: FALSE | AA51: FALSE | AB51: FALSE | AC51: FALSE | AD51: FALSE | AE51: FALSE | AF51: FALSE | AG51: FALSE | AH51: FALSE | AI51: FALSE | AJ51: FALSE | AK51: FALSE | AL51: FALSE | AM51: FALSE | AN51: FALSE | AO51: FALSE | AP51: =$F$51=AP3 -> FALSE | AQ51: FALSE | AR51: FALSE | AS51: FALSE | AT51: FALSE | AU51: FALSE | AV51: FALSE | AW51: FALSE | AX51: FALSE | AY51: FALSE | AZ51: FALSE | BA51: FALSE | BB51: FALSE | BC51: FALSE | BD51: FALSE | BE51: FALSE | BF51: FALSE | BG51: FALSE | BH51: FALSE | BI51: FALSE | BJ51: FALSE | BK51: FALSE | BL51: FALSE | BM51: FALSE | BN51: FALSE | BO51: FALSE | BP51: FALSE | BQ51: FALSE | BR51: FALSE | BS51: FALSE | BT51: FALSE | BU51: FALSE | BV51: =$F$51=BV3 -> FALSE | BW51: FALSE | BX51: FALSE | BY51: FALSE | BZ51: FALSE | CA51: FALSE | CB51: FALSE | CC51: FALSE | CD51: FALSE | CE51: FALSE | CF51: FALSE | CG51: FALSE | CH51: FALSE | CI51: FALSE | CJ51: FALSE | CK51: FALSE | CL51: FALSE | CM51: FALSE | CN51: FALSE | CO51: FALSE | CP51: FALSE | CQ51: FALSE | CR51: FALSE | CS51: FALSE | CT51: FALSE | CU51: FALSE | CV51: FALSE | CW51: FALSE | CX51: FALSE | CY51: FALSE | CZ51: FALSE | DA51: FALSE | DB51: =$F$51=DB3 -> FALSE | DC51: FALSE | DD51: FALSE | DE51: FALSE | DF51: FALSE | DG51: FALSE | DH51: FALSE | DI51: FALSE | DJ51: FALSE | DK51: FALSE | DL51: FALSE | DM51: FALSE | DN51: FALSE | DO51: FALSE | DP51: FALSE | DQ51: FALSE | DR51: FALSE | DS51: FALSE | DT51: FALSE | DU51: FALSE | DV51: FALSE | DW51: FALSE | DX51: FALSE | DY51: FALSE | DZ51: FALSE | EA51: FALSE | EB51: FALSE | EC51: FALSE | ED51: FALSE | EE51: FALSE | EF51: FALSE | EG51: FALSE | EH51: =$F$51=EH3 -> FALSE | EI51: FALSE | EJ51: FALSE | EK51: FALSE | EL51: FALSE | EM51: FALSE | EN51: FALSE | EO51: FALSE | EP51: FALSE | EQ51: FALSE | ER51: FALSE | ES51: FALSE | ET51: FALSE | EU51: FALSE | EV51: FALSE | EW51: FALSE | EX51: FALSE | EY51: FALSE | EZ51: FALSE | FA51: FALSE | FB51: FALSE | FC51: FALSE | FD51: FALSE | FE51: FALSE | FF51: FALSE | FG51: FALSE | FH51: FALSE | FI51: FALSE | FJ51: FALSE | FK51: FALSE | FL51: FALSE | FM51: FALSE | FN51: =$F$51=FN3 -> FALSE | FO51: FALSE | FP51: FALSE | FQ51: FALSE | FR51: FALSE | FS51: FALSE | FT51: FALSE | FU51: FALSE | FV51: FALSE | FW51: FALSE | FX51: FALSE | FY51: FALSE | FZ51: FALSE | GA51: FALSE | GB51: FALSE | GC51: FALSE | GD51: FALSE | GE51: FALSE | GF51: FALSE | GG51: FALSE | GH51: FALSE | GI51: FALSE | GJ51: FALSE | GK51: FALSE | GL51: FALSE | GM51: FALSE | GN51: FALSE | GO51: FALSE | GP51: FALSE | GQ51: FALSE | GR51: FALSE | GS51: FALSE | GT51: =$F$51=GT3 -> FALSE | GU51: FALSE | GV51: FALSE | GW51: FALSE | GX51: FALSE | GY51: FALSE | GZ51: FALSE | HA51: FALSE
D52: Development Fee | E52: EUR | F52: =F30 -> 22000 | J52: =$F$52*J51 -> 0 | K52: =$F$52*K51 -> 22000 | L52: 0 | M52: 0 | N52: 0 | O52: 0 | P52: 0 | Q52: 0 | R52: 0 | S52: 0 | T52: 0 | U52: 0 | V52: 0 | W52: 0 | X52: 0 | Y52: 0 | Z52: 0 | AA52: 0 | AB52: 0 | AC52: 0 | AD52: 0 | AE52: 0 | AF52: 0 | AG52: 0 | AH52: 0 | AI52: 0 | AJ52: 0 | AK52: 0 | AL52: 0 | AM52: 0 | AN52: 0 | AO52: 0 | AP52: 0 | AQ52: 0 | AR52: 0 | AS52: 0 | AT52: 0 | AU52: 0 | AV52: 0 | AW52: 0 | AX52: 0 | AY52: 0 | AZ52: 0 | BA52: 0 | BB52: 0 | BC52: 0 | BD52: 0 | BE52: 0 | BF52: 0 | BG52: 0 | BH52: 0 | BI52: 0 | BJ52: 0 | BK52: 0 | BL52: 0 | BM52: 0 | BN52: 0 | BO52: 0 | BP52: 0 | BQ52: 0 | BR52: 0 | BS52: 0 | BT52: 0 | BU52: 0 | BV52: 0 | BW52: =$F$52*BW51 -> 0 | BX52: 0 | BY52: 0 | BZ52: 0 | CA52: 0 | CB52: 0 | CC52: 0 | CD52: 0 | CE52: 0 | CF52: 0 | CG52: 0 | CH52: 0 | CI52: 0 | CJ52: 0 | CK52: 0 | CL52: 0 | CM52: 0 | CN52: 0 | CO52: 0 | CP52: 0 | CQ52: 0 | CR52: 0 | CS52: 0 | CT52: 0 | CU52: 0 | CV52: 0 | CW52: 0 | CX52: 0 | CY52: 0 | CZ52: 0 | DA52: 0 | DB52: 0 | DC52: 0 | DD52: 0 | DE52: 0 | DF52: 0 | DG52: 0 | DH52: 0 | DI52: 0 | DJ52: 0 | DK52: 0 | DL52: 0 | DM52: 0 | DN52: 0 | DO52: 0 | DP52: 0 | DQ52: 0 | DR52: 0 | DS52: 0 | DT52: 0 | DU52: 0 | DV52: 0 | DW52: 0 | DX52: 0 | DY52: 0 | DZ52: 0 | EA52: 0 | EB52: 0 | EC52: 0 | ED52: 0 | EE52: 0 | EF52: 0 | EG52: 0 | EH52: 0 | EI52: =$F$52*EI51 -> 0 | EJ52: 0 | EK52: 0 | EL52: 0 | EM52: 0 | EN52: 0 | EO52: 0 | EP52: 0 | EQ52: 0 | ER52: 0 | ES52: 0 | ET52: 0 | EU52: 0 | EV52: 0 | EW52: 0 | EX52: 0 | EY52: 0 | EZ52: 0 | FA52: 0 | FB52: 0 | FC52: 0 | FD52: 0 | FE52: 0 | FF52: 0 | FG52: 0 | FH52: 0 | FI52: 0 | FJ52: 0 | FK52: 0 | FL52: 0 | FM52: 0 | FN52: 0 | FO52: 0 | FP52: 0 | FQ52: 0 | FR52: 0 | FS52: 0 | FT52: 0 | FU52: 0 | FV52: 0 | FW52: 0 | FX52: 0 | FY52: 0 | FZ52: 0 | GA52: 0 | GB52: 0 | GC52: 0 | GD52: 0 | GE52: 0 | GF52: 0 | GG52: 0 | GH52: 0 | GI52: 0 | GJ52: 0 | GK52: 0 | GL52: 0 | GM52: 0 | GN52: 0 | GO52: 0 | GP52: 0 | GQ52: 0 | GR52: 0 | GS52: 0 | GT52: 0 | GU52: =$F$52*GU51 -> 0 | GV52: 0 | GW52: 0 | GX52: 0 | GY52: 0 | GZ52: 0 | HA52: 0
D54: Project Cash Flow with Development Fee as Cost | E54: EUR | J54: =J48-J52 -> -20000 | K54: -422000 | L54: 25625 | M54: 26265.625 | N54: 26922.26562 | O54: 27595.32227 | P54: 28285.20532 | Q54: 28992.33546 | R54: 29717.14384 | S54: 30460.07244 | T54: 31221.57425 | U54: 32002.1136 | V54: 32802.16645 | W54: 33622.22061 | X54: 34462.77612 | Y54: 35324.34552 | Z54: 36207.45416 | AA54: 37112.64052 | AB54: 38040.45653 | AC54: 38991.46794 | AD54: 39966.25464 | AE54: 40965.41101 | AF54: 41989.54628 | AG54: 43039.28494 | AH54: 44115.26706 | AI54: 45218.14874 | AJ54: 46348.60246 | AK54: 47507.31752 | AL54: 48695.00046 | AM54: 49912.37547 | AN54: 51160.18486 | AO54: 52439.18948 | AP54: =AP48-AP52 -> 0 | AQ54: 0 | AR54: 0 | AS54: 0 | AT54: 0 | AU54: 0 | AV54: 0 | AW54: 0 | AX54: 0 | AY54: 0 | AZ54: 0 | BA54: 0 | BB54: 0 | BC54: 0 | BD54: 0 | BE54: 0 | BF54: 0 | BG54: 0 | BH54: 0 | BI54: 0 | BJ54: 0 | BK54: 0 | BL54: 0 | BM54: 0 | BN54: 0 | BO54: 0 | BP54: 0 | BQ54: 0 | BR54: 0 | BS54: 0 | BT54: 0 | BU54: 0 | BV54: =BV48-BV52 -> 0 | BW54: 0 | BX54: 0 | BY54: 0 | BZ54: 0 | CA54: 0 | CB54: 0 | CC54: 0 | CD54: 0 | CE54: 0 | CF54: 0 | CG54: 0 | CH54: 0 | CI54: 0 | CJ54: 0 | CK54: 0 | CL54: 0 | CM54: 0 | CN54: 0 | CO54: 0 | CP54: 0 | CQ54: 0 | CR54: 0 | CS54: 0 | CT54: 0 | CU54: 0 | CV54: 0 | CW54: 0 | CX54: 0 | CY54: 0 | CZ54: 0 | DA54: 0 | DB54: =DB48-DB52 -> 0 | DC54: 0 | DD54: 0 | DE54: 0 | DF54: 0 | DG54: 0 | DH54: 0 | DI54: 0 | DJ54: 0 | DK54: 0 | DL54: 0 | DM54: 0 | DN54: 0 | DO54: 0 | DP54: 0 | DQ54: 0 | DR54: 0 | DS54: 0 | DT54: 0 | DU54: 0 | DV54: 0 | DW54: 0 | DX54: 0 | DY54: 0 | DZ54: 0 | EA54: 0 | EB54: 0 | EC54: 0 | ED54: 0 | EE54: 0 | EF54: 0 | EG54: 0 | EH54: =EH48-EH52 -> 0 | EI54: 0 | EJ54: 0 | EK54: 0 | EL54: 0 | EM54: 0 | EN54: 0 | EO54: 0 | EP54: 0 | EQ54: 0 | ER54: 0 | ES54: 0 | ET54: 0 | EU54: 0 | EV54: 0 | EW54: 0 | EX54: 0 | EY54: 0 | EZ54: 0 | FA54: 0 | FB54: 0 | FC54: 0 | FD54: 0 | FE54: 0 | FF54: 0 | FG54: 0 | FH54: 0 | FI54: 0 | FJ54: 0 | FK54: 0 | FL54: 0 | FM54: 0 | FN54: =FN48-FN52 -> 0 | FO54: 0 | FP54: 0 | FQ54: 0 | FR54: 0 | FS54: 0 | FT54: 0 | FU54: 0 | FV54: 0 | FW54: 0 | FX54: 0 | FY54: 0 | FZ54: 0 | GA54: 0 | GB54: 0 | GC54: 0 | GD54: 0 | GE54: 0 | GF54: 0 | GG54: 0 | GH54: 0 | GI54: 0 | GJ54: 0 | GK54: 0 | GL54: 0 | GM54: 0 | GN54: 0 | GO54: 0 | GP54: 0 | GQ54: 0 | GR54: 0 | GS54: 0 | GT54: =GT48-GT52 -> 0 | GU54: 0 | GV54: 0 | GW54: 0 | GX54: 0 | GY54: 0 | GZ54: 0 | HA54: 0
D55: IRR with Development Fee | E55: % | F55: =XIRR(J54:HA54,J2:HA2) -> 0.0640789777
D57: Development Cost at FC | E57: EUR | F57: =F43 -> 20000 | J57: =$F$57*J51 -> 0 | K57: =$F$57*K51 -> 20000 | L57: 0 | M57: 0 | N57: 0 | O57: 0 | P57: 0 | Q57: 0 | R57: 0 | S57: 0 | T57: 0 | U57: 0 | V57: 0 | W57: 0 | X57: 0 | Y57: 0 | Z57: 0 | AA57: 0 | AB57: 0 | AC57: 0 | AD57: 0 | AE57: 0 | AF57: 0 | AG57: 0 | AH57: 0 | AI57: 0 | AJ57: 0 | AK57: 0 | AL57: 0 | AM57: 0 | AN57: 0 | AO57: 0 | AP57: 0 | AQ57: 0 | AR57: 0 | AS57: 0 | AT57: 0 | AU57: 0 | AV57: 0 | AW57: 0 | AX57: 0 | AY57: 0 | AZ57: 0 | BA57: 0 | BB57: 0 | BC57: 0 | BD57: 0 | BE57: 0 | BF57: 0 | BG57: 0 | BH57: 0 | BI57: 0 | BJ57: 0 | BK57: 0 | BL57: 0 | BM57: 0 | BN57: 0 | BO57: 0 | BP57: 0 | BQ57: 0 | BR57: 0 | BS57: 0 | BT57: 0 | BU57: 0 | BV57: 0 | BW57: =$F$57*BW51 -> 0 | BX57: 0 | BY57: 0 | BZ57: 0 | CA57: 0 | CB57: 0 | CC57: 0 | CD57: 0 | CE57: 0 | CF57: 0 | CG57: 0 | CH57: 0 | CI57: 0 | CJ57: 0 | CK57: 0 | CL57: 0 | CM57: 0 | CN57: 0 | CO57: 0 | CP57: 0 | CQ57: 0 | CR57: 0 | CS57: 0 | CT57: 0 | CU57: 0 | CV57: 0 | CW57: 0 | CX57: 0 | CY57: 0 | CZ57: 0 | DA57: 0 | DB57: 0 | DC57: 0 | DD57: 0 | DE57: 0 | DF57: 0 | DG57: 0 | DH57: 0 | DI57: 0 | DJ57: 0 | DK57: 0 | DL57: 0 | DM57: 0 | DN57: 0 | DO57: 0 | DP57: 0 | DQ57: 0 | DR57: 0 | DS57: 0 | DT57: 0 | DU57: 0 | DV57: 0 | DW57: 0 | DX57: 0 | DY57: 0 | DZ57: 0 | EA57: 0 | EB57: 0 | EC57: 0 | ED57: 0 | EE57: 0 | EF57: 0 | EG57: 0 | EH57: 0 | EI57: =$F$57*EI51 -> 0 | EJ57: 0 | EK57: 0 | EL57: 0 | EM57: 0 | EN57: 0 | EO57: 0 | EP57: 0 | EQ57: 0 | ER57: 0 | ES57: 0 | ET57: 0 | EU57: 0 | EV57: 0 | EW57: 0 | EX57: 0 | EY57: 0 | EZ57: 0 | FA57: 0 | FB57: 0 | FC57: 0 | FD57: 0 | FE57: 0 | FF57: 0 | FG57: 0 | FH57: 0 | FI57: 0 | FJ57: 0 | FK57: 0 | FL57: 0 | FM57: 0 | FN57: 0 | FO57: 0 | FP57: 0 | FQ57: 0 | FR57: 0 | FS57: 0 | FT57: 0 | FU57: 0 | FV57: 0 | FW57: 0 | FX57: 0 | FY57: 0 | FZ57: 0 | GA57: 0 | GB57: 0 | GC57: 0 | GD57: 0 | GE57: 0 | GF57: 0 | GG57: 0 | GH57: 0 | GI57: 0 | GJ57: 0 | GK57: 0 | GL57: 0 | GM57: 0 | GN57: 0 | GO57: 0 | GP57: 0 | GQ57: 0 | GR57: 0 | GS57: 0 | GT57: 0 | GU57: =$F$57*GU51 -> 0 | GV57: 0 | GW57: 0 | GX57: 0 | GY57: 0 | GZ57: 0 | HA57: 0
B59: Uses and Sources
C61: Overall Cash Flow Waterfall
D62: Repayment Flag | F62: =F37 -> 20 | J62: =AND(J7,J6<=$F$62) -> FALSE | K62: FALSE | L62: TRUE | M62: TRUE | N62: TRUE | O62: TRUE | P62: TRUE | Q62: TRUE | R62: TRUE | S62: TRUE | T62: TRUE | U62: TRUE | V62: TRUE | W62: TRUE | X62: TRUE | Y62: TRUE | Z62: TRUE | AA62: TRUE | AB62: TRUE | AC62: TRUE | AD62: TRUE | AE62: TRUE | AF62: FALSE | AG62: FALSE | AH62: FALSE | AI62: FALSE | AJ62: FALSE | AK62: FALSE | AL62: FALSE | AM62: FALSE | AN62: FALSE | AO62: FALSE | AP62: =AND(AP7,AP6<=$F$62) -> FALSE | AQ62: FALSE | AR62: FALSE | AS62: FALSE | AT62: FALSE | AU62: FALSE | AV62: FALSE | AW62: FALSE | AX62: FALSE | AY62: FALSE | AZ62: FALSE | BA62: FALSE | BB62: FALSE | BC62: FALSE | BD62: FALSE | BE62: FALSE | BF62: FALSE | BG62: FALSE | BH62: FALSE | BI62: FALSE | BJ62: FALSE | BK62: FALSE | BL62: FALSE | BM62: FALSE | BN62: FALSE | BO62: FALSE | BP62: FALSE | BQ62: FALSE | BR62: FALSE | BS62: FALSE | BT62: FALSE | BU62: FALSE | BV62: =AND(BV7,BV6<=$F$62) -> FALSE | BW62: FALSE | BX62: FALSE | BY62: FALSE | BZ62: FALSE | CA62: FALSE | CB62: FALSE | CC62: FALSE | CD62: FALSE | CE62: FALSE | CF62: FALSE | CG62: FALSE | CH62: FALSE | CI62: FALSE | CJ62: FALSE | CK62: FALSE | CL62: FALSE | CM62: FALSE | CN62: FALSE | CO62: FALSE | CP62: FALSE | CQ62: FALSE | CR62: FALSE | CS62: FALSE | CT62: FALSE | CU62: FALSE | CV62: FALSE | CW62: FALSE | CX62: FALSE | CY62: FALSE | CZ62: FALSE | DA62: FALSE | DB62: =AND(DB7,DB6<=$F$62) -> FALSE | DC62: FALSE | DD62: FALSE | DE62: FALSE | DF62: FALSE | DG62: FALSE | DH62: FALSE | DI62: FALSE | DJ62: FALSE | DK62: FALSE | DL62: FALSE | DM62: FALSE | DN62: FALSE | DO62: FALSE | DP62: FALSE | DQ62: FALSE | DR62: FALSE | DS62: FALSE | DT62: FALSE | DU62: FALSE | DV62: FALSE | DW62: FALSE | DX62: FALSE | DY62: FALSE | DZ62: FALSE | EA62: FALSE | EB62: FALSE | EC62: FALSE | ED62: FALSE | EE62: FALSE | EF62: FALSE | EG62: FALSE | EH62: =AND(EH7,EH6<=$F$62) -> FALSE | EI62: FALSE | EJ62: FALSE | EK62: FALSE | EL62: FALSE | EM62: FALSE | EN62: FALSE | EO62: FALSE | EP62: FALSE | EQ62: FALSE | ER62: FALSE | ES62: FALSE | ET62: FALSE | EU62: FALSE | EV62: FALSE | EW62: FALSE | EX62: FALSE | EY62: FALSE | EZ62: FALSE | FA62: FALSE | FB62: FALSE | FC62: FALSE | FD62: FALSE | FE62: FALSE | FF62: FALSE | FG62: FALSE | FH62: FALSE | FI62: FALSE | FJ62: FALSE | FK62: FALSE | FL62: FALSE | FM62: FALSE | FN62: =AND(FN7,FN6<=$F$62) -> FALSE | FO62: FALSE | FP62: FALSE | FQ62: FALSE | FR62: FALSE | FS62: FALSE | FT62: FALSE | FU62: FALSE | FV62: FALSE | FW62: FALSE | FX62: FALSE | FY62: FALSE | FZ62: FALSE | GA62: FALSE | GB62: FALSE | GC62: FALSE | GD62: FALSE | GE62: FALSE | GF62: FALSE | GG62: FALSE | GH62: FALSE | GI62: FALSE | GJ62: FALSE | GK62: FALSE | GL62: FALSE | GM62: FALSE | GN62: FALSE | GO62: FALSE | GP62: FALSE | GQ62: FALSE | GR62: FALSE | GS62: FALSE | GT62: =AND(GT7,GT6<=$F$62) -> FALSE | GU62: FALSE | GV62: FALSE | GW62: FALSE | GX62: FALSE | GY62: FALSE | GZ62: FALSE | HA62: FALSE
D64: CFADS =EBITDA | H64: =SUM(I64:XFD64) -> 654581.8513 | J64: =J46*J62 -> 0 | K64: 0 | L64: 25625 | M64: 26265.625 | N64: 26922.26562 | O64: 27595.32227 | P64: 28285.20532 | Q64: 28992.33546 | R64: 29717.14384 | S64: 30460.07244 | T64: 31221.57425 | U64: 32002.1136 | V64: 32802.16645 | W64: 33622.22061 | X64: 34462.77612 | Y64: 35324.34552 | Z64: 36207.45416 | AA64: 37112.64052 | AB64: 38040.45653 | AC64: 38991.46794 | AD64: 39966.25464 | AE64: 40965.41101 | AF64: 0 | AG64: 0 | AH64: 0 | AI64: 0 | AJ64: 0 | AK64: 0 | AL64: 0 | AM64: 0 | AN64: 0 | AO64: 0 | AP64: =AP46*AP62 -> 0 | AQ64: 0 | AR64: 0 | AS64: 0 | AT64: 0 | AU64: 0 | AV64: 0 | AW64: 0 | AX64: 0 | AY64: 0 | AZ64: 0 | BA64: 0 | BB64: 0 | BC64: 0 | BD64: 0 | BE64: 0 | BF64: 0 | BG64: 0 | BH64: 0 | BI64: 0 | BJ64: 0 | BK64: 0 | BL64: 0 | BM64: 0 | BN64: 0 | BO64: 0 | BP64: 0 | BQ64: 0 | BR64: 0 | BS64: 0 | BT64: 0 | BU64: 0 | BV64: =BV46*BV62 -> 0 | BW64: 0 | BX64: 0 | BY64: 0 | BZ64: 0 | CA64: 0 | CB64: 0 | CC64: 0 | CD64: 0 | CE64: 0 | CF64: 0 | CG64: 0 | CH64: 0 | CI64: 0 | CJ64: 0 | CK64: 0 | CL64: 0 | CM64: 0 | CN64: 0 | CO64: 0 | CP64: 0 | CQ64: 0 | CR64: 0 | CS64: 0 | CT64: 0 | CU64: 0 | CV64: 0 | CW64: 0 | CX64: 0 | CY64: 0 | CZ64: 0 | DA64: 0 | DB64: =DB46*DB62 -> 0 | DC64: 0 | DD64: 0 | DE64: 0 | DF64: 0 | DG64: 0 | DH64: 0 | DI64: 0 | DJ64: 0 | DK64: 0 | DL64: 0 | DM64: 0 | DN64: 0 | DO64: 0 | DP64: 0 | DQ64: 0 | DR64: 0 | DS64: 0 | DT64: 0 | DU64: 0 | DV64: 0 | DW64: 0 | DX64: 0 | DY64: 0 | DZ64: 0 | EA64: 0 | EB64: 0 | EC64: 0 | ED64: 0 | EE64: 0 | EF64: 0 | EG64: 0 | EH64: =EH46*EH62 -> 0 | EI64: 0 | EJ64: 0 | EK64: 0 | EL64: 0 | EM64: 0 | EN64: 0 | EO64: 0 | EP64: 0 | EQ64: 0 | ER64: 0 | ES64: 0 | ET64: 0 | EU64: 0 | EV64: 0 | EW64: 0 | EX64: 0 | EY64: 0 | EZ64: 0 | FA64: 0 | FB64: 0 | FC64: 0 | FD64: 0 | FE64: 0 | FF64: 0 | FG64: 0 | FH64: 0 | FI64: 0 | FJ64: 0 | FK64: 0 | FL64: 0 | FM64: 0 | FN64: =FN46*FN62 -> 0 | FO64: 0 | FP64: 0 | FQ64: 0 | FR64: 0 | FS64: 0 | FT64: 0 | FU64: 0 | FV64: 0 | FW64: 0 | FX64: 0 | FY64: 0 | FZ64: 0 | GA64: 0 | GB64: 0 | GC64: 0 | GD64: 0 | GE64: 0 | GF64: 0 | GG64: 0 | GH64: 0 | GI64: 0 | GJ64: 0 | GK64: 0 | GL64: 0 | GM64: 0 | GN64: 0 | GO64: 0 | GP64: 0 | GQ64: 0 | GR64: 0 | GS64: 0 | GT64: =GT46*GT62 -> 0 | GU64: 0 | GV64: 0 | GW64: 0 | GX64: 0 | GY64: 0 | GZ64: 0 | HA64: 0
D65: Interest Rate Index | G65: =F38 -> 0.035 | I65: 1 | J65: =I65*(1+$G$65*J7) -> 1 | K65: 1 | L65: 1.035 | M65: 1.071225 | N65: 1.108717875 | O65: 1.147523001 | P65: 1.187686306 | Q65: 1.229255326 | R65: 1.272279263 | S65: 1.316809037 | T65: 1.362897353 | U65: 1.410598761 | V65: 1.459969717 | W65: 1.511068657 | X65: 1.56395606 | Y65: 1.618694522 | Z65: 1.675348831 | AA65: 1.73398604 | AB65: 1.794675551 | AC65: 1.857489196 | AD65: 1.922501317 | AE65: 1.989788863 | AF65: 2.059431474 | AG65: 2.131511575 | AH65: 2.20611448 | AI65: 2.283328487 | AJ65: 2.363244984 | AK65: 2.445958559 | AL65: 2.531567108 | AM65: 2.620171957 | AN65: 2.711877976 | AO65: 2.806793705 | AP65: =AO65*(1+$G$65*AP7) -> 2.806793705 | AQ65: 2.806793705 | AR65: 2.806793705 | AS65: 2.806793705 | AT65: 2.806793705 | AU65: 2.806793705 | AV65: 2.806793705 | AW65: 2.806793705 | AX65: 2.806793705 | AY65: 2.806793705 | AZ65: 2.806793705 | BA65: 2.806793705 | BB65: 2.806793705 | BC65: 2.806793705 | BD65: 2.806793705 | BE65: 2.806793705 | BF65: 2.806793705 | BG65: 2.806793705 | BH65: 2.806793705 | BI65: 2.806793705 | BJ65: 2.806793705 | BK65: 2.806793705 | BL65: 2.806793705 | BM65: 2.806793705 | BN65: 2.806793705 | BO65: 2.806793705 | BP65: 2.806793705 | BQ65: 2.806793705 | BR65: 2.806793705 | BS65: 2.806793705 | BT65: 2.806793705 | BU65: 2.806793705 | BV65: =BU65*(1+$G$65*BV7) -> 2.806793705 | BW65: 2.806793705 | BX65: 2.806793705 | BY65: 2.806793705 | BZ65: 2.806793705 | CA65: 2.806793705 | CB65: 2.806793705 | CC65: 2.806793705 | CD65: 2.806793705 | CE65: 2.806793705 | CF65: 2.806793705 | CG65: 2.806793705 | CH65: 2.806793705 | CI65: 2.806793705 | CJ65: 2.806793705 | CK65: 2.806793705 | CL65: 2.806793705 | CM65: 2.806793705 | CN65: 2.806793705 | CO65: 2.806793705 | CP65: 2.806793705 | CQ65: 2.806793705 | CR65: 2.806793705 | CS65: 2.806793705 | CT65: 2.806793705 | CU65: 2.806793705 | CV65: 2.806793705 | CW65: 2.806793705 | CX65: 2.806793705 | CY65: 2.806793705 | CZ65: 2.806793705 | DA65: 2.806793705 | DB65: =DA65*(1+$G$65*DB7) -> 2.806793705 | DC65: 2.806793705 | DD65: 2.806793705 | DE65: 2.806793705 | DF65: 2.806793705 | DG65: 2.806793705 | DH65: 2.806793705 | DI65: 2.806793705 | DJ65: 2.806793705 | DK65: 2.806793705 | DL65: 2.806793705 | DM65: 2.806793705 | DN65: 2.806793705 | DO65: 2.806793705 | DP65: 2.806793705 | DQ65: 2.806793705 | DR65: 2.806793705 | DS65: 2.806793705 | DT65: 2.806793705 | DU65: 2.806793705 | DV65: 2.806793705 | DW65: 2.806793705 | DX65: 2.806793705 | DY65: 2.806793705 | DZ65: 2.806793705 | EA65: 2.806793705 | EB65: 2.806793705 | EC65: 2.806793705 | ED65: 2.806793705 | EE65: 2.806793705 | EF65: 2.806793705 | EG65: 2.806793705 | EH65: =EG65*(1+$G$65*EH7) -> 2.806793705 | EI65: 2.806793705 | EJ65: 2.806793705 | EK65: 2.806793705 | EL65: 2.806793705 | EM65: 2.806793705 | EN65: 2.806793705 | EO65: 2.806793705 | EP65: 2.806793705 | EQ65: 2.806793705 | ER65: 2.806793705 | ES65: 2.806793705 | ET65: 2.806793705 | EU65: 2.806793705 | EV65: 2.806793705 | EW65: 2.806793705 | EX65: 2.806793705 | EY65: 2.806793705 | EZ65: 2.806793705 | FA65: 2.806793705 | FB65: 2.806793705 | FC65: 2.806793705 | FD65: 2.806793705 | FE65: 2.806793705 | FF65: 2.806793705 | FG65: 2.806793705 | FH65: 2.806793705 | FI65: 2.806793705 | FJ65: 2.806793705 | FK65: 2.806793705 | FL65: 2.806793705 | FM65: 2.806793705 | FN65: =FM65*(1+$G$65*FN7) -> 2.806793705 | FO65: 2.806793705 | FP65: 2.806793705 | FQ65: 2.806793705 | FR65: 2.806793705 | FS65: 2.806793705 | FT65: 2.806793705 | FU65: 2.806793705 | FV65: 2.806793705 | FW65: 2.806793705 | FX65: 2.806793705 | FY65: 2.806793705 | FZ65: 2.806793705 | GA65: 2.806793705 | GB65: 2.806793705 | GC65: 2.806793705 | GD65: 2.806793705 | GE65: 2.806793705 | GF65: 2.806793705 | GG65: 2.806793705 | GH65: 2.806793705 | GI65: 2.806793705 | GJ65: 2.806793705 | GK65: 2.806793705 | GL65: 2.806793705 | GM65: 2.806793705 | GN65: 2.806793705 | GO65: 2.806793705 | GP65: 2.806793705 | GQ65: 2.806793705 | GR65: 2.806793705 | GS65: 2.806793705 | GT65: =GS65*(1+$G$65*GT7) -> 2.806793705 | GU65: 2.806793705 | GV65: 2.806793705 | GW65: 2.806793705 | GX65: 2.806793705 | GY65: 2.806793705 | GZ65: 2.806793705 | HA65: 2.806793705
D66: PV of CFADS | F66: =SUMPRODUCT(J64:HA64/J65:HA65) -> 452248.6536
D67: DSCR for Sculpting | F67: =F36 -> 1.4
D69: Project Cash Flow | J69: =J46 -> 0 | K69: 0 | L69: 25625 | M69: 26265.625 | N69: 26922.26562 | O69: 27595.32227 | P69: 28285.20532 | Q69: 28992.33546 | R69: 29717.14384 | S69: 30460.07244 | T69: 31221.57425 | U69: 32002.1136 | V69: 32802.16645 | W69: 33622.22061 | X69: 34462.77612 | Y69: 35324.34552 | Z69: 36207.45416 | AA69: 37112.64052 | AB69: 38040.45653 | AC69: 38991.46794 | AD69: 39966.25464 | AE69: 40965.41101 | AF69: 41989.54628 | AG69: 43039.28494 | AH69: 44115.26706 | AI69: 45218.14874 | AJ69: 46348.60246 | AK69: 47507.31752 | AL69: 48695.00046 | AM69: 49912.37547 | AN69: 51160.18486 | AO69: 52439.18948 | AP69: =AP46 -> 0 | AQ69: 0 | AR69: 0 | AS69: 0 | AT69: 0 | AU69: 0 | AV69: 0 | AW69: 0 | AX69: 0 | AY69: 0 | AZ69: 0 | BA69: 0 | BB69: 0 | BC69: 0 | BD69: 0 | BE69: 0 | BF69: 0 | BG69: 0 | BH69: 0 | BI69: 0 | BJ69: 0 | BK69: 0 | BL69: 0 | BM69: 0 | BN69: 0 | BO69: 0 | BP69: 0 | BQ69: 0 | BR69: 0 | BS69: 0 | BT69: 0 | BU69: 0 | BV69: =BV46 -> 0 | BW69: 0 | BX69: 0 | BY69: 0 | BZ69: 0 | CA69: 0 | CB69: 0 | CC69: 0 | CD69: 0 | CE69: 0 | CF69: 0 | CG69: 0 | CH69: 0 | CI69: 0 | CJ69: 0 | CK69: 0 | CL69: 0 | CM69: 0 | CN69: 0 | CO69: 0 | CP69: 0 | CQ69: 0 | CR69: 0 | CS69: 0 | CT69: 0 | CU69: 0 | CV69: 0 | CW69: 0 | CX69: 0 | CY69: 0 | CZ69: 0 | DA69: 0 | DB69: =DB46 -> 0 | DC69: 0 | DD69: 0 | DE69: 0 | DF69: 0 | DG69: 0 | DH69: 0 | DI69: 0 | DJ69: 0 | DK69: 0 | DL69: 0 | DM69: 0 | DN69: 0 | DO69: 0 | DP69: 0 | DQ69: 0 | DR69: 0 | DS69: 0 | DT69: 0 | DU69: 0 | DV69: 0 | DW69: 0 | DX69: 0 | DY69: 0 | DZ69: 0 | EA69: 0 | EB69: 0 | EC69: 0 | ED69: 0 | EE69: 0 | EF69: 0 | EG69: 0 | EH69: =EH46 -> 0 | EI69: 0 | EJ69: 0 | EK69: 0 | EL69: 0 | EM69: 0 | EN69: 0 | EO69: 0 | EP69: 0 | EQ69: 0 | ER69: 0 | ES69: 0 | ET69: 0 | EU69: 0 | EV69: 0 | EW69: 0 | EX69: 0 | EY69: 0 | EZ69: 0 | FA69: 0 | FB69: 0 | FC69: 0 | FD69: 0 | FE69: 0 | FF69: 0 | FG69: 0 | FH69: 0 | FI69: 0 | FJ69: 0 | FK69: 0 | FL69: 0 | FM69: 0 | FN69: =FN46 -> 0 | FO69: 0 | FP69: 0 | FQ69: 0 | FR69: 0 | FS69: 0 | FT69: 0 | FU69: 0 | FV69: 0 | FW69: 0 | FX69: 0 | FY69: 0 | FZ69: 0 | GA69: 0 | GB69: 0 | GC69: 0 | GD69: 0 | GE69: 0 | GF69: 0 | GG69: 0 | GH69: 0 | GI69: 0 | GJ69: 0 | GK69: 0 | GL69: 0 | GM69: 0 | GN69: 0 | GO69: 0 | GP69: 0 | GQ69: 0 | GR69: 0 | GS69: 0 | GT69: =GT46 -> 0 | GU69: 0 | GV69: 0 | GW69: 0 | GX69: 0 | GY69: 0 | GZ69: 0 | HA69: 0
D70: Debt Service | F70: =F67 -> 1.4 | H70: =SUM(I70:XFD70) -> 0
D71: PV of Debt Service
D73: Equity Cash Flow | H73: =SUM(I73:XFD73) -> 1125006.769 | J73: =J69-J70 -> 0 | K73: 0 | L73: 25625 | M73: 26265.625 | N73: 26922.26562 | O73: 27595.32227 | P73: 28285.20532 | Q73: 28992.33546 | R73: 29717.14384 | S73: 30460.07244 | T73: 31221.57425 | U73: 32002.1136 | V73: 32802.16645 | W73: 33622.22061 | X73: 34462.77612 | Y73: 35324.34552 | Z73: 36207.45416 | AA73: 37112.64052 | AB73: 38040.45653 | AC73: 38991.46794 | AD73: 39966.25464 | AE73: 40965.41101 | AF73: 41989.54628 | AG73: 43039.28494 | AH73: 44115.26706 | AI73: 45218.14874 | AJ73: 46348.60246 | AK73: 47507.31752 | AL73: 48695.00046 | AM73: 49912.37547 | AN73: 51160.18486 | AO73: 52439.18948 | AP73: =AP69-AP70 -> 0 | AQ73: 0 | AR73: 0 | AS73: 0 | AT73: 0 | AU73: 0 | AV73: 0 | AW73: 0 | AX73: 0 | AY73: 0 | AZ73: 0 | BA73: 0 | BB73: 0 | BC73: 0 | BD73: 0 | BE73: 0 | BF73: 0 | BG73: 0 | BH73: 0 | BI73: 0 | BJ73: 0 | BK73: 0 | BL73: 0 | BM73: 0 | BN73: 0 | BO73: 0 | BP73: 0 | BQ73: 0 | BR73: 0 | BS73: 0 | BT73: 0 | BU73: 0 | BV73: =BV69-BV70 -> 0 | BW73: 0 | BX73: 0 | BY73: 0 | BZ73: 0 | CA73: 0 | CB73: 0 | CC73: 0 | CD73: 0 | CE73: 0 | CF73: 0 | CG73: 0 | CH73: 0 | CI73: 0 | CJ73: 0 | CK73: 0 | CL73: 0 | CM73: 0 | CN73: 0 | CO73: 0 | CP73: 0 | CQ73: 0 | CR73: 0 | CS73: 0 | CT73: 0 | CU73: 0 | CV73: 0 | CW73: 0 | CX73: 0 | CY73: 0 | CZ73: 0 | DA73: 0 | DB73: =DB69-DB70 -> 0 | DC73: 0 | DD73: 0 | DE73: 0 | DF73: 0 | DG73: 0 | DH73: 0 | DI73: 0 | DJ73: 0 | DK73: 0 | DL73: 0 | DM73: 0 | DN73: 0 | DO73: 0 | DP73: 0 | DQ73: 0 | DR73: 0 | DS73: 0 | DT73: 0 | DU73: 0 | DV73: 0 | DW73: 0 | DX73: 0 | DY73: 0 | DZ73: 0 | EA73: 0 | EB73: 0 | EC73: 0 | ED73: 0 | EE73: 0 | EF73: 0 | EG73: 0 | EH73: =EH69-EH70 -> 0 | EI73: 0 | EJ73: 0 | EK73: 0 | EL73: 0 | EM73: 0 | EN73: 0 | EO73: 0 | EP73: 0 | EQ73: 0 | ER73: 0 | ES73: 0 | ET73: 0 | EU73: 0 | EV73: 0 | EW73: 0 | EX73: 0 | EY73: 0 | EZ73: 0 | FA73: 0 | FB73: 0 | FC73: 0 | FD73: 0 | FE73: 0 | FF73: 0 | FG73: 0 | FH73: 0 | FI73: 0 | FJ73: 0 | FK73: 0 | FL73: 0 | FM73: 0 | FN73: =FN69-FN70 -> 0 | FO73: 0 | FP73: 0 | FQ73: 0 | FR73: 0 | FS73: 0 | FT73: 0 | FU73: 0 | FV73: 0 | FW73: 0 | FX73: 0 | FY73: 0 | FZ73: 0 | GA73: 0 | GB73: 0 | GC73: 0 | GD73: 0 | GE73: 0 | GF73: 0 | GG73: 0 | GH73: 0 | GI73: 0 | GJ73: 0 | GK73: 0 | GL73: 0 | GM73: 0 | GN73: 0 | GO73: 0 | GP73: 0 | GQ73: 0 | GR73: 0 | GS73: 0 | GT73: =GT69-GT70 -> 0 | GU73: 0 | GV73: 0 | GW73: 0 | GX73: 0 | GY73: 0 | GZ73: 0 | HA73: 0
C75: Uses of Funds
D76: Development Cost | F76: =F16 -> 20000
D77: Development Fee | F77: =F30 -> 22000
D78: EPC Cost | F78: =F17 -> 400000
